Workbook

Sheet Summary
A1: WHOLE LIFE APPRAISAL TOOL
A3: Toolkit Version 1.5
A20: Summary
A21: This whole life appraisal tool is designed to develop, assess, report and refine whole life outcomes within construction.
A24: For further information when adopting the Whole Life Appraisal Tool, please refer to the written guidance.
A27: The diagram below summaries the key stages and sections to this appraisal tool.
A48: Workbook Rules
A49: 1/ | B49: User to enter base data into project input sheet prior to entering data.
A50: 2/ | B50: User can only input into the following yellow highlighted cells
A51: 3/ | B51: The criteria for outcome delivery can be defined by the user.
A52: 4/ | B52: For any queries in relation to this document please e-mail mailbox@scottishfuturestrust.org.uk.

Sheet Project Input
A1: OPTION ANALYSIS - WHOLE LIFE OUTCOMES ANALYSIS
A2: Project Input Sheet
A4: Base Data
A5: Base data to inform lifecycle model and WLC dashboard. | F5: Date: | G5: 2019-03-06 | H5: =MATCH('WL Prefered'!AA5, D7:F7, 0) -> 1
F6: Revision | G6: B
B7: Commercial Criteria | D7: Option A | E7: Option B | F7: Option C | G7: Notes | H7: Preffered
A8: 1 | B8: Reference/Title | D8: EAC Early Years Facility | E8: Not used | F8: Not used | H8: =INDEX( D8:F8, $H$5 ) -> EAC Early Years Facility | K8: NPV
A9: 2 | B9: Authority | D9: East Ayrshire Council | H9: =INDEX( D9:F9, $H$5 ) -> East Ayrshire Council | K9: ='Option A'!Q8 -> 0 | L9: ='Option B'!Q8 -> 0 | M9: ='Option C'!Q8 -> 0 | N9: =INDEX( K9:M9, $H$5 ) -> 0 | O9: Purchase
A10: 3 | B10: Project Title | D10: EAC Ref Design | H10: EAC Ref Design | K10: ='Option A'!Q9 -> 1483328.79 | L10: ='Option B'!Q9 -> 0 | M10: ='Option C'!Q9 -> 0 | N10: =INDEX( K10:M10, $H$5 ) -> 1483328.79 | O10: Construction
A11: 4 | B11: Building Type | D11: New Build | H11: New Build | K11: ='Option A'!Q10 -> 0 | L11: ='Option B'!Q10 -> 0 | M11: ='Option C'!Q10 -> 0 | N11: 0 | O11: Rent & Rates
A12: 5 | B12: Construction Commencement | D12: 2019 | H12: 2019 | K12: ='Option A'!Q11 -> 661382.7688 | L12: ='Option B'!Q11 -> 0 | M12: ='Option C'!Q11 -> 0 | N12: 661382.7688 | O12: Operational & Occupancy (Soft FM)
A13: 6 | B13: Completion/Commencement of Operations | D13: 2020 | H13: 2020 | K13: ='Option A'!Q12 -> 602430.5578 | L13: ='Option B'!Q12 -> 0 | M13: ='Option C'!Q12 -> 0 | N13: 602430.5578 | O13: Energy & Utilities
A14: 7 | B14: Length of WLC Assessment/Concession | D14: 50 | H14: 50 | K14: ='Option A'!Q13 -> 228214.7296 | L14: ='Option B'!Q13 -> 0 | M14: ='Option C'!Q13 -> 0 | N14: 228214.7296 | O14: Maintenance (Hard FM)
A15: 8 | B15: End of Concession | D15: =SUM(D13+D14) -> 2070 | E15: =SUM(E13+E14) -> 0 | F15: 0 | H15: =INDEX( D15:F15, $H$5 ) -> 2070 | K15: ='Option A'!Q14 -> 689517.9676 | L15: ='Option B'!Q14 -> 0 | M15: ='Option C'!Q14 -> 0 | N15: 689517.9676 | O15: Life Cycle Replacement
A16: 9 | B16: Pricing Date | D16: 4Q 2018 | H16: 4Q 2018 | K16: ='Option A'!Q15 -> 0 | L16: ='Option B'!Q15 -> 0 | M16: ='Option C'!Q15 -> 0 | N16: 0 | O16: Disposal
A17: 10 | B17: Location | D17: East Ayrshire | H17: East Ayrshire | K17: ='Option A'!Q16 -> 3664874.814 | L17: ='Option B'!Q16 -> 0 | M17: ='Option C'!Q16 -> 0 | N17: 3664874.814 | O17: WLC (Excluding Income)
A18: 11 | B18: Capex Indexation | C18: % | D18: 0.048 | G18: BCIS 2Q 2018 - 1Q 2020 | H18: 0.048 | K18: ='Option A'!Q17 -> 0 | L18: ='Option B'!Q17 -> 0 | M18: ='Option C'!Q17 -> 0 | N18: 0 | O18: Income
A19: 12 | B19: LCC Indexation | C19: % | D19: 0.025 | H19: 0.025 | K19: ='Option A'!Q18 -> 3664874.814 | L19: ='Option B'!Q18 -> 0 | M19: ='Option C'!Q18 -> 0 | N19: 3664874.814 | O19: WLC (Including Income)
A20: 13 | B20: Energy Indexation | C20: % | D20: 0.05 | H20: 0.05
A21: 14 | B21: Income Indexation | C21: % | H21: 0 | K21: Base
A22: 15 | B22: Real discount rate | C22: % | D22: 0.035 | H22: 0.035 | K22: ='Option A'!M8 -> 0 | L22: ='Option B'!M8 -> 0 | M22: ='Option C'!M8:N8 -> 0 | N22: =INDEX( K22:M22, $H$5 ) -> 0 | O22: Purchase
A23: 16 | B23: Assumed CPI | C23: % | D23: 0.025 | H23: 0.025 | K23: ='Option A'!M9 -> 1583593 | L23: ='Option B'!M9 -> 0 | M23: ='Option C'!M9:N9 -> 0 | N23: =INDEX( K23:M23, $H$5 ) -> 1583593 | O23: Construction
A24: 17 | B24: Discount Rate | C24: % | D24: =(1 + D22) * ( 1+ D23) -1 -> 0.060875 | E24: =(1 + E22) * ( 1+ E23) -1 -> 0 | F24: =(1 + F22) * ( 1+ F23) -1 -> 0 | H24: 0.060875 | K24: ='Option A'!M10 -> 0 | L24: ='Option B'!M10 -> 0 | M24: ='Option C'!M10:N10 -> 0 | N24: =INDEX( K24:M24, $H$5 ) -> 0 | O24: Rent & Rates
A25: 18 | B25: Revision/Reference Nr (User defined ref) | H25: 0 | K25: ='Option A'!M11 -> 1621581.52 | L25: ='Option B'!M11 -> 0 | M25: ='Option C'!M11:N11 -> 0 | N25: =INDEX( K25:M25, $H$5 ) -> 1621581.52 | O25: Operational & Occupancy (Soft FM)
A26: 19 | B26: Total Gross Internal Area | C26: m2 | D26: =SUM(D27:D28) -> 528 | E26: =SUM(E27:E28) -> 0 | F26: =SUM(F27:F28) -> 0 | H26: 528 | K26: ='Option A'!M12 -> 827692 | L26: ='Option B'!M12 -> 0 | M26: ='Option C'!M12:N12 -> 0 | N26: 827692 | O26: Energy & Utilities
A27: 20 | B27: New Build Element - Area | C27: m2 | D27: 528 | H27: 528 | K27: ='Option A'!M13 -> 528000 | L27: ='Option B'!M13 -> 0 | M27: ='Option C'!M13:N13 -> 0 | N27: 528000 | O27: Maintenance (Hard FM)
A28: 21 | B28: Refurbished Elements - Area | C28: m2 | D28: 0 | H28: 0 | K28: ='Option A'!M14 -> 2028266 | L28: ='Option B'!M14 -> 0 | M28: ='Option C'!M14:N14 -> 0 | N28: 2028266 | O28: Life Cycle Replacement
A29: 22 | B29: Functional Units | C29: Pupils | D29: 109 | G29: Registered capacity | H29: 109 | K29: ='Option A'!M15 -> 0 | L29: ='Option B'!M15 -> 0 | M29: ='Option C'!M15:N15 -> 0 | N29: 0 | O29: Disposal
K30: ='Option A'!M16 -> 6589132.52 | L30: ='Option B'!M16 -> 0 | M30: ='Option C'!M16:N16 -> 0 | N30: 6589132.52 | O30: WLC (Excluding Income)
A31: Assessment of how well each option addresses the required objectives/outcomes. Three ratings | K31: ='Option A'!M17 -> 0 | L31: ='Option B'!M17 -> 0 | M31: ='Option C'!M17:N17 -> 0 | N31: =INDEX( K31:M31, $H$5 ) -> 0 | O31: Income
A32: 1/Red - Proposed option breaches required outcomes | K32: ='Option A'!M18 -> 6589132.52 | L32: ='Option B'!M18 -> 0 | M32: ='Option C'!M18:N18 -> 0 | N32: 6589132.52 | O32: WLC (Including Income)
A33: 2/Amber - Proposed option delivers required outcomes to satisfactory level but monitoring required
A34: 3/Green - Proposed option delivers required outcomes to high level
B36: Commercial Criteria - Risk | D36: Option A | E36: Option B | F36: Option C | G36: Notes
D37: =D8 -> EAC Early Years Facility | E37: =E8 -> Not used | F37: =F8 -> Not used
A38: 1 | B38: Risk - Land/Property Acquisition | D38: 3 | G38: Assumed owned by Council and clean property title | H38: =INDEX( D38:F38, $H$5 ) -> 3
A39: 2 | B39: Risk - Below Ground | D39: 2 | G39: Full investigation to be undertaken to confirm | H39: 2
A40: 3 | B40: Risk - Construction | D40: 2 | G40: 5% risk allowance only within Capex Plan - to be reconciled with market testing | H40: 2
A41: 4 | B41: Risk - Operation | D41: 2 | G41: to be market tested for live project | H41: 2
A42: 5 | B42: High water table and contamination | D42: 2 | G42: Full investigation to be undertaken to confirm | H42: 2
A43: 6 | B43: Risk sum as within construction phase (£) | D43: 58261 | H43: 58261
A44: 7 | B44: Risk sum as within construction phase (%) | D44: 0.05 | H44: 0.05
A45: 8 | B45: Risk sum within operational phase (£) | D45: 0 | G45: Benchmark and actual cost used.. . | H45: 0
A46: 9 | B46: Risk sum within operational phase (%) | D46: 0 | G46: No additional risk sums added. | H46: 0
B49: Environmental Criteria | D49: Option A | E49: Option B | F49: Option C | G49: Notes | H49: Preferred
A50: 1 | B50: Carbon during Construction CO2/m2 | C50: tCO2e/m2 | D50: =SUM(D52/D26) -> 0.4166666667 | E50: =SUM(E52/E26) ->  | F50: =SUM(F52/F26) ->  | G50: Requires rows 14 & 52 to be completed | H50: 0.4166666667 | K50: ='WL Options'!P25 -> 6589132.52 | L50: ='WL Options'!Q25 -> 0 | M50: ='WL Options'!R25 -> 0 | N50: =INDEX( K50:M50, $H$5 ) -> 6589132.52
A51: 2 | B51: Average carbon during Ops CO2 per annum | C51: tCO2e/yr | D51: =SUM(D53/D14) -> 32 | E51: =SUM(E53/E14) ->  | F51: =SUM(F53/F14) ->  | G51: Requires rows 26 & 53 to be completed | H51: 32 | K51: ='WL Options'!P27 -> 0 | L51: ='WL Options'!Q27 -> 0 | M51: ='WL Options'!R27 -> 0 | N51: =INDEX( K51:M51, $H$5 ) -> 0
A52: 3 | B52: Total carbon during construction CO2 | C52: tns Carbon | D52: 220 | G52: Ref "User Defined Results" Cell F13 of Carbon Tool | H52: =INDEX( D52:F52, $H$5 ) -> 220 | K52: ='WL Options'!P28 -> 0 | L52: ='WL Options'!Q28 -> 0 | M52: ='WL Options'!R28 -> 0 | N52: =INDEX( K52:M52, $H$5 ) -> 0
A53: 4 | B53: Total carbon during operation period CO2 | C53: tns Carbon | D53: 1600 | G53: Ref "User Defined Results" tab Cell F17 of Carbon Tool | H53: 1600 | K53: ='WL Options'!P29 -> 6589132.52 | L53: ='WL Options'!Q29 -> 0 | M53: ='WL Options'!R29 -> 0 | N53: 6589132.52
A54: 5 | B54: Energy Performance Certificate | D54: A | H54: A | K54: ='WL Options'!P29 -> 6589132.52 | L54: ='WL Options'!Q29 -> 0 | M54: ='WL Options'!R29 -> 0 | N54: =INDEX( K54:M54, $H$5 ) -> 6589132.52
A55: 6 | B55: BREEAM Rating | D55: N/A | H55: N/A | O55: Outstanding
O56: Excellent
A57: Outcome Quality Appraisal | O57: V Good
A58: Assessment of how well each option addresses the required objectives/outcomes. Three ratings | O58: Good
A59: 1/Red - Option delivers against criteria to a lower standard. | O59: Pass
A60: 2/Amber - Option delivers against criteria to a satisfactory level. | O60: N/A
A61: 3/Green - Option delivers against criteria to a high standard.
A63: Assessment Criteria | B63: Performance Criteria | D63: Option A | E63: Option B | F63: Option C | G63: Notes | H63: Option A
D64: =D8 -> EAC Early Years Facility | E64: =E8 -> Not used | F64: =F8 -> Not used | H64: EAC Early Years Facility
A65: 1 | B65: Placemaking | D65: 3 | G65: For the purposes of this exercise no relative comparison is being undertaken and the performance criterias are entered for illustration only | H65: 3 | O65: 1
A66: 2 | B66: Audience Engagement | D66: 3 | H66: 3 | O66: 2
A67: 3 | B67: Collection Logistics/Movement | D67: 3 | H67: 3 | O67: 3
A68: 4 | B68: Passivhaus/Sustainability | D68: 3 | H68: =INDEX( D68:F68, $H$5 ) -> 3
A69: 5 | B69: Environmental Condition Requirements | H69: 0
A70: 6 | B70: tbc…………. | H70: 0
A71: 7 | B71: tbc…………. | H71: 0
A72: 8 | B72: tbc…………. | H72: 0
A73: 9 | B73: tbc…………. | H73: 0
A74: 10 | B74: Benefits from investment | H74: 0
A75: 11 | B75: Value of benefits (£m) | H75: 0 | J75: =COUNT(D65:D74) -> 4
A76: TOTAL | D76: =SUM(D65:D74) -> 12 | E76: =SUM(E65:E74) -> 0 | F76: =SUM(F65:F74) -> 0 | H76: 12 | I76: =SUM(H76/J76) -> 1 | J76: =SUM(J75*3) -> 12
A79: OPTION SUMMARY | B79: OPTION DESCRIPTION/SUMMARY
A81: Option A .1 The EAC Reference design provides internal area of 528m2 along with external learning space as yet to be defined. The design comprises ground floor accommodation only. The internal areas are well integrated to provide a good variety of learning space and free flow access.
A85: Option B - Not used
A89: Option C - Not used
A93: Commentary of Option Analysis - For the purpose of this analysis a comparison between options for the same facility has not been undertaken.
A99: Workbook Rules
A100: 1/ | B100: User to enter base data into project input sheet prior to entering data.
A101: 2/ | B101: User can only input into the following yello highlighted cells | E101: Direct Input
A102: 3/ | B102: The criteria for outcome delivery can be defined by the user.
A103: 4/ | B103: For any queries in relation to this document please e-mail mailbox@scottishfuturestrust.org.uk
D106: =A81 -> Option A .1 The EAC Reference design provides internal area of 528m2 along with external learning space as yet to be defined. The design comprises ground floor accommodation only. The internal areas are well integrated to provide a good variety of learning space and free flow access. | E106: =A85 -> Option B - Not used | F106: =A89 -> Option C - Not used | H106: =INDEX( D106:F106, $H$5 ) -> Option A .1 The EAC Reference design provides internal area of 528m2 along with external learning space as yet to be defined. The design comprises ground floor accommodation only. The internal areas are well integrated to provide a good variety of learning space and free flow access.
D108: =IF(H5=1, 'WL Prefered'!AO17) -> 0.01 | E108: =INDEX('WL Prefered'!$AO$17, $H$5 ) -> 0.01 | F108: =INDEX('WL Prefered'!$AO$17, $H$5 ) -> 0.01
G116: Toolkit Version 1.5

Sheet Option A
B2: ='Project Input'!D9 -> East Ayrshire Council | AI2: Date: | AJ2: ='Project Input'!G5 -> 2019-03-06 | AN2: OPTION A INPUTS
B4: ='Project Input'!D10 -> EAC Ref Design | I4: OPTION A INPUTS | M4: ='Project Input'!D8 -> EAC Early Years Facility | AI4: Revision: | AJ4: ='Project Input'!D25 -> 0
A7: 1 | B7: Option Title | D7: ='Project Input'!D8 -> EAC Early Years Facility | M7: £ | O7: £/m2 | Q7: NPV | S7: NPV/m2 | V7: Quality of Services | W7: NPV/m2/annum | Y7: Scoring | AC7: Environmental Performance
A8: 2 | B8: GIFA | D8: ='Project Input'!D26 -> 528 | E8: m2 | I8: Purchase | M8: =SUM(BQ40) -> 0 | O8: =M8/$D$8 -> 0 | P8: £/m2 | Q8: =BQ45 -> 0 | S8: =Q8/$D$8 -> 0 | T8: £/m2 | V8: ='Project Input'!B65 -> Placemaking | Y8: ='Project Input'!D65 -> 3 | Z8: =SUM(Y8) -> 3 | AC8: Gross Internal Area | AF8: m2 | AG8: =SUM(AG9:AG10) -> 528
A9: 3 | B9: Functional Unit | D9: ='Project Input'!D29 -> 109 | E9: ='Project Input'!C29 -> Pupils | I9: Construction | M9: =BQ62 -> 1583593 | O9: =M9/$D$8 -> 2999.229167 | P9: £/m2 | Q9: =BQ67 -> 1483328.79 | S9: =Q9/$D$8 -> 2809.33483 | T9: £/m2 | V9: ='Project Input'!B66 -> Audience Engagement | Y9: ='Project Input'!D66 -> 3 | Z9: 3 | AC9: New Build | AF9: m2 | AG9: ='Project Input'!D27 -> 528
A10: 4 | B10: Construction Period | C10: Dates | D10: First Year | E10: ='Project Input'!D12 -> 2019 | F10: Last Year | G10: ='Project Input'!D13 -> 2020 | I10: Rent & Rates | M10: =BQ78 -> 0 | O10: =SUM(M10/$D$8/$D$13) -> 0 | P10: £/m2/annum | Q10: =BQ83 -> 0 | S10: =SUM(Q10/$D$8/$D$13) -> 0 | T10: £/m2/annum | V10: ='Project Input'!B67 -> Collection Logistics/Movement | Y10: ='Project Input'!D67 -> 3 | Z10: 3 | AC10: Refurbishment | AF10: m2 | AG10: ='Project Input'!D28 -> 0
A11: 5 | B11: Construction Period | C11: Total Years | D11: =SUM(G10-E10)+1 -> 2 | E11: Years | I11: Operational & Occupancy (Soft FM) | M11: =BQ107 -> 1621581.52 | O11: 61.42354242 | P11: £/m2/annum | Q11: =BQ112 -> 661382.7688 | S11: 25.05237761 | T11: £/m2/annum | V11: ='Project Input'!B68 -> Passivhaus/Sustainability | Y11: ='Project Input'!D68 -> 3 | Z11: 3 | AC11: Environmental Performance
A12: 6 | B12: Operational Period | C12: Dates | D12: First Year | E12: =G10 -> 2020 | F12: Last Year | G12: =SUM(E12+D13) -> 2070 | I12: Energy & Utilities | M12: =BQ124 -> 827692 | O12: 31.3519697 | P12: £/m2/annum | Q12: =BQ129 -> 602430.5578 | S12: 22.81933931 | T12: £/m2/annum | V12: ='Project Input'!B69 -> Environmental Condition Requirements | Y12: ='Project Input'!D69 -> 0 | Z12: 0 | AC12: EPC Rating | AG12: ='Project Input'!D54 -> A
A13: 7 | B13: Operational Period | C13: Total Years | D13: ='Project Input'!D14 -> 50 | E13: Years | I13: Maintenance (Hard FM) | M13: =BQ145 -> 528000 | O13: 20 | P13: £/m2/annum | Q13: =BQ150 -> 228214.7296 | S13: 8.644497334 | T13: £/m2/annum | V13: ='Project Input'!B70 -> tbc…………. | Y13: ='Project Input'!D70 -> 0 | Z13: 0
I14: Life Cycle Replacement | M14: =BQ166 -> 2028266 | O14: 76.82825758 | P14: £/m2/annum | Q14: =BQ171 -> 689517.9676 | S14: 26.11810483 | T14: £/m2/annum | V14: ='Project Input'!B71 -> tbc…………. | Y14: ='Project Input'!D71 -> 0 | Z14: 0 | AC14: WLC Duration (Length of assessment Yrs) | AF14: Years | AG14: ='Project Input'!D14 -> 50
I15: Disposal | M15: =BQ186 -> 0 | O15: 0 | P15: £/m2/annum | Q15: =BQ191 -> 0 | S15: 0 | T15: £/m2/annum | V15: ='Project Input'!B72 -> tbc…………. | Y15: ='Project Input'!D72 -> 0 | Z15: 0 | AC15: Average carbon during Ops per annum | AF15: tns/yr | AG15: ='Project Input'!D51 -> 32
I16: WLC (Excluding Income) | M16: =SUM(M8:N15) -> 6589132.52 | O16: 249.588353 | P16: £/m2/annum | Q16: =SUM(Q8:R15) -> 3664874.814 | S16: 138.8210157 | T16: £/m2/annum | V16: ='Project Input'!B73 -> tbc…………. | Y16: ='Project Input'!D73 -> 0 | Z16: 0 | AC16: Total Carbon Operation | AF16: tns | AG16: ='Project Input'!D53 -> 1600
I17: Income | M17: =BQ207 -> 0 | O17: 0 | P17: £/m2/annum | Q17: =BQ212 -> 0 | S17: 0 | T17: £/m2/annum | V17: ='Project Input'!B74 -> Benefits from investment | Y17: ='Project Input'!D74 -> 0 | Z17: 0 | AC17: Carbon during Construction CO2/m2 | AF17: tns/m2 | AG17: ='Project Input'!D50 -> 0.4166666667
I18: WLC (Including Income) | M18: =SUM(M16-M17) -> 6589132.52 | O18: =SUM(M18/$D$8/$D$13) -> 249.588353 | P18: £/m2/annum | Q18: =SUM(Q16-Q17) -> 3664874.814 | S18: =SUM(Q18/$D$8/$D$13) -> 138.8210157 | T18: £/m2/annum | V18: Quality Assessment | W18: NPV/m2/annum | Y18: =SUM(Y8:Y17) -> 12 | AC18: Total carbon during construction CO2 | AF18: tns | AG18: ='Project Input'!D52 -> 220
A20: Year No | H20: SUB-TOTALS | I20: 1 | J20: 2 | K20: 3 | L20: 4 | M20: 5 | N20: 6 | O20: 7 | P20: 8 | Q20: 9 | R20: 10 | S20: 11 | T20: 12 | U20: 13 | V20: 14 | W20: 15 | X20: 16 | Y20: 17 | Z20: 18 | AA20: 19 | AB20: 20 | AC20: 21 | AD20: 22 | AE20: 23 | AF20: 24 | AG20: 25 | AH20: 26 | AI20: 27 | AJ20: 28 | AK20: 29 | AL20: 30 | AM20: 31 | AN20: 32 | AO20: 33 | AP20: 34 | AQ20: 35 | AR20: 36 | AS20: 37 | AT20: 38 | AU20: 39 | AV20: 40 | AW20: 41 | AX20: 42 | AY20: 43 | AZ20: 44 | BA20: 45 | BB20: 46 | BC20: 47 | BD20: 48 | BE20: 49 | BF20: 50 | BG20: 51 | BH20: 52 | BI20: 53 | BJ20: 54 | BK20: 55 | BL20: 56 | BM20: 57 | BN20: 58 | BO20: 59 | BP20: 60 | BQ20: TOTALS
A21: Year | I21: =SUM('Project Input'!D3) -> 0 | J21: =SUM(I21+1) -> 1 | K21: =SUM(J21+1) -> 2 | L21: =SUM(K21+1) -> 3 | M21: =SUM(L21+1) -> 4 | N21: =SUM(M21+1) -> 5 | O21: =SUM(N21+1) -> 6 | P21: =SUM(O21+1) -> 7 | Q21: =SUM(P21+1) -> 8 | R21: =SUM(Q21+1) -> 9 | S21: =SUM(R21+1) -> 10 | T21: =SUM(S21+1) -> 11 | U21: =SUM(T21+1) -> 12 | V21: =SUM(U21+1) -> 13 | W21: =SUM(V21+1) -> 14 | X21: =SUM(W21+1) -> 15 | Y21: =SUM(X21+1) -> 16 | Z21: =SUM(Y21+1) -> 17 | AA21: =SUM(Z21+1) -> 18 | AB21: =SUM(AA21+1) -> 19 | AC21: =SUM(AB21+1) -> 20 | AD21: =SUM(AC21+1) -> 21 | AE21: =SUM(AD21+1) -> 22 | AF21: =SUM(AE21+1) -> 23 | AG21: =SUM(AF21+1) -> 24 | AH21: =SUM(AG21+1) -> 25 | AI21: =SUM(AH21+1) -> 26 | AJ21: =SUM(AI21+1) -> 27 | AK21: =SUM(AJ21+1) -> 28 | AL21: =SUM(AK21+1) -> 29 | AM21: =SUM(AL21+1) -> 30 | AN21: =SUM(AM21+1) -> 31 | AO21: =SUM(AN21+1) -> 32 | AP21: =SUM(AO21+1) -> 33 | AQ21: =SUM(AP21+1) -> 34 | AR21: =SUM(AQ21+1) -> 35 | AS21: =SUM(AR21+1) -> 36 | AT21: =SUM(AS21+1) -> 37 | AU21: =SUM(AT21+1) -> 38 | AV21: =SUM(AU21+1) -> 39 | AW21: =SUM(AV21+1) -> 40 | AX21: =SUM(AW21+1) -> 41 | AY21: =SUM(AX21+1) -> 42 | AZ21: =SUM(AY21+1) -> 43 | BA21: =SUM(AZ21+1) -> 44 | BB21: =SUM(BA21+1) -> 45 | BC21: =SUM(BB21+1) -> 46 | BD21: =SUM(BC21+1) -> 47 | BE21: =SUM(BD21+1) -> 48 | BF21: =SUM(BE21+1) -> 49 | BG21: =SUM(BF21+1) -> 50 | BH21: =SUM(BG21+1) -> 51 | BI21: =SUM(BH21+1) -> 52 | BJ21: =SUM(BI21+1) -> 53 | BK21: =SUM(BJ21+1) -> 54 | BL21: =SUM(BK21+1) -> 55 | BM21: =SUM(BL21+1) -> 56 | BN21: =SUM(BM21+1) -> 57 | BO21: =SUM(BN21+1) -> 58 | BP21: =SUM(BO21+1) -> 59
G22: Annual Total Whole Life Cost (Base Cost) | H22: =H40+H62+H78+H107+H124+H145+H166+H186-H207 -> 6589132.52 | I22: =I40+I62+I78+I107+I124+I145+I166+I186-I207 -> 762367 | J22: 837302 | K22: 49307 | L22: 51452.72 | M22: 51452.72 | N22: 51452.72 | O22: 57632.72 | P22: 72333 | Q22: 55172.72 | R22: 53732.72 | S22: 89999.12 | T22: 95384.72 | U22: 68237.12 | V22: 119483.12 | W22: 68237.12 | X22: 69677.12 | Y22: 102501.92 | Z22: 75354.32 | AA22: 75354.32 | AB22: 194787.92 | AC22: 75354.32 | AD22: 184152.32 | AE22: 77394.32 | AF22: 75954.32 | AG22: 75954.32 | AH22: 129140.72 | AI22: 103101.92 | AJ22: 75954.32 | AK22: 180450.32 | AL22: 77394.32 | AM22: 75954.32 | AN22: 121101.92 | AO22: 76554.32 | AP22: 76554.32 | AQ22: 76554.32 | AR22: 76554.32 | AS22: 105141.92 | AT22: 251185.52 | AU22: 76554.32 | AV22: 76554.32 | AW22: 76554.32 | AX22: 532514.72 | AY22: 76554.32 | AZ22: 95394.32 | BA22: 76554.32 | BB22: 76554.32 | BC22: 139968.32 | BD22: 76554.32 | BE22: 76554.32 | BF22: 126396.32 | BG22: 77994.32 | BH22: 87617.92 | BI22: 1137.76 | BJ22: 0 | BK22: 0 | BL22: 0 | BM22: 0 | BN22: 0 | BO22: 0 | BP22: 0
G23: Cumulative Total Whole Life Cost (Base Cost) | I23: =SUM(I22) -> 762367 | J23: =SUM(J22+I23) -> 1599669 | K23: =SUM(K22+J23) -> 1648976 | L23: =SUM(L22+K23) -> 1700428.72 | M23: 1751881.44 | N23: 1803334.16 | O23: 1860966.88 | P23: 1933299.88 | Q23: 1988472.6 | R23: 2042205.32 | S23: 2132204.44 | T23: 2227589.16 | U23: 2295826.28 | V23: 2415309.4 | W23: 2483546.52 | X23: 2553223.64 | Y23: 2655725.56 | Z23: 2731079.88 | AA23: 2806434.2 | AB23: 3001222.12 | AC23: 3076576.44 | AD23: 3260728.76 | AE23: 3338123.08 | AF23: 3414077.4 | AG23: 3490031.72 | AH23: 3619172.44 | AI23: 3722274.36 | AJ23: 3798228.68 | AK23: 3978679 | AL23: 4056073.32 | AM23: 4132027.64 | AN23: 4253129.56 | AO23: 4329683.88 | AP23: 4406238.2 | AQ23: 4482792.52 | AR23: 4559346.84 | AS23: 4664488.76 | AT23: 4915674.28 | AU23: 4992228.6 | AV23: 5068782.92 | AW23: 5145337.24 | AX23: 5677851.96 | AY23: 5754406.28 | AZ23: 5849800.6 | BA23: 5926354.92 | BB23: 6002909.24 | BC23: 6142877.56 | BD23: 6219431.88 | BE23: 6295986.2 | BF23: 6422382.52 | BG23: 6500376.84 | BH23: 6587994.76 | BI23: 6589132.52 | BJ23: 6589132.52 | BK23: 6589132.52 | BL23: 6589132.52 | BM23: 6589132.52 | BN23: 6589132.52 | BO23: 6589132.52 | BP23: 6589132.52
G24: Cumulative Total Whole Life Cost (Cost minus income) NPV | H24: =H45+H67+H83+H112+H129+H150+H171+H191-H212 -> 3664874.814 | I24: =I45+I67+I83+I112+I129+I150+I171+I191-I212 -> 718620.9497 | J24: 779471.4593 | K24: 44106.63492 | L24: 44799.58802 | M24: 43641.15093 | N24: 42518.23332 | O24: 46168.62189 | P24: 55844.3173 | Q24: 42014.06065 | R24: 39935.97286 | S24: 63155.28085 | T24: 64828.48108 | U24: 46029.61309 | V24: 75684.68404 | W24: 43604.71519 | X24: 43258.68238 | Y24: 59954.88914 | Z24: 43980.5134 | AA24: 42801.88167 | AB24: 100219.2143 | AC24: 40553.48979 | AD24: 89279.061 | AE24: 39344.55426 | AF24: 37691.91984 | AG24: 36707.44307 | AH24: 56967.53138 | AI24: 45290.52922 | AJ24: 33931.9714 | AK24: 70655.81297 | AL24: 32720.94603 | AM24: 31403.57463 | AN24: 45260.9502 | AO24: 30031.66021 | AP24: 29280.53077 | AQ24: 28552.09114 | AR24: 27845.60181 | AS24: 34970.52525 | AT24: 72591.79169 | AU24: 25850.80654 | AV24: 25225.20555 | AW24: 24618.21196 | AX24: 128913.0602 | AY24: 23457.65463 | AZ24: 26948.53226 | BA24: 22364.54711 | BB24: 21841.93629 | BC24: 33616.48266 | BD24: 20842.05478 | BE24: 20363.81633 | BF24: 28606.13822 | BG24: 19691.48599 | BH24: 18636.69082 | BI24: 179.262008 | BJ24: 0 | BK24: 0 | BL24: 0 | BM24: 0 | BN24: 0 | BO24: 0 | BP24: 0
A26: Year No | H26: SUB-TOTALS | I26: 1 | J26: 2 | K26: 3 | L26: 4 | M26: 5 | N26: 6 | O26: 7 | P26: 8 | Q26: 9 | R26: 10 | S26: 11 | T26: 12 | U26: 13 | V26: 14 | W26: 15 | X26: 16 | Y26: 17 | Z26: 18 | AA26: 19 | AB26: 20 | AC26: 21 | AD26: 22 | AE26: 23 | AF26: 24 | AG26: 25 | AH26: 26 | AI26: 27 | AJ26: 28 | AK26: 29 | AL26: 30 | AM26: 31 | AN26: 32 | AO26: 33 | AP26: 34 | AQ26: 35 | AR26: 36 | AS26: 37 | AT26: 38 | AU26: 39 | AV26: 40 | AW26: 41 | AX26: 42 | AY26: 43 | AZ26: 44 | BA26: 45 | BB26: 46 | BC26: 47 | BD26: 48 | BE26: 49 | BF26: 50 | BG26: 51 | BH26: 52 | BI26: 53 | BJ26: 54 | BK26: 55 | BL26: 56 | BM26: 57 | BN26: 58 | BO26: 59 | BP26: 60 | BQ26: TOTALS
A27: Year | I27: =SUM('Project Input'!D12) -> 2019 | J27: =SUM(I27+1) -> 2020 | K27: =SUM(J27+1) -> 2021 | L27: 2022 | M27: 2023 | N27: 2024 | O27: 2025 | P27: 2026 | Q27: 2027 | R27: 2028 | S27: 2029 | T27: 2030 | U27: 2031 | V27: 2032 | W27: 2033 | X27: 2034 | Y27: 2035 | Z27: 2036 | AA27: 2037 | AB27: 2038 | AC27: 2039 | AD27: 2040 | AE27: 2041 | AF27: 2042 | AG27: 2043 | AH27: 2044 | AI27: 2045 | AJ27: 2046 | AK27: 2047 | AL27: 2048 | AM27: 2049 | AN27: 2050 | AO27: 2051 | AP27: 2052 | AQ27: 2053 | AR27: 2054 | AS27: 2055 | AT27: 2056 | AU27: 2057 | AV27: 2058 | AW27: 2059 | AX27: 2060 | AY27: 2061 | AZ27: 2062 | BA27: 2063 | BB27: 2064 | BC27: 2065 | BD27: 2066 | BE27: 2067 | BF27: 2068 | BG27: 2069 | BH27: 2070 | BI27: 2071 | BJ27: 2072 | BK27: 2073 | BL27: 2074 | BM27: 2075 | BN27: 2076 | BO27: 2077 | BP27: 2078
A28: 1 | B28: Purchase Costs | BT28: =NPV('Project Input'!$D$22,'Option A'!J28:BP28)+I28 -> 0
A29: 1.01 | B29: Purchase (including land) | D29: Insert Data Source | H29: =SUM(I29:BP29) -> 0 | I29: 0 | J29: 0 | K29: 0 | L29: 0 | M29: 0 | N29: 0 | O29: 0 | P29: 0 | Q29: 0 | R29: 0 | S29: 0 | T29: 0 | U29: 0 | V29: 0 | W29: 0 | X29: 0 | Y29: 0 | Z29: 0 | AA29: 0 | AB29: 0 | AC29: 0 | AD29: 0 | AE29: 0 | AF29: 0 | AG29: 0 | AH29: 0 | AI29: 0 | AJ29: 0 | AK29: 0 | AL29: 0 | AM29: 0 | AN29: 0 | AO29: 0 | AP29: 0 | AQ29: 0 | AR29: 0 | AS29: 0 | AT29: 0 | AU29: 0 | AV29: 0 | AW29: 0 | AX29: 0 | AY29: 0 | AZ29: 0 | BA29: 0 | BB29: 0 | BC29: 0 | BD29: 0 | BE29: 0 | BF29: 0 | BG29: 0 | BH29: 0 | BI29: 0 | BJ29: 0 | BK29: 0 | BL29: 0 | BM29: 0 | BN29: 0 | BO29: 0 | BP29: 0 | BQ29: =SUM(I29:BP29) -> 0
A30: 1.02 | B30: Pre-Acquisition Inspections | D30: Insert Data Source | H30: 0 | I30: 0 | J30: 0 | K30: 0 | L30: 0 | M30: 0 | N30: 0 | O30: 0 | P30: 0 | Q30: 0 | R30: 0 | S30: 0 | T30: 0 | U30: 0 | V30: 0 | W30: 0 | X30: 0 | Y30: 0 | Z30: 0 | AA30: 0 | AB30: 0 | AC30: 0 | AD30: 0 | AE30: 0 | AF30: 0 | AG30: 0 | AH30: 0 | AI30: 0 | AJ30: 0 | AK30: 0 | AL30: 0 | AM30: 0 | AN30: 0 | AO30: 0 | AP30: 0 | AQ30: 0 | AR30: 0 | AS30: 0 | AT30: 0 | AU30: 0 | AV30: 0 | AW30: 0 | AX30: 0 | AY30: 0 | AZ30: 0 | BA30: 0 | BB30: 0 | BC30: 0 | BD30: 0 | BE30: 0 | BF30: 0 | BG30: 0 | BH30: 0 | BI30: 0 | BJ30: 0 | BK30: 0 | BL30: 0 | BM30: 0 | BN30: 0 | BO30: 0 | BP30: 0 | BQ30: =SUM(I30:BP30) -> 0
A31: 1.03 | B31: Fees (Purchase) | D31: Insert Data Source | H31: 0 | I31: 0 | J31: 0 | K31: 0 | L31: 0 | M31: 0 | N31: 0 | O31: 0 | P31: 0 | Q31: 0 | R31: 0 | S31: 0 | T31: 0 | U31: 0 | V31: 0 | W31: 0 | X31: 0 | Y31: 0 | Z31: 0 | AA31: 0 | AB31: 0 | AC31: 0 | AD31: 0 | AE31: 0 | AF31: 0 | AG31: 0 | AH31: 0 | AI31: 0 | AJ31: 0 | AK31: 0 | AL31: 0 | AM31: 0 | AN31: 0 | AO31: 0 | AP31: 0 | AQ31: 0 | AR31: 0 | AS31: 0 | AT31: 0 | AU31: 0 | AV31: 0 | AW31: 0 | AX31: 0 | AY31: 0 | AZ31: 0 | BA31: 0 | BB31: 0 | BC31: 0 | BD31: 0 | BE31: 0 | BF31: 0 | BG31: 0 | BH31: 0 | BI31: 0 | BJ31: 0 | BK31: 0 | BL31: 0 | BM31: 0 | BN31: 0 | BO31: 0 | BP31: 0 | BQ31: 0
A32: 1.04 | B32: Procuring Authority In-house Costs | D32: Insert Data Source | H32: 0 | I32: 0 | J32: 0 | K32: 0 | L32: 0 | M32: 0 | N32: 0 | O32: 0 | P32: 0 | Q32: 0 | R32: 0 | S32: 0 | T32: 0 | U32: 0 | V32: 0 | W32: 0 | X32: 0 | Y32: 0 | Z32: 0 | AA32: 0 | AB32: 0 | AC32: 0 | AD32: 0 | AE32: 0 | AF32: 0 | AG32: 0 | AH32: 0 | AI32: 0 | AJ32: 0 | AK32: 0 | AL32: 0 | AM32: 0 | AN32: 0 | AO32: 0 | AP32: 0 | AQ32: 0 | AR32: 0 | AS32: 0 | AT32: 0 | AU32: 0 | AV32: 0 | AW32: 0 | AX32: 0 | AY32: 0 | AZ32: 0 | BA32: 0 | BB32: 0 | BC32: 0 | BD32: 0 | BE32: 0 | BF32: 0 | BG32: 0 | BH32: 0 | BI32: 0 | BJ32: 0 | BK32: 0 | BL32: 0 | BM32: 0 | BN32: 0 | BO32: 0 | BP32: 0 | BQ32: 0
A33: 1.05 | B33: Finance | D33: Insert Data Source | H33: 0 | I33: 0 | J33: 0 | K33: 0 | L33: 0 | M33: 0 | N33: 0 | O33: 0 | P33: 0 | Q33: 0 | R33: 0 | S33: 0 | T33: 0 | U33: 0 | V33: 0 | W33: 0 | X33: 0 | Y33: 0 | Z33: 0 | AA33: 0 | AB33: 0 | AC33: 0 | AD33: 0 | AE33: 0 | AF33: 0 | AG33: 0 | AH33: 0 | AI33: 0 | AJ33: 0 | AK33: 0 | AL33: 0 | AM33: 0 | AN33: 0 | AO33: 0 | AP33: 0 | AQ33: 0 | AR33: 0 | AS33: 0 | AT33: 0 | AU33: 0 | AV33: 0 | AW33: 0 | AX33: 0 | AY33: 0 | AZ33: 0 | BA33: 0 | BB33: 0 | BC33: 0 | BD33: 0 | BE33: 0 | BF33: 0 | BG33: 0 | BH33: 0 | BI33: 0 | BJ33: 0 | BK33: 0 | BL33: 0 | BM33: 0 | BN33: 0 | BO33: 0 | BP33: 0 | BQ33: 0
A34: 1.06 | B34: Disposal | D34: Insert Data Source | H34: 0 | I34: 0 | J34: 0 | K34: 0 | L34: 0 | M34: 0 | N34: 0 | O34: 0 | P34: 0 | Q34: 0 | R34: 0 | S34: 0 | T34: 0 | U34: 0 | V34: 0 | W34: 0 | X34: 0 | Y34: 0 | Z34: 0 | AA34: 0 | AB34: 0 | AC34: 0 | AD34: 0 | AE34: 0 | AF34: 0 | AG34: 0 | AH34: 0 | AI34: 0 | AJ34: 0 | AK34: 0 | AL34: 0 | AM34: 0 | AN34: 0 | AO34: 0 | AP34: 0 | AQ34: 0 | AR34: 0 | AS34: 0 | AT34: 0 | AU34: 0 | AV34: 0 | AW34: 0 | AX34: 0 | AY34: 0 | AZ34: 0 | BA34: 0 | BB34: 0 | BC34: 0 | BD34: 0 | BE34: 0 | BF34: 0 | BG34: 0 | BH34: 0 | BI34: 0 | BJ34: 0 | BK34: 0 | BL34: 0 | BM34: 0 | BN34: 0 | BO34: 0 | BP34: 0 | BQ34: 0
A35: 1.07 | B35: Description of item & Source of Data | H35: 0 | I35: 0 | J35: 0 | K35: 0 | L35: 0 | M35: 0 | N35: 0 | O35: 0 | P35: 0 | Q35: 0 | R35: 0 | S35: 0 | T35: 0 | U35: 0 | V35: 0 | W35: 0 | X35: 0 | Y35: 0 | Z35: 0 | AA35: 0 | AB35: 0 | AC35: 0 | AD35: 0 | AE35: 0 | AF35: 0 | AG35: 0 | AH35: 0 | AI35: 0 | AJ35: 0 | AK35: 0 | AL35: 0 | AM35: 0 | AN35: 0 | AO35: 0 | AP35: 0 | AQ35: 0 | AR35: 0 | AS35: 0 | AT35: 0 | AU35: 0 | AV35: 0 | AW35: 0 | AX35: 0 | AY35: 0 | AZ35: 0 | BA35: 0 | BB35: 0 | BC35: 0 | BD35: 0 | BE35: 0 | BF35: 0 | BG35: 0 | BH35: 0 | BI35: 0 | BJ35: 0 | BK35: 0 | BL35: 0 | BM35: 0 | BN35: 0 | BO35: 0 | BP35: 0 | BQ35: 0
A36: 1.08 | B36: Description of item & Source of Data | H36: 0 | I36: 0 | J36: 0 | K36: 0 | L36: 0 | M36: 0 | N36: 0 | O36: 0 | P36: 0 | Q36: 0 | R36: 0 | S36: 0 | T36: 0 | U36: 0 | V36: 0 | W36: 0 | X36: 0 | Y36: 0 | Z36: 0 | AA36: 0 | AB36: 0 | AC36: 0 | AD36: 0 | AE36: 0 | AF36: 0 | AG36: 0 | AH36: 0 | AI36: 0 | AJ36: 0 | AK36: 0 | AL36: 0 | AM36: 0 | AN36: 0 | AO36: 0 | AP36: 0 | AQ36: 0 | AR36: 0 | AS36: 0 | AT36: 0 | AU36: 0 | AV36: 0 | AW36: 0 | AX36: 0 | AY36: 0 | AZ36: 0 | BA36: 0 | BB36: 0 | BC36: 0 | BD36: 0 | BE36: 0 | BF36: 0 | BG36: 0 | BH36: 0 | BI36: 0 | BJ36: 0 | BK36: 0 | BL36: 0 | BM36: 0 | BN36: 0 | BO36: 0 | BP36: 0 | BQ36: 0
A37: 1.09 | B37: Description of item & Source of Data | H37: 0 | I37: 0 | J37: 0 | K37: 0 | L37: 0 | M37: 0 | N37: 0 | O37: 0 | P37: 0 | Q37: 0 | R37: 0 | S37: 0 | T37: 0 | U37: 0 | V37: 0 | W37: 0 | X37: 0 | Y37: 0 | Z37: 0 | AA37: 0 | AB37: 0 | AC37: 0 | AD37: 0 | AE37: 0 | AF37: 0 | AG37: 0 | AH37: 0 | AI37: 0 | AJ37: 0 | AK37: 0 | AL37: 0 | AM37: 0 | AN37: 0 | AO37: 0 | AP37: 0 | AQ37: 0 | AR37: 0 | AS37: 0 | AT37: 0 | AU37: 0 | AV37: 0 | AW37: 0 | AX37: 0 | AY37: 0 | AZ37: 0 | BA37: 0 | BB37: 0 | BC37: 0 | BD37: 0 | BE37: 0 | BF37: 0 | BG37: 0 | BH37: 0 | BI37: 0 | BJ37: 0 | BK37: 0 | BL37: 0 | BM37: 0 | BN37: 0 | BO37: 0 | BP37: 0 | BQ37: =SUM(I37:BP37) -> 0
A38: 1.1 | B38: Description of item & Source of Data | H38: 0 | I38: 0 | J38: 0 | K38: 0 | L38: 0 | M38: 0 | N38: 0 | O38: 0 | P38: 0 | Q38: 0 | R38: 0 | S38: 0 | T38: 0 | U38: 0 | V38: 0 | W38: 0 | X38: 0 | Y38: 0 | Z38: 0 | AA38: 0 | AB38: 0 | AC38: 0 | AD38: 0 | AE38: 0 | AF38: 0 | AG38: 0 | AH38: 0 | AI38: 0 | AJ38: 0 | AK38: 0 | AL38: 0 | AM38: 0 | AN38: 0 | AO38: 0 | AP38: 0 | AQ38: 0 | AR38: 0 | AS38: 0 | AT38: 0 | AU38: 0 | AV38: 0 | AW38: 0 | AX38: 0 | AY38: 0 | AZ38: 0 | BA38: 0 | BB38: 0 | BC38: 0 | BD38: 0 | BE38: 0 | BF38: 0 | BG38: 0 | BH38: 0 | BI38: 0 | BJ38: 0 | BK38: 0 | BL38: 0 | BM38: 0 | BN38: 0 | BO38: 0 | BP38: 0 | BQ38: 0
A39: 1.11 | B39: Description of item & Source of Data | H39: 0 | I39: 0 | J39: 0 | K39: 0 | L39: 0 | M39: 0 | N39: 0 | O39: 0 | P39: 0 | Q39: 0 | R39: 0 | S39: 0 | T39: 0 | U39: 0 | V39: 0 | W39: 0 | X39: 0 | Y39: 0 | Z39: 0 | AA39: 0 | AB39: 0 | AC39: 0 | AD39: 0 | AE39: 0 | AF39: 0 | AG39: 0 | AH39: 0 | AI39: 0 | AJ39: 0 | AK39: 0 | AL39: 0 | AM39: 0 | AN39: 0 | AO39: 0 | AP39: 0 | AQ39: 0 | AR39: 0 | AS39: 0 | AT39: 0 | AU39: 0 | AV39: 0 | AW39: 0 | AX39: 0 | AY39: 0 | AZ39: 0 | BA39: 0 | BB39: 0 | BC39: 0 | BD39: 0 | BE39: 0 | BF39: 0 | BG39: 0 | BH39: 0 | BI39: 0 | BJ39: 0 | BK39: 0 | BL39: 0 | BM39: 0 | BN39: 0 | BO39: 0 | BP39: 0 | BQ39: 0
G40: TOTAL CURRENT DAY COSTS | H40: =SUM(H29:H39) -> 0 | I40: =SUM(I29:I39) -> 0 | J40: 0 | K40: =SUM(K29:K39) -> 0 | L40: 0 | M40: 0 | N40: 0 | O40: 0 | P40: 0 | Q40: 0 | R40: 0 | S40: 0 | T40: 0 | U40: 0 | V40: 0 | W40: 0 | X40: 0 | Y40: 0 | Z40: 0 | AA40: 0 | AB40: 0 | AC40: 0 | AD40: 0 | AE40: 0 | AF40: 0 | AG40: 0 | AH40: 0 | AI40: 0 | AJ40: 0 | AK40: 0 | AL40: 0 | AM40: 0 | AN40: 0 | AO40: 0 | AP40: 0 | AQ40: 0 | AR40: 0 | AS40: 0 | AT40: 0 | AU40: 0 | AV40: 0 | AW40: 0 | AX40: 0 | AY40: 0 | AZ40: 0 | BA40: 0 | BB40: 0 | BC40: 0 | BD40: 0 | BE40: 0 | BF40: 0 | BG40: 0 | BH40: 0 | BI40: 0 | BJ40: 0 | BK40: 0 | BL40: 0 | BM40: 0 | BN40: 0 | BO40: 0 | BP40: 0 | BQ40: =SUM(BQ29:BQ39) -> 0
B41: Indexation | C41: CAPEX | D41: ='Project Input'!D18 -> 0.048 | I41: 1 | J41: =SUM(I41*$D$41)+I41 -> 1.048 | K41: =SUM(J41*$D$41)+J41 -> 1.098304 | L41: =SUM(K41*$D$41)+K41 -> 1.151022592 | M41: 1.206271676 | N41: 1.264172717 | O41: 1.324853007 | P41: 1.388445952 | Q41: 1.455091357 | R41: 1.524935742 | S41: 1.598132658 | T41: 1.674843026 | U41: 1.755235491 | V41: 1.839486795 | W41: 1.927782161 | X41: 2.020315704 | Y41: 2.117290858 | Z41: 2.218920819 | AA41: 2.325429019 | AB41: 2.437049612 | AC41: 2.554027993 | AD41: 2.676621337 | AE41: 2.805099161 | AF41: 2.93974392 | AG41: 3.080851629 | AH41: 3.228732507 | AI41: 3.383711667 | AJ41: 3.546129827 | AK41: 3.716344059 | AL41: 3.894728574 | AM41: 4.081675545 | AN41: 4.277595971 | AO41: 4.482920578 | AP41: 4.698100766 | AQ41: 4.923609603 | AR41: 5.159942863 | AS41: 5.407620121 | AT41: 5.667185887 | AU41: 5.939210809 | AV41: 6.224292928 | AW41: 6.523058989 | AX41: 6.83616582 | AY41: 7.164301779 | AZ41: 7.508188265 | BA41: 7.868581302 | BB41: 8.246273204 | BC41: 8.642094318 | BD41: 9.056914845 | BE41: 9.491646758 | BF41: 9.947245802 | BG41: 10.4247136 | BH41: 10.92509985 | BI41: 11.44950465 | BJ41: 11.99908087 | BK41: 12.57503675 | BL41: 13.17863852 | BM41: 13.81121316 | BN41: 14.4741514 | BO41: 15.16891066 | BP41: 15.89701837
G42: Annual Nominal Whole Life Costs | H42: =SUM(I42:BP42) -> 0 | I42: =SUM(I41*I40) -> 0 | J42: =SUM(J41*J40) -> 0 | K42: =SUM(K41*K40) -> 0 | L42: =SUM(L41*L40) -> 0 | M42: =SUM(M41*M40) -> 0 | N42: =SUM(N41*N40) -> 0 | O42: =SUM(O41*O40) -> 0 | P42: =SUM(P41*P40) -> 0 | Q42: =SUM(Q41*Q40) -> 0 | R42: =SUM(R41*R40) -> 0 | S42: =SUM(S41*S40) -> 0 | T42: =SUM(T41*T40) -> 0 | U42: =SUM(U41*U40) -> 0 | V42: =SUM(V41*V40) -> 0 | W42: =SUM(W41*W40) -> 0 | X42: =SUM(X41*X40) -> 0 | Y42: =SUM(Y41*Y40) -> 0 | Z42: =SUM(Z41*Z40) -> 0 | AA42: =SUM(AA41*AA40) -> 0 | AB42: =SUM(AB41*AB40) -> 0 | AC42: =SUM(AC41*AC40) -> 0 | AD42: =SUM(AD41*AD40) -> 0 | AE42: =SUM(AE41*AE40) -> 0 | AF42: =SUM(AF41*AF40) -> 0 | AG42: =SUM(AG41*AG40) -> 0 | AH42: =SUM(AH41*AH40) -> 0 | AI42: =SUM(AI41*AI40) -> 0 | AJ42: =SUM(AJ41*AJ40) -> 0 | AK42: =SUM(AK41*AK40) -> 0 | AL42: =SUM(AL41*AL40) -> 0 | AM42: =SUM(AM41*AM40) -> 0 | AN42: =SUM(AN41*AN40) -> 0 | AO42: =SUM(AO41*AO40) -> 0 | AP42: =SUM(AP41*AP40) -> 0 | AQ42: =SUM(AQ41*AQ40) -> 0 | AR42: =SUM(AR41*AR40) -> 0 | AS42: =SUM(AS41*AS40) -> 0 | AT42: =SUM(AT41*AT40) -> 0 | AU42: =SUM(AU41*AU40) -> 0 | AV42: =SUM(AV41*AV40) -> 0 | AW42: =SUM(AW41*AW40) -> 0 | AX42: =SUM(AX41*AX40) -> 0 | AY42: =SUM(AY41*AY40) -> 0 | AZ42: =SUM(AZ41*AZ40) -> 0 | BA42: =SUM(BA41*BA40) -> 0 | BB42: =SUM(BB41*BB40) -> 0 | BC42: =SUM(BC41*BC40) -> 0 | BD42: =SUM(BD41*BD40) -> 0 | BE42: =SUM(BE41*BE40) -> 0 | BF42: =SUM(BF41*BF40) -> 0 | BG42: =SUM(BG41*BG40) -> 0 | BH42: =SUM(BH41*BH40) -> 0 | BI42: =SUM(BI41*BI40) -> 0 | BJ42: =SUM(BJ41*BJ40) -> 0 | BK42: =SUM(BK41*BK40) -> 0 | BL42: =SUM(BL41*BL40) -> 0 | BM42: =SUM(BM41*BM40) -> 0 | BN42: =SUM(BN41*BN40) -> 0 | BO42: =SUM(BO41*BO40) -> 0 | BP42: =SUM(BP41*BP40) -> 0 | BQ42: =SUM(I42:BP42) -> 0
C43: Days since start of concession | D43: 365 | I43: =SUM($D$43*I26) -> 365 | J43: =SUM($D$43*J26) -> 730 | K43: =SUM($D$43*K26) -> 1095 | L43: 1460 | M43: 1825 | N43: 2190 | O43: 2555 | P43: 2920 | Q43: 3285 | R43: 3650 | S43: 4015 | T43: 4380 | U43: 4745 | V43: 5110 | W43: 5475 | X43: 5840 | Y43: 6205 | Z43: 6570 | AA43: 6935 | AB43: 7300 | AC43: 7665 | AD43: 8030 | AE43: 8395 | AF43: 8760 | AG43: 9125 | AH43: 9490 | AI43: 9855 | AJ43: 10220 | AK43: 10585 | AL43: 10950 | AM43: 11315 | AN43: 11680 | AO43: 12045 | AP43: 12410 | AQ43: 12775 | AR43: 13140 | AS43: 13505 | AT43: 13870 | AU43: 14235 | AV43: 14600 | AW43: 14965 | AX43: 15330 | AY43: 15695 | AZ43: 16060 | BA43: 16425 | BB43: 16790 | BC43: 17155 | BD43: 17520 | BE43: 17885 | BF43: 18250 | BG43: 18615 | BH43: 18980 | BI43: 19345 | BJ43: 19710 | BK43: 20075 | BL43: 20440 | BM43: 20805 | BN43: 21170 | BO43: 21535 | BP43: 21900
C44: Discount index | D44: ='Project Input'!$D$24 -> 0.060875 | I44: =(1+$D$44)^(I43/$D$43) -> 1.060875 | J44: =(1+$D$44)^(J43/$D$43) -> 1.125455766 | K44: =(1+$D$44)^(K43/$D$43) -> 1.193967885 | L44: 1.26665068 | M44: 1.343758041 | N44: 1.425559311 | O44: 1.512340234 | P44: 1.604403946 | Q44: 1.702072036 | R44: 1.805685672 | S44: 1.915606787 | T44: 2.03221935 | U44: 2.155930703 | V44: 2.287172984 | W44: 2.42640464 | X44: 2.574112022 | Y44: 2.730811092 | Z44: 2.897049217 | AA44: 3.073407088 | AB44: 3.260500744 | AC44: 3.458983727 | AD44: 3.669549362 | AE44: 3.892933179 | AF44: 4.129915486 | AG44: 4.381324091 | AH44: 4.648037196 | AI44: 4.93098646 | AJ44: 5.231160261 | AK44: 5.549607141 | AL44: 5.887439476 | AM44: 6.245837354 | AN44: 6.626052703 | AO44: 7.029413662 | AP44: 7.457329218 | AQ44: 7.911294134 | AR44: 8.392894165 | AS44: 8.903811597 | AT44: 9.445831128 | AU44: 10.0208461 | AV44: 10.6308651 | AW44: 11.27801902 | AX44: 11.96456843 | AY44: 12.69291153 | AZ44: 13.46559252 | BA44: 14.28531046 | BB44: 15.15492874 | BC44: 16.07748502 | BD44: 17.05620192 | BE44: 18.09449822 | BF44: 19.19600079 | BG44: 20.36455734 | BH44: 21.60424977 | BI44: 22.91940848 | BJ44: 24.31462747 | BK44: 25.79478041 | BL44: 27.36503767 | BM44: 29.03088434 | BN44: 30.79813942 | BO44: 32.67297616 | BP44: 34.66194359
A45: 1 Purchase Costs | G45: Annual NPV of Whole Life Costs | H45: =SUM(I45:BP45) -> 0 | I45: =I42/I44 -> 0 | J45: 0 | K45: 0 | L45: 0 | M45: 0 | N45: 0 | O45: 0 | P45: 0 | Q45: 0 | R45: 0 | S45: 0 | T45: 0 | U45: 0 | V45: 0 | W45: 0 | X45: 0 | Y45: 0 | Z45: 0 | AA45: 0 | AB45: 0 | AC45: 0 | AD45: 0 | AE45: 0 | AF45: 0 | AG45: 0 | AH45: 0 | AI45: 0 | AJ45: 0 | AK45: 0 | AL45: 0 | AM45: 0 | AN45: 0 | AO45: =AO42/AO44 -> 0 | AP45: 0 | AQ45: 0 | AR45: 0 | AS45: 0 | AT45: 0 | AU45: 0 | AV45: 0 | AW45: 0 | AX45: 0 | AY45: 0 | AZ45: 0 | BA45: 0 | BB45: 0 | BC45: 0 | BD45: 0 | BE45: 0 | BF45: 0 | BG45: 0 | BH45: 0 | BI45: 0 | BJ45: 0 | BK45: 0 | BL45: 0 | BM45: 0 | BN45: 0 | BO45: 0 | BP45: 0 | BQ45: =SUM(I45:BP45) -> 0
G46: Cumulative NPV of Whole Life Costs | I46: =SUM(I45) -> 0 | J46: =SUM(I46+J45) -> 0 | K46: =SUM(J46+K45) -> 0 | L46: =SUM(K46+L45) -> 0 | M46: =SUM(L46+M45) -> 0 | N46: =SUM(M46+N45) -> 0 | O46: =SUM(N46+O45) -> 0 | P46: =SUM(O46+P45) -> 0 | Q46: =SUM(P46+Q45) -> 0 | R46: =SUM(Q46+R45) -> 0 | S46: =SUM(R46+S45) -> 0 | T46: =SUM(S46+T45) -> 0 | U46: =SUM(T46+U45) -> 0 | V46: =SUM(U46+V45) -> 0 | W46: =SUM(V46+W45) -> 0 | X46: =SUM(W46+X45) -> 0 | Y46: =SUM(X46+Y45) -> 0 | Z46: =SUM(Y46+Z45) -> 0 | AA46: =SUM(Z46+AA45) -> 0 | AB46: =SUM(AA46+AB45) -> 0 | AC46: =SUM(AB46+AC45) -> 0 | AD46: =SUM(AC46+AD45) -> 0 | AE46: =SUM(AD46+AE45) -> 0 | AF46: =SUM(AE46+AF45) -> 0 | AG46: =SUM(AF46+AG45) -> 0 | AH46: =SUM(AG46+AH45) -> 0 | AI46: =SUM(AH46+AI45) -> 0 | AJ46: =SUM(AI46+AJ45) -> 0 | AK46: =SUM(AJ46+AK45) -> 0 | AL46: =SUM(AK46+AL45) -> 0 | AM46: =SUM(AL46+AM45) -> 0 | AN46: =SUM(AM46+AN45) -> 0 | AO46: =SUM(AN46+AO45) -> 0 | AP46: =SUM(AO46+AP45) -> 0 | AQ46: =SUM(AP46+AQ45) -> 0 | AR46: =SUM(AQ46+AR45) -> 0 | AS46: =SUM(AR46+AS45) -> 0 | AT46: =SUM(AS46+AT45) -> 0 | AU46: =SUM(AT46+AU45) -> 0 | AV46: =SUM(AU46+AV45) -> 0 | AW46: =SUM(AV46+AW45) -> 0 | AX46: =SUM(AW46+AX45) -> 0 | AY46: =SUM(AX46+AY45) -> 0 | AZ46: =SUM(AY46+AZ45) -> 0 | BA46: =SUM(AZ46+BA45) -> 0 | BB46: =SUM(BA46+BB45) -> 0 | BC46: =SUM(BB46+BC45) -> 0 | BD46: =SUM(BC46+BD45) -> 0 | BE46: =SUM(BD46+BE45) -> 0 | BF46: =SUM(BE46+BF45) -> 0 | BG46: =SUM(BF46+BG45) -> 0 | BH46: =SUM(BG46+BH45) -> 0 | BI46: =SUM(BH46+BI45) -> 0 | BJ46: =SUM(BI46+BJ45) -> 0 | BK46: =SUM(BJ46+BK45) -> 0 | BL46: =SUM(BK46+BL45) -> 0 | BM46: =SUM(BL46+BM45) -> 0 | BN46: =SUM(BM46+BN45) -> 0 | BO46: =SUM(BN46+BO45) -> 0
A47: 2 | B47: Construction Costs | I47: =I27 -> 2019 | J47: =J27 -> 2020 | K47: 2021 | L47: 2022 | M47: 2023 | N47: 2024 | O47: 2025 | P47: 2026 | Q47: 2027 | R47: 2028 | S47: 2029 | T47: 2030 | U47: 2031 | V47: 2032 | W47: 2033 | X47: 2034 | Y47: 2035 | Z47: 2036 | AA47: 2037 | AB47: 2038 | AC47: 2039 | AD47: 2040 | AE47: 2041 | AF47: 2042 | AG47: 2043 | AH47: 2044 | AI47: 2045 | AJ47: 2046 | AK47: 2047 | AL47: 2048 | AM47: 2049 | AN47: 2050 | AO47: 2051 | AP47: 2052 | AQ47: 2053 | AR47: 2054 | AS47: 2055 | AT47: 2056 | AU47: 2057 | AV47: 2058 | AW47: 2059 | AX47: 2060 | AY47: 2061 | AZ47: 2062 | BA47: 2063 | BB47: 2064 | BC47: 2065 | BD47: 2066 | BE47: 2067 | BF47: 2068 | BG47: 2069 | BH47: 2070 | BI47: 2071 | BJ47: 2072 | BK47: 2073 | BL47: 2074 | BM47: 2075 | BN47: 2076 | BO47: 2077 | BP47: 2078 | BT47: =NPV('Project Input'!$D$22,'Option A'!J47:BP47)+I47 -> 52638.57152
A48: 2.01 | B48: Enabling Works | D48: Excluded | H48: 0 | I48: 0 | J48: 0 | K48: 0 | L48: 0 | M48: 0 | N48: 0 | O48: 0 | P48: 0 | Q48: 0 | R48: 0 | S48: 0 | T48: 0 | U48: 0 | V48: 0 | W48: 0 | X48: 0 | Y48: 0 | Z48: 0 | AA48: 0 | AB48: 0 | AC48: 0 | AD48: 0 | AE48: 0 | AF48: 0 | AG48: 0 | AH48: 0 | AI48: 0 | AJ48: 0 | AK48: 0 | AL48: 0 | AM48: 0 | AN48: 0 | AO48: 0 | AP48: 0 | AQ48: 0 | AR48: 0 | AS48: 0 | AT48: 0 | AU48: 0 | AV48: 0 | AW48: 0 | AX48: 0 | AY48: 0 | AZ48: 0 | BA48: 0 | BB48: 0 | BC48: 0 | BD48: 0 | BE48: 0 | BF48: 0 | BG48: 0 | BH48: 0 | BI48: 0 | BJ48: 0 | BK48: 0 | BL48: 0 | BM48: 0 | BN48: 0 | BO48: 0 | BP48: 0 | BQ48: =SUM(I48:BP48) -> 0
A49: 2.02 | B49: Design & Planning | D49: Excluded | H49: 0 | I49: 0 | J49: 0 | K49: 0 | L49: 0 | M49: 0 | N49: 0 | O49: 0 | P49: 0 | Q49: 0 | R49: 0 | S49: 0 | T49: 0 | U49: 0 | V49: 0 | W49: 0 | X49: 0 | Y49: 0 | Z49: 0 | AA49: 0 | AB49: 0 | AC49: 0 | AD49: 0 | AE49: 0 | AF49: 0 | AG49: 0 | AH49: 0 | AI49: 0 | AJ49: 0 | AK49: 0 | AL49: 0 | AM49: 0 | AN49: 0 | AO49: 0 | AP49: 0 | AQ49: 0 | AR49: 0 | AS49: 0 | AT49: 0 | AU49: 0 | AV49: 0 | AW49: 0 | AX49: 0 | AY49: 0 | AZ49: 0 | BA49: 0 | BB49: 0 | BC49: 0 | BD49: 0 | BE49: 0 | BF49: 0 | BG49: 0 | BH49: 0 | BI49: 0 | BJ49: 0 | BK49: 0 | BL49: 0 | BM49: 0 | BN49: 0 | BO49: 0 | BP49: 0 | BQ49: 0
A50: 2.03 | B50: Construction Works, | D50: WLC Report - S.5 - Construction Costs | H50: 1250920 | I50: 600000 | J50: 650920 | K50: 0 | L50: 0 | M50: 0 | N50: 0 | O50: 0 | P50: 0 | Q50: 0 | R50: 0 | S50: 0 | T50: 0 | U50: 0 | V50: 0 | W50: 0 | X50: 0 | Y50: 0 | Z50: 0 | AA50: 0 | AB50: 0 | AC50: 0 | AD50: 0 | AE50: 0 | AF50: 0 | AG50: 0 | AH50: 0 | AI50: 0 | AJ50: 0 | AK50: 0 | AL50: 0 | AM50: 0 | AN50: 0 | AO50: 0 | AP50: 0 | AQ50: 0 | AR50: 0 | AS50: 0 | AT50: 0 | AU50: 0 | AV50: 0 | AW50: 0 | AX50: 0 | AY50: 0 | AZ50: 0 | BA50: 0 | BB50: 0 | BC50: 0 | BD50: 0 | BE50: 0 | BF50: 0 | BG50: 0 | BH50: 0 | BI50: 0 | BJ50: 0 | BK50: 0 | BL50: 0 | BM50: 0 | BN50: 0 | BO50: 0 | BP50: 0 | BQ50: 1250920
A51: 2.04 | B51: Commission | D51: Included in 2.03 | H51: =SUM(I51:BP51) -> 0 | I51: 0 | J51: 0 | K51: 0 | L51: 0 | M51: 0 | N51: 0 | O51: 0 | P51: 0 | Q51: 0 | R51: 0 | S51: 0 | T51: 0 | U51: 0 | V51: 0 | W51: 0 | X51: 0 | Y51: 0 | Z51: 0 | AA51: 0 | AB51: 0 | AC51: 0 | AD51: 0 | AE51: 0 | AF51: 0 | AG51: 0 | AH51: 0 | AI51: 0 | AJ51: 0 | AK51: 0 | AL51: 0 | AM51: 0 | AN51: 0 | AO51: 0 | AP51: 0 | AQ51: 0 | AR51: 0 | AS51: 0 | AT51: 0 | AU51: 0 | AV51: 0 | AW51: 0 | AX51: 0 | AY51: 0 | AZ51: 0 | BA51: 0 | BB51: 0 | BC51: 0 | BD51: 0 | BE51: 0 | BF51: 0 | BG51: 0 | BH51: 0 | BI51: 0 | BJ51: 0 | BK51: 0 | BL51: 0 | BM51: 0 | BN51: 0 | BO51: 0 | BP51: 0 | BQ51: 0
A52: 2.05 | B52: Fit-Out | D52: FF&E included in WLC Report - S.5 Construction Costs | H52: 94895 | I52: 0 | J52: 94895 | K52: 0 | L52: 0 | M52: 0 | N52: 0 | O52: 0 | P52: 0 | Q52: 0 | R52: 0 | S52: 0 | T52: 0 | U52: 0 | V52: 0 | W52: 0 | X52: 0 | Y52: 0 | Z52: 0 | AA52: 0 | AB52: 0 | AC52: 0 | AD52: 0 | AE52: 0 | AF52: 0 | AG52: 0 | AH52: 0 | AI52: 0 | AJ52: 0 | AK52: 0 | AL52: 0 | AM52: 0 | AN52: 0 | AO52: 0 | AP52: 0 | AQ52: 0 | AR52: 0 | AS52: 0 | AT52: 0 | AU52: 0 | AV52: 0 | AW52: 0 | AX52: 0 | AY52: 0 | AZ52: 0 | BA52: 0 | BB52: 0 | BC52: 0 | BD52: 0 | BE52: 0 | BF52: 0 | BG52: 0 | BH52: 0 | BI52: 0 | BJ52: 0 | BK52: 0 | BL52: 0 | BM52: 0 | BN52: 0 | BO52: 0 | BP52: 0 | BQ52: 94895
A53: 2.06 | B53: Fees (Construction) | D53: Included in 2.07 below | H53: 0 | I53: 0 | J53: 0 | K53: 0 | L53: 0 | M53: 0 | N53: 0 | O53: 0 | P53: 0 | Q53: 0 | R53: 0 | S53: 0 | T53: 0 | U53: 0 | V53: 0 | W53: 0 | X53: 0 | Y53: 0 | Z53: 0 | AA53: 0 | AB53: 0 | AC53: 0 | AD53: 0 | AE53: 0 | AF53: 0 | AG53: 0 | AH53: 0 | AI53: 0 | AJ53: 0 | AK53: 0 | AL53: 0 | AM53: 0 | AN53: 0 | AO53: 0 | AP53: 0 | AQ53: 0 | AR53: 0 | AS53: 0 | AT53: 0 | AU53: 0 | AV53: 0 | AW53: 0 | AX53: 0 | AY53: 0 | AZ53: 0 | BA53: 0 | BB53: 0 | BC53: 0 | BD53: 0 | BE53: 0 | BF53: 0 | BG53: 0 | BH53: 0 | BI53: 0 | BJ53: 0 | BK53: 0 | BL53: 0 | BM53: 0 | BN53: 0 | BO53: 0 | BP53: 0 | BQ53: 0
A54: 2.07 | B54: Procuring Authority In-house Costs | D54: Professional Fees incl in WLC Report S.5 Constr Costs | H54: 162367 | I54: 162367 | J54: 0 | K54: 0 | L54: 0 | M54: 0 | N54: 0 | O54: 0 | P54: 0 | Q54: 0 | R54: 0 | S54: 0 | T54: 0 | U54: 0 | V54: 0 | W54: 0 | X54: 0 | Y54: 0 | Z54: 0 | AA54: 0 | AB54: 0 | AC54: 0 | AD54: 0 | AE54: 0 | AF54: 0 | AG54: 0 | AH54: 0 | AI54: 0 | AJ54: 0 | AK54: 0 | AL54: 0 | AM54: 0 | AN54: 0 | AO54: 0 | AP54: 0 | AQ54: 0 | AR54: 0 | AS54: 0 | AT54: 0 | AU54: 0 | AV54: 0 | AW54: 0 | AX54: 0 | AY54: 0 | AZ54: 0 | BA54: 0 | BB54: 0 | BC54: 0 | BD54: 0 | BE54: 0 | BF54: 0 | BG54: 0 | BH54: 0 | BI54: 0 | BJ54: 0 | BK54: 0 | BL54: 0 | BM54: 0 | BN54: 0 | BO54: 0 | BP54: 0 | BQ54: 162367
A55: 2.08 | B55: Finance | D55: Excluded | H55: 0 | I55: 0 | J55: 0 | K55: 0 | L55: 0 | M55: 0 | N55: 0 | O55: 0 | P55: 0 | Q55: 0 | R55: 0 | S55: 0 | T55: 0 | U55: 0 | V55: 0 | W55: 0 | X55: 0 | Y55: 0 | Z55: 0 | AA55: 0 | AB55: 0 | AC55: 0 | AD55: 0 | AE55: 0 | AF55: 0 | AG55: 0 | AH55: 0 | AI55: 0 | AJ55: 0 | AK55: 0 | AL55: 0 | AM55: 0 | AN55: 0 | AO55: 0 | AP55: 0 | AQ55: 0 | AR55: 0 | AS55: 0 | AT55: 0 | AU55: 0 | AV55: 0 | AW55: 0 | AX55: 0 | AY55: 0 | AZ55: 0 | BA55: 0 | BB55: 0 | BC55: 0 | BD55: 0 | BE55: 0 | BF55: 0 | BG55: 0 | BH55: 0 | BI55: 0 | BJ55: 0 | BK55: 0 | BL55: 0 | BM55: 0 | BN55: 0 | BO55: 0 | BP55: 0 | BQ55: 0
A56: 2.09 | B56: Disposal | D56: Excluded | H56: 0 | I56: 0 | J56: 0 | K56: 0 | L56: 0 | M56: 0 | N56: 0 | O56: 0 | P56: 0 | Q56: 0 | R56: 0 | S56: 0 | T56: 0 | U56: 0 | V56: 0 | W56: 0 | X56: 0 | Y56: 0 | Z56: 0 | AA56: 0 | AB56: 0 | AC56: 0 | AD56: 0 | AE56: 0 | AF56: 0 | AG56: 0 | AH56: 0 | AI56: 0 | AJ56: 0 | AK56: 0 | AL56: 0 | AM56: 0 | AN56: 0 | AO56: 0 | AP56: 0 | AQ56: 0 | AR56: 0 | AS56: 0 | AT56: 0 | AU56: 0 | AV56: 0 | AW56: 0 | AX56: 0 | AY56: 0 | AZ56: 0 | BA56: 0 | BB56: 0 | BC56: 0 | BD56: 0 | BE56: 0 | BF56: 0 | BG56: 0 | BH56: 0 | BI56: 0 | BJ56: 0 | BK56: 0 | BL56: 0 | BM56: 0 | BN56: 0 | BO56: 0 | BP56: 0 | BQ56: 0
A57: 2.1 | B57: Abnormals | H57: 0 | I57: 0 | J57: 0 | K57: 0 | L57: 0 | M57: 0 | N57: 0 | O57: 0 | P57: 0 | Q57: 0 | R57: 0 | S57: 0 | T57: 0 | U57: 0 | V57: 0 | W57: 0 | X57: 0 | Y57: 0 | Z57: 0 | AA57: 0 | AB57: 0 | AC57: 0 | AD57: 0 | AE57: 0 | AF57: 0 | AG57: 0 | AH57: 0 | AI57: 0 | AJ57: 0 | AK57: 0 | AL57: 0 | AM57: 0 | AN57: 0 | AO57: 0 | AP57: 0 | AQ57: 0 | AR57: 0 | AS57: 0 | AT57: 0 | AU57: 0 | AV57: 0 | AW57: 0 | AX57: 0 | AY57: 0 | AZ57: 0 | BA57: 0 | BB57: 0 | BC57: 0 | BD57: 0 | BE57: 0 | BF57: 0 | BG57: 0 | BH57: 0 | BI57: 0 | BJ57: 0 | BK57: 0 | BL57: 0 | BM57: 0 | BN57: 0 | BO57: 0 | BP57: 0 | BQ57: 0
A58: 2.11 | B58: Inflation | H58: 0 | I58: 0 | J58: 0 | K58: 0 | L58: 0 | M58: 0 | N58: 0 | O58: 0 | P58: 0 | Q58: 0 | R58: 0 | S58: 0 | T58: 0 | U58: 0 | V58: 0 | W58: 0 | X58: 0 | Y58: 0 | Z58: 0 | AA58: 0 | AB58: 0 | AC58: 0 | AD58: 0 | AE58: 0 | AF58: 0 | AG58: 0 | AH58: 0 | AI58: 0 | AJ58: 0 | AK58: 0 | AL58: 0 | AM58: 0 | AN58: 0 | AO58: 0 | AP58: 0 | AQ58: 0 | AR58: 0 | AS58: 0 | AT58: 0 | AU58: 0 | AV58: 0 | AW58: 0 | AX58: 0 | AY58: 0 | AZ58: 0 | BA58: 0 | BB58: 0 | BC58: 0 | BD58: 0 | BE58: 0 | BF58: 0 | BG58: 0 | BH58: 0 | BI58: 0 | BJ58: 0 | BK58: 0 | BL58: 0 | BM58: 0 | BN58: 0 | BO58: 0 | BP58: 0 | BQ58: 0
A59: 2.12 | B59: Contingencies | H59: 75411 | I59: 0 | J59: 75411 | K59: 0 | L59: 0 | M59: 0 | N59: 0 | O59: 0 | P59: 0 | Q59: 0 | R59: 0 | S59: 0 | T59: 0 | U59: 0 | V59: 0 | W59: 0 | X59: 0 | Y59: 0 | Z59: 0 | AA59: 0 | AB59: 0 | AC59: 0 | AD59: 0 | AE59: 0 | AF59: 0 | AG59: 0 | AH59: 0 | AI59: 0 | AJ59: 0 | AK59: 0 | AL59: 0 | AM59: 0 | AN59: 0 | AO59: 0 | AP59: 0 | AQ59: 0 | AR59: 0 | AS59: 0 | AT59: 0 | AU59: 0 | AV59: 0 | AW59: 0 | AX59: 0 | AY59: 0 | AZ59: 0 | BA59: 0 | BB59: 0 | BC59: 0 | BD59: 0 | BE59: 0 | BF59: 0 | BG59: 0 | BH59: 0 | BI59: 0 | BJ59: 0 | BK59: 0 | BL59: 0 | BM59: 0 | BN59: 0 | BO59: 0 | BP59: 0 | BQ59: 75411
A60: 2.13 | H60: 0 | I60: 0 | J60: 0 | K60: 0 | L60: 0 | M60: 0 | N60: 0 | O60: 0 | P60: 0 | Q60: 0 | R60: 0 | S60: 0 | T60: 0 | U60: 0 | V60: 0 | W60: 0 | X60: 0 | Y60: 0 | Z60: 0 | AA60: 0 | AB60: 0 | AC60: 0 | AD60: 0 | AE60: 0 | AF60: 0 | AG60: 0 | AH60: 0 | AI60: 0 | AJ60: 0 | AK60: 0 | AL60: 0 | AM60: 0 | AN60: 0 | AO60: 0 | AP60: 0 | AQ60: 0 | AR60: 0 | AS60: 0 | AT60: 0 | AU60: 0 | AV60: 0 | AW60: 0 | AX60: 0 | AY60: 0 | AZ60: 0 | BA60: 0 | BB60: 0 | BC60: 0 | BD60: 0 | BE60: 0 | BF60: 0 | BG60: 0 | BH60: 0 | BI60: 0 | BJ60: 0 | BK60: 0 | BL60: 0 | BM60: 0 | BN60: 0 | BO60: 0 | BP60: 0 | BQ60: 0
A61: 2.14 | H61: 0 | I61: 0 | J61: 0 | K61: 0 | L61: 0 | M61: 0 | N61: 0 | O61: 0 | P61: 0 | Q61: 0 | R61: 0 | S61: 0 | T61: 0 | U61: 0 | V61: 0 | W61: 0 | X61: 0 | Y61: 0 | Z61: 0 | AA61: 0 | AB61: 0 | AC61: 0 | AD61: 0 | AE61: 0 | AF61: 0 | AG61: 0 | AH61: 0 | AI61: 0 | AJ61: 0 | AK61: 0 | AL61: 0 | AM61: 0 | AN61: 0 | AO61: 0 | AP61: 0 | AQ61: 0 | AR61: 0 | AS61: 0 | AT61: 0 | AU61: 0 | AV61: 0 | AW61: 0 | AX61: 0 | AY61: 0 | AZ61: 0 | BA61: 0 | BB61: 0 | BC61: 0 | BD61: 0 | BE61: 0 | BF61: 0 | BG61: 0 | BH61: 0 | BI61: 0 | BJ61: 0 | BK61: 0 | BL61: 0 | BM61: 0 | BN61: 0 | BO61: 0 | BP61: 0 | BQ61: 0
G62: TOTAL CURRENT DAY COSTS | H62: =SUM(H48:H61) -> 1583593 | I62: =SUM(I48:I61) -> 762367 | J62: 821226 | K62: =SUM(K48:K61) -> 0 | L62: 0 | M62: 0 | N62: 0 | O62: 0 | P62: 0 | Q62: 0 | R62: 0 | S62: 0 | T62: 0 | U62: 0 | V62: 0 | W62: 0 | X62: 0 | Y62: 0 | Z62: 0 | AA62: 0 | AB62: 0 | AC62: 0 | AD62: 0 | AE62: 0 | AF62: 0 | AG62: 0 | AH62: 0 | AI62: 0 | AJ62: 0 | AK62: 0 | AL62: 0 | AM62: 0 | AN62: 0 | AO62: 0 | AP62: 0 | AQ62: 0 | AR62: 0 | AS62: 0 | AT62: 0 | AU62: 0 | AV62: 0 | AW62: 0 | AX62: 0 | AY62: 0 | AZ62: 0 | BA62: 0 | BB62: 0 | BC62: 0 | BD62: 0 | BE62: 0 | BF62: 0 | BG62: 0 | BH62: 0 | BI62: 0 | BJ62: 0 | BK62: 0 | BL62: 0 | BM62: 0 | BN62: 0 | BO62: 0 | BP62: 0 | BQ62: 1583593
B63: Indexation | C63: CAPEX | D63: ='Project Input'!D18 -> 0.048 | I63: 1 | J63: =SUM(I63*$D$63)+I63 -> 1.048 | K63: =SUM(J63*$D$63)+J63 -> 1.098304 | L63: 1.151022592 | M63: 1.206271676 | N63: 1.264172717 | O63: 1.324853007 | P63: 1.388445952 | Q63: 1.455091357 | R63: 1.524935742 | S63: 1.598132658 | T63: 1.674843026 | U63: 1.755235491 | V63: 1.839486795 | W63: 1.927782161 | X63: 2.020315704 | Y63: 2.117290858 | Z63: 2.218920819 | AA63: 2.325429019 | AB63: 2.437049612 | AC63: 2.554027993 | AD63: 2.676621337 | AE63: 2.805099161 | AF63: 2.93974392 | AG63: 3.080851629 | AH63: 3.228732507 | AI63: 3.383711667 | AJ63: 3.546129827 | AK63: 3.716344059 | AL63: 3.894728574 | AM63: 4.081675545 | AN63: 4.277595971 | AO63: 4.482920578 | AP63: 4.698100766 | AQ63: 4.923609603 | AR63: 5.159942863 | AS63: 5.407620121 | AT63: 5.667185887 | AU63: 5.939210809 | AV63: 6.224292928 | AW63: 6.523058989 | AX63: 6.83616582 | AY63: 7.164301779 | AZ63: 7.508188265 | BA63: 7.868581302 | BB63: 8.246273204 | BC63: 8.642094318 | BD63: 9.056914845 | BE63: 9.491646758 | BF63: 9.947245802 | BG63: 10.4247136 | BH63: 10.92509985 | BI63: 11.44950465 | BJ63: 11.99908087 | BK63: 12.57503675 | BL63: 13.17863852 | BM63: 13.81121316 | BN63: 14.4741514 | BO63: 15.16891066 | BP63: 15.89701837
G64: Annual Nominal Whole Life Costs | H64: =SUM(I64:BP64) -> 1623011.848 | I64: =SUM(I63*I62) -> 762367 | J64: =SUM(J63*J62) -> 860644.848 | K64: 0 | L64: 0 | M64: 0 | N64: 0 | O64: 0 | P64: 0 | Q64: 0 | R64: 0 | S64: 0 | T64: 0 | U64: 0 | V64: 0 | W64: 0 | X64: 0 | Y64: 0 | Z64: 0 | AA64: 0 | AB64: 0 | AC64: 0 | AD64: 0 | AE64: 0 | AF64: 0 | AG64: 0 | AH64: 0 | AI64: 0 | AJ64: 0 | AK64: 0 | AL64: 0 | AM64: 0 | AN64: 0 | AO64: 0 | AP64: 0 | AQ64: 0 | AR64: 0 | AS64: 0 | AT64: 0 | AU64: 0 | AV64: 0 | AW64: 0 | AX64: 0 | AY64: 0 | AZ64: 0 | BA64: 0 | BB64: 0 | BC64: 0 | BD64: 0 | BE64: 0 | BF64: 0 | BG64: 0 | BH64: 0 | BI64: 0 | BJ64: 0 | BK64: 0 | BL64: 0 | BM64: 0 | BN64: 0 | BO64: 0 | BP64: 0 | BQ64: =SUM(I64:BP64) -> 1623011.848
C65: Days since start of concession | D65: 365 | I65: =SUM($D$65*I26) -> 365 | J65: =SUM($D$65*J26) -> 730 | K65: =SUM($D$65*K26) -> 1095 | L65: 1460 | M65: 1825 | N65: 2190 | O65: 2555 | P65: 2920 | Q65: 3285 | R65: 3650 | S65: 4015 | T65: 4380 | U65: 4745 | V65: 5110 | W65: 5475 | X65: 5840 | Y65: 6205 | Z65: 6570 | AA65: 6935 | AB65: 7300 | AC65: 7665 | AD65: 8030 | AE65: 8395 | AF65: 8760 | AG65: 9125 | AH65: 9490 | AI65: 9855 | AJ65: 10220 | AK65: 10585 | AL65: 10950 | AM65: 11315 | AN65: 11680 | AO65: 12045 | AP65: 12410 | AQ65: 12775 | AR65: 13140 | AS65: 13505 | AT65: 13870 | AU65: 14235 | AV65: 14600 | AW65: 14965 | AX65: 15330 | AY65: 15695 | AZ65: 16060 | BA65: 16425 | BB65: 16790 | BC65: 17155 | BD65: 17520 | BE65: 17885 | BF65: 18250 | BG65: 18615 | BH65: 18980 | BI65: 19345 | BJ65: 19710 | BK65: 20075 | BL65: 20440 | BM65: 20805 | BN65: 21170 | BO65: 21535 | BP65: 21900
C66: Discount index | D66: ='Project Input'!$D$24 -> 0.060875 | I66: =(1+$D$66)^(I65/$D$65) -> 1.060875 | J66: =(1+$D$66)^(J65/$D$65) -> 1.125455766 | K66: 1.193967885 | L66: 1.26665068 | M66: 1.343758041 | N66: 1.425559311 | O66: 1.512340234 | P66: 1.604403946 | Q66: 1.702072036 | R66: 1.805685672 | S66: 1.915606787 | T66: 2.03221935 | U66: 2.155930703 | V66: 2.287172984 | W66: 2.42640464 | X66: 2.574112022 | Y66: 2.730811092 | Z66: 2.897049217 | AA66: 3.073407088 | AB66: 3.260500744 | AC66: 3.458983727 | AD66: 3.669549362 | AE66: 3.892933179 | AF66: 4.129915486 | AG66: 4.381324091 | AH66: 4.648037196 | AI66: 4.93098646 | AJ66: 5.231160261 | AK66: 5.549607141 | AL66: 5.887439476 | AM66: 6.245837354 | AN66: 6.626052703 | AO66: 7.029413662 | AP66: 7.457329218 | AQ66: 7.911294134 | AR66: 8.392894165 | AS66: 8.903811597 | AT66: 9.445831128 | AU66: 10.0208461 | AV66: 10.6308651 | AW66: 11.27801902 | AX66: 11.96456843 | AY66: 12.69291153 | AZ66: 13.46559252 | BA66: 14.28531046 | BB66: 15.15492874 | BC66: 16.07748502 | BD66: 17.05620192 | BE66: 18.09449822 | BF66: 19.19600079 | BG66: 20.36455734 | BH66: 21.60424977 | BI66: 22.91940848 | BJ66: 24.31462747 | BK66: 25.79478041 | BL66: 27.36503767 | BM66: 29.03088434 | BN66: 30.79813942 | BO66: 32.67297616 | BP66: 34.66194359
A67: 2 Construction Costs | G67: Annual NPV of Whole Life Costs | H67: =SUM(I67:BP67) -> 1483328.79 | I67: =I64/I66 -> 718620.9497 | J67: 764707.8404 | K67: 0 | L67: 0 | M67: 0 | N67: 0 | O67: 0 | P67: 0 | Q67: 0 | R67: 0 | S67: 0 | T67: 0 | U67: 0 | V67: 0 | W67: 0 | X67: 0 | Y67: 0 | Z67: 0 | AA67: 0 | AB67: 0 | AC67: 0 | AD67: 0 | AE67: 0 | AF67: 0 | AG67: 0 | AH67: 0 | AI67: 0 | AJ67: 0 | AK67: 0 | AL67: 0 | AM67: 0 | AN67: 0 | AO67: =AO64/AO66 -> 0 | AP67: 0 | AQ67: 0 | AR67: 0 | AS67: 0 | AT67: 0 | AU67: 0 | AV67: 0 | AW67: 0 | AX67: 0 | AY67: 0 | AZ67: 0 | BA67: 0 | BB67: 0 | BC67: 0 | BD67: 0 | BE67: 0 | BF67: 0 | BG67: 0 | BH67: 0 | BI67: 0 | BJ67: 0 | BK67: 0 | BL67: 0 | BM67: 0 | BN67: 0 | BO67: 0 | BP67: 0 | BQ67: =SUM(I67:BP67) -> 1483328.79
G68: Cumulative NPV of Whole Life Costs | I68: =SUM(I67) -> 718620.9497 | J68: =SUM(I68+J67) -> 1483328.79 | K68: =SUM(J68+K67) -> 1483328.79 | L68: =SUM(K68+L67) -> 1483328.79 | M68: =SUM(L68+M67) -> 1483328.79 | N68: =SUM(M68+N67) -> 1483328.79 | O68: =SUM(N68+O67) -> 1483328.79 | P68: =SUM(O68+P67) -> 1483328.79 | Q68: =SUM(P68+Q67) -> 1483328.79 | R68: =SUM(Q68+R67) -> 1483328.79 | S68: =SUM(R68+S67) -> 1483328.79 | T68: =SUM(S68+T67) -> 1483328.79 | U68: =SUM(T68+U67) -> 1483328.79 | V68: =SUM(U68+V67) -> 1483328.79 | W68: =SUM(V68+W67) -> 1483328.79 | X68: =SUM(W68+X67) -> 1483328.79 | Y68: =SUM(X68+Y67) -> 1483328.79 | Z68: =SUM(Y68+Z67) -> 1483328.79 | AA68: =SUM(Z68+AA67) -> 1483328.79 | AB68: =SUM(AA68+AB67) -> 1483328.79 | AC68: =SUM(AB68+AC67) -> 1483328.79 | AD68: =SUM(AC68+AD67) -> 1483328.79 | AE68: =SUM(AD68+AE67) -> 1483328.79 | AF68: =SUM(AE68+AF67) -> 1483328.79 | AG68: =SUM(AF68+AG67) -> 1483328.79 | AH68: =SUM(AG68+AH67) -> 1483328.79 | AI68: =SUM(AH68+AI67) -> 1483328.79 | AJ68: =SUM(AI68+AJ67) -> 1483328.79 | AK68: =SUM(AJ68+AK67) -> 1483328.79 | AL68: =SUM(AK68+AL67) -> 1483328.79 | AM68: =SUM(AL68+AM67) -> 1483328.79 | AN68: =SUM(AM68+AN67) -> 1483328.79 | AO68: =SUM(AN68+AO67) -> 1483328.79 | AP68: =SUM(AO68+AP67) -> 1483328.79 | AQ68: =SUM(AP68+AQ67) -> 1483328.79 | AR68: =SUM(AQ68+AR67) -> 1483328.79 | AS68: =SUM(AR68+AS67) -> 1483328.79 | AT68: =SUM(AS68+AT67) -> 1483328.79 | AU68: =SUM(AT68+AU67) -> 1483328.79 | AV68: =SUM(AU68+AV67) -> 1483328.79 | AW68: =SUM(AV68+AW67) -> 1483328.79 | AX68: =SUM(AW68+AX67) -> 1483328.79 | AY68: =SUM(AX68+AY67) -> 1483328.79 | AZ68: =SUM(AY68+AZ67) -> 1483328.79 | BA68: =SUM(AZ68+BA67) -> 1483328.79 | BB68: =SUM(BA68+BB67) -> 1483328.79 | BC68: =SUM(BB68+BC67) -> 1483328.79 | BD68: =SUM(BC68+BD67) -> 1483328.79 | BE68: =SUM(BD68+BE67) -> 1483328.79 | BF68: =SUM(BE68+BF67) -> 1483328.79 | BG68: =SUM(BF68+BG67) -> 1483328.79 | BH68: =SUM(BG68+BH67) -> 1483328.79 | BI68: =SUM(BH68+BI67) -> 1483328.79 | BJ68: =SUM(BI68+BJ67) -> 1483328.79 | BK68: =SUM(BJ68+BK67) -> 1483328.79 | BL68: =SUM(BK68+BL67) -> 1483328.79 | BM68: =SUM(BL68+BM67) -> 1483328.79 | BN68: =SUM(BM68+BN67) -> 1483328.79 | BO68: =SUM(BN68+BO67) -> 1483328.79
A69: 3 | B69: Rent & Rates | G69: £/annum | I69: =I27 -> 2019 | J69: =J27 -> 2020 | K69: 2021 | L69: 2022 | M69: 2023 | N69: 2024 | O69: 2025 | P69: 2026 | Q69: 2027 | R69: 2028 | S69: 2029 | T69: 2030 | U69: 2031 | V69: 2032 | W69: 2033 | X69: 2034 | Y69: 2035 | Z69: 2036 | AA69: 2037 | AB69: 2038 | AC69: 2039 | AD69: 2040 | AE69: 2041 | AF69: 2042 | AG69: 2043 | AH69: 2044 | AI69: 2045 | AJ69: 2046 | AK69: 2047 | AL69: 2048 | AM69: 2049 | AN69: 2050 | AO69: 2051 | AP69: 2052 | AQ69: 2053 | AR69: 2054 | AS69: 2055 | AT69: 2056 | AU69: 2057 | AV69: 2058 | AW69: 2059 | AX69: 2060 | AY69: 2061 | AZ69: 2062 | BA69: 2063 | BB69: 2064 | BC69: 2065 | BD69: 2066 | BE69: 2067 | BF69: 2068 | BG69: 2069 | BH69: 2070 | BI69: 2071 | BJ69: 2072 | BK69: 2073 | BL69: 2074 | BM69: 2075 | BN69: 2076 | BO69: 2077 | BP69: 2078 | BT69: =NPV('Project Input'!$D$22,'Option A'!J69:BP69)+I69 -> 52638.57152
A70: 3.01 | B70: Rent | D70: No requirement | G70: 0 | H70: 0 | I70: 0 | J70: 0 | K70: 0 | L70: 0 | M70: 0 | N70: 0 | O70: 0 | P70: 0 | Q70: 0 | R70: 0 | S70: 0 | T70: 0 | U70: 0 | V70: 0 | W70: 0 | X70: 0 | Y70: 0 | Z70: 0 | AA70: 0 | AB70: 0 | AC70: 0 | AD70: 0 | AE70: 0 | AF70: 0 | AG70: 0 | AH70: 0 | AI70: 0 | AJ70: 0 | AK70: 0 | AL70: 0 | AM70: 0 | AN70: 0 | AO70: 0 | AP70: 0 | AQ70: 0 | AR70: 0 | AS70: 0 | AT70: 0 | AU70: 0 | AV70: 0 | AW70: 0 | AX70: 0 | AY70: 0 | AZ70: 0 | BA70: 0 | BB70: 0 | BC70: 0 | BD70: 0 | BE70: 0 | BF70: 0 | BG70: 0 | BH70: 0 | BI70: 0 | BJ70: 0 | BK70: 0 | BL70: 0 | BM70: 0 | BN70: 0 | BO70: 0 | BP70: 0 | BQ70: 0
A71: 3.02 | B71: Rates | D71: No requirement | G71: 0 | H71: 0 | I71: 0 | J71: 0 | K71: 0 | L71: 0 | M71: 0 | N71: 0 | O71: 0 | P71: 0 | Q71: 0 | R71: 0 | S71: 0 | T71: 0 | U71: 0 | V71: 0 | W71: 0 | X71: 0 | Y71: 0 | Z71: 0 | AA71: 0 | AB71: 0 | AC71: 0 | AD71: 0 | AE71: 0 | AF71: 0 | AG71: 0 | AH71: 0 | AI71: 0 | AJ71: 0 | AK71: 0 | AL71: 0 | AM71: 0 | AN71: 0 | AO71: 0 | AP71: 0 | AQ71: 0 | AR71: 0 | AS71: 0 | AT71: 0 | AU71: 0 | AV71: 0 | AW71: 0 | AX71: 0 | AY71: 0 | AZ71: 0 | BA71: 0 | BB71: 0 | BC71: 0 | BD71: 0 | BE71: 0 | BF71: 0 | BG71: 0 | BH71: 0 | BI71: 0 | BJ71: 0 | BK71: 0 | BL71: 0 | BM71: 0 | BN71: 0 | BO71: 0 | BP71: 0 | BQ71: 0
A72: 3.03 | B72: Insurance | D72: Excluded | G72: 0 | H72: 0 | I72: 0 | J72: 0 | K72: 0 | L72: 0 | M72: 0 | N72: 0 | O72: 0 | P72: 0 | Q72: 0 | R72: 0 | S72: 0 | T72: 0 | U72: 0 | V72: 0 | W72: 0 | X72: 0 | Y72: 0 | Z72: 0 | AA72: 0 | AB72: 0 | AC72: 0 | AD72: 0 | AE72: 0 | AF72: 0 | AG72: 0 | AH72: 0 | AI72: 0 | AJ72: 0 | AK72: 0 | AL72: 0 | AM72: 0 | AN72: 0 | AO72: 0 | AP72: 0 | AQ72: 0 | AR72: 0 | AS72: 0 | AT72: 0 | AU72: 0 | AV72: 0 | AW72: 0 | AX72: 0 | AY72: 0 | AZ72: 0 | BA72: 0 | BB72: 0 | BC72: 0 | BD72: 0 | BE72: 0 | BF72: 0 | BG72: 0 | BH72: 0 | BI72: 0 | BJ72: 0 | BK72: 0 | BL72: 0 | BM72: 0 | BN72: 0 | BO72: 0 | BP72: 0 | BQ72: 0
A73: 3.04 | G73: 0 | H73: 0 | I73: 0 | J73: 0 | K73: 0 | L73: 0 | M73: 0 | N73: 0 | O73: 0 | P73: 0 | Q73: 0 | R73: 0 | S73: 0 | T73: 0 | U73: 0 | V73: 0 | W73: 0 | X73: 0 | Y73: 0 | Z73: 0 | AA73: 0 | AB73: 0 | AC73: 0 | AD73: 0 | AE73: 0 | AF73: 0 | AG73: 0 | AH73: 0 | AI73: 0 | AJ73: 0 | AK73: 0 | AL73: 0 | AM73: 0 | AN73: 0 | AO73: 0 | AP73: 0 | AQ73: 0 | AR73: 0 | AS73: 0 | AT73: 0 | AU73: 0 | AV73: 0 | AW73: 0 | AX73: 0 | AY73: 0 | AZ73: 0 | BA73: 0 | BB73: 0 | BC73: 0 | BD73: 0 | BE73: 0 | BF73: 0 | BG73: 0 | BH73: 0 | BI73: 0 | BJ73: 0 | BK73: 0 | BL73: 0 | BM73: 0 | BN73: 0 | BO73: 0 | BP73: 0 | BQ73: 0
A74: 3.05 | G74: 0 | H74: 0 | I74: 0 | J74: 0 | K74: 0 | L74: 0 | M74: 0 | N74: 0 | O74: 0 | P74: 0 | Q74: 0 | R74: 0 | S74: 0 | T74: 0 | U74: 0 | V74: 0 | W74: 0 | X74: 0 | Y74: 0 | Z74: 0 | AA74: 0 | AB74: 0 | AC74: 0 | AD74: 0 | AE74: 0 | AF74: 0 | AG74: 0 | AH74: 0 | AI74: 0 | AJ74: 0 | AK74: 0 | AL74: 0 | AM74: 0 | AN74: 0 | AO74: 0 | AP74: 0 | AQ74: 0 | AR74: 0 | AS74: 0 | AT74: 0 | AU74: 0 | AV74: 0 | AW74: 0 | AX74: 0 | AY74: 0 | AZ74: 0 | BA74: 0 | BB74: 0 | BC74: 0 | BD74: 0 | BE74: 0 | BF74: 0 | BG74: 0 | BH74: 0 | BI74: 0 | BJ74: 0 | BK74: 0 | BL74: 0 | BM74: 0 | BN74: 0 | BO74: 0 | BP74: 0 | BQ74: 0
A75: 3.06 | G75: 0 | H75: 0 | I75: 0 | J75: 0 | K75: 0 | L75: 0 | M75: 0 | N75: 0 | O75: 0 | P75: 0 | Q75: 0 | R75: 0 | S75: 0 | T75: 0 | U75: 0 | V75: 0 | W75: 0 | X75: 0 | Y75: 0 | Z75: 0 | AA75: 0 | AB75: 0 | AC75: 0 | AD75: 0 | AE75: 0 | AF75: 0 | AG75: 0 | AH75: 0 | AI75: 0 | AJ75: 0 | AK75: 0 | AL75: 0 | AM75: 0 | AN75: 0 | AO75: 0 | AP75: 0 | AQ75: 0 | AR75: 0 | AS75: 0 | AT75: 0 | AU75: 0 | AV75: 0 | AW75: 0 | AX75: 0 | AY75: 0 | AZ75: 0 | BA75: 0 | BB75: 0 | BC75: 0 | BD75: 0 | BE75: 0 | BF75: 0 | BG75: 0 | BH75: 0 | BI75: 0 | BJ75: 0 | BK75: 0 | BL75: 0 | BM75: 0 | BN75: 0 | BO75: 0 | BP75: 0 | BQ75: 0
A76: 3.07 | G76: 0 | H76: 0 | I76: 0 | J76: 0 | K76: 0 | L76: 0 | M76: 0 | N76: 0 | O76: 0 | P76: 0 | Q76: 0 | R76: 0 | S76: 0 | T76: 0 | U76: 0 | V76: 0 | W76: 0 | X76: 0 | Y76: 0 | Z76: 0 | AA76: 0 | AB76: 0 | AC76: 0 | AD76: 0 | AE76: 0 | AF76: 0 | AG76: 0 | AH76: 0 | AI76: 0 | AJ76: 0 | AK76: 0 | AL76: 0 | AM76: 0 | AN76: 0 | AO76: 0 | AP76: 0 | AQ76: 0 | AR76: 0 | AS76: 0 | AT76: 0 | AU76: 0 | AV76: 0 | AW76: 0 | AX76: 0 | AY76: 0 | AZ76: 0 | BA76: 0 | BB76: 0 | BC76: 0 | BD76: 0 | BE76: 0 | BF76: 0 | BG76: 0 | BH76: 0 | BI76: 0 | BJ76: 0 | BK76: 0 | BL76: 0 | BM76: 0 | BN76: 0 | BO76: 0 | BP76: 0 | BQ76: 0
A77: 3.08 | G77: 0 | H77: 0 | I77: 0 | J77: 0 | K77: 0 | L77: 0 | M77: 0 | N77: 0 | O77: 0 | P77: 0 | Q77: 0 | R77: 0 | S77: 0 | T77: 0 | U77: 0 | V77: 0 | W77: 0 | X77: 0 | Y77: 0 | Z77: 0 | AA77: 0 | AB77: 0 | AC77: 0 | AD77: 0 | AE77: 0 | AF77: 0 | AG77: 0 | AH77: 0 | AI77: 0 | AJ77: 0 | AK77: 0 | AL77: 0 | AM77: 0 | AN77: 0 | AO77: 0 | AP77: 0 | AQ77: 0 | AR77: 0 | AS77: 0 | AT77: 0 | AU77: 0 | AV77: 0 | AW77: 0 | AX77: 0 | AY77: 0 | AZ77: 0 | BA77: 0 | BB77: 0 | BC77: 0 | BD77: 0 | BE77: 0 | BF77: 0 | BG77: 0 | BH77: 0 | BI77: 0 | BJ77: 0 | BK77: 0 | BL77: 0 | BM77: 0 | BN77: 0 | BO77: 0 | BP77: 0 | BQ77: 0
G78: TOTAL CURRENT DAY COSTS | H78: =SUM(H70:H77) -> 0 | I78: =SUM(I70:I77) -> 0 | J78: =SUM(J70:J77) -> 0 | K78: 0 | L78: 0 | M78: 0 | N78: 0 | O78: 0 | P78: 0 | Q78: 0 | R78: 0 | S78: 0 | T78: 0 | U78: 0 | V78: 0 | W78: 0 | X78: 0 | Y78: 0 | Z78: 0 | AA78: 0 | AB78: 0 | AC78: 0 | AD78: 0 | AE78: 0 | AF78: 0 | AG78: 0 | AH78: 0 | AI78: 0 | AJ78: 0 | AK78: 0 | AL78: 0 | AM78: 0 | AN78: 0 | AO78: 0 | AP78: 0 | AQ78: 0 | AR78: 0 | AS78: 0 | AT78: 0 | AU78: 0 | AV78: 0 | AW78: 0 | AX78: 0 | AY78: 0 | AZ78: 0 | BA78: 0 | BB78: 0 | BC78: 0 | BD78: 0 | BE78: 0 | BF78: 0 | BG78: 0 | BH78: 0 | BI78: 0 | BJ78: 0 | BK78: 0 | BL78: 0 | BM78: 0 | BN78: 0 | BO78: 0 | BP78: 0 | BQ78: =SUM(I78:BP78) -> 0
B79: Indexation | C79: LCC | D79: ='Project Input'!$D$19 -> 0.025 | I79: 1 | J79: =SUM(I79*$D$79)+I79 -> 1.025 | K79: =SUM(J79*$D$79)+J79 -> 1.050625 | L79: 1.076890625 | M79: 1.103812891 | N79: 1.131408213 | O79: 1.159693418 | P79: 1.188685754 | Q79: 1.218402898 | R79: 1.24886297 | S79: 1.280084544 | T79: 1.312086658 | U79: 1.344888824 | V79: 1.378511045 | W79: 1.412973821 | X79: 1.448298166 | Y79: 1.484505621 | Z79: 1.521618261 | AA79: 1.559658718 | AB79: 1.598650186 | AC79: 1.63861644 | AD79: 1.679581851 | AE79: 1.721571398 | AF79: 1.764610683 | AG79: 1.80872595 | AH79: 1.853944098 | AI79: 1.900292701 | AJ79: 1.947800018 | AK79: 1.996495019 | AL79: 2.046407394 | AM79: 2.097567579 | AN79: 2.150006769 | AO79: 2.203756938 | AP79: 2.258850861 | AQ79: 2.315322133 | AR79: 2.373205186 | AS79: 2.432535316 | AT79: 2.493348699 | AU79: 2.555682416 | AV79: 2.619574476 | AW79: 2.685063838 | AX79: 2.752190434 | AY79: 2.820995195 | AZ79: 2.891520075 | BA79: 2.963808077 | BB79: 3.037903279 | BC79: 3.113850861 | BD79: 3.191697132 | BE79: 3.271489561 | BF79: 3.3532768 | BG79: 3.43710872 | BH79: 3.523036438 | BI79: 3.611112349 | BJ79: 3.701390157 | BK79: 3.793924911 | BL79: 3.888773034 | BM79: 3.98599236 | BN79: 4.085642169 | BO79: 4.187783223 | BP79: 4.292477804
G80: Annual Nominal Whole Life Costs | H80: =SUM(I80:BP80) -> 0 | I80: =SUM(I79*I78) -> 0 | J80: =SUM(J79*J78) -> 0 | K80: 0 | L80: 0 | M80: 0 | N80: 0 | O80: 0 | P80: 0 | Q80: 0 | R80: 0 | S80: 0 | T80: 0 | U80: 0 | V80: 0 | W80: 0 | X80: 0 | Y80: 0 | Z80: 0 | AA80: 0 | AB80: 0 | AC80: 0 | AD80: 0 | AE80: 0 | AF80: 0 | AG80: 0 | AH80: 0 | AI80: 0 | AJ80: 0 | AK80: 0 | AL80: 0 | AM80: 0 | AN80: 0 | AO80: 0 | AP80: 0 | AQ80: 0 | AR80: 0 | AS80: 0 | AT80: 0 | AU80: 0 | AV80: 0 | AW80: 0 | AX80: 0 | AY80: 0 | AZ80: 0 | BA80: 0 | BB80: 0 | BC80: 0 | BD80: 0 | BE80: 0 | BF80: 0 | BG80: 0 | BH80: 0 | BI80: 0 | BJ80: 0 | BK80: 0 | BL80: 0 | BM80: 0 | BN80: 0 | BO80: 0 | BP80: 0 | BQ80: =SUM(I80:BP80) -> 0
C81: Days since start of concession | D81: 365 | I81: =SUM($D$110*I26) -> 365 | J81: =SUM($D$81*J26) -> 730 | K81: 1095 | L81: 1460 | M81: 1825 | N81: 2190 | O81: 2555 | P81: 2920 | Q81: 3285 | R81: 3650 | S81: 4015 | T81: 4380 | U81: 4745 | V81: 5110 | W81: 5475 | X81: 5840 | Y81: 6205 | Z81: 6570 | AA81: 6935 | AB81: 7300 | AC81: 7665 | AD81: 8030 | AE81: 8395 | AF81: 8760 | AG81: 9125 | AH81: 9490 | AI81: 9855 | AJ81: 10220 | AK81: 10585 | AL81: 10950 | AM81: 11315 | AN81: 11680 | AO81: 12045 | AP81: =SUM($D$81*AP26) -> 12410 | AQ81: 12775 | AR81: 13140 | AS81: 13505 | AT81: 13870 | AU81: 14235 | AV81: 14600 | AW81: 14965 | AX81: 15330 | AY81: 15695 | AZ81: 16060 | BA81: 16425 | BB81: 16790 | BC81: 17155 | BD81: 17520 | BE81: 17885 | BF81: 18250 | BG81: 18615 | BH81: 18980 | BI81: 19345 | BJ81: 19710 | BK81: 20075 | BL81: 20440 | BM81: 20805 | BN81: 21170 | BO81: 21535 | BP81: 21900
C82: Discount index | D82: ='Project Input'!$D$24 -> 0.060875 | I82: =(1+$D$82)^(I81/$D$81) -> 1.060875 | J82: =(1+$D$82)^(J81/$D$81) -> 1.125455766 | K82: 1.193967885 | L82: 1.26665068 | M82: 1.343758041 | N82: 1.425559311 | O82: 1.512340234 | P82: 1.604403946 | Q82: 1.702072036 | R82: 1.805685672 | S82: 1.915606787 | T82: 2.03221935 | U82: 2.155930703 | V82: 2.287172984 | W82: 2.42640464 | X82: 2.574112022 | Y82: 2.730811092 | Z82: 2.897049217 | AA82: 3.073407088 | AB82: 3.260500744 | AC82: 3.458983727 | AD82: 3.669549362 | AE82: 3.892933179 | AF82: 4.129915486 | AG82: 4.381324091 | AH82: 4.648037196 | AI82: 4.93098646 | AJ82: 5.231160261 | AK82: 5.549607141 | AL82: 5.887439476 | AM82: 6.245837354 | AN82: 6.626052703 | AO82: 7.029413662 | AP82: 7.457329218 | AQ82: 7.911294134 | AR82: 8.392894165 | AS82: 8.903811597 | AT82: 9.445831128 | AU82: 10.0208461 | AV82: 10.6308651 | AW82: 11.27801902 | AX82: 11.96456843 | AY82: 12.69291153 | AZ82: 13.46559252 | BA82: 14.28531046 | BB82: 15.15492874 | BC82: 16.07748502 | BD82: 17.05620192 | BE82: 18.09449822 | BF82: 19.19600079 | BG82: 20.36455734 | BH82: 21.60424977 | BI82: 22.91940848 | BJ82: 24.31462747 | BK82: 25.79478041 | BL82: 27.36503767 | BM82: 29.03088434 | BN82: 30.79813942 | BO82: 32.67297616 | BP82: 34.66194359
A83: 3 Rents & Rates | G83: Annual NPV of Whole Life Costs | H83: =SUM(I83:BP83) -> 0 | I83: =I80/I82 -> 0 | J83: 0 | K83: 0 | L83: 0 | M83: 0 | N83: 0 | O83: 0 | P83: 0 | Q83: 0 | R83: 0 | S83: 0 | T83: 0 | U83: 0 | V83: 0 | W83: 0 | X83: 0 | Y83: 0 | Z83: 0 | AA83: 0 | AB83: 0 | AC83: 0 | AD83: 0 | AE83: 0 | AF83: 0 | AG83: 0 | AH83: 0 | AI83: 0 | AJ83: 0 | AK83: 0 | AL83: 0 | AM83: 0 | AN83: 0 | AO83: =AO80/AO82 -> 0 | AP83: 0 | AQ83: 0 | AR83: 0 | AS83: 0 | AT83: 0 | AU83: 0 | AV83: 0 | AW83: 0 | AX83: 0 | AY83: 0 | AZ83: 0 | BA83: 0 | BB83: 0 | BC83: 0 | BD83: 0 | BE83: 0 | BF83: 0 | BG83: 0 | BH83: 0 | BI83: 0 | BJ83: 0 | BK83: 0 | BL83: 0 | BM83: 0 | BN83: 0 | BO83: 0 | BP83: 0 | BQ83: =SUM(I83:BP83) -> 0
G84: Cumulative NPV of Whole Life Costs | I84: =SUM(I83) -> 0 | J84: =SUM(I84+J83) -> 0 | K84: =SUM(J84+K83) -> 0 | L84: =SUM(K84+L83) -> 0 | M84: =SUM(L84+M83) -> 0 | N84: =SUM(M84+N83) -> 0 | O84: =SUM(N84+O83) -> 0 | P84: =SUM(O84+P83) -> 0 | Q84: =SUM(P84+Q83) -> 0 | R84: =SUM(Q84+R83) -> 0 | S84: =SUM(R84+S83) -> 0 | T84: =SUM(S84+T83) -> 0 | U84: =SUM(T84+U83) -> 0 | V84: =SUM(U84+V83) -> 0 | W84: =SUM(V84+W83) -> 0 | X84: =SUM(W84+X83) -> 0 | Y84: =SUM(X84+Y83) -> 0 | Z84: =SUM(Y84+Z83) -> 0 | AA84: =SUM(Z84+AA83) -> 0 | AB84: =SUM(AA84+AB83) -> 0 | AC84: =SUM(AB84+AC83) -> 0 | AD84: =SUM(AC84+AD83) -> 0 | AE84: =SUM(AD84+AE83) -> 0 | AF84: =SUM(AE84+AF83) -> 0 | AG84: =SUM(AF84+AG83) -> 0 | AH84: =SUM(AG84+AH83) -> 0 | AI84: =SUM(AH84+AI83) -> 0 | AJ84: =SUM(AI84+AJ83) -> 0 | AK84: =SUM(AJ84+AK83) -> 0 | AL84: =SUM(AK84+AL83) -> 0 | AM84: =SUM(AL84+AM83) -> 0 | AN84: =SUM(AM84+AN83) -> 0 | AO84: =SUM(AN84+AO83) -> 0 | AP84: =SUM(AO84+AP83) -> 0 | AQ84: =SUM(AP84+AQ83) -> 0 | AR84: =SUM(AQ84+AR83) -> 0 | AS84: =SUM(AR84+AS83) -> 0 | AT84: =SUM(AS84+AT83) -> 0 | AU84: =SUM(AT84+AU83) -> 0 | AV84: =SUM(AU84+AV83) -> 0 | AW84: =SUM(AV84+AW83) -> 0 | AX84: =SUM(AW84+AX83) -> 0 | AY84: =SUM(AX84+AY83) -> 0 | AZ84: =SUM(AY84+AZ83) -> 0 | BA84: =SUM(AZ84+BA83) -> 0 | BB84: =SUM(BA84+BB83) -> 0 | BC84: =SUM(BB84+BC83) -> 0 | BD84: =SUM(BC84+BD83) -> 0 | BE84: =SUM(BD84+BE83) -> 0 | BF84: =SUM(BE84+BF83) -> 0 | BG84: =SUM(BF84+BG83) -> 0 | BH84: =SUM(BG84+BH83) -> 0 | BI84: =SUM(BH84+BI83) -> 0 | BJ84: =SUM(BI84+BJ83) -> 0 | BK84: =SUM(BJ84+BK83) -> 0 | BL84: =SUM(BK84+BL83) -> 0 | BM84: =SUM(BL84+BM83) -> 0 | BN84: =SUM(BM84+BN83) -> 0 | BO84: =SUM(BN84+BO83) -> 0
A85: 4 | B85: Operation & Occupancy Costs (Soft FM) | G85: £/annum | I85: =I27 -> 2019 | J85: =J27 -> 2020 | K85: 2021 | L85: 2022 | M85: 2023 | N85: 2024 | O85: 2025 | P85: 2026 | Q85: 2027 | R85: 2028 | S85: 2029 | T85: 2030 | U85: 2031 | V85: 2032 | W85: 2033 | X85: 2034 | Y85: 2035 | Z85: 2036 | AA85: 2037 | AB85: 2038 | AC85: 2039 | AD85: 2040 | AE85: 2041 | AF85: 2042 | AG85: 2043 | AH85: 2044 | AI85: 2045 | AJ85: 2046 | AK85: 2047 | AL85: 2048 | AM85: 2049 | AN85: 2050 | AO85: 2051 | AP85: 2052 | AQ85: 2053 | AR85: 2054 | AS85: 2055 | AT85: 2056 | AU85: 2057 | AV85: 2058 | AW85: 2059 | AX85: 2060 | AY85: 2061 | AZ85: 2062 | BA85: 2063 | BB85: 2064 | BC85: 2065 | BD85: 2066 | BE85: 2067 | BF85: 2068 | BG85: 2069 | BH85: 2070 | BI85: 2071 | BJ85: 2072 | BK85: 2073 | BL85: 2074 | BM85: 2075 | BN85: 2076 | BO85: 2077 | BP85: 2078 | BT85: =NPV('Project Input'!$D$22,'Option A'!J85:BP85)+I85 -> 52638.57152
A86: 4.01 | B86: Estate / Property Management | D86: WLC Report - S.5 - Op & Occ Costs item 6 | G86: =H86/BT86 -> 11089.83373 | H86: =SUM(I86:BP86) -> 565581.52 | I86: 0 | J86: 0 | K86: 1073 | L86: 3218.72 | M86: 3218.72 | N86: 3218.72 | O86: 4248.72 | P86: 6699 | Q86: 3838.72 | R86: 3598.72 | S86: 9643.12 | T86: 10540.72 | U86: 6016.12 | V86: 14557.12 | W86: 6016.12 | X86: 6256.12 | Y86: 11726.92 | Z86: 7202.32 | AA86: 7202.32 | AB86: 27107.92 | AC86: 7202.32 | AD86: 25335.32 | AE86: 7542.32 | AF86: 7302.32 | AG86: 7302.32 | AH86: 16166.72 | AI86: 11826.92 | AJ86: 7302.32 | AK86: 24718.32 | AL86: 7542.32 | AM86: 7302.32 | AN86: 14826.92 | AO86: 7402.32 | AP86: 7402.32 | AQ86: 7402.32 | AR86: 7402.32 | AS86: 12166.92 | AT86: 36507.52 | AU86: 7402.32 | AV86: 7402.32 | AW86: 7402.32 | AX86: 83395.72 | AY86: 7402.32 | AZ86: 10542.32 | BA86: 7402.32 | BB86: 7402.32 | BC86: 17971.32 | BD86: 7402.32 | BE86: 7402.32 | BF86: 15709.32 | BG86: 7642.32 | BH86: 11926.92 | BI86: 1137.76 | BJ86: 0 | BK86: 0 | BL86: 0 | BM86: 0 | BN86: 0 | BO86: 0 | BP86: 0 | BQ86: 565581.52 | BT86: =COUNTIF(I86:BP86,">1") -> 51
A87: 4.02 | B87: Caretaking | D87: Included in 4.20 below | G87: =H87/BT87 ->  | H87: 0 | I87: 0 | J87: 0 | K87: 0 | L87: 0 | M87: 0 | N87: 0 | O87: 0 | P87: 0 | Q87: 0 | R87: 0 | S87: 0 | T87: 0 | U87: 0 | V87: 0 | W87: 0 | X87: 0 | Y87: 0 | Z87: 0 | AA87: 0 | AB87: 0 | AC87: 0 | AD87: 0 | AE87: 0 | AF87: 0 | AG87: 0 | AH87: 0 | AI87: 0 | AJ87: 0 | AK87: 0 | AL87: 0 | AM87: 0 | AN87: 0 | AO87: 0 | AP87: 0 | AQ87: 0 | AR87: 0 | AS87: 0 | AT87: 0 | AU87: 0 | AV87: 0 | AW87: 0 | AX87: 0 | AY87: 0 | AZ87: 0 | BA87: 0 | BB87: 0 | BC87: 0 | BD87: 0 | BE87: 0 | BF87: 0 | BG87: 0 | BH87: 0 | BI87: 0 | BJ87: 0 | BK87: 0 | BL87: 0 | BM87: 0 | BN87: 0 | BO87: 0 | BP87: 0 | BQ87: 0 | BT87: =COUNTIF(I87:BP87,">1") -> 0
A88: 4.03 | B88: Cleaning / Domestic Services | D88: Included in 4.20 below | H88: 0 | I88: 0 | J88: 0 | K88: 0 | L88: 0 | M88: 0 | N88: 0 | O88: 0 | P88: 0 | Q88: 0 | R88: 0 | S88: 0 | T88: 0 | U88: 0 | V88: 0 | W88: 0 | X88: 0 | Y88: 0 | Z88: 0 | AA88: 0 | AB88: 0 | AC88: 0 | AD88: 0 | AE88: 0 | AF88: 0 | AG88: 0 | AH88: 0 | AI88: 0 | AJ88: 0 | AK88: 0 | AL88: 0 | AM88: 0 | AN88: 0 | AO88: 0 | AP88: 0 | AQ88: 0 | AR88: 0 | AS88: 0 | AT88: 0 | AU88: 0 | AV88: 0 | AW88: 0 | AX88: 0 | AY88: 0 | AZ88: 0 | BA88: 0 | BB88: 0 | BC88: 0 | BD88: 0 | BE88: 0 | BF88: 0 | BG88: 0 | BH88: 0 | BI88: 0 | BJ88: 0 | BK88: 0 | BL88: 0 | BM88: 0 | BN88: 0 | BO88: 0 | BP88: 0 | BQ88: 0 | BT88: =COUNTIF(I88:BP88,">1") -> 0
A89: 4.04 | B89: Waste Management / Disposal | D89: Included in 4.20 below | G89: =H89/BT89 ->  | H89: 0 | I89: 0 | J89: 0 | K89: 0 | L89: 0 | M89: 0 | N89: 0 | O89: 0 | P89: 0 | Q89: 0 | R89: 0 | S89: 0 | T89: 0 | U89: 0 | V89: 0 | W89: 0 | X89: 0 | Y89: 0 | Z89: 0 | AA89: 0 | AB89: 0 | AC89: 0 | AD89: 0 | AE89: 0 | AF89: 0 | AG89: 0 | AH89: 0 | AI89: 0 | AJ89: 0 | AK89: 0 | AL89: 0 | AM89: 0 | AN89: 0 | AO89: 0 | AP89: 0 | AQ89: 0 | AR89: 0 | AS89: 0 | AT89: 0 | AU89: 0 | AV89: 0 | AW89: 0 | AX89: 0 | AY89: 0 | AZ89: 0 | BA89: 0 | BB89: 0 | BC89: 0 | BD89: 0 | BE89: 0 | BF89: 0 | BG89: 0 | BH89: 0 | BI89: 0 | BJ89: 0 | BK89: 0 | BL89: 0 | BM89: 0 | BN89: 0 | BO89: 0 | BP89: 0 | BQ89: 0 | BT89: 0
A90: 4.05 | B90: Reception & Customer Hosting | D90: Excluded | H90: 0 | I90: 0 | J90: 0 | K90: 0 | L90: 0 | M90: 0 | N90: 0 | O90: 0 | P90: 0 | Q90: 0 | R90: 0 | S90: 0 | T90: 0 | U90: 0 | V90: 0 | W90: 0 | X90: 0 | Y90: 0 | Z90: 0 | AA90: 0 | AB90: 0 | AC90: 0 | AD90: 0 | AE90: 0 | AF90: 0 | AG90: 0 | AH90: 0 | AI90: 0 | AJ90: 0 | AK90: 0 | AL90: 0 | AM90: 0 | AN90: 0 | AO90: 0 | AP90: 0 | AQ90: 0 | AR90: 0 | AS90: 0 | AT90: 0 | AU90: 0 | AV90: 0 | AW90: 0 | AX90: 0 | AY90: 0 | AZ90: 0 | BA90: 0 | BB90: 0 | BC90: 0 | BD90: 0 | BE90: 0 | BF90: 0 | BG90: 0 | BH90: 0 | BI90: 0 | BJ90: 0 | BK90: 0 | BL90: 0 | BM90: 0 | BN90: 0 | BO90: 0 | BP90: 0 | BQ90: 0 | BT90: 0
A91: 4.06 | B91: Security | D91: Included in 4.20 below | H91: 0 | I91: 0 | J91: 0 | K91: 0 | L91: 0 | M91: 0 | N91: 0 | O91: 0 | P91: 0 | Q91: 0 | R91: 0 | S91: 0 | T91: 0 | U91: 0 | V91: 0 | W91: 0 | X91: 0 | Y91: 0 | Z91: 0 | AA91: 0 | AB91: 0 | AC91: 0 | AD91: 0 | AE91: 0 | AF91: 0 | AG91: 0 | AH91: 0 | AI91: 0 | AJ91: 0 | AK91: 0 | AL91: 0 | AM91: 0 | AN91: 0 | AO91: 0 | AP91: 0 | AQ91: 0 | AR91: 0 | AS91: 0 | AT91: 0 | AU91: 0 | AV91: 0 | AW91: 0 | AX91: 0 | AY91: 0 | AZ91: 0 | BA91: 0 | BB91: 0 | BC91: 0 | BD91: 0 | BE91: 0 | BF91: 0 | BG91: 0 | BH91: 0 | BI91: 0 | BJ91: 0 | BK91: 0 | BL91: 0 | BM91: 0 | BN91: 0 | BO91: 0 | BP91: 0 | BQ91: 0 | BT91: 0
A92: 4.07 | B92: Helpdesk | D92: Included in 4.20 below | H92: 0 | I92: 0 | J92: 0 | K92: 0 | L92: 0 | M92: 0 | N92: 0 | O92: 0 | P92: 0 | Q92: 0 | R92: 0 | S92: 0 | T92: 0 | U92: 0 | V92: 0 | W92: 0 | X92: 0 | Y92: 0 | Z92: 0 | AA92: 0 | AB92: 0 | AC92: 0 | AD92: 0 | AE92: 0 | AF92: 0 | AG92: 0 | AH92: 0 | AI92: 0 | AJ92: 0 | AK92: 0 | AL92: 0 | AM92: 0 | AN92: 0 | AO92: 0 | AP92: 0 | AQ92: 0 | AR92: 0 | AS92: 0 | AT92: 0 | AU92: 0 | AV92: 0 | AW92: 0 | AX92: 0 | AY92: 0 | AZ92: 0 | BA92: 0 | BB92: 0 | BC92: 0 | BD92: 0 | BE92: 0 | BF92: 0 | BG92: 0 | BH92: 0 | BI92: 0 | BJ92: 0 | BK92: 0 | BL92: 0 | BM92: 0 | BN92: 0 | BO92: 0 | BP92: 0 | BQ92: 0 | BT92: 0
A93: 4.08 | B93: Car Parking | D93: Excluded | G93: =H93/BT93 ->  | H93: 0 | I93: 0 | J93: 0 | K93: 0 | L93: 0 | M93: 0 | N93: 0 | O93: 0 | P93: 0 | Q93: 0 | R93: 0 | S93: 0 | T93: 0 | U93: 0 | V93: 0 | W93: 0 | X93: 0 | Y93: 0 | Z93: 0 | AA93: 0 | AB93: 0 | AC93: 0 | AD93: 0 | AE93: 0 | AF93: 0 | AG93: 0 | AH93: 0 | AI93: 0 | AJ93: 0 | AK93: 0 | AL93: 0 | AM93: 0 | AN93: 0 | AO93: 0 | AP93: 0 | AQ93: 0 | AR93: 0 | AS93: 0 | AT93: 0 | AU93: 0 | AV93: 0 | AW93: 0 | AX93: 0 | AY93: 0 | AZ93: 0 | BA93: 0 | BB93: 0 | BC93: 0 | BD93: 0 | BE93: 0 | BF93: 0 | BG93: 0 | BH93: 0 | BI93: 0 | BJ93: 0 | BK93: 0 | BL93: 0 | BM93: 0 | BN93: 0 | BO93: 0 | BP93: 0 | BQ93: 0 | BT93: 0
A94: 4.09 | B94: Catering & Hospitality | D94: Catering supplies excluded | H94: 0 | I94: 0 | J94: 0 | K94: 0 | L94: 0 | M94: 0 | N94: 0 | O94: 0 | P94: 0 | Q94: 0 | R94: 0 | S94: 0 | T94: 0 | U94: 0 | V94: 0 | W94: 0 | X94: 0 | Y94: 0 | Z94: 0 | AA94: 0 | AB94: 0 | AC94: 0 | AD94: 0 | AE94: 0 | AF94: 0 | AG94: 0 | AH94: 0 | AI94: 0 | AJ94: 0 | AK94: 0 | AL94: 0 | AM94: 0 | AN94: 0 | AO94: 0 | AP94: 0 | AQ94: 0 | AR94: 0 | AS94: 0 | AT94: 0 | AU94: 0 | AV94: 0 | AW94: 0 | AX94: 0 | AY94: 0 | AZ94: 0 | BA94: 0 | BB94: 0 | BC94: 0 | BD94: 0 | BE94: 0 | BF94: 0 | BG94: 0 | BH94: 0 | BI94: 0 | BJ94: 0 | BK94: 0 | BL94: 0 | BM94: 0 | BN94: 0 | BO94: 0 | BP94: 0 | BQ94: 0 | BT94: 0
A95: 4.1 | B95: Switchboard / Telephones | D95: Included in 4.20 below | H95: 0 | I95: 0 | J95: 0 | K95: 0 | L95: 0 | M95: 0 | N95: 0 | O95: 0 | P95: 0 | Q95: 0 | R95: 0 | S95: 0 | T95: 0 | U95: 0 | V95: 0 | W95: 0 | X95: 0 | Y95: 0 | Z95: 0 | AA95: 0 | AB95: 0 | AC95: 0 | AD95: 0 | AE95: 0 | AF95: 0 | AG95: 0 | AH95: 0 | AI95: 0 | AJ95: 0 | AK95: 0 | AL95: 0 | AM95: 0 | AN95: 0 | AO95: 0 | AP95: 0 | AQ95: 0 | AR95: 0 | AS95: 0 | AT95: 0 | AU95: 0 | AV95: 0 | AW95: 0 | AX95: 0 | AY95: 0 | AZ95: 0 | BA95: 0 | BB95: 0 | BC95: 0 | BD95: 0 | BE95: 0 | BF95: 0 | BG95: 0 | BH95: 0 | BI95: 0 | BJ95: 0 | BK95: 0 | BL95: 0 | BM95: 0 | BN95: 0 | BO95: 0 | BP95: 0 | BQ95: 0 | BT95: 0
A96: 4.11 | B96: Occupant's FF&E | D96: Included in 4.20 below | H96: 0 | I96: 0 | J96: 0 | K96: 0 | L96: 0 | M96: 0 | N96: 0 | O96: 0 | P96: 0 | Q96: 0 | R96: 0 | S96: 0 | T96: 0 | U96: 0 | V96: 0 | W96: 0 | X96: 0 | Y96: 0 | Z96: 0 | AA96: 0 | AB96: 0 | AC96: 0 | AD96: 0 | AE96: 0 | AF96: 0 | AG96: 0 | AH96: 0 | AI96: 0 | AJ96: 0 | AK96: 0 | AL96: 0 | AM96: 0 | AN96: 0 | AO96: 0 | AP96: 0 | AQ96: 0 | AR96: 0 | AS96: 0 | AT96: 0 | AU96: 0 | AV96: 0 | AW96: 0 | AX96: 0 | AY96: 0 | AZ96: 0 | BA96: 0 | BB96: 0 | BC96: 0 | BD96: 0 | BE96: 0 | BF96: 0 | BG96: 0 | BH96: 0 | BI96: 0 | BJ96: 0 | BK96: 0 | BL96: 0 | BM96: 0 | BN96: 0 | BO96: 0 | BP96: 0 | BQ96: 0 | BT96: 0
A97: 4.12 | B97: Specialist Equipment | D97: Included in 4.20 below | H97: 0 | I97: 0 | J97: 0 | K97: 0 | L97: 0 | M97: 0 | N97: 0 | O97: 0 | P97: 0 | Q97: 0 | R97: 0 | S97: 0 | T97: 0 | U97: 0 | V97: 0 | W97: 0 | X97: 0 | Y97: 0 | Z97: 0 | AA97: 0 | AB97: 0 | AC97: 0 | AD97: 0 | AE97: 0 | AF97: 0 | AG97: 0 | AH97: 0 | AI97: 0 | AJ97: 0 | AK97: 0 | AL97: 0 | AM97: 0 | AN97: 0 | AO97: 0 | AP97: 0 | AQ97: 0 | AR97: 0 | AS97: 0 | AT97: 0 | AU97: 0 | AV97: 0 | AW97: 0 | AX97: 0 | AY97: 0 | AZ97: 0 | BA97: 0 | BB97: 0 | BC97: 0 | BD97: 0 | BE97: 0 | BF97: 0 | BG97: 0 | BH97: 0 | BI97: 0 | BJ97: 0 | BK97: 0 | BL97: 0 | BM97: 0 | BN97: 0 | BO97: 0 | BP97: 0 | BQ97: 0 | BT97: 0
A98: 4.13 | B98: Logistics | D98: Excluded | H98: 0 | I98: 0 | J98: 0 | K98: 0 | L98: 0 | M98: 0 | N98: 0 | O98: 0 | P98: 0 | Q98: 0 | R98: 0 | S98: 0 | T98: 0 | U98: 0 | V98: 0 | W98: 0 | X98: 0 | Y98: 0 | Z98: 0 | AA98: 0 | AB98: 0 | AC98: 0 | AD98: 0 | AE98: 0 | AF98: 0 | AG98: 0 | AH98: 0 | AI98: 0 | AJ98: 0 | AK98: 0 | AL98: 0 | AM98: 0 | AN98: 0 | AO98: 0 | AP98: 0 | AQ98: 0 | AR98: 0 | AS98: 0 | AT98: 0 | AU98: 0 | AV98: 0 | AW98: 0 | AX98: 0 | AY98: 0 | AZ98: 0 | BA98: 0 | BB98: 0 | BC98: 0 | BD98: 0 | BE98: 0 | BF98: 0 | BG98: 0 | BH98: 0 | BI98: 0 | BJ98: 0 | BK98: 0 | BL98: 0 | BM98: 0 | BN98: 0 | BO98: 0 | BP98: 0 | BQ98: 0 | BT98: 0
A99: 4.14 | B99: ICT & IT Services | D99: Excluded | H99: 0 | I99: 0 | J99: 0 | K99: 0 | L99: 0 | M99: 0 | N99: 0 | O99: 0 | P99: 0 | Q99: 0 | R99: 0 | S99: 0 | T99: 0 | U99: 0 | V99: 0 | W99: 0 | X99: 0 | Y99: 0 | Z99: 0 | AA99: 0 | AB99: 0 | AC99: 0 | AD99: 0 | AE99: 0 | AF99: 0 | AG99: 0 | AH99: 0 | AI99: 0 | AJ99: 0 | AK99: 0 | AL99: 0 | AM99: 0 | AN99: 0 | AO99: 0 | AP99: 0 | AQ99: 0 | AR99: 0 | AS99: 0 | AT99: 0 | AU99: 0 | AV99: 0 | AW99: 0 | AX99: 0 | AY99: 0 | AZ99: 0 | BA99: 0 | BB99: 0 | BC99: 0 | BD99: 0 | BE99: 0 | BF99: 0 | BG99: 0 | BH99: 0 | BI99: 0 | BJ99: 0 | BK99: 0 | BL99: 0 | BM99: 0 | BN99: 0 | BO99: 0 | BP99: 0 | BQ99: 0 | BT99: 0
A100: 4.15 | B100: Internal Plants & Landscaping | D100: Excluded | H100: 0 | I100: 0 | J100: 0 | K100: 0 | L100: 0 | M100: 0 | N100: 0 | O100: 0 | P100: 0 | Q100: 0 | R100: 0 | S100: 0 | T100: 0 | U100: 0 | V100: 0 | W100: 0 | X100: 0 | Y100: 0 | Z100: 0 | AA100: 0 | AB100: 0 | AC100: 0 | AD100: 0 | AE100: 0 | AF100: 0 | AG100: 0 | AH100: 0 | AI100: 0 | AJ100: 0 | AK100: 0 | AL100: 0 | AM100: 0 | AN100: 0 | AO100: 0 | AP100: 0 | AQ100: 0 | AR100: 0 | AS100: 0 | AT100: 0 | AU100: 0 | AV100: 0 | AW100: 0 | AX100: 0 | AY100: 0 | AZ100: 0 | BA100: 0 | BB100: 0 | BC100: 0 | BD100: 0 | BE100: 0 | BF100: 0 | BG100: 0 | BH100: 0 | BI100: 0 | BJ100: 0 | BK100: 0 | BL100: 0 | BM100: 0 | BN100: 0 | BO100: 0 | BP100: 0 | BQ100: 0 | BT100: 0
A101: 4.16 | B101: Transportation | D101: Excluded | H101: 0 | I101: 0 | J101: 0 | K101: 0 | L101: 0 | M101: 0 | N101: 0 | O101: 0 | P101: 0 | Q101: 0 | R101: 0 | S101: 0 | T101: 0 | U101: 0 | V101: 0 | W101: 0 | X101: 0 | Y101: 0 | Z101: 0 | AA101: 0 | AB101: 0 | AC101: 0 | AD101: 0 | AE101: 0 | AF101: 0 | AG101: 0 | AH101: 0 | AI101: 0 | AJ101: 0 | AK101: 0 | AL101: 0 | AM101: 0 | AN101: 0 | AO101: 0 | AP101: 0 | AQ101: 0 | AR101: 0 | AS101: 0 | AT101: 0 | AU101: 0 | AV101: 0 | AW101: 0 | AX101: 0 | AY101: 0 | AZ101: 0 | BA101: 0 | BB101: 0 | BC101: 0 | BD101: 0 | BE101: 0 | BF101: 0 | BG101: 0 | BH101: 0 | BI101: 0 | BJ101: 0 | BK101: 0 | BL101: 0 | BM101: 0 | BN101: 0 | BO101: 0 | BP101: 0 | BQ101: 0 | BT101: 0
A102: 4.2 | B102: All in rate for Soft FM Annulised. (40/m2) WLC report S.5 - Op & Occ item 5 | G102: 20705.88235 | H102: 1056000 | I102: 0 | J102: 7040 | K102: 21120 | L102: 21120 | M102: 21120 | N102: 21120 | O102: 21120 | P102: 21120 | Q102: 21120 | R102: 21120 | S102: 21120 | T102: 21120 | U102: 21120 | V102: 21120 | W102: 21120 | X102: 21120 | Y102: 21120 | Z102: 21120 | AA102: 21120 | AB102: 21120 | AC102: 21120 | AD102: 21120 | AE102: 21120 | AF102: 21120 | AG102: 21120 | AH102: 21120 | AI102: 21120 | AJ102: 21120 | AK102: 21120 | AL102: 21120 | AM102: 21120 | AN102: 21120 | AO102: 21120 | AP102: 21120 | AQ102: 21120 | AR102: 21120 | AS102: 21120 | AT102: 21120 | AU102: 21120 | AV102: 21120 | AW102: 21120 | AX102: 21120 | AY102: 21120 | AZ102: 21120 | BA102: 21120 | BB102: 21120 | BC102: 21120 | BD102: 21120 | BE102: 21120 | BF102: 21120 | BG102: 21120 | BH102: 14080 | BI102: 0 | BJ102: 0 | BK102: 0 | BL102: 0 | BM102: 0 | BN102: 0 | BO102: 0 | BP102: 0 | BQ102: 1056000 | BT102: 51
A103: 4.21 | H103: 0 | I103: 0 | J103: 0 | K103: 0 | L103: 0 | M103: 0 | N103: 0 | O103: 0 | P103: 0 | Q103: 0 | R103: 0 | S103: 0 | T103: 0 | U103: 0 | V103: 0 | W103: 0 | X103: 0 | Y103: 0 | Z103: 0 | AA103: 0 | AB103: 0 | AC103: 0 | AD103: 0 | AE103: 0 | AF103: 0 | AG103: 0 | AH103: 0 | AI103: 0 | AJ103: 0 | AK103: 0 | AL103: 0 | AM103: 0 | AN103: 0 | AO103: 0 | AP103: 0 | AQ103: 0 | AR103: 0 | AS103: 0 | AT103: 0 | AU103: 0 | AV103: 0 | AW103: 0 | AX103: 0 | AY103: 0 | AZ103: 0 | BA103: 0 | BB103: 0 | BC103: 0 | BD103: 0 | BE103: 0 | BF103: 0 | BG103: 0 | BH103: 0 | BI103: 0 | BJ103: 0 | BK103: 0 | BL103: 0 | BM103: 0 | BN103: 0 | BO103: 0 | BP103: 0 | BQ103: 0 | BT103: 0
A104: 4.22 | H104: 0 | I104: 0 | J104: 0 | K104: 0 | L104: 0 | M104: 0 | N104: 0 | O104: 0 | P104: 0 | Q104: 0 | R104: 0 | S104: 0 | T104: 0 | U104: 0 | V104: 0 | W104: 0 | X104: 0 | Y104: 0 | Z104: 0 | AA104: 0 | AB104: 0 | AC104: 0 | AD104: 0 | AE104: 0 | AF104: 0 | AG104: 0 | AH104: 0 | AI104: 0 | AJ104: 0 | AK104: 0 | AL104: 0 | AM104: 0 | AN104: 0 | AO104: 0 | AP104: 0 | AQ104: 0 | AR104: 0 | AS104: 0 | AT104: 0 | AU104: 0 | AV104: 0 | AW104: 0 | AX104: 0 | AY104: 0 | AZ104: 0 | BA104: 0 | BB104: 0 | BC104: 0 | BD104: 0 | BE104: 0 | BF104: 0 | BG104: 0 | BH104: 0 | BI104: 0 | BJ104: 0 | BK104: 0 | BL104: 0 | BM104: 0 | BN104: 0 | BO104: 0 | BP104: 0 | BQ104: 0 | BT104: 0
A105: 4.23 | H105: 0 | I105: 0 | J105: 0 | K105: 0 | L105: 0 | M105: 0 | N105: 0 | O105: 0 | P105: 0 | Q105: 0 | R105: 0 | S105: 0 | T105: 0 | U105: 0 | V105: 0 | W105: 0 | X105: 0 | Y105: 0 | Z105: 0 | AA105: 0 | AB105: 0 | AC105: 0 | AD105: 0 | AE105: 0 | AF105: 0 | AG105: 0 | AH105: 0 | AI105: 0 | AJ105: 0 | AK105: 0 | AL105: 0 | AM105: 0 | AN105: 0 | AO105: 0 | AP105: 0 | AQ105: 0 | AR105: 0 | AS105: 0 | AT105: 0 | AU105: 0 | AV105: 0 | AW105: 0 | AX105: 0 | AY105: 0 | AZ105: 0 | BA105: 0 | BB105: 0 | BC105: 0 | BD105: 0 | BE105: 0 | BF105: 0 | BG105: 0 | BH105: 0 | BI105: 0 | BJ105: 0 | BK105: 0 | BL105: 0 | BM105: 0 | BN105: 0 | BO105: 0 | BP105: 0 | BQ105: 0 | BT105: 0
A106: 4.24 | H106: 0 | I106: 0 | J106: 0 | K106: 0 | L106: 0 | M106: 0 | N106: 0 | O106: 0 | P106: 0 | Q106: 0 | R106: 0 | S106: 0 | T106: 0 | U106: 0 | V106: 0 | W106: 0 | X106: 0 | Y106: 0 | Z106: 0 | AA106: 0 | AB106: 0 | AC106: 0 | AD106: 0 | AE106: 0 | AF106: 0 | AG106: 0 | AH106: 0 | AI106: 0 | AJ106: 0 | AK106: 0 | AL106: 0 | AM106: 0 | AN106: 0 | AO106: 0 | AP106: 0 | AQ106: 0 | AR106: 0 | AS106: 0 | AT106: 0 | AU106: 0 | AV106: 0 | AW106: 0 | AX106: 0 | AY106: 0 | AZ106: 0 | BA106: 0 | BB106: 0 | BC106: 0 | BD106: 0 | BE106: 0 | BF106: 0 | BG106: 0 | BH106: 0 | BI106: 0 | BJ106: 0 | BK106: 0 | BL106: 0 | BM106: 0 | BN106: 0 | BO106: 0 | BP106: 0 | BQ106: 0 | BT106: 0
G107: TOTAL CURRENT DAY COSTS | H107: =SUM(H86:H106) -> 1621581.52 | I107: =SUM(I86:I106) -> 0 | J107: =SUM(J86:J106) -> 7040 | K107: 22193 | L107: 24338.72 | M107: 24338.72 | N107: 24338.72 | O107: 25368.72 | P107: 27819 | Q107: 24958.72 | R107: 24718.72 | S107: 30763.12 | T107: 31660.72 | U107: 27136.12 | V107: 35677.12 | W107: 27136.12 | X107: 27376.12 | Y107: 32846.92 | Z107: 28322.32 | AA107: 28322.32 | AB107: 48227.92 | AC107: 28322.32 | AD107: 46455.32 | AE107: 28662.32 | AF107: 28422.32 | AG107: 28422.32 | AH107: 37286.72 | AI107: 32946.92 | AJ107: 28422.32 | AK107: 45838.32 | AL107: 28662.32 | AM107: 28422.32 | AN107: 35946.92 | AO107: 28522.32 | AP107: 28522.32 | AQ107: 28522.32 | AR107: 28522.32 | AS107: 33286.92 | AT107: 57627.52 | AU107: 28522.32 | AV107: 28522.32 | AW107: 28522.32 | AX107: 104515.72 | AY107: 28522.32 | AZ107: 31662.32 | BA107: 28522.32 | BB107: 28522.32 | BC107: 39091.32 | BD107: 28522.32 | BE107: 28522.32 | BF107: 36829.32 | BG107: 28762.32 | BH107: 26006.92 | BI107: 1137.76 | BJ107: 0 | BK107: 0 | BL107: 0 | BM107: 0 | BN107: 0 | BO107: 0 | BP107: 0 | BQ107: 1621581.52
B108: Indexation | C108: LCC | D108: ='Project Input'!$D$19 -> 0.025 | I108: 1 | J108: =SUM(I108*$D$108)+I108 -> 1.025 | K108: =SUM(J108*$D$108)+J108 -> 1.050625 | L108: =SUM(K108*$D$108)+K108 -> 1.076890625 | M108: 1.103812891 | N108: 1.131408213 | O108: 1.159693418 | P108: 1.188685754 | Q108: 1.218402898 | R108: 1.24886297 | S108: 1.280084544 | T108: 1.312086658 | U108: 1.344888824 | V108: 1.378511045 | W108: 1.412973821 | X108: 1.448298166 | Y108: 1.484505621 | Z108: 1.521618261 | AA108: 1.559658718 | AB108: 1.598650186 | AC108: 1.63861644 | AD108: 1.679581851 | AE108: 1.721571398 | AF108: 1.764610683 | AG108: 1.80872595 | AH108: 1.853944098 | AI108: 1.900292701 | AJ108: 1.947800018 | AK108: 1.996495019 | AL108: 2.046407394 | AM108: 2.097567579 | AN108: 2.150006769 | AO108: 2.203756938 | AP108: 2.258850861 | AQ108: 2.315322133 | AR108: 2.373205186 | AS108: 2.432535316 | AT108: 2.493348699 | AU108: 2.555682416 | AV108: 2.619574476 | AW108: 2.685063838 | AX108: 2.752190434 | AY108: 2.820995195 | AZ108: 2.891520075 | BA108: 2.963808077 | BB108: 3.037903279 | BC108: 3.113850861 | BD108: 3.191697132 | BE108: 3.271489561 | BF108: 3.3532768 | BG108: 3.43710872 | BH108: 3.523036438 | BI108: 3.611112349 | BJ108: 3.701390157 | BK108: 3.793924911 | BL108: 3.888773034 | BM108: 3.98599236 | BN108: 4.085642169 | BO108: 4.187783223 | BP108: 4.292477804
G109: Annual Nominal Whole Life Costs | H109: =SUM(I109:BP109) -> 3407011.831 | I109: =SUM(I108*I107) -> 0 | J109: =SUM(J108*J107) -> 7216 | K109: 23316.52062 | L109: 26210.13939 | M109: =SUM(M108*M107) -> 26865.39288 | N109: 27537.0277 | O109: 29419.93761 | P109: 33068.04898 | Q109: 30409.77677 | R109: 30870.29407 | S109: 39379.39444 | T109: 41541.60829 | U109: 36495.06452 | V109: 49181.30397 | W109: 38342.62716 | X109: 39648.7844 | Y109: 48761.43736 | Z109: 43095.75931 | AA109: 44173.15329 | AB109: 77099.57326 | AC109: 46409.41918 | AD109: 78025.51237 | AE109: 49344.2303 | AF109: 50154.32949 | AG109: 51408.18773 | AH109: 69127.49449 | AI109: 62608.79159 | AJ109: 55360.99542 | AK109: 91515.97755 | AL109: 58654.78358 | AM109: 59617.73695 | AN109: 77286.12131 | AO109: 62856.26058 | AP109: 64427.6671 | AQ109: 66038.35877 | AR109: 67689.31774 | AS109: 80971.60845 | AT109: 143685.502 | AU109: 72893.99169 | AV109: 74716.34148 | AW109: 76584.25002 | AX109: 287647.1648 | AY109: 80461.32768 | AZ109: 91552.2339 | BA109: 84534.68239 | BB109: 86648.04945 | BC109: 121724.5404 | BD109: 91034.60695 | BE109: 93310.47213 | BF109: 123498.9043 | BG109: 98859.22087 | BH109: 91623.32679 | BI109: 4108.579186 | BJ109: 0 | BK109: 0 | BL109: 0 | BM109: 0 | BN109: 0 | BO109: 0 | BP109: 0 | BQ109: =SUM(I109:BP109) -> 3407011.831
C110: Days since start of concession | D110: 365 | I110: =SUM($D$110*I26) -> 365 | J110: 730 | K110: 1095 | L110: 1460 | M110: 1825 | N110: 2190 | O110: 2555 | P110: 2920 | Q110: 3285 | R110: 3650 | S110: 4015 | T110: 4380 | U110: 4745 | V110: 5110 | W110: 5475 | X110: 5840 | Y110: 6205 | Z110: 6570 | AA110: 6935 | AB110: 7300 | AC110: 7665 | AD110: 8030 | AE110: 8395 | AF110: 8760 | AG110: 9125 | AH110: 9490 | AI110: 9855 | AJ110: 10220 | AK110: 10585 | AL110: 10950 | AM110: 11315 | AN110: 11680 | AO110: =SUM($D$110*AO26) -> 12045 | AP110: 12410 | AQ110: 12775 | AR110: 13140 | AS110: 13505 | AT110: 13870 | AU110: 14235 | AV110: 14600 | AW110: 14965 | AX110: 15330 | AY110: 15695 | AZ110: 16060 | BA110: 16425 | BB110: 16790 | BC110: 17155 | BD110: 17520 | BE110: 17885 | BF110: 18250 | BG110: 18615 | BH110: 18980 | BI110: 19345 | BJ110: 19710 | BK110: 20075 | BL110: 20440 | BM110: 20805 | BN110: 21170 | BO110: 21535 | BP110: 21900
C111: Discount index | D111: ='Project Input'!$D$24 -> 0.060875 | I111: =(1+$D$111)^(I110/$D$110) -> 1.060875 | J111: =(1+$D$111)^(J110/$D$110) -> 1.125455766 | K111: 1.193967885 | L111: 1.26665068 | M111: 1.343758041 | N111: 1.425559311 | O111: 1.512340234 | P111: 1.604403946 | Q111: 1.702072036 | R111: 1.805685672 | S111: 1.915606787 | T111: 2.03221935 | U111: 2.155930703 | V111: 2.287172984 | W111: 2.42640464 | X111: 2.574112022 | Y111: 2.730811092 | Z111: 2.897049217 | AA111: 3.073407088 | AB111: 3.260500744 | AC111: 3.458983727 | AD111: 3.669549362 | AE111: 3.892933179 | AF111: 4.129915486 | AG111: 4.381324091 | AH111: 4.648037196 | AI111: 4.93098646 | AJ111: 5.231160261 | AK111: 5.549607141 | AL111: 5.887439476 | AM111: 6.245837354 | AN111: 6.626052703 | AO111: =(1+$D$111)^(AO110/$D$110) -> 7.029413662 | AP111: 7.457329218 | AQ111: 7.911294134 | AR111: 8.392894165 | AS111: 8.903811597 | AT111: 9.445831128 | AU111: 10.0208461 | AV111: 10.6308651 | AW111: 11.27801902 | AX111: 11.96456843 | AY111: 12.69291153 | AZ111: 13.46559252 | BA111: 14.28531046 | BB111: 15.15492874 | BC111: 16.07748502 | BD111: 17.05620192 | BE111: 18.09449822 | BF111: 19.19600079 | BG111: 20.36455734 | BH111: 21.60424977 | BI111: 22.91940848 | BJ111: 24.31462747 | BK111: 25.79478041 | BL111: 27.36503767 | BM111: 29.03088434 | BN111: 30.79813942 | BO111: 32.67297616 | BP111: 34.66194359
A112: 4 Operation & Occupancy Costs (Soft FM) | G112: Annual NPV of Whole Life Costs | H112: =SUM(I112:BP112) -> 661382.7688 | I112: =I109/I111 -> 0 | J112: 6411.624713 | K112: 19528.59948 | L112: 20692.47646 | M112: 19992.73088 | N112: 19316.6482 | O112: 19453.25327 | P112: 20610.80008 | Q112: 17866.3277 | R112: 17096.16162 | S112: 20557.13872 | T112: 20441.49825 | U112: 16927.75397 | V112: 21503.09762 | W112: 15802.23947 | X112: 15402.8978 | Y112: 17856.02728 | Z112: 14875.7429 | AA112: 14372.69845 | AB112: 23646.54368 | AC112: 13417.0678 | AD112: 21262.96847 | AE112: 12675.33452 | AF112: 12144.15396 | AG112: 11733.48208 | AH112: 14872.40562 | AI112: 12697.01146 | AJ112: 10582.92858 | AK112: 16490.53261 | AL112: 9962.698355 | AM112: 9545.195235 | AN112: 11663.97624 | AO112: =AO109/AO111 -> 8941.892398 | AP112: 8639.509563 | AQ112: 8347.352235 | AR112: 8065.074623 | AS112: 9094.038836 | AT112: 15211.5256 | AU112: 7274.235227 | AV112: 7028.246596 | AW112: 6790.576421 | AX112: 24041.583 | AY112: 6339.075751 | AZ112: 6798.975521 | BA112: 5917.595044 | BB112: 5717.483134 | BC112: 7571.11826 | BD112: 5337.331685 | BE112: 5156.842208 | BF112: 6433.574661 | BG112: 4854.47433 | BH112: 4240.986276 | BI112: 179.262008 | BJ112: 0 | BK112: 0 | BL112: 0 | BM112: 0 | BN112: 0 | BO112: 0 | BP112: 0 | BQ112: =SUM(I112:BP112) -> 661382.7688
G113: Cumulative NPV of Whole Life Costs | I113: =SUM(I112) -> 0 | J113: =SUM(I113+J112) -> 6411.624713 | K113: =SUM(J113+K112) -> 25940.22419 | L113: =SUM(K113+L112) -> 46632.70066 | M113: =SUM(L113+M112) -> 66625.43154 | N113: =SUM(M113+N112) -> 85942.07974 | O113: =SUM(N113+O112) -> 105395.333 | P113: =SUM(O113+P112) -> 126006.1331 | Q113: =SUM(P113+Q112) -> 143872.4608 | R113: =SUM(Q113+R112) -> 160968.6224 | S113: =SUM(R113+S112) -> 181525.7611 | T113: =SUM(S113+T112) -> 201967.2594 | U113: =SUM(T113+U112) -> 218895.0133 | V113: =SUM(U113+V112) -> 240398.111 | W113: =SUM(V113+W112) -> 256200.3504 | X113: =SUM(W113+X112) -> 271603.2482 | Y113: =SUM(X113+Y112) -> 289459.2755 | Z113: =SUM(Y113+Z112) -> 304335.0184 | AA113: =SUM(Z113+AA112) -> 318707.7169 | AB113: =SUM(AA113+AB112) -> 342354.2605 | AC113: =SUM(AB113+AC112) -> 355771.3283 | AD113: =SUM(AC113+AD112) -> 377034.2968 | AE113: =SUM(AD113+AE112) -> 389709.6313 | AF113: =SUM(AE113+AF112) -> 401853.7853 | AG113: =SUM(AF113+AG112) -> 413587.2674 | AH113: =SUM(AG113+AH112) -> 428459.673 | AI113: =SUM(AH113+AI112) -> 441156.6845 | AJ113: =SUM(AI113+AJ112) -> 451739.613 | AK113: =SUM(AJ113+AK112) -> 468230.1456 | AL113: =SUM(AK113+AL112) -> 478192.844 | AM113: =SUM(AL113+AM112) -> 487738.0392 | AN113: =SUM(AM113+AN112) -> 499402.0155 | AO113: =SUM(AN113+AO112) -> 508343.9079 | AP113: =SUM(AO113+AP112) -> 516983.4174 | AQ113: =SUM(AP113+AQ112) -> 525330.7697 | AR113: =SUM(AQ113+AR112) -> 533395.8443 | AS113: =SUM(AR113+AS112) -> 542489.8831 | AT113: =SUM(AS113+AT112) -> 557701.4087 | AU113: =SUM(AT113+AU112) -> 564975.644 | AV113: =SUM(AU113+AV112) -> 572003.8905 | AW113: =SUM(AV113+AW112) -> 578794.467 | AX113: =SUM(AW113+AX112) -> 602836.05 | AY113: =SUM(AX113+AY112) -> 609175.1257 | AZ113: =SUM(AY113+AZ112) -> 615974.1012 | BA113: =SUM(AZ113+BA112) -> 621891.6963 | BB113: =SUM(BA113+BB112) -> 627609.1794 | BC113: =SUM(BB113+BC112) -> 635180.2977 | BD113: =SUM(BC113+BD112) -> 640517.6294 | BE113: =SUM(BD113+BE112) -> 645674.4716 | BF113: =SUM(BE113+BF112) -> 652108.0462 | BG113: =SUM(BF113+BG112) -> 656962.5206 | BH113: =SUM(BG113+BH112) -> 661203.5068 | BI113: =SUM(BH113+BI112) -> 661382.7688 | BJ113: =SUM(BI113+BJ112) -> 661382.7688 | BK113: =SUM(BJ113+BK112) -> 661382.7688 | BL113: =SUM(BK113+BL112) -> 661382.7688 | BM113: =SUM(BL113+BM112) -> 661382.7688 | BN113: =SUM(BM113+BN112) -> 661382.7688 | BO113: =SUM(BN113+BO112) -> 661382.7688
A114: 5 | B114: Energy & Utilities Costs | E114: Quantity | F114: Unit | G114: Rate/Unit | I114: =I27 -> 2019 | J114: =J27 -> 2020 | K114: 2021 | L114: 2022 | M114: 2023 | N114: 2024 | O114: 2025 | P114: 2026 | Q114: 2027 | R114: 2028 | S114: 2029 | T114: 2030 | U114: 2031 | V114: 2032 | W114: 2033 | X114: 2034 | Y114: 2035 | Z114: 2036 | AA114: 2037 | AB114: 2038 | AC114: 2039 | AD114: 2040 | AE114: 2041 | AF114: 2042 | AG114: 2043 | AH114: 2044 | AI114: 2045 | AJ114: 2046 | AK114: 2047 | AL114: 2048 | AM114: 2049 | AN114: 2050 | AO114: 2051 | AP114: 2052 | AQ114: 2053 | AR114: 2054 | AS114: 2055 | AT114: 2056 | AU114: 2057 | AV114: 2058 | AW114: 2059 | AX114: 2060 | AY114: 2061 | AZ114: 2062 | BA114: 2063 | BB114: 2064 | BC114: 2065 | BD114: 2066 | BE114: 2067 | BF114: 2068 | BG114: 2069 | BH114: 2070 | BI114: 2071 | BJ114: 2072 | BK114: 2073 | BL114: 2074 | BM114: 2075 | BN114: 2076 | BO114: 2077 | BP114: 2078 | BT114: =NPV('Project Input'!$D$22,'Option A'!J114:BP114)+I114 -> 52638.57152
A115: 5.01 | B115: Electricity | C115: EAC Bmark rate - WLC Report S.5 Energy & Utilities item 7. | F115: kwh | H115: =SUM(I115:BP115) -> 147850 | I115: 0 | J115: 986 | K115: 2957 | L115: 2957 | M115: 2957 | N115: 2957 | O115: 2957 | P115: 2957 | Q115: 2957 | R115: 2957 | S115: 2957 | T115: 2957 | U115: 2957 | V115: 2957 | W115: 2957 | X115: 2957 | Y115: 2957 | Z115: 2957 | AA115: 2957 | AB115: 2957 | AC115: 2957 | AD115: 2957 | AE115: 2957 | AF115: 2957 | AG115: 2957 | AH115: 2957 | AI115: 2957 | AJ115: 2957 | AK115: 2957 | AL115: 2957 | AM115: 2957 | AN115: 2957 | AO115: 2957 | AP115: 2957 | AQ115: 2957 | AR115: 2957 | AS115: 2957 | AT115: 2957 | AU115: 2957 | AV115: 2957 | AW115: 2957 | AX115: 2957 | AY115: 2957 | AZ115: 2957 | BA115: 2957 | BB115: 2957 | BC115: 2957 | BD115: 2957 | BE115: 2957 | BF115: 2957 | BG115: 2957 | BH115: 1971 | BI115: 0 | BJ115: 0 | BK115: 0 | BL115: 0 | BM115: 0 | BN115: 0 | BO115: 0 | BP115: 0 | BQ115: =SUM(I115:BP115) -> 147850
A116: 5.02 | B116: Gas | C116: EAC Bmark rate - WLC Report S.5 Energy & Utilities item 7. | E116: 0 | G116: 0 | H116: =SUM(I116:BP116) -> 147850 | I116: 0 | J116: 986 | K116: 2957 | L116: 2957 | M116: 2957 | N116: 2957 | O116: 2957 | P116: 2957 | Q116: 2957 | R116: 2957 | S116: 2957 | T116: 2957 | U116: 2957 | V116: 2957 | W116: 2957 | X116: 2957 | Y116: 2957 | Z116: 2957 | AA116: 2957 | AB116: 2957 | AC116: 2957 | AD116: 2957 | AE116: 2957 | AF116: 2957 | AG116: 2957 | AH116: 2957 | AI116: 2957 | AJ116: 2957 | AK116: 2957 | AL116: 2957 | AM116: 2957 | AN116: 2957 | AO116: 2957 | AP116: 2957 | AQ116: 2957 | AR116: 2957 | AS116: 2957 | AT116: 2957 | AU116: 2957 | AV116: 2957 | AW116: 2957 | AX116: 2957 | AY116: 2957 | AZ116: 2957 | BA116: 2957 | BB116: 2957 | BC116: 2957 | BD116: 2957 | BE116: 2957 | BF116: 2957 | BG116: 2957 | BH116: 1971 | BI116: 0 | BJ116: 0 | BK116: 0 | BL116: 0 | BM116: 0 | BN116: 0 | BO116: 0 | BP116: 0 | BQ116: =SUM(I116:BP116) -> 147850
A117: 5.03 | B117: Oil | C117: No Requirement | E117: 0 | G117: 0 | H117: 0 | I117: 0 | J117: 0 | K117: 0 | L117: 0 | M117: 0 | N117: 0 | O117: 0 | P117: 0 | Q117: 0 | R117: 0 | S117: 0 | T117: 0 | U117: 0 | V117: 0 | W117: 0 | X117: 0 | Y117: 0 | Z117: 0 | AA117: 0 | AB117: 0 | AC117: 0 | AD117: 0 | AE117: 0 | AF117: 0 | AG117: 0 | AH117: 0 | AI117: 0 | AJ117: 0 | AK117: 0 | AL117: 0 | AM117: 0 | AN117: 0 | AO117: 0 | AP117: 0 | AQ117: 0 | AR117: 0 | AS117: 0 | AT117: 0 | AU117: 0 | AV117: 0 | AW117: 0 | AX117: 0 | AY117: 0 | AZ117: 0 | BA117: 0 | BB117: 0 | BC117: 0 | BD117: 0 | BE117: 0 | BF117: 0 | BG117: 0 | BH117: 0 | BI117: 0 | BJ117: 0 | BK117: 0 | BL117: 0 | BM117: 0 | BN117: 0 | BO117: 0 | BP117: 0 | BQ117: 0
A118: 5.04 | B118: Water | C118: EAC Bmark rate - WLC Report S.5 Energy & Utilities item 8. | E118: 0 | G118: 0 | H118: 132000 | I118: 0 | J118: 880 | K118: 2640 | L118: 2640 | M118: 2640 | N118: 2640 | O118: 2640 | P118: 2640 | Q118: 2640 | R118: 2640 | S118: 2640 | T118: 2640 | U118: 2640 | V118: 2640 | W118: 2640 | X118: 2640 | Y118: 2640 | Z118: 2640 | AA118: 2640 | AB118: 2640 | AC118: 2640 | AD118: 2640 | AE118: 2640 | AF118: 2640 | AG118: 2640 | AH118: 2640 | AI118: 2640 | AJ118: 2640 | AK118: 2640 | AL118: 2640 | AM118: 2640 | AN118: 2640 | AO118: 2640 | AP118: 2640 | AQ118: 2640 | AR118: 2640 | AS118: 2640 | AT118: 2640 | AU118: 2640 | AV118: 2640 | AW118: 2640 | AX118: 2640 | AY118: 2640 | AZ118: 2640 | BA118: 2640 | BB118: 2640 | BC118: 2640 | BD118: 2640 | BE118: 2640 | BF118: 2640 | BG118: 2640 | BH118: 1760 | BI118: 0 | BJ118: 0 | BK118: 0 | BL118: 0 | BM118: 0 | BN118: 0 | BO118: 0 | BP118: 0 | BQ118: 132000
A119: 5.05 | B119: Telephony - EAC Bmark rate - WLC Report S.5 Energy & Utilities item 9. | E119: 0 | G119: 0 | H119: 399992 | I119: 0 | J119: 2664 | K119: 8000 | L119: 8000 | M119: 8000 | N119: 8000 | O119: 8000 | P119: 8000 | Q119: 8000 | R119: 8000 | S119: 8000 | T119: 8000 | U119: 8000 | V119: 8000 | W119: 8000 | X119: 8000 | Y119: 8000 | Z119: 8000 | AA119: 8000 | AB119: 8000 | AC119: 8000 | AD119: 8000 | AE119: 8000 | AF119: 8000 | AG119: 8000 | AH119: 8000 | AI119: 8000 | AJ119: 8000 | AK119: 8000 | AL119: 8000 | AM119: 8000 | AN119: 8000 | AO119: 8000 | AP119: 8000 | AQ119: 8000 | AR119: 8000 | AS119: 8000 | AT119: 8000 | AU119: 8000 | AV119: 8000 | AW119: 8000 | AX119: 8000 | AY119: 8000 | AZ119: 8000 | BA119: 8000 | BB119: 8000 | BC119: 8000 | BD119: 8000 | BE119: 8000 | BF119: 8000 | BG119: 8000 | BH119: 5328 | BI119: 0 | BJ119: 0 | BK119: 0 | BL119: 0 | BM119: 0 | BN119: 0 | BO119: 0 | BP119: 0 | BQ119: 399992
A120: 5.06 | B120: Estimated Energy Costs per Annum | E120: 0 | G120: 0 | H120: 0 | I120: 0 | J120: 0 | K120: 0 | L120: 0 | M120: 0 | N120: 0 | O120: 0 | P120: 0 | Q120: 0 | R120: 0 | S120: 0 | T120: 0 | U120: 0 | V120: 0 | W120: 0 | X120: 0 | Y120: 0 | Z120: 0 | AA120: 0 | AB120: 0 | AC120: 0 | AD120: 0 | AE120: 0 | AF120: 0 | AG120: 0 | AH120: 0 | AI120: 0 | AJ120: 0 | AK120: 0 | AL120: 0 | AM120: 0 | AN120: 0 | AO120: 0 | AP120: 0 | AQ120: 0 | AR120: 0 | AS120: 0 | AT120: 0 | AU120: 0 | AV120: 0 | AW120: 0 | AX120: 0 | AY120: 0 | AZ120: 0 | BA120: 0 | BB120: 0 | BC120: 0 | BD120: 0 | BE120: 0 | BF120: 0 | BG120: 0 | BH120: 0 | BI120: 0 | BJ120: 0 | BK120: 0 | BL120: 0 | BM120: 0 | BN120: 0 | BO120: 0 | BP120: 0 | BQ120: 0
A121: 5.07 | B121: Description of item & Source of Data | E121: 0 | G121: 0 | H121: 0 | I121: 0 | J121: 0 | K121: 0 | L121: 0 | M121: 0 | N121: 0 | O121: 0 | P121: 0 | Q121: 0 | R121: 0 | S121: 0 | T121: 0 | U121: 0 | V121: 0 | W121: 0 | X121: 0 | Y121: 0 | Z121: 0 | AA121: 0 | AB121: 0 | AC121: 0 | AD121: 0 | AE121: 0 | AF121: 0 | AG121: 0 | AH121: 0 | AI121: 0 | AJ121: 0 | AK121: 0 | AL121: 0 | AM121: 0 | AN121: 0 | AO121: 0 | AP121: 0 | AQ121: 0 | AR121: 0 | AS121: 0 | AT121: 0 | AU121: 0 | AV121: 0 | AW121: 0 | AX121: 0 | AY121: 0 | AZ121: 0 | BA121: 0 | BB121: 0 | BC121: 0 | BD121: 0 | BE121: 0 | BF121: 0 | BG121: 0 | BH121: 0 | BI121: 0 | BJ121: 0 | BK121: 0 | BL121: 0 | BM121: 0 | BN121: 0 | BO121: 0 | BP121: 0 | BQ121: 0
A122: 5.08 | B122: Description of item & Source of Data | E122: 0 | G122: 0 | H122: 0 | I122: 0 | J122: 0 | K122: 0 | L122: 0 | M122: 0 | N122: 0 | O122: 0 | P122: 0 | Q122: 0 | R122: 0 | S122: 0 | T122: 0 | U122: 0 | V122: 0 | W122: 0 | X122: 0 | Y122: 0 | Z122: 0 | AA122: 0 | AB122: 0 | AC122: 0 | AD122: 0 | AE122: 0 | AF122: 0 | AG122: 0 | AH122: 0 | AI122: 0 | AJ122: 0 | AK122: 0 | AL122: 0 | AM122: 0 | AN122: 0 | AO122: 0 | AP122: 0 | AQ122: 0 | AR122: 0 | AS122: 0 | AT122: 0 | AU122: 0 | AV122: 0 | AW122: 0 | AX122: 0 | AY122: 0 | AZ122: 0 | BA122: 0 | BB122: 0 | BC122: 0 | BD122: 0 | BE122: 0 | BF122: 0 | BG122: 0 | BH122: 0 | BI122: 0 | BJ122: 0 | BK122: 0 | BL122: 0 | BM122: 0 | BN122: 0 | BO122: 0 | BP122: 0 | BQ122: 0
A123: 5.09 | B123: Description of item & Source of Data | E123: 0 | G123: 0 | H123: 0 | I123: 0 | J123: 0 | K123: 0 | L123: 0 | M123: 0 | N123: 0 | O123: 0 | P123: 0 | Q123: 0 | R123: 0 | S123: 0 | T123: 0 | U123: 0 | V123: 0 | W123: 0 | X123: 0 | Y123: 0 | Z123: 0 | AA123: 0 | AB123: 0 | AC123: 0 | AD123: 0 | AE123: 0 | AF123: 0 | AG123: 0 | AH123: 0 | AI123: 0 | AJ123: 0 | AK123: 0 | AL123: 0 | AM123: 0 | AN123: 0 | AO123: 0 | AP123: 0 | AQ123: 0 | AR123: 0 | AS123: 0 | AT123: 0 | AU123: 0 | AV123: 0 | AW123: 0 | AX123: 0 | AY123: 0 | AZ123: 0 | BA123: 0 | BB123: 0 | BC123: 0 | BD123: 0 | BE123: 0 | BF123: 0 | BG123: 0 | BH123: 0 | BI123: 0 | BJ123: 0 | BK123: 0 | BL123: 0 | BM123: 0 | BN123: 0 | BO123: 0 | BP123: 0 | BQ123: 0
G124: TOTAL CURRENT DAY COSTS | H124: =SUM(H115:H123) -> 827692 | I124: =SUM(I115:I123) -> 0 | J124: 5516 | K124: 16554 | L124: =SUM(L115:L123) -> 16554 | M124: =SUM(M115:M123) -> 16554 | N124: 16554 | O124: 16554 | P124: 16554 | Q124: 16554 | R124: 16554 | S124: 16554 | T124: 16554 | U124: 16554 | V124: 16554 | W124: 16554 | X124: 16554 | Y124: 16554 | Z124: 16554 | AA124: 16554 | AB124: 16554 | AC124: 16554 | AD124: 16554 | AE124: 16554 | AF124: 16554 | AG124: 16554 | AH124: 16554 | AI124: 16554 | AJ124: 16554 | AK124: 16554 | AL124: 16554 | AM124: 16554 | AN124: 16554 | AO124: 16554 | AP124: 16554 | AQ124: 16554 | AR124: 16554 | AS124: 16554 | AT124: 16554 | AU124: 16554 | AV124: 16554 | AW124: 16554 | AX124: 16554 | AY124: 16554 | AZ124: 16554 | BA124: 16554 | BB124: 16554 | BC124: 16554 | BD124: 16554 | BE124: 16554 | BF124: 16554 | BG124: 16554 | BH124: 11030 | BI124: 0 | BJ124: 0 | BK124: 0 | BL124: 0 | BM124: 0 | BN124: 0 | BO124: 0 | BP124: 0 | BQ124: =SUM(BQ115:BQ123) -> 827692
B125: Indexation | C125: Energy | D125: ='Project Input'!$D$20 -> 0.05 | I125: 1 | J125: =SUM(I125*$D$125)+I125 -> 1.05 | K125: =SUM(J125*$D$125)+J125 -> 1.1025 | L125: 1.157625 | M125: 1.21550625 | N125: 1.276281563 | O125: 1.340095641 | P125: 1.407100423 | Q125: 1.477455444 | R125: 1.551328216 | S125: 1.628894627 | T125: 1.710339358 | U125: 1.795856326 | V125: 1.885649142 | W125: 1.979931599 | X125: 2.078928179 | Y125: 2.182874588 | Z125: 2.292018318 | AA125: 2.406619234 | AB125: 2.526950195 | AC125: 2.653297705 | AD125: 2.78596259 | AE125: 2.92526072 | AF125: 3.071523756 | AG125: 3.225099944 | AH125: 3.386354941 | AI125: 3.555672688 | AJ125: 3.733456322 | AK125: 3.920129138 | AL125: 4.116135595 | AM125: 4.321942375 | AN125: 4.538039494 | AO125: 4.764941469 | AP125: 5.003188542 | AQ125: 5.253347969 | AR125: 5.516015368 | AS125: 5.791816136 | AT125: 6.081406943 | AU125: 6.38547729 | AV125: 6.704751154 | AW125: 7.039988712 | AX125: 7.391988148 | AY125: 7.761587555 | AZ125: 8.149666933 | BA125: 8.55715028 | BB125: 8.985007793 | BC125: 9.434258183 | BD125: 9.905971092 | BE125: 10.40126965 | BF125: 10.92133313 | BG125: 11.46739979 | BH125: 12.04076978 | BI125: 12.64280826 | BJ125: 13.27494868 | BK125: 13.93869611 | BL125: 14.63563092 | BM125: 15.36741246 | BN125: 16.13578309 | BO125: 16.94257224 | BP125: 17.78970085
G126: Annual Nominal Whole Life Costs | H126: =SUM(I126:BP126) -> 3760043.848 | I126: =SUM(I124*I125) -> 0 | J126: =SUM(J124*J125) -> 5791.8 | K126: 18250.785 | L126: 19163.32425 | M126: 20121.49046 | N126: 21127.56499 | O126: 22183.94323 | P126: 23293.1404 | Q126: 24457.79742 | R126: 25680.68729 | S126: 26964.72165 | T126: 28312.95773 | U126: 29728.60562 | V126: 31215.0359 | W126: 32775.7877 | X126: 34414.57708 | Y126: 36135.30594 | Z126: 37942.07123 | AA126: 39839.17479 | AB126: 41831.13353 | AC126: 43922.69021 | AD126: 46118.82472 | AE126: 48424.76596 | AF126: 50846.00426 | AG126: 53388.30447 | AH126: 56057.71969 | AI126: 58860.60568 | AJ126: 61803.63596 | AK126: 64893.81776 | AL126: 68138.50865 | AM126: 71545.43408 | AN126: 75122.70578 | AO126: 78878.84107 | AP126: 82822.78312 | AQ126: 86963.92228 | AR126: 91312.1184 | AS126: 95877.72431 | AT126: 100671.6105 | AU126: 105705.1911 | AV126: 110990.4506 | AW126: 116539.9731 | AX126: 122366.9718 | AY126: 128485.3204 | AZ126: 134909.5864 | BA126: 141655.0657 | BB126: 148737.819 | BC126: 156174.71 | BD126: 163983.4455 | BE126: 172182.6177 | BF126: 180791.7486 | BG126: 189831.3361 | BH126: 132809.6906 | BI126: 0 | BJ126: 0 | BK126: 0 | BL126: 0 | BM126: 0 | BN126: 0 | BO126: 0 | BP126: 0 | BQ126: =SUM(I126:BP126) -> 3760043.848
C127: Days since start of concession | D127: 365 | I127: =SUM($D$127*I26) -> 365 | J127: 730 | K127: 1095 | L127: 1460 | M127: 1825 | N127: 2190 | O127: 2555 | P127: 2920 | Q127: 3285 | R127: 3650 | S127: 4015 | T127: 4380 | U127: 4745 | V127: 5110 | W127: 5475 | X127: 5840 | Y127: 6205 | Z127: 6570 | AA127: 6935 | AB127: 7300 | AC127: 7665 | AD127: 8030 | AE127: 8395 | AF127: 8760 | AG127: 9125 | AH127: 9490 | AI127: 9855 | AJ127: 10220 | AK127: 10585 | AL127: 10950 | AM127: 11315 | AN127: 11680 | AO127: =SUM($D$127*AO26) -> 12045 | AP127: 12410 | AQ127: 12775 | AR127: 13140 | AS127: 13505 | AT127: 13870 | AU127: 14235 | AV127: 14600 | AW127: 14965 | AX127: 15330 | AY127: 15695 | AZ127: 16060 | BA127: 16425 | BB127: 16790 | BC127: 17155 | BD127: 17520 | BE127: 17885 | BF127: 18250 | BG127: 18615 | BH127: 18980 | BI127: 19345 | BJ127: 19710 | BK127: 20075 | BL127: 20440 | BM127: 20805 | BN127: 21170 | BO127: 21535 | BP127: 21900
C128: Discount index | D128: ='Project Input'!$D$24 -> 0.060875 | I128: =(1+$D$128)^(I127/$D$127) -> 1.060875 | J128: =(1+$D$128)^(J127/$D$127) -> 1.125455766 | K128: =(1+$D$128)^(K127/$D$127) -> 1.193967885 | L128: 1.26665068 | M128: 1.343758041 | N128: 1.425559311 | O128: 1.512340234 | P128: 1.604403946 | Q128: 1.702072036 | R128: 1.805685672 | S128: 1.915606787 | T128: 2.03221935 | U128: 2.155930703 | V128: 2.287172984 | W128: 2.42640464 | X128: 2.574112022 | Y128: 2.730811092 | Z128: 2.897049217 | AA128: 3.073407088 | AB128: 3.260500744 | AC128: 3.458983727 | AD128: 3.669549362 | AE128: 3.892933179 | AF128: 4.129915486 | AG128: 4.381324091 | AH128: 4.648037196 | AI128: 4.93098646 | AJ128: 5.231160261 | AK128: 5.549607141 | AL128: 5.887439476 | AM128: 6.245837354 | AN128: 6.626052703 | AO128: 7.029413662 | AP128: 7.457329218 | AQ128: 7.911294134 | AR128: 8.392894165 | AS128: 8.903811597 | AT128: 9.445831128 | AU128: 10.0208461 | AV128: 10.6308651 | AW128: 11.27801902 | AX128: 11.96456843 | AY128: 12.69291153 | AZ128: 13.46559252 | BA128: 14.28531046 | BB128: 15.15492874 | BC128: 16.07748502 | BD128: 17.05620192 | BE128: 18.09449822 | BF128: 19.19600079 | BG128: 20.36455734 | BH128: 21.60424977 | BI128: 22.91940848 | BJ128: 24.31462747 | BK128: 25.79478041 | BL128: 27.36503767 | BM128: 29.03088434 | BN128: 30.79813942 | BO128: 32.67297616 | BP128: 34.66194359
A129: 5 ENERGY & UTILITIES COSTS | G129: Annual NPV of Whole Life Costs | H129: =SUM(I129:BP129) -> 602430.5578 | I129: =I126/I128 -> 0 | J129: 5146.18182 | K129: 15285.82571 | L129: 15129.13114 | M129: 14974.04284 | N129: 14820.54434 | O129: 14668.61936 | P129: 14518.25175 | Q129: 14369.42556 | R129: 14222.12498 | S129: 14076.33437 | T129: 13932.03826 | U129: 13789.22132 | V129: 13647.8684 | W129: 13507.96448 | X129: 13369.49472 | Y129: 13232.4444 | Z129: 13096.79898 | AA129: 12962.54406 | AB129: 12829.66538 | AC129: 12698.14884 | AD129: 12567.98047 | AE129: 12439.14646 | AF129: 12311.63311 | AG129: 12185.42691 | AH129: 12060.51444 | AI129: 11936.88244 | AJ129: 11814.51779 | AK129: 11693.4075 | AL129: 11573.5387 | AM129: 11454.89868 | AN129: 11337.47484 | AO129: =AO126/AO128 -> 11221.2547 | AP129: 11106.22593 | AQ129: 10992.37632 | AR129: 10879.69377 | AS129: 10768.16634 | AT129: 10657.78217 | AU129: 10548.52954 | AV129: 10440.39686 | AW129: 10333.37264 | AX129: 10227.44553 | AY129: 10122.60427 | AZ129: 10018.83773 | BA129: 9916.134907 | BB129: 9814.484885 | BC129: 9713.876875 | BD129: 9614.300194 | BE129: 9515.744271 | BF129: 9418.198642 | BG129: 9321.652951 | BH129: 6147.387298 | BI129: 0 | BJ129: 0 | BK129: 0 | BL129: 0 | BM129: 0 | BN129: 0 | BO129: 0 | BP129: 0 | BQ129: =SUM(I129:BP129) -> 602430.5578
G130: Cumulative NPV of Whole Life Costs | I130: =SUM(I129) -> 0 | J130: =SUM(I130+J129) -> 5146.18182 | K130: =SUM(J130+K129) -> 20432.00753 | L130: =SUM(K130+L129) -> 35561.13867 | M130: =SUM(L130+M129) -> 50535.18151 | N130: =SUM(M130+N129) -> 65355.72585 | O130: =SUM(N130+O129) -> 80024.34521 | P130: =SUM(O130+P129) -> 94542.59695 | Q130: =SUM(P130+Q129) -> 108912.0225 | R130: =SUM(Q130+R129) -> 123134.1475 | S130: =SUM(R130+S129) -> 137210.4819 | T130: =SUM(S130+T129) -> 151142.5201 | U130: =SUM(T130+U129) -> 164931.7414 | V130: =SUM(U130+V129) -> 178579.6098 | W130: =SUM(V130+W129) -> 192087.5743 | X130: =SUM(W130+X129) -> 205457.069 | Y130: =SUM(X130+Y129) -> 218689.5134 | Z130: =SUM(Y130+Z129) -> 231786.3124 | AA130: =SUM(Z130+AA129) -> 244748.8565 | AB130: =SUM(AA130+AB129) -> 257578.5219 | AC130: =SUM(AB130+AC129) -> 270276.6707 | AD130: =SUM(AC130+AD129) -> 282844.6512 | AE130: =SUM(AD130+AE129) -> 295283.7976 | AF130: =SUM(AE130+AF129) -> 307595.4308 | AG130: =SUM(AF130+AG129) -> 319780.8577 | AH130: =SUM(AG130+AH129) -> 331841.3721 | AI130: =SUM(AH130+AI129) -> 343778.2545 | AJ130: =SUM(AI130+AJ129) -> 355592.7723 | AK130: =SUM(AJ130+AK129) -> 367286.1798 | AL130: =SUM(AK130+AL129) -> 378859.7185 | AM130: =SUM(AL130+AM129) -> 390314.6172 | AN130: =SUM(AM130+AN129) -> 401652.092 | AO130: =SUM(AN130+AO129) -> 412873.3467 | AP130: =SUM(AO130+AP129) -> 423979.5727 | AQ130: =SUM(AP130+AQ129) -> 434971.949 | AR130: =SUM(AQ130+AR129) -> 445851.6428 | AS130: =SUM(AR130+AS129) -> 456619.8091 | AT130: =SUM(AS130+AT129) -> 467277.5913 | AU130: =SUM(AT130+AU129) -> 477826.1208 | AV130: =SUM(AU130+AV129) -> 488266.5177 | AW130: =SUM(AV130+AW129) -> 498599.8903 | AX130: =SUM(AW130+AX129) -> 508827.3358 | AY130: =SUM(AX130+AY129) -> 518949.9401 | AZ130: =SUM(AY130+AZ129) -> 528968.7778 | BA130: =SUM(AZ130+BA129) -> 538884.9127 | BB130: =SUM(BA130+BB129) -> 548699.3976 | BC130: =SUM(BB130+BC129) -> 558413.2745 | BD130: =SUM(BC130+BD129) -> 568027.5747 | BE130: =SUM(BD130+BE129) -> 577543.319 | BF130: =SUM(BE130+BF129) -> 586961.5176 | BG130: =SUM(BF130+BG129) -> 596283.1705 | BH130: =SUM(BG130+BH129) -> 602430.5578 | BI130: =SUM(BH130+BI129) -> 602430.5578 | BJ130: =SUM(BI130+BJ129) -> 602430.5578 | BK130: =SUM(BJ130+BK129) -> 602430.5578 | BL130: =SUM(BK130+BL129) -> 602430.5578 | BM130: =SUM(BL130+BM129) -> 602430.5578 | BN130: =SUM(BM130+BN129) -> 602430.5578 | BO130: =SUM(BN130+BO129) -> 602430.5578
A131: 6 | B131: Maintenance Costs (Hard FM) | F131: GIFA (m2) | G131: Annual Rate | I131: =I27 -> 2019 | J131: =J27 -> 2020 | K131: 2021 | L131: 2022 | M131: 2023 | N131: 2024 | O131: 2025 | P131: 2026 | Q131: 2027 | R131: 2028 | S131: 2029 | T131: 2030 | U131: 2031 | V131: 2032 | W131: 2033 | X131: 2034 | Y131: 2035 | Z131: 2036 | AA131: 2037 | AB131: 2038 | AC131: 2039 | AD131: 2040 | AE131: 2041 | AF131: 2042 | AG131: 2043 | AH131: 2044 | AI131: 2045 | AJ131: 2046 | AK131: 2047 | AL131: 2048 | AM131: 2049 | AN131: 2050 | AO131: 2051 | AP131: 2052 | AQ131: 2053 | AR131: 2054 | AS131: 2055 | AT131: 2056 | AU131: 2057 | AV131: 2058 | AW131: 2059 | AX131: 2060 | AY131: 2061 | AZ131: 2062 | BA131: 2063 | BB131: 2064 | BC131: 2065 | BD131: 2066 | BE131: 2067 | BF131: 2068 | BG131: 2069 | BH131: 2070 | BI131: 2071 | BJ131: 2072 | BK131: 2073 | BL131: 2074 | BM131: 2075 | BN131: 2076 | BO131: 2077 | BP131: 2078 | BT131: =NPV('Project Input'!$D$22,'Option A'!J131:BP131)+I131 -> 52638.57152
A132: 6.01 | B132: Planned/Statutory maintenance | D132: Incl in 6.10 below | F132: 528 | G132: 0 | H132: =SUM(I132:BP132) -> 0 | I132: 0 | J132: 0 | K132: 0 | L132: 0 | M132: 0 | N132: 0 | O132: 0 | P132: 0 | Q132: 0 | R132: 0 | S132: 0 | T132: 0 | U132: 0 | V132: 0 | W132: 0 | X132: 0 | Y132: 0 | Z132: 0 | AA132: 0 | AB132: 0 | AC132: 0 | AD132: 0 | AE132: 0 | AF132: 0 | AG132: 0 | AH132: 0 | AI132: 0 | AJ132: 0 | AK132: 0 | AL132: 0 | AM132: 0 | AN132: 0 | AO132: 0 | AP132: 0 | AQ132: 0 | AR132: 0 | AS132: 0 | AT132: 0 | AU132: 0 | AV132: 0 | AW132: 0 | AX132: 0 | AY132: 0 | AZ132: 0 | BA132: 0 | BB132: 0 | BC132: 0 | BD132: 0 | BE132: 0 | BF132: 0 | BG132: 0 | BH132: 0 | BI132: 0 | BJ132: 0 | BK132: 0 | BL132: 0 | BM132: 0 | BN132: 0 | BO132: 0 | BP132: 0 | BQ132: 0
A133: 6.02 | B133: Reactive maintenance & repairs | D133: Incl in 6.10 below | F133: 0 | G133: 0 | H133: =SUM(I133:BP133) -> 0 | I133: 0 | J133: 0 | K133: 0 | L133: 0 | M133: 0 | N133: 0 | O133: 0 | P133: 0 | Q133: 0 | R133: 0 | S133: 0 | T133: 0 | U133: 0 | V133: 0 | W133: 0 | X133: 0 | Y133: 0 | Z133: 0 | AA133: 0 | AB133: 0 | AC133: 0 | AD133: 0 | AE133: 0 | AF133: 0 | AG133: 0 | AH133: 0 | AI133: 0 | AJ133: 0 | AK133: 0 | AL133: 0 | AM133: 0 | AN133: 0 | AO133: 0 | AP133: 0 | AQ133: 0 | AR133: 0 | AS133: 0 | AT133: 0 | AU133: 0 | AV133: 0 | AW133: 0 | AX133: 0 | AY133: 0 | AZ133: 0 | BA133: 0 | BB133: 0 | BC133: 0 | BD133: 0 | BE133: 0 | BF133: 0 | BG133: 0 | BH133: 0 | BI133: 0 | BJ133: 0 | BK133: 0 | BL133: 0 | BM133: 0 | BN133: 0 | BO133: 0 | BP133: 0 | BQ133: 0
A134: 6.03 | B134: Refurbishment & adaptations | D134: Incl in 6.10 below | F134: 0 | G134: 0 | H134: 0 | I134: 0 | J134: 0 | K134: 0 | L134: 0 | M134: 0 | N134: 0 | O134: 0 | P134: 0 | Q134: 0 | R134: 0 | S134: 0 | T134: 0 | U134: 0 | V134: 0 | W134: 0 | X134: 0 | Y134: 0 | Z134: 0 | AA134: 0 | AB134: 0 | AC134: 0 | AD134: 0 | AE134: 0 | AF134: 0 | AG134: 0 | AH134: 0 | AI134: 0 | AJ134: 0 | AK134: 0 | AL134: 0 | AM134: 0 | AN134: 0 | AO134: 0 | AP134: 0 | AQ134: 0 | AR134: 0 | AS134: 0 | AT134: 0 | AU134: 0 | AV134: 0 | AW134: 0 | AX134: 0 | AY134: 0 | AZ134: 0 | BA134: 0 | BB134: 0 | BC134: 0 | BD134: 0 | BE134: 0 | BF134: 0 | BG134: 0 | BH134: 0 | BI134: 0 | BJ134: 0 | BK134: 0 | BL134: 0 | BM134: 0 | BN134: 0 | BO134: 0 | BP134: 0 | BQ134: 0
A135: 6.04 | B135: Redecorations | D135: Incl in 6.10 below | F135: 0 | G135: 0 | H135: 0 | I135: 0 | J135: 0 | K135: 0 | L135: 0 | M135: 0 | N135: 0 | O135: 0 | P135: 0 | Q135: 0 | R135: 0 | S135: 0 | T135: 0 | U135: 0 | V135: 0 | W135: 0 | X135: 0 | Y135: 0 | Z135: 0 | AA135: 0 | AB135: 0 | AC135: 0 | AD135: 0 | AE135: 0 | AF135: 0 | AG135: 0 | AH135: 0 | AI135: 0 | AJ135: 0 | AK135: 0 | AL135: 0 | AM135: 0 | AN135: 0 | AO135: 0 | AP135: 0 | AQ135: 0 | AR135: 0 | AS135: 0 | AT135: 0 | AU135: 0 | AV135: 0 | AW135: 0 | AX135: 0 | AY135: 0 | AZ135: 0 | BA135: 0 | BB135: 0 | BC135: 0 | BD135: 0 | BE135: 0 | BF135: 0 | BG135: 0 | BH135: 0 | BI135: 0 | BJ135: 0 | BK135: 0 | BL135: 0 | BM135: 0 | BN135: 0 | BO135: 0 | BP135: 0 | BQ135: 0
A136: 6.05 | B136: Internal moves & modifications | D136: Incl in 6.10 below | F136: 0 | G136: 0 | H136: 0 | I136: 0 | J136: 0 | K136: 0 | L136: 0 | M136: 0 | N136: 0 | O136: 0 | P136: 0 | Q136: 0 | R136: 0 | S136: 0 | T136: 0 | U136: 0 | V136: 0 | W136: 0 | X136: 0 | Y136: 0 | Z136: 0 | AA136: 0 | AB136: 0 | AC136: 0 | AD136: 0 | AE136: 0 | AF136: 0 | AG136: 0 | AH136: 0 | AI136: 0 | AJ136: 0 | AK136: 0 | AL136: 0 | AM136: 0 | AN136: 0 | AO136: 0 | AP136: 0 | AQ136: 0 | AR136: 0 | AS136: 0 | AT136: 0 | AU136: 0 | AV136: 0 | AW136: 0 | AX136: 0 | AY136: 0 | AZ136: 0 | BA136: 0 | BB136: 0 | BC136: 0 | BD136: 0 | BE136: 0 | BF136: 0 | BG136: 0 | BH136: 0 | BI136: 0 | BJ136: 0 | BK136: 0 | BL136: 0 | BM136: 0 | BN136: 0 | BO136: 0 | BP136: 0 | BQ136: 0
A137: 6.06 | B137: Grounds maintenance | D137: Incl in 6.10 below | F137: 0 | G137: 0 | H137: 0 | I137: 0 | J137: 0 | K137: 0 | L137: 0 | M137: 0 | N137: 0 | O137: 0 | P137: 0 | Q137: 0 | R137: 0 | S137: 0 | T137: 0 | U137: 0 | V137: 0 | W137: 0 | X137: 0 | Y137: 0 | Z137: 0 | AA137: 0 | AB137: 0 | AC137: 0 | AD137: 0 | AE137: 0 | AF137: 0 | AG137: 0 | AH137: 0 | AI137: 0 | AJ137: 0 | AK137: 0 | AL137: 0 | AM137: 0 | AN137: 0 | AO137: 0 | AP137: 0 | AQ137: 0 | AR137: 0 | AS137: 0 | AT137: 0 | AU137: 0 | AV137: 0 | AW137: 0 | AX137: 0 | AY137: 0 | AZ137: 0 | BA137: 0 | BB137: 0 | BC137: 0 | BD137: 0 | BE137: 0 | BF137: 0 | BG137: 0 | BH137: 0 | BI137: 0 | BJ137: 0 | BK137: 0 | BL137: 0 | BM137: 0 | BN137: 0 | BO137: 0 | BP137: 0 | BQ137: 0
A138: 6.07 | B138: Occupant's FF&E | D138: Incl in 6.10 below | F138: 0 | G138: 0 | H138: 0 | I138: 0 | J138: 0 | K138: 0 | L138: 0 | M138: 0 | N138: 0 | O138: 0 | P138: 0 | Q138: 0 | R138: 0 | S138: 0 | T138: 0 | U138: 0 | V138: 0 | W138: 0 | X138: 0 | Y138: 0 | Z138: 0 | AA138: 0 | AB138: 0 | AC138: 0 | AD138: 0 | AE138: 0 | AF138: 0 | AG138: 0 | AH138: 0 | AI138: 0 | AJ138: 0 | AK138: 0 | AL138: 0 | AM138: 0 | AN138: 0 | AO138: 0 | AP138: 0 | AQ138: 0 | AR138: 0 | AS138: 0 | AT138: 0 | AU138: 0 | AV138: 0 | AW138: 0 | AX138: 0 | AY138: 0 | AZ138: 0 | BA138: 0 | BB138: 0 | BC138: 0 | BD138: 0 | BE138: 0 | BF138: 0 | BG138: 0 | BH138: 0 | BI138: 0 | BJ138: 0 | BK138: 0 | BL138: 0 | BM138: 0 | BN138: 0 | BO138: 0 | BP138: 0 | BQ138: 0
A139: 6.08 | B139: Specialist Equipment | D139: ICT equip maint by EAC | F139: 0 | G139: 0 | H139: 0 | I139: 0 | J139: 0 | K139: 0 | L139: 0 | M139: 0 | N139: 0 | O139: 0 | P139: 0 | Q139: 0 | R139: 0 | S139: 0 | T139: 0 | U139: 0 | V139: 0 | W139: 0 | X139: 0 | Y139: 0 | Z139: 0 | AA139: 0 | AB139: 0 | AC139: 0 | AD139: 0 | AE139: 0 | AF139: 0 | AG139: 0 | AH139: 0 | AI139: 0 | AJ139: 0 | AK139: 0 | AL139: 0 | AM139: 0 | AN139: 0 | AO139: 0 | AP139: 0 | AQ139: 0 | AR139: 0 | AS139: 0 | AT139: 0 | AU139: 0 | AV139: 0 | AW139: 0 | AX139: 0 | AY139: 0 | AZ139: 0 | BA139: 0 | BB139: 0 | BC139: 0 | BD139: 0 | BE139: 0 | BF139: 0 | BG139: 0 | BH139: 0 | BI139: 0 | BJ139: 0 | BK139: 0 | BL139: 0 | BM139: 0 | BN139: 0 | BO139: 0 | BP139: 0 | BQ139: 0
A140: 6.09 | F140: 0 | G140: 0 | H140: 0 | I140: 0 | J140: 0 | K140: 0 | L140: 0 | M140: 0 | N140: 0 | O140: 0 | P140: 0 | Q140: 0 | R140: 0 | S140: 0 | T140: 0 | U140: 0 | V140: 0 | W140: 0 | X140: 0 | Y140: 0 | Z140: 0 | AA140: 0 | AB140: 0 | AC140: 0 | AD140: 0 | AE140: 0 | AF140: 0 | AG140: 0 | AH140: 0 | AI140: 0 | AJ140: 0 | AK140: 0 | AL140: 0 | AM140: 0 | AN140: 0 | AO140: 0 | AP140: 0 | AQ140: 0 | AR140: 0 | AS140: 0 | AT140: 0 | AU140: 0 | AV140: 0 | AW140: 0 | AX140: 0 | AY140: 0 | AZ140: 0 | BA140: 0 | BB140: 0 | BC140: 0 | BD140: 0 | BE140: 0 | BF140: 0 | BG140: 0 | BH140: 0 | BI140: 0 | BJ140: 0 | BK140: 0 | BL140: 0 | BM140: 0 | BN140: 0 | BO140: 0 | BP140: 0 | BQ140: 0
A141: 6.1 | B141: General Rate for Hard FM - WLC Report S.5 Maintenance Costs item 4. | F141: 0 | G141: 0 | H141: 528000 | I141: 0 | J141: 3520 | K141: 10560 | L141: 10560 | M141: 10560 | N141: 10560 | O141: 10560 | P141: 10560 | Q141: 10560 | R141: 10560 | S141: 10560 | T141: 10560 | U141: 10560 | V141: 10560 | W141: 10560 | X141: 10560 | Y141: 10560 | Z141: 10560 | AA141: 10560 | AB141: 10560 | AC141: 10560 | AD141: 10560 | AE141: 10560 | AF141: 10560 | AG141: 10560 | AH141: 10560 | AI141: 10560 | AJ141: 10560 | AK141: 10560 | AL141: 10560 | AM141: 10560 | AN141: 10560 | AO141: 10560 | AP141: 10560 | AQ141: 10560 | AR141: 10560 | AS141: 10560 | AT141: 10560 | AU141: 10560 | AV141: 10560 | AW141: 10560 | AX141: 10560 | AY141: 10560 | AZ141: 10560 | BA141: 10560 | BB141: 10560 | BC141: 10560 | BD141: 10560 | BE141: 10560 | BF141: 10560 | BG141: 10560 | BH141: 7040 | BI141: 0 | BQ141: =SUM(I141:BP141) -> 528000
A142: 6.11 | F142: 0 | G142: 0 | H142: 0 | I142: 0 | J142: 0 | K142: 0 | L142: 0 | M142: 0 | N142: 0 | O142: 0 | P142: 0 | Q142: 0 | R142: 0 | S142: 0 | T142: 0 | U142: 0 | V142: 0 | W142: 0 | X142: 0 | Y142: 0 | Z142: 0 | AA142: 0 | AB142: 0 | AC142: 0 | AD142: 0 | AE142: 0 | AF142: 0 | AG142: 0 | AH142: 0 | AI142: 0 | AJ142: 0 | AK142: 0 | AL142: 0 | AM142: 0 | AN142: 0 | AO142: 0 | AP142: 0 | AQ142: 0 | AR142: 0 | AS142: 0 | AT142: 0 | AU142: 0 | AV142: 0 | AW142: 0 | AX142: 0 | AY142: 0 | AZ142: 0 | BA142: 0 | BB142: 0 | BC142: 0 | BD142: 0 | BE142: 0 | BF142: 0 | BG142: 0 | BH142: 0 | BI142: 0 | BJ142: 0 | BK142: 0 | BL142: 0 | BM142: 0 | BN142: 0 | BO142: 0 | BP142: 0 | BQ142: 0
A143: 6.12 | F143: 0 | G143: 0 | H143: 0 | I143: 0 | J143: 0 | K143: 0 | L143: 0 | M143: 0 | N143: 0 | O143: 0 | P143: 0 | Q143: 0 | R143: 0 | S143: 0 | T143: 0 | U143: 0 | V143: 0 | W143: 0 | X143: 0 | Y143: 0 | Z143: 0 | AA143: 0 | AB143: 0 | AC143: 0 | AD143: 0 | AE143: 0 | AF143: 0 | AG143: 0 | AH143: 0 | AI143: 0 | AJ143: 0 | AK143: 0 | AL143: 0 | AM143: 0 | AN143: 0 | AO143: 0 | AP143: 0 | AQ143: 0 | AR143: 0 | AS143: 0 | AT143: 0 | AU143: 0 | AV143: 0 | AW143: 0 | AX143: 0 | AY143: 0 | AZ143: 0 | BA143: 0 | BB143: 0 | BC143: 0 | BD143: 0 | BE143: 0 | BF143: 0 | BG143: 0 | BH143: 0 | BI143: 0 | BJ143: 0 | BK143: 0 | BL143: 0 | BM143: 0 | BN143: 0 | BO143: 0 | BP143: 0 | BQ143: 0
A144: 6.13 | F144: 0 | G144: 0 | H144: 0 | I144: 0 | J144: 0 | K144: 0 | L144: 0 | M144: 0 | N144: 0 | O144: 0 | P144: 0 | Q144: 0 | R144: 0 | S144: 0 | T144: 0 | U144: 0 | V144: 0 | W144: 0 | X144: 0 | Y144: 0 | Z144: 0 | AA144: 0 | AB144: 0 | AC144: 0 | AD144: 0 | AE144: 0 | AF144: 0 | AG144: 0 | AH144: 0 | AI144: 0 | AJ144: 0 | AK144: 0 | AL144: 0 | AM144: 0 | AN144: 0 | AO144: 0 | AP144: 0 | AQ144: 0 | AR144: 0 | AS144: 0 | AT144: 0 | AU144: 0 | AV144: 0 | AW144: 0 | AX144: 0 | AY144: 0 | AZ144: 0 | BA144: 0 | BB144: 0 | BC144: 0 | BD144: 0 | BE144: 0 | BF144: 0 | BG144: 0 | BH144: 0 | BI144: 0 | BJ144: 0 | BK144: 0 | BL144: 0 | BM144: 0 | BN144: 0 | BO144: 0 | BP144: 0 | BQ144: 0
G145: TOTAL CURRENT DAY COSTS | H145: =SUM(H132:H144) -> 528000 | I145: =SUM(I132:I144) -> 0 | J145: 3520 | K145: 10560 | L145: 10560 | M145: 10560 | N145: 10560 | O145: 10560 | P145: 10560 | Q145: 10560 | R145: 10560 | S145: 10560 | T145: 10560 | U145: 10560 | V145: 10560 | W145: 10560 | X145: 10560 | Y145: 10560 | Z145: 10560 | AA145: 10560 | AB145: 10560 | AC145: 10560 | AD145: 10560 | AE145: 10560 | AF145: 10560 | AG145: 10560 | AH145: 10560 | AI145: 10560 | AJ145: 10560 | AK145: 10560 | AL145: 10560 | AM145: 10560 | AN145: 10560 | AO145: 10560 | AP145: 10560 | AQ145: 10560 | AR145: 10560 | AS145: 10560 | AT145: 10560 | AU145: 10560 | AV145: 10560 | AW145: 10560 | AX145: 10560 | AY145: 10560 | AZ145: 10560 | BA145: 10560 | BB145: 10560 | BC145: 10560 | BD145: 10560 | BE145: 10560 | BF145: 10560 | BG145: 10560 | BH145: 7040 | BI145: 0 | BJ145: 0 | BK145: 0 | BL145: 0 | BM145: 0 | BN145: 0 | BO145: 0 | BP145: 0 | BQ145: 528000
B146: Indexation | C146: LCC | D146: ='Project Input'!D19 -> 0.025 | I146: 1 | J146: =SUM(I146*$D$146)+I146 -> 1.025 | K146: =SUM(J146*$D$146)+J146 -> 1.050625 | L146: 1.076890625 | M146: 1.103812891 | N146: 1.131408213 | O146: 1.159693418 | P146: 1.188685754 | Q146: 1.218402898 | R146: 1.24886297 | S146: 1.280084544 | T146: 1.312086658 | U146: 1.344888824 | V146: 1.378511045 | W146: 1.412973821 | X146: 1.448298166 | Y146: 1.484505621 | Z146: 1.521618261 | AA146: 1.559658718 | AB146: 1.598650186 | AC146: 1.63861644 | AD146: 1.679581851 | AE146: 1.721571398 | AF146: 1.764610683 | AG146: 1.80872595 | AH146: 1.853944098 | AI146: 1.900292701 | AJ146: 1.947800018 | AK146: 1.996495019 | AL146: 2.046407394 | AM146: 2.097567579 | AN146: 2.150006769 | AO146: 2.203756938 | AP146: 2.258850861 | AQ146: 2.315322133 | AR146: 2.373205186 | AS146: 2.432535316 | AT146: 2.493348699 | AU146: 2.555682416 | AV146: 2.619574476 | AW146: 2.685063838 | AX146: 2.752190434 | AY146: 2.820995195 | AZ146: 2.891520075 | BA146: 2.963808077 | BB146: 3.037903279 | BC146: 3.113850861 | BD146: 3.191697132 | BE146: 3.271489561 | BF146: 3.3532768 | BG146: 3.43710872 | BH146: 3.523036438 | BI146: 3.611112349 | BJ146: 3.701390157 | BK146: 3.793924911 | BL146: 3.888773034 | BM146: 3.98599236 | BN146: 4.085642169 | BO146: 4.187783223 | BP146: 4.292477804
G147: Annual Nominal Whole Life Costs | H147: =SUM(I147:BP147) -> 1072756.768 | I147: =SUM(I145*I146) -> 0 | J147: =SUM(J145*J146) -> 3608 | K147: =SUM(K145*K146) -> 11094.6 | L147: =SUM(L145*L146) -> 11371.965 | M147: =SUM(M145*M146) -> 11656.26412 | N147: =SUM(N145*N146) -> 11947.67073 | O147: =SUM(O145*O146) -> 12246.3625 | P147: =SUM(P145*P146) -> 12552.52156 | Q147: =SUM(Q145*Q146) -> 12866.3346 | R147: =SUM(R145*R146) -> 13187.99296 | S147: =SUM(S145*S146) -> 13517.69279 | T147: =SUM(T145*T146) -> 13855.63511 | U147: =SUM(U145*U146) -> 14202.02598 | V147: =SUM(V145*V146) -> 14557.07663 | W147: =SUM(W145*W146) -> 14921.00355 | X147: =SUM(X145*X146) -> 15294.02864 | Y147: =SUM(Y145*Y146) -> 15676.37935 | Z147: =SUM(Z145*Z146) -> 16068.28884 | AA147: =SUM(AA145*AA146) -> 16469.99606 | AB147: =SUM(AB145*AB146) -> 16881.74596 | AC147: =SUM(AC145*AC146) -> 17303.78961 | AD147: =SUM(AD145*AD146) -> 17736.38435 | AE147: =SUM(AE145*AE146) -> 18179.79396 | AF147: =SUM(AF145*AF146) -> 18634.28881 | AG147: =SUM(AG145*AG146) -> 19100.14603 | AH147: =SUM(AH145*AH146) -> 19577.64968 | AI147: =SUM(AI145*AI146) -> 20067.09092 | AJ147: =SUM(AJ145*AJ146) -> 20568.76819 | AK147: =SUM(AK145*AK146) -> 21082.9874 | AL147: =SUM(AL145*AL146) -> 21610.06208 | AM147: =SUM(AM145*AM146) -> 22150.31364 | AN147: =SUM(AN145*AN146) -> 22704.07148 | AO147: =SUM(AO145*AO146) -> 23271.67326 | AP147: =SUM(AP145*AP146) -> 23853.46509 | AQ147: =SUM(AQ145*AQ146) -> 24449.80172 | AR147: =SUM(AR145*AR146) -> 25061.04676 | AS147: =SUM(AS145*AS146) -> 25687.57293 | AT147: =SUM(AT145*AT146) -> 26329.76226 | AU147: =SUM(AU145*AU146) -> 26988.00631 | AV147: =SUM(AV145*AV146) -> 27662.70647 | AW147: =SUM(AW145*AW146) -> 28354.27413 | AX147: =SUM(AX145*AX146) -> 29063.13099 | AY147: =SUM(AY145*AY146) -> 29789.70926 | AZ147: =SUM(AZ145*AZ146) -> 30534.45199 | BA147: =SUM(BA145*BA146) -> 31297.81329 | BB147: =SUM(BB145*BB146) -> 32080.25863 | BC147: =SUM(BC145*BC146) -> 32882.26509 | BD147: =SUM(BD145*BD146) -> 33704.32172 | BE147: =SUM(BE145*BE146) -> 34546.92976 | BF147: =SUM(BF145*BF146) -> 35410.603 | BG147: =SUM(BG145*BG146) -> 36295.86808 | BH147: =SUM(BH145*BH146) -> 24802.17652 | BI147: =SUM(BI145*BI146) -> 0 | BJ147: =SUM(BJ145*BJ146) -> 0 | BK147: =SUM(BK145*BK146) -> 0 | BL147: =SUM(BL145*BL146) -> 0 | BM147: =SUM(BM145*BM146) -> 0 | BN147: =SUM(BN145*BN146) -> 0 | BO147: =SUM(BO145*BO146) -> 0 | BP147: =SUM(BP145*BP146) -> 0 | BQ147: =SUM(I147:BP147) -> 1072756.768
C148: Days since start of concession | D148: 365 | I148: =SUM($D$148*I26) -> 365 | J148: =SUM($D$148*J26) -> 730 | K148: 1095 | L148: 1460 | M148: 1825 | N148: 2190 | O148: 2555 | P148: 2920 | Q148: 3285 | R148: 3650 | S148: 4015 | T148: 4380 | U148: 4745 | V148: 5110 | W148: 5475 | X148: 5840 | Y148: 6205 | Z148: 6570 | AA148: 6935 | AB148: 7300 | AC148: 7665 | AD148: 8030 | AE148: 8395 | AF148: 8760 | AG148: 9125 | AH148: 9490 | AI148: 9855 | AJ148: 10220 | AK148: 10585 | AL148: 10950 | AM148: 11315 | AN148: 11680 | AO148: 12045 | AP148: 12410 | AQ148: 12775 | AR148: 13140 | AS148: 13505 | AT148: 13870 | AU148: 14235 | AV148: 14600 | AW148: 14965 | AX148: 15330 | AY148: 15695 | AZ148: 16060 | BA148: 16425 | BB148: 16790 | BC148: 17155 | BD148: 17520 | BE148: 17885 | BF148: 18250 | BG148: 18615 | BH148: 18980 | BI148: 19345 | BJ148: 19710 | BK148: 20075 | BL148: 20440 | BM148: 20805 | BN148: 21170 | BO148: 21535 | BP148: 21900
C149: Discount index | D149: ='Project Input'!$D$24 -> 0.060875 | I149: =(1+$D$149)^(I148/$D$148) -> 1.060875 | J149: =(1+$D$149)^(J148/$D$148) -> 1.125455766 | K149: 1.193967885 | L149: 1.26665068 | M149: 1.343758041 | N149: 1.425559311 | O149: 1.512340234 | P149: 1.604403946 | Q149: 1.702072036 | R149: 1.805685672 | S149: 1.915606787 | T149: 2.03221935 | U149: 2.155930703 | V149: 2.287172984 | W149: 2.42640464 | X149: 2.574112022 | Y149: 2.730811092 | Z149: 2.897049217 | AA149: 3.073407088 | AB149: 3.260500744 | AC149: 3.458983727 | AD149: 3.669549362 | AE149: 3.892933179 | AF149: 4.129915486 | AG149: 4.381324091 | AH149: 4.648037196 | AI149: 4.93098646 | AJ149: 5.231160261 | AK149: 5.549607141 | AL149: 5.887439476 | AM149: 6.245837354 | AN149: 6.626052703 | AO149: 7.029413662 | AP149: 7.457329218 | AQ149: 7.911294134 | AR149: 8.392894165 | AS149: 8.903811597 | AT149: 9.445831128 | AU149: 10.0208461 | AV149: 10.6308651 | AW149: 11.27801902 | AX149: 11.96456843 | AY149: 12.69291153 | AZ149: 13.46559252 | BA149: 14.28531046 | BB149: 15.15492874 | BC149: 16.07748502 | BD149: 17.05620192 | BE149: 18.09449822 | BF149: 19.19600079 | BG149: 20.36455734 | BH149: 21.60424977 | BI149: 22.91940848 | BJ149: 24.31462747 | BK149: 25.79478041 | BL149: 27.36503767 | BM149: 29.03088434 | BN149: 30.79813942 | BO149: 32.67297616 | BP149: 34.66194359
A150: 6 Maintenance Costs (Hard FM) | G150: Annual NPV of Whole Life Costs | H150: =SUM(I150:BP150) -> 228214.7296 | I150: =I147/I149 -> 0 | J150: 3205.812356 | K150: 9292.209729 | L150: 8977.980414 | M150: 8674.377212 | N150: 8381.040784 | O150: 8097.623946 | P150: 7823.791252 | Q150: 7559.218601 | R150: 7303.592851 | S150: 7056.611451 | T150: 6817.982078 | U150: 6587.422298 | V150: 6364.659225 | W150: 6149.429203 | X150: 5941.47749 | Y150: 5740.557962 | Z150: 5546.432813 | AA150: 5358.872283 | AB150: 5177.65438 | AC150: 5002.564618 | AD150: 4833.395767 | AE150: 4669.947601 | AF150: 4512.026667 | AG150: 4359.446055 | AH150: 4212.025174 | AI150: 4069.58954 | AJ150: 3931.97057 | AK150: 3799.005382 | AL150: 3670.536601 | AM150: 3546.412175 | AN150: 3426.485193 | AO150: =AO147/AO149 -> 3310.613713 | AP150: 3198.660592 | AQ150: 3090.493326 | AR150: 2985.98389 | AS150: 2885.008589 | AT150: 2787.447912 | AU150: 2693.186389 | AV150: 2602.112453 | AW150: 2514.118312 | AX150: 2429.099818 | AY150: 2346.956346 | AZ150: 2267.590673 | BA150: 2190.908862 | BB150: 2116.820157 | BC150: 2045.236867 | BD150: 1976.074267 | BE150: 1909.2505 | BF150: 1844.686473 | BG150: 1782.305771 | BH150: 1148.023041 | BI150: 0 | BJ150: 0 | BK150: 0 | BL150: 0 | BM150: 0 | BN150: 0 | BO150: 0 | BP150: 0 | BQ150: =SUM(I150:BP150) -> 228214.7296
G151: Cumulative NPV of Whole Life Costs | I151: =SUM(I150) -> 0 | J151: =SUM(I151+J150) -> 3205.812356 | K151: =SUM(J151+K150) -> 12498.02209 | L151: =SUM(K151+L150) -> 21476.0025 | M151: =SUM(L151+M150) -> 30150.37971 | N151: =SUM(M151+N150) -> 38531.4205 | O151: =SUM(N151+O150) -> 46629.04444 | P151: =SUM(O151+P150) -> 54452.83569 | Q151: =SUM(P151+Q150) -> 62012.05429 | R151: =SUM(Q151+R150) -> 69315.64715 | S151: =SUM(R151+S150) -> 76372.2586 | T151: =SUM(S151+T150) -> 83190.24068 | U151: =SUM(T151+U150) -> 89777.66297 | V151: =SUM(U151+V150) -> 96142.3222 | W151: =SUM(V151+W150) -> 102291.7514 | X151: =SUM(W151+X150) -> 108233.2289 | Y151: =SUM(X151+Y150) -> 113973.7869 | Z151: =SUM(Y151+Z150) -> 119520.2197 | AA151: =SUM(Z151+AA150) -> 124879.0919 | AB151: =SUM(AA151+AB150) -> 130056.7463 | AC151: =SUM(AB151+AC150) -> 135059.3109 | AD151: =SUM(AC151+AD150) -> 139892.7067 | AE151: =SUM(AD151+AE150) -> 144562.6543 | AF151: =SUM(AE151+AF150) -> 149074.681 | AG151: =SUM(AF151+AG150) -> 153434.127 | AH151: =SUM(AG151+AH150) -> 157646.1522 | AI151: =SUM(AH151+AI150) -> 161715.7418 | AJ151: =SUM(AI151+AJ150) -> 165647.7123 | AK151: =SUM(AJ151+AK150) -> 169446.7177 | AL151: =SUM(AK151+AL150) -> 173117.2543 | AM151: =SUM(AL151+AM150) -> 176663.6665 | AN151: =SUM(AM151+AN150) -> 180090.1517 | AO151: =SUM(AN151+AO150) -> 183400.7654 | AP151: =SUM(AO151+AP150) -> 186599.426 | AQ151: =SUM(AP151+AQ150) -> 189689.9193 | AR151: =SUM(AQ151+AR150) -> 192675.9032 | AS151: =SUM(AR151+AS150) -> 195560.9118 | AT151: =SUM(AS151+AT150) -> 198348.3597 | AU151: =SUM(AT151+AU150) -> 201041.5461 | AV151: =SUM(AU151+AV150) -> 203643.6585 | AW151: =SUM(AV151+AW150) -> 206157.7768 | AX151: =SUM(AW151+AX150) -> 208586.8767 | AY151: =SUM(AX151+AY150) -> 210933.833 | AZ151: =SUM(AY151+AZ150) -> 213201.4237 | BA151: =SUM(AZ151+BA150) -> 215392.3325 | BB151: =SUM(BA151+BB150) -> 217509.1527 | BC151: =SUM(BB151+BC150) -> 219554.3896 | BD151: =SUM(BC151+BD150) -> 221530.4638 | BE151: =SUM(BD151+BE150) -> 223439.7143 | BF151: =SUM(BE151+BF150) -> 225284.4008 | BG151: =SUM(BF151+BG150) -> 227066.7066 | BH151: =SUM(BG151+BH150) -> 228214.7296 | BI151: =SUM(BH151+BI150) -> 228214.7296 | BJ151: =SUM(BI151+BJ150) -> 228214.7296 | BK151: =SUM(BJ151+BK150) -> 228214.7296 | BL151: =SUM(BK151+BL150) -> 228214.7296 | BM151: =SUM(BL151+BM150) -> 228214.7296 | BN151: =SUM(BM151+BN150) -> 228214.7296 | BO151: =SUM(BN151+BO150) -> 228214.7296
A152: 7 | B152: Life Cycle Replacement Costs | I152: =I27 -> 2019 | J152: =J27 -> 2020 | K152: 2021 | L152: 2022 | M152: 2023 | N152: 2024 | O152: 2025 | P152: 2026 | Q152: 2027 | R152: 2028 | S152: 2029 | T152: 2030 | U152: 2031 | V152: 2032 | W152: 2033 | X152: 2034 | Y152: 2035 | Z152: 2036 | AA152: 2037 | AB152: 2038 | AC152: 2039 | AD152: 2040 | AE152: 2041 | AF152: 2042 | AG152: 2043 | AH152: 2044 | AI152: 2045 | AJ152: 2046 | AK152: 2047 | AL152: 2048 | AM152: 2049 | AN152: 2050 | AO152: 2051 | AP152: 2052 | AQ152: 2053 | AR152: 2054 | AS152: 2055 | AT152: 2056 | AU152: 2057 | AV152: 2058 | AW152: 2059 | AX152: 2060 | AY152: 2061 | AZ152: 2062 | BA152: 2063 | BB152: 2064 | BC152: 2065 | BD152: 2066 | BE152: 2067 | BF152: 2068 | BG152: 2069 | BH152: 2070 | BI152: 2071 | BJ152: 2072 | BK152: 2073 | BL152: 2074 | BM152: 2075 | BN152: =BN27 -> 2076 | BO152: 2077 | BP152: 2078 | BT152: =NPV('Project Input'!$D$22,'Option A'!J152:BP152)+I152 -> 52638.57152
A153: 7.01 | B153: Substructure | D153: No allowance | H153: 0 | I153: 0 | J153: 0 | K153: 0 | L153: 0 | M153: 0 | N153: 0 | O153: 0 | P153: 0 | Q153: 0 | R153: 0 | S153: 0 | T153: 0 | U153: 0 | V153: 0 | W153: 0 | X153: 0 | Y153: 0 | Z153: 0 | AA153: 0 | AB153: 0 | AC153: 0 | AD153: 0 | AE153: 0 | AF153: 0 | AG153: 0 | AH153: 0 | AI153: 0 | AJ153: 0 | AK153: 0 | AL153: 0 | AM153: 0 | AN153: 0 | AO153: 0 | AP153: 0 | AQ153: 0 | AR153: 0 | AS153: 0 | AT153: 0 | AU153: 0 | AV153: 0 | AW153: 0 | AX153: 0 | AY153: 0 | AZ153: 0 | BA153: 0 | BB153: 0 | BC153: 0 | BD153: 0 | BE153: 0 | BF153: 0 | BG153: 0 | BH153: 0 | BI153: 0 | BJ153: 0 | BK153: 0 | BL153: 0 | BM153: 0 | BN153: 0 | BO153: 0 | BP153: 0 | BQ153: =SUM(I153:BP153) -> 0
A154: 7.02 | B154: Superstructure | D154: WLC Report S.5 Lifecycle item 10. | H154: 605694 | I154: 0 | J154: 0 | K154: 0 | L154: 0 | M154: 0 | N154: 0 | O154: 0 | P154: 0 | Q154: 0 | R154: 0 | S154: 0 | T154: 17973 | U154: 0 | V154: 0 | W154: 0 | X154: 0 | Y154: 17973 | Z154: 0 | AA154: 0 | AB154: 18512 | AC154: 0 | AD154: =SUM(67542+17973) -> 85515 | AE154: 0 | AF154: 0 | AG154: 0 | AH154: 0 | AI154: 17973 | AJ154: 0 | AK154: 0 | AL154: 0 | AM154: 0 | AN154: 17973 | AO154: 0 | AP154: 0 | AQ154: 0 | AR154: 0 | AS154: 17973 | AT154: 18512 | AU154: 0 | AV154: 0 | AW154: 0 | AX154: =SUM(67542+131277+50465+108060) -> 357344 | AY154: 0 | AZ154: 0 | BA154: 0 | BB154: 0 | BC154: 17973 | BD154: 0 | BE154: 0 | BF154: 0 | BG154: 0 | BH154: 17973 | BI154: 0 | BJ154: 0 | BK154: 0 | BL154: 0 | BM154: 0 | BN154: 0 | BO154: 0 | BP154: 0 | BQ154: 605694
A155: 7.03 | B155: Finishes | D155: Insert Data Source | H155: 211336 | I155: 0 | J155: 0 | K155: 0 | L155: 0 | M155: 0 | N155: 0 | O155: 0 | P155: =SUM(900+1000) -> 1900 | Q155: 900 | R155: 900 | S155: 11384 | T155: 900 | U155: 900 | V155: =SUM(900+16091) -> 16991 | W155: 900 | X155: 900 | Y155: 900 | Z155: 900 | AA155: 900 | AB155: =SUM(11384+6936) -> 18320 | AC155: 900 | AD155: 900 | AE155: 900 | AF155: 900 | AG155: 900 | AH155: =SUM(900+16091) -> 16991 | AI155: 900 | AJ155: 900 | AK155: =SUM(11384+39180) -> 50564 | AL155: 900 | AM155: 900 | AN155: =SUM(900+0) -> 900 | AO155: 900 | AP155: 900 | AQ155: 900 | AR155: 900 | AS155: 900 | AT155: =+SUM(11384+6936+16091) -> 34411 | AU155: 900 | AV155: 900 | AW155: 900 | AX155: 900 | AY155: 900 | AZ155: =SUM(900+0) -> 900 | BA155: 900 | BB155: 900 | BC155: 11384 | BD155: 900 | BE155: 900 | BF155: =SUM(900+16091) -> 16991 | BG155: 900 | BH155: 900 | BI155: 0 | BJ155: 0 | BK155: 0 | BL155: 0 | BM155: 0 | BN155: 0 | BO155: 0 | BP155: 0 | BQ155: 211336
A156: 7.04 | B156: FF&E | D156: Insert Data Source | H156: 213516 | I156: 0 | J156: 0 | K156: 0 | L156: 0 | M156: 0 | N156: 0 | O156: 0 | P156: 0 | Q156: 0 | R156: 0 | S156: 0 | T156: 0 | U156: 0 | V156: 0 | W156: 0 | X156: 0 | Y156: 5931 | Z156: 5931 | AA156: 5931 | AB156: 5931 | AC156: 5931 | AD156: 5931 | AE156: 5931 | AF156: 5931 | AG156: 5931 | AH156: 5931 | AI156: 5931 | AJ156: 5931 | AK156: 5931 | AL156: 5931 | AM156: 5931 | AN156: 5931 | AO156: 5931 | AP156: 5931 | AQ156: 5931 | AR156: 5931 | AS156: 5931 | AT156: 5931 | AU156: 5931 | AV156: 5931 | AW156: 5931 | AX156: 5931 | AY156: 5931 | AZ156: 5931 | BA156: 5931 | BB156: 5931 | BC156: 5931 | BD156: 5931 | BE156: 5931 | BF156: 5931 | BG156: 5931 | BH156: 5931 | BI156: 0 | BJ156: 0 | BK156: 0 | BL156: 0 | BM156: 0 | BN156: 0 | BO156: 0 | BP156: 0 | BQ156: 213516
A157: 7.05 | B157: M&E Services | D157: Insert Data Source | H157: 600479 | I157: 0 | J157: 0 | K157: 0 | L157: 0 | M157: 0 | N157: 0 | O157: 0 | P157: 0 | Q157: 0 | R157: 0 | S157: 0 | T157: =SUM(4470+7117) -> 11587 | U157: =SUM(4470+7117) -> 11587 | V157: =SUM(4470+5500+4745+8986) -> 23701 | W157: =SUM(4470+7117) -> 11587 | X157: =SUM(4470+7117) -> 11587 | Y157: 11587 | Z157: 11587 | AA157: 11587 | AB157: =SUM(4470+7117+8507+20851) -> 40945 | AC157: =SUM(4470+7117) -> 11587 | AD157: =SUM(4470+7117) -> 11587 | AE157: 11587 | AF157: 11587 | AG157: 11587 | AH157: =SUM(4470+7117+4745+8986) -> 25318 | AI157: =SUM(4470+7117) -> 11587 | AJ157: =SUM(4470+7117) -> 11587 | AK157: 11587 | AL157: 11587 | AM157: 11587 | AN157: 11587 | AO157: 11587 | AP157: 11587 | AQ157: 11587 | AR157: 11587 | AS157: 11587 | AT157: =SUM(4470+7117+4745+8507+20851+25162) -> 70852 | AU157: =SUM(4470+7117) -> 11587 | AV157: =SUM(4470+7117) -> 11587 | AW157: 11587 | AX157: 11587 | AY157: 11587 | AZ157: 11587 | BA157: 11587 | BB157: 11587 | BC157: 11587 | BD157: 11587 | BE157: 11587 | BF157: =SUM(3300+5500+4745+8986) -> 22531 | BG157: =SUM(4470+7117) -> 11587 | BH157: =SUM(4470+7117) -> 11587 | BI157: 0 | BJ157: 0 | BK157: 0 | BL157: 0 | BM157: 0 | BN157: 0 | BO157: 0 | BP157: 0 | BQ157: 600479
A158: 7.06 | B158: External Works | D158: Insert Data Source | H158: 142341 | I158: 0 | J158: 0 | K158: 0 | L158: 0 | M158: 0 | N158: 0 | O158: 500 | P158: 500 | Q158: 500 | R158: 500 | S158: =+SUM(500+16738) -> 17238 | T158: 500 | U158: 500 | V158: 500 | W158: 500 | X158: 500 | Y158: 500 | Z158: 500 | AA158: 500 | AB158: =SUM(500+16738) -> 17238 | AC158: 500 | AD158: 500 | AE158: 500 | AF158: 500 | AG158: 500 | AH158: 500 | AI158: 500 | AJ158: 500 | AK158: =SUM(500+16738+17678) -> 34916 | AL158: 500 | AM158: 500 | AN158: 500 | AO158: 500 | AP158: 500 | AQ158: 500 | AR158: 500 | AS158: 500 | AT158: =SUM(500+16738) -> 17238 | AU158: 500 | AV158: 500 | AW158: 500 | AX158: =SUM(500+17973) -> 18473 | AY158: 500 | AZ158: 500 | BA158: 500 | BB158: 500 | BC158: =SUM(500+16738) -> 17238 | BD158: 500 | BE158: 500 | BF158: 500 | BG158: 500 | BH158: 500 | BI158: 0 | BJ158: 0 | BK158: 0 | BL158: 0 | BM158: 0 | BN158: 0 | BO158: 0 | BP158: 0 | BQ158: 142341
A159: 7.07 | B159: Preliminaries | D159: Insert Data Source | H159: 0 | I159: 0 | J159: 0 | K159: 0 | L159: 0 | M159: 0 | N159: 0 | O159: 0 | P159: 0 | Q159: 0 | R159: 0 | S159: 0 | T159: 0 | U159: 0 | V159: 0 | W159: 0 | X159: 0 | Y159: 0 | Z159: 0 | AA159: 0 | AB159: 0 | AC159: 0 | AD159: 0 | AE159: 0 | AF159: 0 | AG159: 0 | AH159: 0 | AI159: 0 | AJ159: 0 | AK159: 0 | AL159: 0 | AM159: 0 | AN159: 0 | AO159: 0 | AP159: 0 | AQ159: 0 | AR159: 0 | AS159: 0 | AT159: 0 | AU159: 0 | AV159: 0 | AW159: 0 | AX159: 0 | AY159: 0 | AZ159: 0 | BA159: 0 | BB159: 0 | BC159: 0 | BD159: 0 | BE159: 0 | BF159: 0 | BG159: 0 | BH159: 0 | BI159: 0 | BJ159: 0 | BK159: 0 | BL159: 0 | BM159: 0 | BN159: 0 | BO159: 0 | BP159: 0 | BQ159: 0
A160: 7.08 | B160: Contingencies | D160: Insert Data Source | H160: 0 | I160: 0 | J160: 0 | K160: 0 | L160: 0 | M160: 0 | N160: 0 | O160: 0 | P160: 0 | Q160: 0 | R160: 0 | S160: 0 | T160: 0 | U160: 0 | V160: 0 | W160: 0 | X160: 0 | Y160: 0 | Z160: 0 | AA160: 0 | AB160: 0 | AC160: 0 | AD160: 0 | AE160: 0 | AF160: 0 | AG160: 0 | AH160: 0 | AI160: 0 | AJ160: 0 | AK160: 0 | AL160: 0 | AM160: 0 | AN160: 0 | AO160: 0 | AP160: 0 | AQ160: 0 | AR160: 0 | AS160: 0 | AT160: 0 | AU160: 0 | AV160: 0 | AW160: 0 | AX160: 0 | AY160: 0 | AZ160: 0 | BA160: 0 | BB160: 0 | BC160: 0 | BD160: 0 | BE160: 0 | BF160: 0 | BG160: 0 | BH160: 0 | BI160: 0 | BJ160: 0 | BK160: 0 | BL160: 0 | BM160: 0 | BN160: 0 | BO160: 0 | BP160: 0 | BQ160: 0
A161: 7.09 | B161: General Rate allowance for non-specified LC renewal | H161: 69000 | I161: 0 | J161: 0 | K161: 0 | L161: 0 | M161: 0 | N161: 0 | O161: 0 | P161: 500 | Q161: 500 | R161: 500 | S161: 500 | T161: 1000 | U161: 1000 | V161: 1000 | W161: 1000 | X161: 1000 | Y161: 1000 | Z161: 1000 | AA161: 1000 | AB161: 1000 | AC161: 1000 | AD161: 1500 | AE161: 1500 | AF161: 1500 | AG161: 1500 | AH161: 1500 | AI161: 1500 | AJ161: 1500 | AK161: 1500 | AL161: 1500 | AM161: 1500 | AN161: 2000 | AO161: 2000 | AP161: 2000 | AQ161: 2000 | AR161: 2000 | AS161: 2000 | AT161: 2000 | AU161: 2000 | AV161: 2000 | AW161: 2000 | AX161: 2000 | AY161: 2000 | AZ161: 2000 | BA161: 2000 | BB161: 2000 | BC161: 2000 | BD161: 2000 | BE161: 2000 | BF161: 2000 | BG161: 2000 | BH161: 2000 | BI161: 0 | BJ161: 0 | BK161: 0 | BL161: 0 | BM161: 0 | BN161: 0 | BO161: 0 | BP161: 0 | BQ161: 69000
A162: 7.1 | B162: Network switches & wifi access points | H162: 76000 | I162: 0 | J162: 0 | L162: 0 | M162: 0 | N162: 0 | O162: 0 | P162: 9500 | Q162: 0 | R162: 0 | S162: 0 | T162: 0 | U162: 0 | V162: 9500 | W162: 0 | X162: 0 | Y162: 0 | Z162: 0 | AA162: 0 | AB162: 9500 | AC162: 0 | AD162: 0 | AE162: 0 | AF162: 0 | AG162: 0 | AH162: 9500 | AI162: 0 | AJ162: 0 | AK162: 0 | AL162: 0 | AM162: 0 | AN162: 9500 | AO162: 0 | AP162: 0 | AQ162: 0 | AR162: 0 | AS162: 0 | AT162: 9500 | AU162: 0 | AV162: 0 | AW162: 0 | AX162: 0 | AY162: 0 | AZ162: 9500 | BA162: 0 | BB162: 0 | BC162: 0 | BD162: 0 | BE162: 0 | BF162: 9500 | BG162: 0 | BI162: 0 | BJ162: 0 | BK162: 0 | BL162: 0 | BM162: 0 | BN162: 0 | BO162: 0 | BP162: 0 | BQ162: 76000
A163: 7.11 | B163: Education IT equipment - ipads, laptops, desktops, smart boards | H163: 109900 | I163: 0 | J163: 0 | L163: 0 | M163: 0 | N163: 0 | O163: 4650 | P163: 5000 | Q163: 1200 | R163: 0 | S163: 3000 | T163: 4650 | U163: 0 | V163: 5000 | W163: 0 | X163: 1200 | Y163: 4650 | Z163: 0 | AA163: 0 | AB163: 8000 | AC163: 0 | AD163: 4650 | AE163: 1200 | AF163: 0 | AG163: 0 | AH163: 5000 | AI163: 4650 | AJ163: 0 | AK163: 3000 | AL163: 1200 | AM163: 0 | AN163: 9650 | AO163: 0 | AP163: 0 | AQ163: 0 | AR163: 0 | AS163: 5850 | AT163: 8000 | AU163: 0 | AV163: 0 | AW163: 0 | AX163: 4650 | AY163: 0 | AZ163: 6200 | BA163: 0 | BB163: 0 | BC163: 7650 | BD163: 0 | BE163: 0 | BF163: 5000 | BG163: 1200 | BH163: 4650 | BI163: 0 | BJ163: 0 | BK163: 0 | BL163: 0 | BM163: 0 | BN163: 0 | BO163: 0 | BP163: 0 | BQ163: 109900
A164: 7.12 | B164: Description of item & Source of Data | H164: 0 | I164: 0 | J164: 0 | K164: 0 | L164: 0 | M164: 0 | N164: 0 | O164: 0 | P164: 0 | Q164: 0 | R164: 0 | S164: 0 | T164: 0 | U164: 0 | V164: 0 | W164: 0 | X164: 0 | Y164: 0 | Z164: 0 | AA164: 0 | AB164: 0 | AC164: 0 | AD164: 0 | AE164: 0 | AF164: 0 | AG164: 0 | AH164: 0 | AI164: 0 | AJ164: 0 | AK164: 0 | AL164: 0 | AM164: 0 | AO164: 0 | AP164: 0 | AQ164: 0 | AR164: 0 | AS164: 0 | AT164: 0 | AU164: 0 | AV164: 0 | AW164: 0 | AX164: 0 | AY164: 0 | AZ164: 0 | BA164: 0 | BB164: 0 | BC164: 0 | BD164: 0 | BE164: 0 | BF164: 0 | BG164: 0 | BH164: 0 | BI164: 0 | BJ164: 0 | BK164: 0 | BL164: 0 | BM164: 0 | BN164: 0 | BO164: 0 | BP164: 0 | BQ164: 0
A165: 7.13 | B165: Description of item & Source of Data | H165: 0 | I165: 0 | J165: 0 | K165: 0 | L165: 0 | M165: 0 | N165: 0 | O165: 0 | P165: 0 | Q165: 0 | R165: 0 | S165: 0 | T165: 0 | U165: 0 | V165: 0 | W165: 0 | X165: 0 | Y165: 0 | Z165: 0 | AA165: 0 | AB165: 0 | AC165: 0 | AD165: 0 | AE165: 0 | AF165: 0 | AG165: 0 | AH165: 0 | AI165: 0 | AJ165: 0 | AK165: 0 | AL165: 0 | AM165: 0 | AN165: 0 | AO165: 0 | AP165: 0 | AQ165: 0 | AR165: 0 | AS165: 0 | AT165: 0 | AU165: 0 | AV165: 0 | AW165: 0 | AX165: 0 | AY165: 0 | AZ165: 0 | BA165: 0 | BB165: 0 | BC165: 0 | BD165: 0 | BE165: 0 | BF165: 0 | BG165: 0 | BH165: 0 | BI165: 0 | BJ165: 0 | BK165: 0 | BL165: 0 | BM165: 0 | BN165: 0 | BO165: 0 | BP165: 0 | BQ165: 0
G166: TOTAL CURRENT DAY COSTS | H166: =SUM(H153:H165) -> 2028266 | I166: =SUM(I153:I165) -> 0 | J166: 0 | K166: 0 | L166: 0 | M166: 0 | N166: 0 | O166: 5150 | P166: 17400 | Q166: 3100 | R166: 1900 | S166: 32122 | T166: 36610 | U166: 13987 | V166: 56692 | W166: 13987 | X166: 15187 | Y166: 42541 | Z166: 19918 | AA166: 19918 | AB166: 119446 | AC166: 19918 | AD166: 110583 | AE166: 21618 | AF166: 20418 | AG166: 20418 | AH166: 64740 | AI166: 43041 | AJ166: 20418 | AK166: 107498 | AL166: 21618 | AM166: 20418 | AN166: 58041 | AO166: 20918 | AP166: 20918 | AQ166: 20918 | AR166: 20918 | AS166: 44741 | AT166: 166444 | AU166: 20918 | AV166: 20918 | AW166: 20918 | AX166: 400885 | AY166: 20918 | AZ166: 36618 | BA166: 20918 | BB166: 20918 | BC166: 73763 | BD166: 20918 | BE166: 20918 | BF166: 62453 | BG166: 22118 | BH166: 43541 | BI166: 0 | BJ166: 0 | BK166: 0 | BL166: 0 | BM166: 0 | BN166: 0 | BO166: 0 | BP166: 0 | BQ166: =SUM(BQ153:BQ165) -> 2028266
B167: Indexation | C167: LCC | D167: ='Project Input'!D19 -> 0.025 | I167: 1 | J167: =SUM(I167*$D$167)+I167 -> 1.025 | K167: =SUM(J167*$D$167)+J167 -> 1.050625 | L167: 1.076890625 | M167: 1.103812891 | N167: 1.131408213 | O167: 1.159693418 | P167: 1.188685754 | Q167: 1.218402898 | R167: 1.24886297 | S167: 1.280084544 | T167: 1.312086658 | U167: 1.344888824 | V167: 1.378511045 | W167: 1.412973821 | X167: 1.448298166 | Y167: 1.484505621 | Z167: 1.521618261 | AA167: 1.559658718 | AB167: 1.598650186 | AC167: 1.63861644 | AD167: 1.679581851 | AE167: 1.721571398 | AF167: 1.764610683 | AG167: 1.80872595 | AH167: 1.853944098 | AI167: 1.900292701 | AJ167: 1.947800018 | AK167: 1.996495019 | AL167: 2.046407394 | AM167: 2.097567579 | AN167: 2.150006769 | AO167: 2.203756938 | AP167: 2.258850861 | AQ167: 2.315322133 | AR167: 2.373205186 | AS167: 2.432535316 | AT167: 2.493348699 | AU167: 2.555682416 | AV167: 2.619574476 | AW167: 2.685063838 | AX167: 2.752190434 | AY167: 2.820995195 | AZ167: 2.891520075 | BA167: 2.963808077 | BB167: 3.037903279 | BC167: 3.113850861 | BD167: 3.191697132 | BE167: 3.271489561 | BF167: 3.3532768 | BG167: 3.43710872 | BH167: 3.523036438 | BI167: 3.611112349 | BJ167: 3.701390157 | BK167: 3.793924911 | BL167: 3.888773034 | BM167: 3.98599236 | BN167: 4.085642169 | BO167: 4.187783223 | BP167: 4.292477804
G168: Annual Nominal Whole Life Costs | H168: =SUM(I168:BP168) -> 4649920.283 | I168: =SUM(I166*I167) -> 0 | J168: =SUM(J166*J167) -> 0 | K168: =SUM(K166*K167) -> 0 | L168: =SUM(L166*L167) -> 0 | M168: =SUM(M166*M167) -> 0 | N168: =SUM(N166*N167) -> 0 | O168: =SUM(O166*O167) -> 5972.421104 | P168: =SUM(P166*P167) -> 20683.13211 | Q168: =SUM(Q166*Q167) -> 3777.048982 | R168: =SUM(R166*R167) -> 2372.839643 | S168: =SUM(S166*S167) -> 41118.87573 | T168: =SUM(T166*T167) -> 48035.49254 | U168: =SUM(U166*U167) -> 18810.95998 | V168: =SUM(V166*V167) -> 78150.54815 | W168: =SUM(W166*W167) -> 19763.26483 | X168: =SUM(X166*X167) -> 21995.30425 | Y168: =SUM(Y166*Y167) -> 63152.35361 | Z168: =SUM(Z166*Z167) -> 30307.59253 | AA168: =SUM(AA166*AA167) -> 31065.28234 | AB168: =SUM(AB166*AB167) -> 190952.3701 | AC168: =SUM(AC166*AC167) -> 32637.96226 | AD168: =SUM(AD166*AD167) -> 185733.1999 | AE168: =SUM(AE166*AE167) -> 37216.93047 | AF168: =SUM(AF166*AF167) -> 36029.82092 | AG168: =SUM(AG166*AG167) -> 36930.56644 | AH168: =SUM(AH166*AH167) -> 120024.3409 | AI168: =SUM(AI166*AI167) -> 81790.49813 | AJ168: =SUM(AJ166*AJ167) -> 39770.18077 | AK168: =SUM(AK166*AK167) -> 214619.2215 | AL168: =SUM(AL166*AL167) -> 44239.23505 | AM168: =SUM(AM166*AM167) -> 42828.13483 | AN168: =SUM(AN166*AN167) -> 124788.5429 | AO168: =SUM(AO166*AO167) -> 46098.18762 | AP168: =SUM(AP166*AP167) -> 47250.64231 | AQ168: =SUM(AQ166*AQ167) -> 48431.90837 | AR168: =SUM(AR166*AR167) -> 49642.70608 | AS168: =SUM(AS166*AS167) -> 108834.0626 | AT168: =SUM(AT166*AT167) -> 415002.9308 | AU168: =SUM(AU166*AU167) -> 53459.76478 | AV168: =SUM(AV166*AV167) -> 54796.2589 | AW168: =SUM(AW166*AW167) -> 56166.16537 | AX168: =SUM(AX166*AX167) -> 1103311.862 | AY168: =SUM(AY166*AY167) -> 59009.57749 | AZ168: =SUM(AZ166*AZ167) -> 105881.6821 | BA168: =SUM(BA166*BA167) -> 61996.93735 | BB168: =SUM(BB166*BB167) -> 63546.86079 | BC168: =SUM(BC166*BC167) -> 229686.981 | BD168: =SUM(BD166*BD167) -> 66763.92062 | BE168: =SUM(BE166*BE167) -> 68433.01863 | BF168: =SUM(BF166*BF167) -> 209422.196 | BG168: =SUM(BG166*BG167) -> 76021.97066 | BH168: =SUM(BH166*BH167) -> 153396.5295 | BI168: =SUM(BI166*BI167) -> 0 | BJ168: =SUM(BJ166*BJ167) -> 0 | BK168: =SUM(BK166*BK167) -> 0 | BL168: =SUM(BL166*BL167) -> 0 | BM168: =SUM(BM166*BM167) -> 0 | BN168: =SUM(BN166*BN167) -> 0 | BO168: =SUM(BO166*BO167) -> 0 | BP168: =SUM(BP166*BP167) -> 0 | BQ168: =SUM(I168:BP168) -> 4649920.283
C169: Days since start of concession | D169: 365 | I169: =SUM($D$169*I26) -> 365 | J169: =SUM($D$169*J26) -> 730 | K169: =SUM($D$169*K26) -> 1095 | L169: 1460 | M169: 1825 | N169: 2190 | O169: 2555 | P169: 2920 | Q169: 3285 | R169: 3650 | S169: 4015 | T169: 4380 | U169: 4745 | V169: 5110 | W169: 5475 | X169: 5840 | Y169: 6205 | Z169: 6570 | AA169: 6935 | AB169: 7300 | AC169: 7665 | AD169: 8030 | AE169: 8395 | AF169: 8760 | AG169: 9125 | AH169: 9490 | AI169: 9855 | AJ169: 10220 | AK169: 10585 | AL169: 10950 | AM169: 11315 | AN169: 11680 | AO169: 12045 | AP169: 12410 | AQ169: 12775 | AR169: 13140 | AS169: 13505 | AT169: 13870 | AU169: 14235 | AV169: 14600 | AW169: 14965 | AX169: 15330 | AY169: 15695 | AZ169: 16060 | BA169: 16425 | BB169: 16790 | BC169: 17155 | BD169: 17520 | BE169: 17885 | BF169: 18250 | BG169: 18615 | BH169: 18980 | BI169: 19345 | BJ169: 19710 | BK169: 20075 | BL169: 20440 | BM169: 20805 | BN169: 21170 | BO169: 21535 | BP169: 21900
C170: Discount index | D170: ='Project Input'!$D$24 -> 0.060875 | I170: =(1+$D$170)^(I169/$D$169) -> 1.060875 | J170: =(1+$D$170)^(J169/$D$169) -> 1.125455766 | K170: =(1+$D$170)^(K169/$D$169) -> 1.193967885 | L170: 1.26665068 | M170: 1.343758041 | N170: 1.425559311 | O170: 1.512340234 | P170: 1.604403946 | Q170: 1.702072036 | R170: 1.805685672 | S170: 1.915606787 | T170: 2.03221935 | U170: 2.155930703 | V170: 2.287172984 | W170: 2.42640464 | X170: 2.574112022 | Y170: 2.730811092 | Z170: 2.897049217 | AA170: 3.073407088 | AB170: 3.260500744 | AC170: 3.458983727 | AD170: 3.669549362 | AE170: 3.892933179 | AF170: 4.129915486 | AG170: 4.381324091 | AH170: 4.648037196 | AI170: 4.93098646 | AJ170: 5.231160261 | AK170: 5.549607141 | AL170: 5.887439476 | AM170: 6.245837354 | AN170: 6.626052703 | AO170: 7.029413662 | AP170: 7.457329218 | AQ170: 7.911294134 | AR170: 8.392894165 | AS170: 8.903811597 | AT170: 9.445831128 | AU170: 10.0208461 | AV170: 10.6308651 | AW170: 11.27801902 | AX170: 11.96456843 | AY170: 12.69291153 | AZ170: 13.46559252 | BA170: 14.28531046 | BB170: 15.15492874 | BC170: 16.07748502 | BD170: 17.05620192 | BE170: 18.09449822 | BF170: 19.19600079 | BG170: 20.36455734 | BH170: 21.60424977 | BI170: 22.91940848 | BJ170: 24.31462747 | BK170: 25.79478041 | BL170: 27.36503767 | BM170: 29.03088434 | BN170: 30.79813942 | BO170: 32.67297616 | BP170: 34.66194359
A171: 7 Life Cycle Replacement Costs | G171: Annual NPV of Whole Life Costs | H171: =SUM(I171:BP171) -> 689517.9676 | I171: =I168/I170 -> 0 | J171: 0 | K171: 0 | L171: 0 | M171: 0 | N171: 0 | O171: 3949.125315 | P171: 12891.47422 | Q171: 2219.088794 | R171: 1314.093411 | S171: 21465.19631 | T171: 23636.96249 | U171: 8725.2155 | V171: 34169.05878 | W171: 8145.082032 | X171: 8544.812372 | Y171: 23125.85949 | Z171: 10461.53871 | AA171: 10107.76687 | AB171: 58565.35086 | AC171: 9435.708529 | AD171: 50614.71629 | AE171: 9560.125685 | AF171: 8724.106107 | AG171: 8429.088026 | AH171: 25822.58615 | AI171: 16587.04578 | AJ171: 7602.554461 | AK171: 38672.86748 | AL171: 7514.172371 | AM171: 6857.06854 | AN171: 18833.01393 | AO171: =AO168/AO170 -> 6557.899399 | AP171: 6336.134685 | AQ171: 6121.869261 | AR171: 5914.849527 | AS171: 12223.31149 | AT171: 43935.03601 | AU171: 5334.855386 | AV171: 5154.449648 | AW171: 4980.144588 | AX171: 92214.93188 | AY171: 4649.018262 | AZ171: 7863.128338 | BA171: 4339.908294 | BB171: 4193.14811 | BC171: 14286.25066 | BD171: 3914.348629 | BE171: 3781.979352 | BF171: 10909.67844 | BG171: 3733.05294 | BH171: 7100.294209 | BI171: 0 | BJ171: 0 | BK171: 0 | BL171: 0 | BM171: 0 | BN171: 0 | BO171: 0 | BP171: 0 | BQ171: =SUM(I171:BP171) -> 689517.9676
G172: Cumulative NPV of Whole Life Costs | I172: =SUM(I171) -> 0 | J172: =SUM(I172+J171) -> 0 | K172: =SUM(J172+K171) -> 0 | L172: =SUM(K172+L171) -> 0 | M172: =SUM(L172+M171) -> 0 | N172: =SUM(M172+N171) -> 0 | O172: =SUM(N172+O171) -> 3949.125315 | P172: =SUM(O172+P171) -> 16840.59954 | Q172: =SUM(P172+Q171) -> 19059.68833 | R172: =SUM(Q172+R171) -> 20373.78174 | S172: =SUM(R172+S171) -> 41838.97805 | T172: =SUM(S172+T171) -> 65475.94054 | U172: =SUM(T172+U171) -> 74201.15604 | V172: =SUM(U172+V171) -> 108370.2148 | W172: =SUM(V172+W171) -> 116515.2969 | X172: =SUM(W172+X171) -> 125060.1092 | Y172: =SUM(X172+Y171) -> 148185.9687 | Z172: =SUM(Y172+Z171) -> 158647.5074 | AA172: =SUM(Z172+AA171) -> 168755.2743 | AB172: =SUM(AA172+AB171) -> 227320.6252 | AC172: =SUM(AB172+AC171) -> 236756.3337 | AD172: =SUM(AC172+AD171) -> 287371.05 | AE172: =SUM(AD172+AE171) -> 296931.1757 | AF172: =SUM(AE172+AF171) -> 305655.2818 | AG172: =SUM(AF172+AG171) -> 314084.3698 | AH172: =SUM(AG172+AH171) -> 339906.956 | AI172: =SUM(AH172+AI171) -> 356494.0017 | AJ172: =SUM(AI172+AJ171) -> 364096.5562 | AK172: =SUM(AJ172+AK171) -> 402769.4237 | AL172: =SUM(AK172+AL171) -> 410283.596 | AM172: =SUM(AL172+AM171) -> 417140.6646 | AN172: =SUM(AM172+AN171) -> 435973.6785 | AO172: =SUM(AN172+AO171) -> 442531.5779 | AP172: =SUM(AO172+AP171) -> 448867.7126 | AQ172: =SUM(AP172+AQ171) -> 454989.5819 | AR172: =SUM(AQ172+AR171) -> 460904.4314 | AS172: =SUM(AR172+AS171) -> 473127.7429 | AT172: =SUM(AS172+AT171) -> 517062.7789 | AU172: =SUM(AT172+AU171) -> 522397.6343 | AV172: =SUM(AU172+AV171) -> 527552.0839 | AW172: =SUM(AV172+AW171) -> 532532.2285 | AX172: =SUM(AW172+AX171) -> 624747.1604 | AY172: =SUM(AX172+AY171) -> 629396.1786 | AZ172: =SUM(AY172+AZ171) -> 637259.307 | BA172: =SUM(AZ172+BA171) -> 641599.2153 | BB172: =SUM(BA172+BB171) -> 645792.3634 | BC172: =SUM(BB172+BC171) -> 660078.614 | BD172: =SUM(BC172+BD171) -> 663992.9627 | BE172: =SUM(BD172+BE171) -> 667774.942 | BF172: =SUM(BE172+BF171) -> 678684.6205 | BG172: =SUM(BF172+BG171) -> 682417.6734 | BH172: =SUM(BG172+BH171) -> 689517.9676 | BI172: =SUM(BH172+BI171) -> 689517.9676 | BJ172: =SUM(BI172+BJ171) -> 689517.9676 | BK172: =SUM(BJ172+BK171) -> 689517.9676 | BL172: =SUM(BK172+BL171) -> 689517.9676 | BM172: =SUM(BL172+BM171) -> 689517.9676 | BN172: =SUM(BM172+BN171) -> 689517.9676 | BO172: =SUM(BN172+BO171) -> 689517.9676
A173: 8 | B173: Disposal Costs | I173: =I27 -> 2019 | J173: =J27 -> 2020 | K173: 2021 | L173: 2022 | M173: 2023 | N173: 2024 | O173: 2025 | P173: 2026 | Q173: 2027 | R173: 2028 | S173: 2029 | T173: 2030 | U173: 2031 | V173: 2032 | W173: 2033 | X173: 2034 | Y173: 2035 | Z173: 2036 | AA173: 2037 | AB173: 2038 | AC173: 2039 | AD173: 2040 | AE173: 2041 | AF173: 2042 | AG173: 2043 | AH173: 2044 | AI173: 2045 | AJ173: 2046 | AK173: 2047 | AL173: 2048 | AM173: 2049 | AN173: 2050 | AO173: 2051 | AP173: 2052 | AQ173: 2053 | AR173: 2054 | AS173: 2055 | AT173: 2056 | AU173: 2057 | AV173: 2058 | AW173: 2059 | AX173: 2060 | AY173: 2061 | AZ173: 2062 | BA173: 2063 | BB173: 2064 | BC173: 2065 | BD173: 2066 | BE173: 2067 | BF173: 2068 | BG173: 2069 | BH173: 2070 | BI173: 2071 | BJ173: 2072 | BK173: 2073 | BL173: 2074 | BM173: 2075 | BN173: 2076 | BO173: 2077 | BP173: 2078 | BT173: =NPV('Project Input'!$D$22,'Option A'!J173:BP173)+I173 -> 52638.57152
A174: 8.01 | B174: Decommission | D174: Insert Data Source | H174: 0 | I174: 0 | J174: 0 | K174: 0 | L174: 0 | M174: 0 | N174: 0 | O174: 0 | P174: 0 | Q174: 0 | R174: 0 | S174: 0 | T174: 0 | U174: 0 | V174: 0 | W174: 0 | X174: 0 | Y174: 0 | Z174: 0 | AA174: 0 | AB174: 0 | AC174: 0 | AD174: 0 | AE174: 0 | AF174: 0 | AG174: 0 | AH174: 0 | AI174: 0 | AJ174: 0 | AK174: 0 | AL174: 0 | AM174: 0 | AN174: 0 | AO174: 0 | AP174: 0 | AQ174: 0 | AR174: 0 | AS174: 0 | AT174: 0 | AU174: 0 | AV174: 0 | AW174: 0 | AX174: 0 | AY174: 0 | AZ174: 0 | BA174: 0 | BB174: 0 | BC174: 0 | BD174: 0 | BE174: 0 | BF174: 0 | BG174: 0 | BH174: 0 | BI174: 0 | BJ174: 0 | BK174: 0 | BL174: 0 | BM174: 0 | BN174: 0 | BO174: 0 | BP174: 0 | BQ174: =SUM(I174:BP174) -> 0
A175: 8.02 | B175: Demolition | D175: Insert Data Source | H175: 0 | I175: 0 | J175: 0 | K175: 0 | L175: 0 | M175: 0 | N175: 0 | O175: 0 | P175: 0 | Q175: 0 | R175: 0 | S175: 0 | T175: 0 | U175: 0 | V175: 0 | W175: 0 | X175: 0 | Y175: 0 | Z175: 0 | AA175: 0 | AB175: 0 | AC175: 0 | AD175: 0 | AE175: 0 | AF175: 0 | AG175: 0 | AH175: 0 | AI175: 0 | AJ175: 0 | AK175: 0 | AL175: 0 | AM175: 0 | AN175: 0 | AO175: 0 | AP175: 0 | AQ175: 0 | AR175: 0 | AS175: 0 | AT175: 0 | AU175: 0 | AV175: 0 | AW175: 0 | AX175: 0 | AY175: 0 | AZ175: 0 | BA175: 0 | BB175: 0 | BC175: 0 | BD175: 0 | BE175: 0 | BF175: 0 | BG175: 0 | BH175: 0 | BI175: 0 | BJ175: 0 | BK175: 0 | BL175: 0 | BM175: 0 | BN175: 0 | BO175: 0 | BP175: 0 | BQ175: =SUM(I175:BP175) -> 0
A176: 8.03 | B176: Reinstatement to meet contract | D176: Insert Data Source | H176: 0 | I176: 0 | J176: 0 | K176: 0 | L176: 0 | M176: 0 | N176: 0 | O176: 0 | P176: 0 | Q176: 0 | R176: 0 | S176: 0 | T176: 0 | U176: 0 | V176: 0 | W176: 0 | X176: 0 | Y176: 0 | Z176: 0 | AA176: 0 | AB176: 0 | AC176: 0 | AD176: 0 | AE176: 0 | AF176: 0 | AG176: 0 | AH176: 0 | AI176: 0 | AJ176: 0 | AK176: 0 | AL176: 0 | AM176: 0 | AN176: 0 | AO176: 0 | AP176: 0 | AQ176: 0 | AR176: 0 | AS176: 0 | AT176: 0 | AU176: 0 | AV176: 0 | AW176: 0 | AX176: 0 | AY176: 0 | AZ176: 0 | BA176: 0 | BB176: 0 | BC176: 0 | BD176: 0 | BE176: 0 | BF176: 0 | BG176: 0 | BH176: 0 | BI176: 0 | BJ176: 0 | BK176: 0 | BL176: 0 | BM176: 0 | BN176: 0 | BO176: 0 | BP176: 0 | BQ176: 0
A177: 8.04 | B177: Residual Value | D177: Insert Data Source | H177: 0 | I177: 0 | J177: 0 | K177: 0 | L177: 0 | M177: 0 | N177: 0 | O177: 0 | P177: 0 | Q177: 0 | R177: 0 | S177: 0 | T177: 0 | U177: 0 | V177: 0 | W177: 0 | X177: 0 | Y177: 0 | Z177: 0 | AA177: 0 | AB177: 0 | AC177: 0 | AD177: 0 | AE177: 0 | AF177: 0 | AG177: 0 | AH177: 0 | AI177: 0 | AJ177: 0 | AK177: 0 | AL177: 0 | AM177: 0 | AN177: 0 | AO177: 0 | AP177: 0 | AQ177: 0 | AR177: 0 | AS177: 0 | AT177: 0 | AU177: 0 | AV177: 0 | AW177: 0 | AX177: 0 | AY177: 0 | AZ177: 0 | BA177: 0 | BB177: 0 | BC177: 0 | BD177: 0 | BE177: 0 | BF177: 0 | BG177: 0 | BH177: 0 | BI177: 0 | BJ177: 0 | BK177: 0 | BL177: 0 | BM177: 0 | BN177: 0 | BO177: 0 | BP177: 0 | BQ177: 0
A178: 8.05 | B178: Residual Liability | D178: Insert Data Source | H178: 0 | I178: 0 | J178: 0 | K178: 0 | L178: 0 | M178: 0 | N178: 0 | O178: 0 | P178: 0 | Q178: 0 | R178: 0 | S178: 0 | T178: 0 | U178: 0 | V178: 0 | W178: 0 | X178: 0 | Y178: 0 | Z178: 0 | AA178: 0 | AB178: 0 | AC178: 0 | AD178: 0 | AE178: 0 | AF178: 0 | AG178: 0 | AH178: 0 | AI178: 0 | AJ178: 0 | AK178: 0 | AL178: 0 | AM178: 0 | AN178: 0 | AO178: 0 | AP178: 0 | AQ178: 0 | AR178: 0 | AS178: 0 | AT178: 0 | AU178: 0 | AV178: 0 | AW178: 0 | AX178: 0 | AY178: 0 | AZ178: 0 | BA178: 0 | BB178: 0 | BC178: 0 | BD178: 0 | BE178: 0 | BF178: 0 | BG178: 0 | BH178: 0 | BI178: 0 | BJ178: 0 | BK178: 0 | BL178: 0 | BM178: 0 | BN178: 0 | BO178: 0 | BP178: 0 | BQ178: 0
A179: 8.06 | B179: Disposal Inspections | D179: Insert Data Source | H179: 0 | I179: 0 | J179: 0 | K179: 0 | L179: 0 | M179: 0 | N179: 0 | O179: 0 | P179: 0 | Q179: 0 | R179: 0 | S179: 0 | T179: 0 | U179: 0 | V179: 0 | W179: 0 | X179: 0 | Y179: 0 | Z179: 0 | AA179: 0 | AB179: 0 | AC179: 0 | AD179: 0 | AE179: 0 | AF179: 0 | AG179: 0 | AH179: 0 | AI179: 0 | AJ179: 0 | AK179: 0 | AL179: 0 | AM179: 0 | AN179: 0 | AO179: 0 | AP179: 0 | AQ179: 0 | AR179: 0 | AS179: 0 | AT179: 0 | AU179: 0 | AV179: 0 | AW179: 0 | AX179: 0 | AY179: 0 | AZ179: 0 | BA179: 0 | BB179: 0 | BC179: 0 | BD179: 0 | BE179: 0 | BF179: 0 | BG179: 0 | BH179: 0 | BI179: 0 | BJ179: 0 | BK179: 0 | BL179: 0 | BM179: 0 | BN179: 0 | BO179: 0 | BP179: 0 | BQ179: 0
A180: 8.07 | B180: Lease Breaks | D180: Insert Data Source | H180: 0 | I180: 0 | J180: 0 | L180: 0 | M180: 0 | N180: 0 | O180: 0 | P180: 0 | Q180: 0 | R180: 0 | S180: 0 | T180: 0 | U180: 0 | V180: 0 | W180: 0 | X180: 0 | Y180: 0 | Z180: 0 | AA180: 0 | AB180: 0 | AC180: 0 | AD180: 0 | AE180: 0 | AF180: 0 | AG180: 0 | AH180: 0 | AI180: 0 | AJ180: 0 | AK180: 0 | AL180: 0 | AM180: 0 | AN180: 0 | AO180: 0 | AP180: 0 | AQ180: 0 | AR180: 0 | AS180: 0 | AT180: 0 | AU180: 0 | AV180: 0 | AW180: 0 | AX180: 0 | AY180: 0 | AZ180: 0 | BA180: 0 | BB180: 0 | BC180: 0 | BD180: 0 | BE180: 0 | BF180: 0 | BG180: 0 | BH180: 0 | BI180: 0 | BJ180: 0 | BK180: 0 | BL180: 0 | BM180: 0 | BN180: 0 | BO180: 0 | BP180: 0 | BQ180: 0
A181: 8.08 | B181: Description of item & Source of Data | H181: 0 | I181: 0 | J181: 0 | K181: 0 | L181: 0 | M181: 0 | N181: 0 | O181: 0 | P181: 0 | Q181: 0 | R181: 0 | S181: 0 | T181: 0 | U181: 0 | V181: 0 | W181: 0 | X181: 0 | Y181: 0 | Z181: 0 | AA181: 0 | AB181: 0 | AC181: 0 | AD181: 0 | AE181: 0 | AF181: 0 | AG181: 0 | AH181: 0 | AI181: 0 | AJ181: 0 | AK181: 0 | AL181: 0 | AM181: 0 | AN181: 0 | AO181: 0 | AP181: 0 | AQ181: 0 | AR181: 0 | AS181: 0 | AT181: 0 | AU181: 0 | AV181: 0 | AW181: 0 | AX181: 0 | AY181: 0 | AZ181: 0 | BA181: 0 | BB181: 0 | BC181: 0 | BD181: 0 | BE181: 0 | BF181: 0 | BG181: 0 | BH181: 0 | BI181: 0 | BJ181: 0 | BK181: 0 | BL181: 0 | BM181: 0 | BN181: 0 | BO181: 0 | BP181: 0 | BQ181: 0
A182: 8.09 | B182: Description of item & Source of Data | H182: 0 | I182: 0 | J182: 0 | K182: 0 | L182: 0 | M182: 0 | N182: 0 | O182: 0 | P182: 0 | Q182: 0 | R182: 0 | S182: 0 | T182: 0 | U182: 0 | V182: 0 | W182: 0 | X182: 0 | Y182: 0 | Z182: 0 | AA182: 0 | AB182: 0 | AC182: 0 | AD182: 0 | AE182: 0 | AF182: 0 | AG182: 0 | AH182: 0 | AI182: 0 | AJ182: 0 | AK182: 0 | AL182: 0 | AM182: 0 | AN182: 0 | AO182: 0 | AP182: 0 | AQ182: 0 | AR182: 0 | AS182: 0 | AT182: 0 | AU182: 0 | AV182: 0 | AW182: 0 | AX182: 0 | AY182: 0 | AZ182: 0 | BA182: 0 | BB182: 0 | BC182: 0 | BD182: 0 | BE182: 0 | BF182: 0 | BG182: 0 | BH182: 0 | BI182: 0 | BJ182: 0 | BK182: 0 | BL182: 0 | BM182: 0 | BN182: 0 | BO182: 0 | BP182: 0 | BQ182: 0
A183: 8.1 | B183: Description of item & Source of Data | H183: 0 | I183: 0 | J183: 0 | K183: 0 | L183: 0 | M183: 0 | N183: 0 | O183: 0 | P183: 0 | Q183: 0 | R183: 0 | S183: 0 | T183: 0 | U183: 0 | V183: 0 | W183: 0 | X183: 0 | Y183: 0 | Z183: 0 | AA183: 0 | AB183: 0 | AC183: 0 | AD183: 0 | AE183: 0 | AF183: 0 | AG183: 0 | AH183: 0 | AI183: 0 | AJ183: 0 | AK183: 0 | AL183: 0 | AM183: 0 | AN183: 0 | AO183: 0 | AP183: 0 | AQ183: 0 | AR183: 0 | AS183: 0 | AT183: 0 | AU183: 0 | AV183: 0 | AW183: 0 | AX183: 0 | AY183: 0 | AZ183: 0 | BA183: 0 | BB183: 0 | BC183: 0 | BD183: 0 | BE183: 0 | BF183: 0 | BG183: 0 | BH183: 0 | BI183: 0 | BJ183: 0 | BK183: 0 | BL183: 0 | BM183: 0 | BN183: 0 | BO183: 0 | BP183: 0 | BQ183: 0
A184: 8.11 | B184: Description of item & Source of Data | H184: 0 | I184: 0 | J184: 0 | K184: 0 | L184: 0 | M184: 0 | N184: 0 | O184: 0 | P184: 0 | Q184: 0 | R184: 0 | S184: 0 | T184: 0 | U184: 0 | V184: 0 | W184: 0 | X184: 0 | Y184: 0 | Z184: 0 | AA184: 0 | AB184: 0 | AC184: 0 | AD184: 0 | AE184: 0 | AF184: 0 | AG184: 0 | AH184: 0 | AI184: 0 | AJ184: 0 | AK184: 0 | AL184: 0 | AM184: 0 | AN184: 0 | AO184: 0 | AP184: 0 | AQ184: 0 | AR184: 0 | AS184: 0 | AT184: 0 | AU184: 0 | AV184: 0 | AW184: 0 | AX184: 0 | AY184: 0 | AZ184: 0 | BA184: 0 | BB184: 0 | BC184: 0 | BD184: 0 | BE184: 0 | BF184: 0 | BG184: 0 | BH184: 0 | BI184: 0 | BJ184: 0 | BK184: 0 | BL184: 0 | BM184: 0 | BN184: 0 | BO184: 0 | BP184: 0 | BQ184: 0
A185: 8.12 | B185: Description of item & Source of Data | H185: 0 | I185: 0 | J185: 0 | K185: 0 | L185: 0 | M185: 0 | N185: 0 | O185: 0 | P185: 0 | Q185: 0 | R185: 0 | S185: 0 | T185: 0 | U185: 0 | V185: 0 | W185: 0 | X185: 0 | Y185: 0 | Z185: 0 | AA185: 0 | AB185: 0 | AC185: 0 | AD185: 0 | AE185: 0 | AF185: 0 | AG185: 0 | AH185: 0 | AI185: 0 | AJ185: 0 | AK185: 0 | AL185: 0 | AM185: 0 | AN185: 0 | AO185: 0 | AP185: 0 | AQ185: 0 | AR185: 0 | AS185: 0 | AT185: 0 | AU185: 0 | AV185: 0 | AW185: 0 | AX185: 0 | AY185: 0 | AZ185: 0 | BA185: 0 | BB185: 0 | BC185: 0 | BD185: 0 | BE185: 0 | BF185: 0 | BG185: 0 | BH185: 0 | BI185: 0 | BJ185: 0 | BK185: 0 | BL185: 0 | BM185: 0 | BN185: 0 | BO185: 0 | BP185: 0 | BQ185: 0
G186: TOTAL CURRENT DAY COSTS | H186: =SUM(H174:H185) -> 0 | I186: =SUM(I174:I185) -> 0 | J186: 0 | K186: 0 | L186: 0 | M186: 0 | N186: 0 | O186: 0 | P186: 0 | Q186: 0 | R186: 0 | S186: 0 | T186: 0 | U186: 0 | V186: 0 | W186: 0 | X186: 0 | Y186: 0 | Z186: 0 | AA186: 0 | AB186: 0 | AC186: 0 | AD186: 0 | AE186: 0 | AF186: 0 | AG186: 0 | AH186: 0 | AI186: 0 | AJ186: 0 | AK186: 0 | AL186: 0 | AM186: 0 | AN186: 0 | AO186: 0 | AP186: 0 | AQ186: 0 | AR186: 0 | AS186: 0 | AT186: 0 | AU186: 0 | AV186: 0 | AW186: 0 | AX186: 0 | AY186: 0 | AZ186: 0 | BA186: 0 | BB186: 0 | BC186: 0 | BD186: 0 | BE186: 0 | BF186: 0 | BG186: 0 | BH186: 0 | BI186: 0 | BJ186: 0 | BK186: 0 | BL186: 0 | BM186: 0 | BN186: 0 | BO186: 0 | BP186: 0 | BQ186: =SUM(BQ173:BQ185) -> 0
B187: Indexation | C187: LCC | D187: ='Project Input'!D19 -> 0.025 | I187: 1 | J187: =SUM(I187*$D$187)+I187 -> 1.025 | K187: =SUM(J187*$D$187)+J187 -> 1.050625 | L187: 1.076890625 | M187: 1.103812891 | N187: 1.131408213 | O187: 1.159693418 | P187: 1.188685754 | Q187: 1.218402898 | R187: 1.24886297 | S187: 1.280084544 | T187: 1.312086658 | U187: 1.344888824 | V187: 1.378511045 | W187: 1.412973821 | X187: 1.448298166 | Y187: 1.484505621 | Z187: 1.521618261 | AA187: 1.559658718 | AB187: 1.598650186 | AC187: 1.63861644 | AD187: 1.679581851 | AE187: 1.721571398 | AF187: 1.764610683 | AG187: 1.80872595 | AH187: 1.853944098 | AI187: 1.900292701 | AJ187: 1.947800018 | AK187: 1.996495019 | AL187: 2.046407394 | AM187: 2.097567579 | AN187: 2.150006769 | AO187: 2.203756938 | AP187: 2.258850861 | AQ187: 2.315322133 | AR187: 2.373205186 | AS187: 2.432535316 | AT187: 2.493348699 | AU187: 2.555682416 | AV187: 2.619574476 | AW187: 2.685063838 | AX187: 2.752190434 | AY187: 2.820995195 | AZ187: 2.891520075 | BA187: 2.963808077 | BB187: 3.037903279 | BC187: 3.113850861 | BD187: 3.191697132 | BE187: 3.271489561 | BF187: 3.3532768 | BG187: 3.43710872 | BH187: 3.523036438 | BI187: 3.611112349 | BJ187: 3.701390157 | BK187: 3.793924911 | BL187: 3.888773034 | BM187: 3.98599236 | BN187: 4.085642169 | BO187: 4.187783223 | BP187: 4.292477804
G188: Annual Nominal Whole Life Costs | H188: =SUM(I188:BP188) -> 0 | I188: =SUM(I186*I187) -> 0 | J188: =SUM(J186*J187) -> 0 | K188: =SUM(K186*K187) -> 0 | L188: =SUM(L186*L187) -> 0 | M188: =SUM(M186*M187) -> 0 | N188: =SUM(N186*N187) -> 0 | O188: =SUM(O186*O187) -> 0 | P188: =SUM(P186*P187) -> 0 | Q188: =SUM(Q186*Q187) -> 0 | R188: =SUM(R186*R187) -> 0 | S188: =SUM(S186*S187) -> 0 | T188: =SUM(T186*T187) -> 0 | U188: =SUM(U186*U187) -> 0 | V188: =SUM(V186*V187) -> 0 | W188: =SUM(W186*W187) -> 0 | X188: =SUM(X186*X187) -> 0 | Y188: =SUM(Y186*Y187) -> 0 | Z188: =SUM(Z186*Z187) -> 0 | AA188: =SUM(AA186*AA187) -> 0 | AB188: =SUM(AB186*AB187) -> 0 | AC188: =SUM(AC186*AC187) -> 0 | AD188: =SUM(AD186*AD187) -> 0 | AE188: =SUM(AE186*AE187) -> 0 | AF188: =SUM(AF186*AF187) -> 0 | AG188: =SUM(AG186*AG187) -> 0 | AH188: =SUM(AH186*AH187) -> 0 | AI188: =SUM(AI186*AI187) -> 0 | AJ188: =SUM(AJ186*AJ187) -> 0 | AK188: =SUM(AK186*AK187) -> 0 | AL188: =SUM(AL186*AL187) -> 0 | AM188: =SUM(AM186*AM187) -> 0 | AN188: =SUM(AN186*AN187) -> 0 | AO188: =SUM(AO186*AO187) -> 0 | AP188: =SUM(AP186*AP187) -> 0 | AQ188: =SUM(AQ186*AQ187) -> 0 | AR188: =SUM(AR186*AR187) -> 0 | AS188: =SUM(AS186*AS187) -> 0 | AT188: =SUM(AT186*AT187) -> 0 | AU188: =SUM(AU186*AU187) -> 0 | AV188: =SUM(AV186*AV187) -> 0 | AW188: =SUM(AW186*AW187) -> 0 | AX188: =SUM(AX186*AX187) -> 0 | AY188: =SUM(AY186*AY187) -> 0 | AZ188: =SUM(AZ186*AZ187) -> 0 | BA188: =SUM(BA186*BA187) -> 0 | BB188: =SUM(BB186*BB187) -> 0 | BC188: =SUM(BC186*BC187) -> 0 | BD188: =SUM(BD186*BD187) -> 0 | BE188: =SUM(BE186*BE187) -> 0 | BF188: =SUM(BF186*BF187) -> 0 | BG188: =SUM(BG186*BG187) -> 0 | BH188: =SUM(BH186*BH187) -> 0 | BI188: =SUM(BI186*BI187) -> 0 | BJ188: =SUM(BJ186*BJ187) -> 0 | BK188: =SUM(BK186*BK187) -> 0 | BL188: =SUM(BL186*BL187) -> 0 | BM188: =SUM(BM186*BM187) -> 0 | BN188: =SUM(BN186*BN187) -> 0 | BO188: =SUM(BO186*BO187) -> 0 | BP188: =SUM(BP186*BP187) -> 0 | BQ188: =SUM(I188:BP188) -> 0
C189: Days since start of concession | D189: 365 | I189: =SUM($D$189*I26) -> 365 | J189: =SUM($D$189*J26) -> 730 | K189: =SUM($D$189*K26) -> 1095 | L189: 1460 | M189: 1825 | N189: 2190 | O189: 2555 | P189: 2920 | Q189: 3285 | R189: 3650 | S189: 4015 | T189: 4380 | U189: 4745 | V189: 5110 | W189: 5475 | X189: 5840 | Y189: 6205 | Z189: 6570 | AA189: 6935 | AB189: 7300 | AC189: 7665 | AD189: 8030 | AE189: 8395 | AF189: 8760 | AG189: 9125 | AH189: 9490 | AI189: 9855 | AJ189: 10220 | AK189: 10585 | AL189: 10950 | AM189: 11315 | AN189: 11680 | AO189: 12045 | AP189: 12410 | AQ189: 12775 | AR189: 13140 | AS189: 13505 | AT189: 13870 | AU189: 14235 | AV189: 14600 | AW189: 14965 | AX189: 15330 | AY189: 15695 | AZ189: 16060 | BA189: 16425 | BB189: 16790 | BC189: 17155 | BD189: 17520 | BE189: 17885 | BF189: 18250 | BG189: 18615 | BH189: 18980 | BI189: 19345 | BJ189: 19710 | BK189: 20075 | BL189: 20440 | BM189: 20805 | BN189: 21170 | BO189: 21535 | BP189: 21900
C190: Discount index | D190: ='Project Input'!$D$24 -> 0.060875 | I190: =(1+$D$190)^(I189/$D$189) -> 1.060875 | J190: =(1+$D$190)^(J189/$D$189) -> 1.125455766 | K190: 1.193967885 | L190: 1.26665068 | M190: 1.343758041 | N190: 1.425559311 | O190: 1.512340234 | P190: 1.604403946 | Q190: 1.702072036 | R190: 1.805685672 | S190: 1.915606787 | T190: 2.03221935 | U190: 2.155930703 | V190: 2.287172984 | W190: 2.42640464 | X190: 2.574112022 | Y190: 2.730811092 | Z190: 2.897049217 | AA190: 3.073407088 | AB190: 3.260500744 | AC190: 3.458983727 | AD190: 3.669549362 | AE190: 3.892933179 | AF190: 4.129915486 | AG190: 4.381324091 | AH190: 4.648037196 | AI190: 4.93098646 | AJ190: 5.231160261 | AK190: 5.549607141 | AL190: 5.887439476 | AM190: 6.245837354 | AN190: 6.626052703 | AO190: 7.029413662 | AP190: 7.457329218 | AQ190: 7.911294134 | AR190: 8.392894165 | AS190: 8.903811597 | AT190: 9.445831128 | AU190: 10.0208461 | AV190: 10.6308651 | AW190: 11.27801902 | AX190: 11.96456843 | AY190: 12.69291153 | AZ190: 13.46559252 | BA190: 14.28531046 | BB190: 15.15492874 | BC190: 16.07748502 | BD190: 17.05620192 | BE190: 18.09449822 | BF190: 19.19600079 | BG190: 20.36455734 | BH190: 21.60424977 | BI190: 22.91940848 | BJ190: 24.31462747 | BK190: 25.79478041 | BL190: 27.36503767 | BM190: 29.03088434 | BN190: 30.79813942 | BO190: 32.67297616 | BP190: 34.66194359
A191: 8 Disposal Costs | G191: Annual NPV of Whole Life Costs | H191: =SUM(I191:BP191) -> 0 | I191: =I188/I190 -> 0 | J191: 0 | K191: 0 | L191: 0 | M191: 0 | N191: 0 | O191: 0 | P191: 0 | Q191: 0 | R191: 0 | S191: 0 | T191: 0 | U191: 0 | V191: 0 | W191: 0 | X191: 0 | Y191: 0 | Z191: 0 | AA191: 0 | AB191: 0 | AC191: 0 | AD191: 0 | AE191: 0 | AF191: 0 | AG191: 0 | AH191: 0 | AI191: 0 | AJ191: 0 | AK191: 0 | AL191: 0 | AM191: 0 | AN191: 0 | AO191: =AO188/AO190 -> 0 | AP191: 0 | AQ191: 0 | AR191: 0 | AS191: 0 | AT191: 0 | AU191: 0 | AV191: 0 | AW191: 0 | AX191: 0 | AY191: 0 | AZ191: 0 | BA191: 0 | BB191: 0 | BC191: 0 | BD191: 0 | BE191: 0 | BF191: 0 | BG191: 0 | BH191: 0 | BI191: 0 | BJ191: 0 | BK191: 0 | BL191: 0 | BM191: 0 | BN191: 0 | BO191: 0 | BP191: 0 | BQ191: =SUM(I191:BP191) -> 0
G192: Cumulative NPV of Whole Life Costs | I192: =SUM(I191) -> 0 | J192: =SUM(I192+J191) -> 0 | K192: =SUM(J192+K191) -> 0 | L192: =SUM(K192+L191) -> 0 | M192: =SUM(L192+M191) -> 0 | N192: =SUM(M192+N191) -> 0 | O192: =SUM(N192+O191) -> 0 | P192: =SUM(O192+P191) -> 0 | Q192: =SUM(P192+Q191) -> 0 | R192: =SUM(Q192+R191) -> 0 | S192: =SUM(R192+S191) -> 0 | T192: =SUM(S192+T191) -> 0 | U192: =SUM(T192+U191) -> 0 | V192: =SUM(U192+V191) -> 0 | W192: =SUM(V192+W191) -> 0 | X192: =SUM(W192+X191) -> 0 | Y192: =SUM(X192+Y191) -> 0 | Z192: =SUM(Y192+Z191) -> 0 | AA192: =SUM(Z192+AA191) -> 0 | AB192: =SUM(AA192+AB191) -> 0 | AC192: =SUM(AB192+AC191) -> 0 | AD192: =SUM(AC192+AD191) -> 0 | AE192: =SUM(AD192+AE191) -> 0 | AF192: =SUM(AE192+AF191) -> 0 | AG192: =SUM(AF192+AG191) -> 0 | AH192: =SUM(AG192+AH191) -> 0 | AI192: =SUM(AH192+AI191) -> 0 | AJ192: =SUM(AI192+AJ191) -> 0 | AK192: =SUM(AJ192+AK191) -> 0 | AL192: =SUM(AK192+AL191) -> 0 | AM192: =SUM(AL192+AM191) -> 0 | AN192: =SUM(AM192+AN191) -> 0 | AO192: =SUM(AN192+AO191) -> 0 | AP192: =SUM(AO192+AP191) -> 0 | AQ192: =SUM(AP192+AQ191) -> 0 | AR192: =SUM(AQ192+AR191) -> 0 | AS192: =SUM(AR192+AS191) -> 0 | AT192: =SUM(AS192+AT191) -> 0 | AU192: =SUM(AT192+AU191) -> 0 | AV192: =SUM(AU192+AV191) -> 0 | AW192: =SUM(AV192+AW191) -> 0 | AX192: =SUM(AW192+AX191) -> 0 | AY192: =SUM(AX192+AY191) -> 0 | AZ192: =SUM(AY192+AZ191) -> 0 | BA192: =SUM(AZ192+BA191) -> 0 | BB192: =SUM(BA192+BB191) -> 0 | BC192: =SUM(BB192+BC191) -> 0 | BD192: =SUM(BC192+BD191) -> 0 | BE192: =SUM(BD192+BE191) -> 0 | BF192: =SUM(BE192+BF191) -> 0 | BG192: =SUM(BF192+BG191) -> 0 | BH192: =SUM(BG192+BH191) -> 0 | BI192: =SUM(BH192+BI191) -> 0 | BJ192: =SUM(BI192+BJ191) -> 0 | BK192: =SUM(BJ192+BK191) -> 0 | BL192: =SUM(BK192+BL191) -> 0 | BM192: =SUM(BL192+BM191) -> 0 | BN192: =SUM(BM192+BN191) -> 0 | BO192: =SUM(BN192+BO191) -> 0
A193: 9 | B193: Income | I193: =I27 -> 2019 | J193: =J27 -> 2020 | K193: 2021 | L193: 2022 | M193: 2023 | N193: 2024 | O193: 2025 | P193: 2026 | Q193: 2027 | R193: 2028 | S193: 2029 | T193: 2030 | U193: 2031 | V193: 2032 | W193: 2033 | X193: 2034 | Y193: 2035 | Z193: 2036 | AA193: 2037 | AB193: 2038 | AC193: 2039 | AD193: 2040 | AE193: 2041 | AF193: 2042 | AG193: 2043 | AH193: 2044 | AI193: 2045 | AJ193: 2046 | AK193: 2047 | AL193: 2048 | AM193: 2049 | AN193: 2050 | AO193: 2051 | AP193: 2052 | AQ193: 2053 | AR193: 2054 | AS193: 2055 | AT193: 2056 | AU193: 2057 | AV193: 2058 | AW193: 2059 | AX193: 2060 | AY193: 2061 | AZ193: 2062 | BA193: 2063 | BB193: 2064 | BC193: 2065 | BD193: 2066 | BE193: 2067 | BF193: 2068 | BG193: 2069 | BH193: 2070 | BI193: 2071 | BJ193: 2072 | BK193: 2073 | BL193: 2074 | BM193: 2075 | BN193: 2076 | BO193: 2077 | BP193: 2078 | BT193: =NPV('Project Input'!E21,'Option A'!J193:BP193)+I193 -> 122910
A194: 9.01 | B194: Rental Income | D194: Insert Data Source | H194: =SUM(I194:BP194) -> 0 | I194: 0 | J194: 0 | K194: 0 | L194: 0 | M194: 0 | N194: 0 | O194: 0 | P194: 0 | Q194: 0 | R194: 0 | S194: 0 | T194: 0 | U194: 0 | V194: 0 | W194: 0 | X194: 0 | Y194: 0 | Z194: 0 | AA194: 0 | AB194: 0 | AC194: 0 | AD194: 0 | AE194: 0 | AF194: 0 | AG194: 0 | AH194: 0 | AI194: 0 | AJ194: 0 | AK194: 0 | AL194: 0 | AM194: 0 | AN194: 0 | AO194: 0 | AP194: 0 | AQ194: 0 | AR194: 0 | AS194: 0 | AT194: 0 | AU194: 0 | AV194: 0 | AW194: 0 | AX194: 0 | AY194: 0 | AZ194: 0 | BA194: 0 | BB194: 0 | BC194: 0 | BD194: 0 | BE194: 0 | BF194: 0 | BG194: 0 | BH194: 0 | BI194: 0 | BJ194: 0 | BK194: 0 | BL194: 0 | BM194: 0 | BN194: 0 | BO194: 0 | BP194: 0 | BQ194: =SUM(I194:BP194) -> 0
A195: 9.02 | B195: Sub-let | D195: Insert Data Source | H195: 0 | I195: 0 | J195: 0 | K195: 0 | L195: 0 | M195: 0 | N195: 0 | O195: 0 | P195: 0 | Q195: 0 | R195: 0 | S195: 0 | T195: 0 | U195: 0 | V195: 0 | W195: 0 | X195: 0 | Y195: 0 | Z195: 0 | AA195: 0 | AB195: 0 | AC195: 0 | AD195: 0 | AE195: 0 | AF195: 0 | AG195: 0 | AH195: 0 | AI195: 0 | AJ195: 0 | AK195: 0 | AL195: 0 | AM195: 0 | AN195: 0 | AO195: 0 | AP195: 0 | AQ195: 0 | AR195: 0 | AS195: 0 | AT195: 0 | AU195: 0 | AV195: 0 | AW195: 0 | AX195: 0 | AY195: 0 | AZ195: 0 | BA195: 0 | BB195: 0 | BC195: 0 | BD195: 0 | BE195: 0 | BF195: 0 | BG195: 0 | BH195: 0 | BI195: 0 | BJ195: 0 | BK195: 0 | BL195: 0 | BM195: 0 | BN195: 0 | BO195: 0 | BP195: 0 | BQ195: =SUM(I195:BP195) -> 0
A196: 9.03 | B196: Third party income (retail or tenant) | D196: Insert Data Source | H196: 0 | I196: 0 | J196: 0 | K196: 0 | L196: 0 | M196: 0 | N196: 0 | O196: 0 | P196: 0 | Q196: 0 | R196: 0 | S196: 0 | T196: 0 | U196: 0 | V196: 0 | W196: 0 | X196: 0 | Y196: 0 | Z196: 0 | AA196: 0 | AB196: 0 | AC196: 0 | AD196: 0 | AE196: 0 | AF196: 0 | AG196: 0 | AH196: 0 | AI196: 0 | AJ196: 0 | AK196: 0 | AL196: 0 | AM196: 0 | AN196: 0 | AO196: 0 | AP196: 0 | AQ196: 0 | AR196: 0 | AS196: 0 | AT196: 0 | AU196: 0 | AV196: 0 | AW196: 0 | AX196: 0 | AY196: 0 | AZ196: 0 | BA196: 0 | BB196: 0 | BC196: 0 | BD196: 0 | BE196: 0 | BF196: 0 | BG196: 0 | BH196: 0 | BI196: 0 | BJ196: 0 | BK196: 0 | BL196: 0 | BM196: 0 | BN196: 0 | BO196: 0 | BP196: 0 | BQ196: 0
A197: 9.04 | B197: Car Parking Income | D197: Insert Data Source | H197: 0 | I197: 0 | J197: 0 | K197: 0 | L197: 0 | M197: 0 | N197: 0 | O197: 0 | P197: 0 | Q197: 0 | R197: 0 | S197: 0 | T197: 0 | U197: 0 | V197: 0 | W197: 0 | X197: 0 | Y197: 0 | Z197: 0 | AA197: 0 | AB197: 0 | AC197: 0 | AD197: 0 | AE197: 0 | AF197: 0 | AG197: 0 | AH197: 0 | AI197: 0 | AJ197: 0 | AK197: 0 | AL197: 0 | AM197: 0 | AN197: 0 | AO197: 0 | AP197: 0 | AQ197: 0 | AR197: 0 | AS197: 0 | AT197: 0 | AU197: 0 | AV197: 0 | AW197: 0 | AX197: 0 | AY197: 0 | AZ197: 0 | BA197: 0 | BB197: 0 | BC197: 0 | BD197: 0 | BE197: 0 | BF197: 0 | BG197: 0 | BH197: 0 | BI197: 0 | BJ197: 0 | BK197: 0 | BL197: 0 | BM197: 0 | BN197: 0 | BO197: 0 | BP197: 0 | BQ197: 0
A198: 9.05 | B198: Funding from other sources | D198: Insert Data Source | H198: 0 | I198: 0 | J198: 0 | K198: 0 | L198: 0 | M198: 0 | N198: 0 | O198: 0 | P198: 0 | Q198: 0 | R198: 0 | S198: 0 | T198: 0 | U198: 0 | V198: 0 | W198: 0 | X198: 0 | Y198: 0 | Z198: 0 | AA198: 0 | AB198: 0 | AC198: 0 | AD198: 0 | AE198: 0 | AF198: 0 | AG198: 0 | AH198: 0 | AI198: 0 | AJ198: 0 | AK198: 0 | AL198: 0 | AM198: 0 | AN198: 0 | AO198: 0 | AP198: 0 | AQ198: 0 | AR198: 0 | AS198: 0 | AT198: 0 | AU198: 0 | AV198: 0 | AW198: 0 | AX198: 0 | AY198: 0 | AZ198: 0 | BA198: 0 | BB198: 0 | BC198: 0 | BD198: 0 | BE198: 0 | BF198: 0 | BG198: 0 | BH198: 0 | BI198: 0 | BJ198: 0 | BK198: 0 | BL198: 0 | BM198: 0 | BN198: 0 | BO198: 0 | BP198: 0 | BQ198: 0
A199: 9.06 | B199: Funding for LCC | D199: Insert Data Source | H199: 0 | I199: 0 | J199: 0 | K199: 0 | L199: 0 | M199: 0 | N199: 0 | O199: 0 | P199: 0 | Q199: 0 | R199: 0 | S199: 0 | T199: 0 | U199: 0 | V199: 0 | W199: 0 | X199: 0 | Y199: 0 | Z199: 0 | AA199: 0 | AB199: 0 | AC199: 0 | AD199: 0 | AE199: 0 | AF199: 0 | AG199: 0 | AH199: 0 | AI199: 0 | AJ199: 0 | AK199: 0 | AL199: 0 | AM199: 0 | AN199: 0 | AO199: 0 | AP199: 0 | AQ199: 0 | AR199: 0 | AS199: 0 | AT199: 0 | AU199: 0 | AV199: 0 | AW199: 0 | AX199: 0 | AY199: 0 | AZ199: 0 | BA199: 0 | BB199: 0 | BC199: 0 | BD199: 0 | BE199: 0 | BF199: 0 | BG199: 0 | BH199: 0 | BI199: 0 | BJ199: 0 | BK199: 0 | BL199: 0 | BM199: 0 | BN199: 0 | BO199: 0 | BP199: 0 | BQ199: 0
A200: 9.07 | B200: Sale of Asset | D200: Insert Data Source | H200: 0 | I200: 0 | J200: 0 | K200: 0 | L200: 0 | M200: 0 | N200: 0 | O200: 0 | P200: 0 | Q200: 0 | R200: 0 | S200: 0 | T200: 0 | U200: 0 | V200: 0 | W200: 0 | X200: 0 | Y200: 0 | Z200: 0 | AA200: 0 | AB200: 0 | AC200: 0 | AD200: 0 | AE200: 0 | AF200: 0 | AG200: 0 | AH200: 0 | AI200: 0 | AJ200: 0 | AK200: 0 | AL200: 0 | AM200: 0 | AN200: 0 | AO200: 0 | AP200: 0 | AQ200: 0 | AR200: 0 | AS200: 0 | AT200: 0 | AU200: 0 | AV200: 0 | AW200: 0 | AX200: 0 | AY200: 0 | AZ200: 0 | BA200: 0 | BB200: 0 | BC200: 0 | BD200: 0 | BE200: 0 | BF200: 0 | BG200: 0 | BH200: 0 | BI200: 0 | BJ200: 0 | BK200: 0 | BL200: 0 | BM200: 0 | BN200: 0 | BO200: 0 | BP200: 0 | BQ200: 0
A201: 9.08 | B201: Business Disruption (Loss of Income) | D201: Insert Data Source | H201: 0 | I201: 0 | J201: 0 | K201: 0 | L201: 0 | M201: 0 | N201: 0 | O201: 0 | P201: 0 | Q201: 0 | R201: 0 | S201: 0 | T201: 0 | U201: 0 | V201: 0 | W201: 0 | X201: 0 | Y201: 0 | Z201: 0 | AA201: 0 | AB201: 0 | AC201: 0 | AD201: 0 | AE201: 0 | AF201: 0 | AG201: 0 | AH201: 0 | AI201: 0 | AJ201: 0 | AK201: 0 | AL201: 0 | AM201: 0 | AN201: 0 | AO201: 0 | AP201: 0 | AQ201: 0 | AR201: 0 | AS201: 0 | AT201: 0 | AU201: 0 | AV201: 0 | AW201: 0 | AX201: 0 | AY201: 0 | AZ201: 0 | BA201: 0 | BB201: 0 | BC201: 0 | BD201: 0 | BE201: 0 | BF201: 0 | BG201: 0 | BH201: 0 | BI201: 0 | BJ201: 0 | BK201: 0 | BL201: 0 | BM201: 0 | BN201: 0 | BO201: 0 | BP201: 0 | BQ201: 0
A202: 9.09 | B202: Description of item & Source of Data | H202: 0 | I202: 0 | J202: 0 | K202: 0 | L202: 0 | M202: 0 | N202: 0 | O202: 0 | P202: 0 | Q202: 0 | R202: 0 | S202: 0 | T202: 0 | U202: 0 | V202: 0 | W202: 0 | X202: 0 | Y202: 0 | Z202: 0 | AA202: 0 | AB202: 0 | AC202: 0 | AD202: 0 | AE202: 0 | AF202: 0 | AG202: 0 | AH202: 0 | AI202: 0 | AJ202: 0 | AK202: 0 | AL202: 0 | AM202: 0 | AN202: 0 | AO202: 0 | AP202: 0 | AQ202: 0 | AR202: 0 | AS202: 0 | AT202: 0 | AU202: 0 | AV202: 0 | AW202: 0 | AX202: 0 | AY202: 0 | AZ202: 0 | BA202: 0 | BB202: 0 | BC202: 0 | BD202: 0 | BE202: 0 | BF202: 0 | BG202: 0 | BH202: 0 | BI202: 0 | BJ202: 0 | BK202: 0 | BL202: 0 | BM202: 0 | BN202: 0 | BO202: 0 | BP202: 0 | BQ202: 0
A203: 9.1 | B203: Description of item & Source of Data | H203: 0 | I203: 0 | J203: 0 | K203: 0 | L203: 0 | M203: 0 | N203: 0 | O203: 0 | P203: 0 | Q203: 0 | R203: 0 | S203: 0 | T203: 0 | U203: 0 | V203: 0 | W203: 0 | X203: 0 | Y203: 0 | Z203: 0 | AA203: 0 | AB203: 0 | AC203: 0 | AD203: 0 | AE203: 0 | AF203: 0 | AG203: 0 | AH203: 0 | AI203: 0 | AJ203: 0 | AK203: 0 | AL203: 0 | AM203: 0 | AN203: 0 | AO203: 0 | AP203: 0 | AQ203: 0 | AR203: 0 | AS203: 0 | AT203: 0 | AU203: 0 | AV203: 0 | AW203: 0 | AX203: 0 | AY203: 0 | AZ203: 0 | BA203: 0 | BB203: 0 | BC203: 0 | BD203: 0 | BE203: 0 | BF203: 0 | BG203: 0 | BH203: 0 | BI203: 0 | BJ203: 0 | BK203: 0 | BL203: 0 | BM203: 0 | BN203: 0 | BO203: 0 | BP203: 0 | BQ203: 0
A204: 9.11 | B204: Description of item & Source of Data | H204: 0 | I204: 0 | J204: 0 | K204: 0 | L204: 0 | M204: 0 | N204: 0 | O204: 0 | P204: 0 | Q204: 0 | R204: 0 | S204: 0 | T204: 0 | U204: 0 | V204: 0 | W204: 0 | X204: 0 | Y204: 0 | Z204: 0 | AA204: 0 | AB204: 0 | AC204: 0 | AD204: 0 | AE204: 0 | AF204: 0 | AG204: 0 | AH204: 0 | AI204: 0 | AJ204: 0 | AK204: 0 | AL204: 0 | AM204: 0 | AN204: 0 | AO204: 0 | AP204: 0 | AQ204: 0 | AR204: 0 | AS204: 0 | AT204: 0 | AU204: 0 | AV204: 0 | AW204: 0 | AX204: 0 | AY204: 0 | AZ204: 0 | BA204: 0 | BB204: 0 | BC204: 0 | BD204: 0 | BE204: 0 | BF204: 0 | BG204: 0 | BH204: 0 | BI204: 0 | BJ204: 0 | BK204: 0 | BL204: 0 | BM204: 0 | BN204: 0 | BO204: 0 | BP204: 0 | BQ204: 0
A205: 9.12 | B205: Description of item & Source of Data | H205: 0 | I205: 0 | J205: 0 | K205: 0 | L205: 0 | M205: 0 | N205: 0 | O205: 0 | P205: 0 | Q205: 0 | R205: 0 | S205: 0 | T205: 0 | U205: 0 | V205: 0 | W205: 0 | X205: 0 | Y205: 0 | Z205: 0 | AA205: 0 | AB205: 0 | AC205: 0 | AD205: 0 | AE205: 0 | AF205: 0 | AG205: 0 | AH205: 0 | AI205: 0 | AJ205: 0 | AK205: 0 | AL205: 0 | AM205: 0 | AN205: 0 | AO205: 0 | AP205: 0 | AQ205: 0 | AR205: 0 | AS205: 0 | AT205: 0 | AU205: 0 | AV205: 0 | AW205: 0 | AX205: 0 | AY205: 0 | AZ205: 0 | BA205: 0 | BB205: 0 | BC205: 0 | BD205: 0 | BE205: 0 | BF205: 0 | BG205: 0 | BH205: 0 | BI205: 0 | BJ205: 0 | BK205: 0 | BL205: 0 | BM205: 0 | BN205: 0 | BO205: 0 | BP205: 0 | BQ205: 0
A206: 9.13 | B206: Description of item & Source of Data | H206: 0 | I206: 0 | J206: 0 | K206: 0 | L206: 0 | M206: 0 | N206: 0 | O206: 0 | P206: 0 | Q206: 0 | R206: 0 | S206: 0 | T206: 0 | U206: 0 | V206: 0 | W206: 0 | X206: 0 | Y206: 0 | Z206: 0 | AA206: 0 | AB206: 0 | AC206: 0 | AD206: 0 | AE206: 0 | AF206: 0 | AG206: 0 | AH206: 0 | AI206: 0 | AJ206: 0 | AK206: 0 | AL206: 0 | AM206: 0 | AN206: 0 | AO206: 0 | AP206: 0 | AQ206: 0 | AR206: 0 | AS206: 0 | AT206: 0 | AU206: 0 | AV206: 0 | AW206: 0 | AX206: 0 | AY206: 0 | AZ206: 0 | BA206: 0 | BB206: 0 | BC206: 0 | BD206: 0 | BE206: 0 | BF206: 0 | BG206: 0 | BH206: 0 | BI206: 0 | BJ206: 0 | BK206: 0 | BL206: 0 | BM206: 0 | BN206: 0 | BO206: 0 | BP206: 0 | BQ206: 0
... 7 more rows

Sheet Option B
B2: ='Project Input'!E9 -> 0 | AI2: Date: | AJ2: ='Project Input'!G5 -> 2019-03-06 | AN2: OPTION B INPUTS
B4: ='Project Input'!E10 -> 0 | I4: OPTION B INPUTS | M4: ='Project Input'!E8 -> Not used | AI4: Revision: | AJ4: ='Project Input'!E25 -> 0
A7: 1 | B7: Option Title | D7: ='Project Input'!E8 -> Not used | M7: £ | O7: £/m2 | Q7: NPV | S7: NPV/m2 | V7: Quality of Services | W7: NPV/m2/annum | Y7: Scoring | AC7: Environmental Performance
A8: 2 | B8: GIFA | D8: ='Project Input'!E26 -> 0 | E8: m2 | I8: Purchase | M8: =SUM(BQ40) -> 0 | O8: =M8/$D$8 ->  | P8: £/m2 | Q8: =BQ45 -> 0 | S8: =Q8/$D$8 ->  | T8: £/m2 | V8: ='Project Input'!B65 -> Placemaking | Y8: ='Project Input'!E65 -> 0 | Z8: =SUM(Y8) -> 0 | AC8: Gross Internal Area | AF8: m2 | AG8: =SUM(AG9:AG10) -> 0
A9: 3 | B9: Functional Unit | D9: ='Project Input'!E29 -> 0 | E9: ='Project Input'!C29 -> Pupils | I9: Construction | M9: =BQ62 -> 0 | O9: =M9/$D$8 ->  | P9: £/m2 | Q9: =BQ67 -> 0 | S9: =Q9/$D$8 ->  | T9: £/m2 | V9: ='Project Input'!B66 -> Audience Engagement | Y9: ='Project Input'!E66 -> 0 | Z9: 0 | AC9: New Build | AF9: m2 | AG9: ='Project Input'!E27 -> 0
A10: 4 | B10: Construction Period | C10: Dates | D10: First Year | E10: ='Project Input'!E12 -> 0 | F10: Last Year | G10: ='Project Input'!E13 -> 0 | I10: Rent & Rates | M10: =BQ78 -> 0 | O10: =SUM(M10/$D$8/$D$13) ->  | P10: £/m2/annum | Q10: =BQ83 -> 0 | S10: =SUM(Q10/$D$8/$D$13) ->  | T10: £/m2/annum | V10: ='Project Input'!B67 -> Collection Logistics/Movement | Y10: ='Project Input'!E67 -> 0 | Z10: 0 | AC10: Refurbishment | AF10: m2 | AG10: ='Project Input'!E28 -> 0
A11: 5 | B11: Construction Period | C11: Total Years | D11: =SUM(G10-E10)+1 -> 1 | E11: Years | I11: Operational & Occupancy (Soft FM) | M11: =BQ107 -> 0 | P11: £/m2/annum | Q11: =BQ112 -> 0 | T11: £/m2/annum | V11: ='Project Input'!B68 -> Passivhaus/Sustainability | Y11: ='Project Input'!E68 -> 0 | Z11: 0 | AC11: Environmental Performance
A12: 6 | B12: Operational Period | C12: Dates | D12: First Year | E12: =G10 -> 0 | F12: Last Year | G12: =SUM(E12+D13) -> 0 | I12: Energy & Utilities | M12: =BQ124 -> 0 | P12: £/m2/annum | Q12: =BQ129 -> 0 | T12: £/m2/annum | V12: ='Project Input'!B69 -> Environmental Condition Requirements | Y12: ='Project Input'!E69 -> 0 | Z12: 0 | AC12: EPC Rating | AG12: ='Project Input'!E54 -> 0
A13: 7 | B13: Operational Period | C13: Total Years | D13: ='Project Input'!E14 -> 0 | E13: Years | I13: Maintenance (Hard FM) | M13: =BQ145 -> 0 | P13: £/m2/annum | Q13: =BQ150 -> 0 | T13: £/m2/annum | V13: ='Project Input'!B70 -> tbc…………. | Y13: ='Project Input'!E70 -> 0 | Z13: 0
I14: Life Cycle Replacement | M14: =BQ166 -> 0 | P14: £/m2/annum | Q14: =BQ171 -> 0 | T14: £/m2/annum | V14: ='Project Input'!B71 -> tbc…………. | Y14: ='Project Input'!E71 -> 0 | Z14: 0 | AC14: WLC Duration (Length of assessment Yrs) | AF14: Years | AG14: ='Project Input'!E14 -> 0
I15: Disposal | M15: =BQ186 -> 0 | P15: £/m2/annum | Q15: =BQ191 -> 0 | T15: £/m2/annum | V15: ='Project Input'!B72 -> tbc…………. | Y15: ='Project Input'!E72 -> 0 | Z15: 0 | AC15: Average carbon during Ops per annum | AF15: tns/yr | AG15: ='Project Input'!E51 -> 
I16: WLC (Excluding Income) | M16: =SUM(M8:N15) -> 0 | P16: £/m2/annum | Q16: =SUM(Q8:R15) -> 0 | T16: £/m2/annum | V16: ='Project Input'!B73 -> tbc…………. | Y16: ='Project Input'!E73 -> 0 | Z16: 0 | AC16: Total Carbon Operation | AF16: tns | AG16: ='Project Input'!E53 -> 0
I17: Income | M17: =BQ207 -> 0 | P17: £/m2/annum | Q17: =BQ212 -> 0 | T17: £/m2/annum | V17: ='Project Input'!B74 -> Benefits from investment | Y17: ='Project Input'!E74 -> 0 | Z17: 0 | AC17: Carbon during Construction CO2/m2 | AF17: tns/m2 | AG17: ='Project Input'!E50 -> 
I18: WLC (Including Income) | M18: =SUM(M16-M17) -> 0 | O18: =SUM(M18/$D$8/$D$13) ->  | P18: £/m2/annum | Q18: =Q16-Q17 -> 0 | S18: =SUM(Q18/$D$8/$D$13) ->  | T18: £/m2/annum | V18: Quality Assessment | W18: NPV/m2/annum | Y18: =SUM(Y8:Y17) -> 0 | AC18: Total carbon during construction CO2 | AF18: tns | AG18: ='Project Input'!E52 -> 0
A20: Year No | H20: SUB-TOTALS | I20: 1 | J20: 2 | K20: 3 | L20: 4 | M20: 5 | N20: 6 | O20: 7 | P20: 8 | Q20: 9 | R20: 10 | S20: 11 | T20: 12 | U20: 13 | V20: 14 | W20: 15 | X20: 16 | Y20: 17 | Z20: 18 | AA20: 19 | AB20: 20 | AC20: 21 | AD20: 22 | AE20: 23 | AF20: 24 | AG20: 25 | AH20: 26 | AI20: 27 | AJ20: 28 | AK20: 29 | AL20: 30 | AM20: 31 | AN20: 32 | AO20: 33 | AP20: 34 | AQ20: 35 | AR20: 36 | AS20: 37 | AT20: 38 | AU20: 39 | AV20: 40 | AW20: 41 | AX20: 42 | AY20: 43 | AZ20: 44 | BA20: 45 | BB20: 46 | BC20: 47 | BD20: 48 | BE20: 49 | BF20: 50 | BG20: 51 | BH20: 52 | BI20: 53 | BJ20: 54 | BK20: 55 | BL20: 56 | BM20: 57 | BN20: 58 | BO20: 59 | BP20: 60 | BQ20: TOTALS
A21: Year | I21: =SUM('Project Input'!D3) -> 0 | J21: =SUM(I21+1) -> 1 | K21: =SUM(J21+1) -> 2 | L21: 3 | M21: 4 | N21: 5 | O21: 6 | P21: 7 | Q21: 8 | R21: 9 | S21: 10 | T21: 11 | U21: 12 | V21: 13 | W21: 14 | X21: 15 | Y21: 16 | Z21: 17 | AA21: 18 | AB21: 19 | AC21: 20 | AD21: 21 | AE21: 22 | AF21: 23 | AG21: 24 | AH21: 25 | AI21: 26 | AJ21: 27 | AK21: 28 | AL21: 29 | AM21: 30 | AN21: 31 | AO21: 32 | AP21: 33 | AQ21: 34 | AR21: 35 | AS21: 36 | AT21: 37 | AU21: 38 | AV21: 39 | AW21: 40 | AX21: 41 | AY21: 42 | AZ21: 43 | BA21: 44 | BB21: 45 | BC21: 46 | BD21: 47 | BE21: 48 | BF21: 49 | BG21: 50 | BH21: 51 | BI21: 52 | BJ21: 53 | BK21: 54 | BL21: 55 | BM21: 56 | BN21: 57 | BO21: 58 | BP21: 59
G22: Annual Total Whole Life Cost (Base Cost) | H22: =H40+H62+H78+H107+H124+H145+H166+H186-H207 -> 0 | I22: =I40+I62+I78+I107+I124+I145+I166+I186-I207 -> 0 | J22: 0 | K22: 0 | L22: 0 | M22: 0 | N22: 0 | O22: 0 | P22: 0 | Q22: 0 | R22: 0 | S22: 0 | T22: 0 | U22: 0 | V22: 0 | W22: 0 | X22: 0 | Y22: 0 | Z22: 0 | AA22: 0 | AB22: 0 | AC22: 0 | AD22: 0 | AE22: 0 | AF22: 0 | AG22: 0 | AH22: 0 | AI22: 0 | AJ22: 0 | AK22: 0 | AL22: 0 | AM22: 0 | AN22: 0 | AO22: 0 | AP22: 0 | AQ22: 0 | AR22: 0 | AS22: 0 | AT22: 0 | AU22: 0 | AV22: 0 | AW22: 0 | AX22: 0 | AY22: 0 | AZ22: 0 | BA22: 0 | BB22: 0 | BC22: 0 | BD22: 0 | BE22: 0 | BF22: 0 | BG22: 0 | BH22: 0 | BI22: 0 | BJ22: 0 | BK22: 0 | BL22: 0 | BM22: 0 | BN22: 0 | BO22: 0 | BP22: 0
G23: Cumulative Total Whole Life Cost (Base Cost) | I23: =SUM(I22) -> 0 | J23: =SUM(J22+I23) -> 0 | K23: =SUM(K22+J23) -> 0 | L23: =SUM(L22+K23) -> 0 | M23: 0 | N23: 0 | O23: 0 | P23: 0 | Q23: 0 | R23: 0 | S23: 0 | T23: 0 | U23: 0 | V23: 0 | W23: 0 | X23: 0 | Y23: 0 | Z23: 0 | AA23: 0 | AB23: 0 | AC23: 0 | AD23: 0 | AE23: 0 | AF23: 0 | AG23: 0 | AH23: 0 | AI23: 0 | AJ23: 0 | AK23: 0 | AL23: 0 | AM23: 0 | AN23: 0 | AO23: 0 | AP23: 0 | AQ23: 0 | AR23: 0 | AS23: 0 | AT23: 0 | AU23: 0 | AV23: 0 | AW23: 0 | AX23: 0 | AY23: 0 | AZ23: 0 | BA23: 0 | BB23: 0 | BC23: 0 | BD23: 0 | BE23: 0 | BF23: 0 | BG23: 0 | BH23: 0 | BI23: 0 | BJ23: 0 | BK23: 0 | BL23: 0 | BM23: 0 | BN23: 0 | BO23: 0 | BP23: 0
G24: Cumulative Total Whole Life Cost (Cost minus income) NPV | H24: =H45+H67+H83+H112+H129+H150+H171+H191-H212 -> 0 | I24: =I45+I67+I83+I112+I129+I150+I171+I191-I212 -> 0 | J24: 0 | K24: 0 | L24: 0 | M24: 0 | N24: 0 | O24: 0 | P24: 0 | Q24: 0 | R24: 0 | S24: 0 | T24: 0 | U24: 0 | V24: 0 | W24: 0 | X24: 0 | Y24: 0 | Z24: 0 | AA24: 0 | AB24: 0 | AC24: 0 | AD24: 0 | AE24: 0 | AF24: 0 | AG24: 0 | AH24: 0 | AI24: 0 | AJ24: 0 | AK24: 0 | AL24: 0 | AM24: 0 | AN24: 0 | AO24: 0 | AP24: 0 | AQ24: 0 | AR24: 0 | AS24: 0 | AT24: 0 | AU24: 0 | AV24: 0 | AW24: 0 | AX24: 0 | AY24: 0 | AZ24: 0 | BA24: 0 | BB24: 0 | BC24: 0 | BD24: 0 | BE24: 0 | BF24: 0 | BG24: 0 | BH24: 0 | BI24: 0 | BJ24: 0 | BK24: 0 | BL24: 0 | BM24: 0 | BN24: 0 | BO24: 0 | BP24: 0
A26: Year No | H26: SUB-TOTALS | I26: 1 | J26: 2 | K26: 3 | L26: 4 | M26: 5 | N26: 6 | O26: 7 | P26: 8 | Q26: 9 | R26: 10 | S26: 11 | T26: 12 | U26: 13 | V26: 14 | W26: 15 | X26: 16 | Y26: 17 | Z26: 18 | AA26: 19 | AB26: 20 | AC26: 21 | AD26: 22 | AE26: 23 | AF26: 24 | AG26: 25 | AH26: 26 | AI26: 27 | AJ26: 28 | AK26: 29 | AL26: 30 | AM26: 31 | AN26: 32 | AO26: 33 | AP26: 34 | AQ26: 35 | AR26: 36 | AS26: 37 | AT26: 38 | AU26: 39 | AV26: 40 | AW26: 41 | AX26: 42 | AY26: 43 | AZ26: 44 | BA26: 45 | BB26: 46 | BC26: 47 | BD26: 48 | BE26: 49 | BF26: 50 | BG26: 51 | BH26: 52 | BI26: 53 | BJ26: 54 | BK26: 55 | BL26: 56 | BM26: 57 | BN26: 58 | BO26: 59 | BP26: 60 | BQ26: TOTALS
A27: Year | I27: =SUM('Project Input'!D12) -> 2019 | J27: =SUM(I27+1) -> 2020 | K27: =SUM(J27+1) -> 2021 | L27: 2022 | M27: 2023 | N27: 2024 | O27: 2025 | P27: 2026 | Q27: 2027 | R27: 2028 | S27: 2029 | T27: 2030 | U27: 2031 | V27: 2032 | W27: 2033 | X27: 2034 | Y27: 2035 | Z27: 2036 | AA27: 2037 | AB27: 2038 | AC27: 2039 | AD27: 2040 | AE27: 2041 | AF27: 2042 | AG27: 2043 | AH27: 2044 | AI27: 2045 | AJ27: 2046 | AK27: 2047 | AL27: 2048 | AM27: 2049 | AN27: 2050 | AO27: 2051 | AP27: 2052 | AQ27: 2053 | AR27: 2054 | AS27: 2055 | AT27: 2056 | AU27: 2057 | AV27: 2058 | AW27: 2059 | AX27: 2060 | AY27: 2061 | AZ27: 2062 | BA27: 2063 | BB27: 2064 | BC27: 2065 | BD27: 2066 | BE27: 2067 | BF27: 2068 | BG27: 2069 | BH27: 2070 | BI27: 2071 | BJ27: 2072 | BK27: 2073 | BL27: 2074 | BM27: 2075 | BN27: 2076 | BO27: 2077 | BP27: 2078
A28: 1 | B28: Purchase Costs | BT28: =NPV('Project Input'!$D$22,'Option B'!J28:BP28)+I28 -> 0
A29: 1.01 | B29: Purchase (including land) | D29: Insert Data Source | H29: =SUM(I29:BP29) -> 0 | I29: 0 | J29: 0 | K29: 0 | L29: 0 | M29: 0 | N29: 0 | O29: 0 | P29: 0 | Q29: 0 | R29: 0 | S29: 0 | T29: 0 | U29: 0 | V29: 0 | W29: 0 | X29: 0 | Y29: 0 | Z29: 0 | AA29: 0 | AB29: 0 | AC29: 0 | AD29: 0 | AE29: 0 | AF29: 0 | AG29: 0 | AH29: 0 | AI29: 0 | AJ29: 0 | AK29: 0 | AL29: 0 | AM29: 0 | AN29: 0 | AO29: 0 | AP29: 0 | AQ29: 0 | AR29: 0 | AS29: 0 | AT29: 0 | AU29: 0 | AV29: 0 | AW29: 0 | AX29: 0 | AY29: 0 | AZ29: 0 | BA29: 0 | BB29: 0 | BC29: 0 | BD29: 0 | BE29: 0 | BF29: 0 | BG29: 0 | BH29: 0 | BI29: 0 | BJ29: 0 | BK29: 0 | BL29: 0 | BM29: 0 | BN29: 0 | BO29: 0 | BP29: 0 | BQ29: =SUM(I29:BP29) -> 0
A30: 1.02 | B30: Pre-Acquisition Inspections | D30: Insert Data Source | H30: 0 | I30: 0 | J30: 0 | K30: 0 | L30: 0 | M30: 0 | N30: 0 | O30: 0 | P30: 0 | Q30: 0 | R30: 0 | S30: 0 | T30: 0 | U30: 0 | V30: 0 | W30: 0 | X30: 0 | Y30: 0 | Z30: 0 | AA30: 0 | AB30: 0 | AC30: 0 | AD30: 0 | AE30: 0 | AF30: 0 | AG30: 0 | AH30: 0 | AI30: 0 | AJ30: 0 | AK30: 0 | AL30: 0 | AM30: 0 | AN30: 0 | AO30: 0 | AP30: 0 | AQ30: 0 | AR30: 0 | AS30: 0 | AT30: 0 | AU30: 0 | AV30: 0 | AW30: 0 | AX30: 0 | AY30: 0 | AZ30: 0 | BA30: 0 | BB30: 0 | BC30: 0 | BD30: 0 | BE30: 0 | BF30: 0 | BG30: 0 | BH30: 0 | BI30: 0 | BJ30: 0 | BK30: 0 | BL30: 0 | BM30: 0 | BN30: 0 | BO30: 0 | BP30: 0 | BQ30: =SUM(I30:BP30) -> 0
A31: 1.03 | B31: Fees (Purchase) | D31: Insert Data Source | H31: 0 | I31: 0 | J31: 0 | K31: 0 | L31: 0 | M31: 0 | N31: 0 | O31: 0 | P31: 0 | Q31: 0 | R31: 0 | S31: 0 | T31: 0 | U31: 0 | V31: 0 | W31: 0 | X31: 0 | Y31: 0 | Z31: 0 | AA31: 0 | AB31: 0 | AC31: 0 | AD31: 0 | AE31: 0 | AF31: 0 | AG31: 0 | AH31: 0 | AI31: 0 | AJ31: 0 | AK31: 0 | AL31: 0 | AM31: 0 | AN31: 0 | AO31: 0 | AP31: 0 | AQ31: 0 | AR31: 0 | AS31: 0 | AT31: 0 | AU31: 0 | AV31: 0 | AW31: 0 | AX31: 0 | AY31: 0 | AZ31: 0 | BA31: 0 | BB31: 0 | BC31: 0 | BD31: 0 | BE31: 0 | BF31: 0 | BG31: 0 | BH31: 0 | BI31: 0 | BJ31: 0 | BK31: 0 | BL31: 0 | BM31: 0 | BN31: 0 | BO31: 0 | BP31: 0 | BQ31: 0
A32: 1.04 | B32: Procuring Authority In-house Costs | D32: Insert Data Source | H32: 0 | I32: 0 | J32: 0 | K32: 0 | L32: 0 | M32: 0 | N32: 0 | O32: 0 | P32: 0 | Q32: 0 | R32: 0 | S32: 0 | T32: 0 | U32: 0 | V32: 0 | W32: 0 | X32: 0 | Y32: 0 | Z32: 0 | AA32: 0 | AB32: 0 | AC32: 0 | AD32: 0 | AE32: 0 | AF32: 0 | AG32: 0 | AH32: 0 | AI32: 0 | AJ32: 0 | AK32: 0 | AL32: 0 | AM32: 0 | AN32: 0 | AO32: 0 | AP32: 0 | AQ32: 0 | AR32: 0 | AS32: 0 | AT32: 0 | AU32: 0 | AV32: 0 | AW32: 0 | AX32: 0 | AY32: 0 | AZ32: 0 | BA32: 0 | BB32: 0 | BC32: 0 | BD32: 0 | BE32: 0 | BF32: 0 | BG32: 0 | BH32: 0 | BI32: 0 | BJ32: 0 | BK32: 0 | BL32: 0 | BM32: 0 | BN32: 0 | BO32: 0 | BP32: 0 | BQ32: 0
A33: 1.05 | B33: Finance | D33: Insert Data Source | H33: 0 | I33: 0 | J33: 0 | K33: 0 | L33: 0 | M33: 0 | N33: 0 | O33: 0 | P33: 0 | Q33: 0 | R33: 0 | S33: 0 | T33: 0 | U33: 0 | V33: 0 | W33: 0 | X33: 0 | Y33: 0 | Z33: 0 | AA33: 0 | AB33: 0 | AC33: 0 | AD33: 0 | AE33: 0 | AF33: 0 | AG33: 0 | AH33: 0 | AI33: 0 | AJ33: 0 | AK33: 0 | AL33: 0 | AM33: 0 | AN33: 0 | AO33: 0 | AP33: 0 | AQ33: 0 | AR33: 0 | AS33: 0 | AT33: 0 | AU33: 0 | AV33: 0 | AW33: 0 | AX33: 0 | AY33: 0 | AZ33: 0 | BA33: 0 | BB33: 0 | BC33: 0 | BD33: 0 | BE33: 0 | BF33: 0 | BG33: 0 | BH33: 0 | BI33: 0 | BJ33: 0 | BK33: 0 | BL33: 0 | BM33: 0 | BN33: 0 | BO33: 0 | BP33: 0 | BQ33: 0
A34: 1.06 | B34: Disposal | D34: Insert Data Source | H34: 0 | I34: 0 | J34: 0 | K34: 0 | L34: 0 | M34: 0 | N34: 0 | O34: 0 | P34: 0 | Q34: 0 | R34: 0 | S34: 0 | T34: 0 | U34: 0 | V34: 0 | W34: 0 | X34: 0 | Y34: 0 | Z34: 0 | AA34: 0 | AB34: 0 | AC34: 0 | AD34: 0 | AE34: 0 | AF34: 0 | AG34: 0 | AH34: 0 | AI34: 0 | AJ34: 0 | AK34: 0 | AL34: 0 | AM34: 0 | AN34: 0 | AO34: 0 | AP34: 0 | AQ34: 0 | AR34: 0 | AS34: 0 | AT34: 0 | AU34: 0 | AV34: 0 | AW34: 0 | AX34: 0 | AY34: 0 | AZ34: 0 | BA34: 0 | BB34: 0 | BC34: 0 | BD34: 0 | BE34: 0 | BF34: 0 | BG34: 0 | BH34: 0 | BI34: 0 | BJ34: 0 | BK34: 0 | BL34: 0 | BM34: 0 | BN34: 0 | BO34: 0 | BP34: 0 | BQ34: 0
A35: 1.07 | B35: Description of item & Source of Data | H35: 0 | I35: 0 | J35: 0 | K35: 0 | L35: 0 | M35: 0 | N35: 0 | O35: 0 | P35: 0 | Q35: 0 | R35: 0 | S35: 0 | T35: 0 | U35: 0 | V35: 0 | W35: 0 | X35: 0 | Y35: 0 | Z35: 0 | AA35: 0 | AB35: 0 | AC35: 0 | AD35: 0 | AE35: 0 | AF35: 0 | AG35: 0 | AH35: 0 | AI35: 0 | AJ35: 0 | AK35: 0 | AL35: 0 | AM35: 0 | AN35: 0 | AO35: 0 | AP35: 0 | AQ35: 0 | AR35: 0 | AS35: 0 | AT35: 0 | AU35: 0 | AV35: 0 | AW35: 0 | AX35: 0 | AY35: 0 | AZ35: 0 | BA35: 0 | BB35: 0 | BC35: 0 | BD35: 0 | BE35: 0 | BF35: 0 | BG35: 0 | BH35: 0 | BI35: 0 | BJ35: 0 | BK35: 0 | BL35: 0 | BM35: 0 | BN35: 0 | BO35: 0 | BP35: 0 | BQ35: 0
A36: 1.08 | B36: Description of item & Source of Data | H36: 0 | I36: 0 | J36: 0 | K36: 0 | L36: 0 | M36: 0 | N36: 0 | O36: 0 | P36: 0 | Q36: 0 | R36: 0 | S36: 0 | T36: 0 | U36: 0 | V36: 0 | W36: 0 | X36: 0 | Y36: 0 | Z36: 0 | AA36: 0 | AB36: 0 | AC36: 0 | AD36: 0 | AE36: 0 | AF36: 0 | AG36: 0 | AH36: 0 | AI36: 0 | AJ36: 0 | AK36: 0 | AL36: 0 | AM36: 0 | AN36: 0 | AO36: 0 | AP36: 0 | AQ36: 0 | AR36: 0 | AS36: 0 | AT36: 0 | AU36: 0 | AV36: 0 | AW36: 0 | AX36: 0 | AY36: 0 | AZ36: 0 | BA36: 0 | BB36: 0 | BC36: 0 | BD36: 0 | BE36: 0 | BF36: 0 | BG36: 0 | BH36: 0 | BI36: 0 | BJ36: 0 | BK36: 0 | BL36: 0 | BM36: 0 | BN36: 0 | BO36: 0 | BP36: 0 | BQ36: 0
A37: 1.09 | B37: Description of item & Source of Data | H37: 0 | I37: 0 | J37: 0 | K37: 0 | L37: 0 | M37: 0 | N37: 0 | O37: 0 | P37: 0 | Q37: 0 | R37: 0 | S37: 0 | T37: 0 | U37: 0 | V37: 0 | W37: 0 | X37: 0 | Y37: 0 | Z37: 0 | AA37: 0 | AB37: 0 | AC37: 0 | AD37: 0 | AE37: 0 | AF37: 0 | AG37: 0 | AH37: 0 | AI37: 0 | AJ37: 0 | AK37: 0 | AL37: 0 | AM37: 0 | AN37: 0 | AO37: 0 | AP37: 0 | AQ37: 0 | AR37: 0 | AS37: 0 | AT37: 0 | AU37: 0 | AV37: 0 | AW37: 0 | AX37: 0 | AY37: 0 | AZ37: 0 | BA37: 0 | BB37: 0 | BC37: 0 | BD37: 0 | BE37: 0 | BF37: 0 | BG37: 0 | BH37: 0 | BI37: 0 | BJ37: 0 | BK37: 0 | BL37: 0 | BM37: 0 | BN37: 0 | BO37: 0 | BP37: 0 | BQ37: =SUM(I37:BP37) -> 0
A38: 1.1 | B38: Description of item & Source of Data | H38: 0 | I38: 0 | J38: 0 | K38: 0 | L38: 0 | M38: 0 | N38: 0 | O38: 0 | P38: 0 | Q38: 0 | R38: 0 | S38: 0 | T38: 0 | U38: 0 | V38: 0 | W38: 0 | X38: 0 | Y38: 0 | Z38: 0 | AA38: 0 | AB38: 0 | AC38: 0 | AD38: 0 | AE38: 0 | AF38: 0 | AG38: 0 | AH38: 0 | AI38: 0 | AJ38: 0 | AK38: 0 | AL38: 0 | AM38: 0 | AN38: 0 | AO38: 0 | AP38: 0 | AQ38: 0 | AR38: 0 | AS38: 0 | AT38: 0 | AU38: 0 | AV38: 0 | AW38: 0 | AX38: 0 | AY38: 0 | AZ38: 0 | BA38: 0 | BB38: 0 | BC38: 0 | BD38: 0 | BE38: 0 | BF38: 0 | BG38: 0 | BH38: 0 | BI38: 0 | BJ38: 0 | BK38: 0 | BL38: 0 | BM38: 0 | BN38: 0 | BO38: 0 | BP38: 0 | BQ38: 0
A39: 1.11 | B39: Description of item & Source of Data | H39: 0 | I39: 0 | J39: 0 | K39: 0 | L39: 0 | M39: 0 | N39: 0 | O39: 0 | P39: 0 | Q39: 0 | R39: 0 | S39: 0 | T39: 0 | U39: 0 | V39: 0 | W39: 0 | X39: 0 | Y39: 0 | Z39: 0 | AA39: 0 | AB39: 0 | AC39: 0 | AD39: 0 | AE39: 0 | AF39: 0 | AG39: 0 | AH39: 0 | AI39: 0 | AJ39: 0 | AK39: 0 | AL39: 0 | AM39: 0 | AN39: 0 | AO39: 0 | AP39: 0 | AQ39: 0 | AR39: 0 | AS39: 0 | AT39: 0 | AU39: 0 | AV39: 0 | AW39: 0 | AX39: 0 | AY39: 0 | AZ39: 0 | BA39: 0 | BB39: 0 | BC39: 0 | BD39: 0 | BE39: 0 | BF39: 0 | BG39: 0 | BH39: 0 | BI39: 0 | BJ39: 0 | BK39: 0 | BL39: 0 | BM39: 0 | BN39: 0 | BO39: 0 | BP39: 0 | BQ39: 0
G40: TOTAL CURRENT DAY COSTS | H40: =SUM(H29:H39) -> 0 | I40: =SUM(I29:I39) -> 0 | J40: 0 | K40: =SUM(K29:K39) -> 0 | L40: 0 | M40: 0 | N40: 0 | O40: 0 | P40: 0 | Q40: 0 | R40: 0 | S40: 0 | T40: 0 | U40: 0 | V40: 0 | W40: 0 | X40: 0 | Y40: 0 | Z40: 0 | AA40: 0 | AB40: 0 | AC40: 0 | AD40: 0 | AE40: 0 | AF40: 0 | AG40: 0 | AH40: 0 | AI40: 0 | AJ40: 0 | AK40: 0 | AL40: 0 | AM40: 0 | AN40: 0 | AO40: 0 | AP40: 0 | AQ40: 0 | AR40: 0 | AS40: 0 | AT40: 0 | AU40: 0 | AV40: 0 | AW40: 0 | AX40: 0 | AY40: 0 | AZ40: 0 | BA40: 0 | BB40: 0 | BC40: 0 | BD40: 0 | BE40: 0 | BF40: 0 | BG40: 0 | BH40: 0 | BI40: 0 | BJ40: 0 | BK40: 0 | BL40: 0 | BM40: 0 | BN40: 0 | BO40: 0 | BP40: 0 | BQ40: =SUM(BQ29:BQ39) -> 0
B41: Indexation | C41: CAPEX | D41: ='Project Input'!E18 -> 0 | I41: 1 | J41: =SUM(I41*$D$41)+I41 -> 1 | K41: =SUM(J41*$D$41)+J41 -> 1 | L41: =SUM(K41*$D$41)+K41 -> 1 | M41: 1 | N41: 1 | O41: 1 | P41: 1 | Q41: 1 | R41: 1 | S41: 1 | T41: 1 | U41: 1 | V41: 1 | W41: 1 | X41: 1 | Y41: 1 | Z41: 1 | AA41: 1 | AB41: 1 | AC41: 1 | AD41: 1 | AE41: 1 | AF41: 1 | AG41: 1 | AH41: 1 | AI41: 1 | AJ41: 1 | AK41: 1 | AL41: 1 | AM41: 1 | AN41: 1 | AO41: 1 | AP41: 1 | AQ41: 1 | AR41: 1 | AS41: 1 | AT41: 1 | AU41: 1 | AV41: 1 | AW41: 1 | AX41: 1 | AY41: 1 | AZ41: 1 | BA41: 1 | BB41: 1 | BC41: 1 | BD41: 1 | BE41: 1 | BF41: 1 | BG41: 1 | BH41: 1 | BI41: 1 | BJ41: 1 | BK41: 1 | BL41: 1 | BM41: 1 | BN41: 1 | BO41: 1 | BP41: 1
G42: Annual Nominal Whole Life Costs | H42: =SUM(I42:BP42) -> 0 | I42: =SUM(I41*I40) -> 0 | J42: =SUM(J41*J40) -> 0 | K42: 0 | L42: 0 | M42: 0 | N42: 0 | O42: 0 | P42: 0 | Q42: 0 | R42: 0 | S42: 0 | T42: 0 | U42: 0 | V42: 0 | W42: 0 | X42: 0 | Y42: 0 | Z42: 0 | AA42: 0 | AB42: 0 | AC42: 0 | AD42: 0 | AE42: 0 | AF42: 0 | AG42: 0 | AH42: 0 | AI42: 0 | AJ42: 0 | AK42: 0 | AL42: 0 | AM42: 0 | AN42: 0 | AO42: 0 | AP42: 0 | AQ42: 0 | AR42: 0 | AS42: 0 | AT42: 0 | AU42: 0 | AV42: 0 | AW42: 0 | AX42: 0 | AY42: 0 | AZ42: 0 | BA42: 0 | BB42: 0 | BC42: 0 | BD42: 0 | BE42: 0 | BF42: 0 | BG42: 0 | BH42: 0 | BI42: 0 | BJ42: 0 | BK42: 0 | BL42: 0 | BM42: 0 | BN42: 0 | BO42: 0 | BP42: 0 | BQ42: =SUM(I42:BP42) -> 0
C43: Days since start of concession | D43: 365 | I43: =SUM($D$43*I26) -> 365 | J43: =SUM($D$43*J26) -> 730 | K43: =SUM($D$43*K26) -> 1095 | L43: 1460 | M43: 1825 | N43: 2190 | O43: 2555 | P43: 2920 | Q43: 3285 | R43: 3650 | S43: 4015 | T43: 4380 | U43: 4745 | V43: 5110 | W43: 5475 | X43: 5840 | Y43: 6205 | Z43: 6570 | AA43: 6935 | AB43: 7300 | AC43: 7665 | AD43: 8030 | AE43: 8395 | AF43: 8760 | AG43: 9125 | AH43: 9490 | AI43: 9855 | AJ43: 10220 | AK43: 10585 | AL43: 10950 | AM43: 11315 | AN43: 11680 | AO43: 12045 | AP43: 12410 | AQ43: 12775 | AR43: 13140 | AS43: 13505 | AT43: 13870 | AU43: 14235 | AV43: 14600 | AW43: 14965 | AX43: 15330 | AY43: 15695 | AZ43: 16060 | BA43: 16425 | BB43: 16790 | BC43: 17155 | BD43: 17520 | BE43: 17885 | BF43: 18250 | BG43: 18615 | BH43: 18980 | BI43: 19345 | BJ43: 19710 | BK43: 20075 | BL43: 20440 | BM43: 20805 | BN43: 21170 | BO43: 21535 | BP43: 21900
C44: Discount index | D44: ='Project Input'!$E$24 -> 0 | I44: =(1+$D$44)^(I43/$D$43) -> 1 | J44: =(1+$D$44)^(J43/$D$43) -> 1 | K44: =(1+$D$44)^(K43/$D$43) -> 1 | L44: 1 | M44: 1 | N44: 1 | O44: 1 | P44: 1 | Q44: 1 | R44: 1 | S44: 1 | T44: 1 | U44: 1 | V44: 1 | W44: 1 | X44: 1 | Y44: 1 | Z44: 1 | AA44: 1 | AB44: 1 | AC44: 1 | AD44: 1 | AE44: 1 | AF44: 1 | AG44: 1 | AH44: 1 | AI44: 1 | AJ44: 1 | AK44: 1 | AL44: 1 | AM44: 1 | AN44: 1 | AO44: 1 | AP44: 1 | AQ44: 1 | AR44: 1 | AS44: 1 | AT44: 1 | AU44: 1 | AV44: 1 | AW44: 1 | AX44: 1 | AY44: 1 | AZ44: 1 | BA44: 1 | BB44: 1 | BC44: 1 | BD44: 1 | BE44: 1 | BF44: 1 | BG44: 1 | BH44: 1 | BI44: 1 | BJ44: 1 | BK44: 1 | BL44: 1 | BM44: 1 | BN44: 1 | BO44: 1 | BP44: 1
A45: 1 Purchase Costs | G45: Annual NPV of Whole Life Costs | H45: =SUM(I45:BP45) -> 0 | I45: =I42/I44 -> 0 | J45: 0 | K45: 0 | L45: 0 | M45: 0 | N45: 0 | O45: 0 | P45: 0 | Q45: 0 | R45: 0 | S45: 0 | T45: 0 | U45: 0 | V45: 0 | W45: 0 | X45: 0 | Y45: 0 | Z45: 0 | AA45: 0 | AB45: 0 | AC45: 0 | AD45: 0 | AE45: 0 | AF45: 0 | AG45: 0 | AH45: 0 | AI45: 0 | AJ45: 0 | AK45: 0 | AL45: 0 | AM45: 0 | AN45: 0 | AO45: 0 | AP45: 0 | AQ45: 0 | AR45: 0 | AS45: 0 | AT45: 0 | AU45: 0 | AV45: 0 | AW45: 0 | AX45: 0 | AY45: 0 | AZ45: 0 | BA45: 0 | BB45: 0 | BC45: 0 | BD45: 0 | BE45: 0 | BF45: 0 | BG45: 0 | BH45: 0 | BI45: 0 | BJ45: 0 | BK45: 0 | BL45: 0 | BM45: 0 | BN45: 0 | BO45: 0 | BP45: 0 | BQ45: =SUM(I45:BP45) -> 0
G46: Cumulative NPV of Whole Life Costs | I46: =SUM(I45) -> 0 | J46: =SUM(I46+J45) -> 0 | K46: =SUM(J46+K45) -> 0 | L46: =SUM(K46+L45) -> 0 | M46: =SUM(L46+M45) -> 0 | N46: 0 | O46: 0 | P46: 0 | Q46: 0 | R46: 0 | S46: 0 | T46: 0 | U46: 0 | V46: 0 | W46: 0 | X46: 0 | Y46: 0 | Z46: 0 | AA46: 0 | AB46: 0 | AC46: 0 | AD46: 0 | AE46: 0 | AF46: 0 | AG46: 0 | AH46: 0 | AI46: 0 | AJ46: 0 | AK46: =SUM(AJ46+AK45) -> 0 | AL46: =SUM(AK46+AL45) -> 0 | AM46: 0 | AN46: 0 | AO46: 0 | AP46: 0 | AQ46: 0 | AR46: 0 | AS46: 0 | AT46: 0 | AU46: 0 | AV46: 0 | AW46: 0 | AX46: 0 | AY46: 0 | AZ46: 0 | BA46: 0 | BB46: 0 | BC46: 0 | BD46: 0 | BE46: 0 | BF46: 0 | BG46: 0 | BH46: 0 | BI46: 0 | BJ46: 0 | BK46: 0 | BL46: 0 | BM46: 0 | BN46: 0 | BO46: 0
A47: 2 | B47: Construction Costs | I47: =I27 -> 2019 | J47: =J27 -> 2020 | K47: 2021 | L47: 2022 | M47: 2023 | N47: 2024 | O47: 2025 | P47: 2026 | Q47: 2027 | R47: 2028 | S47: 2029 | T47: 2030 | U47: 2031 | V47: 2032 | W47: 2033 | X47: 2034 | Y47: 2035 | Z47: 2036 | AA47: 2037 | AB47: 2038 | AC47: 2039 | AD47: 2040 | AE47: 2041 | AF47: 2042 | AG47: 2043 | AH47: 2044 | AI47: 2045 | AJ47: 2046 | AK47: 2047 | AL47: 2048 | AM47: 2049 | AN47: 2050 | AO47: 2051 | AP47: 2052 | AQ47: 2053 | AR47: 2054 | AS47: 2055 | AT47: 2056 | AU47: 2057 | AV47: 2058 | AW47: 2059 | AX47: 2060 | AY47: 2061 | AZ47: 2062 | BA47: 2063 | BB47: 2064 | BC47: 2065 | BD47: 2066 | BE47: 2067 | BF47: 2068 | BG47: 2069 | BH47: 2070 | BI47: 2071 | BJ47: 2072 | BK47: 2073 | BL47: 2074 | BM47: 2075 | BN47: 2076 | BO47: 2077 | BP47: 2078 | BT47: =NPV('Project Input'!$D$22,'Option B'!J47:BP47)+I47 -> 52638.57152
A48: 2.01 | B48: Enabling Works | D48: Insert Data Source | H48: 0 | I48: 0 | J48: 0 | K48: 0 | L48: 0 | M48: 0 | N48: 0 | O48: 0 | P48: 0 | Q48: 0 | R48: 0 | S48: 0 | T48: 0 | U48: 0 | V48: 0 | W48: 0 | X48: 0 | Y48: 0 | Z48: 0 | AA48: 0 | AB48: 0 | AC48: 0 | AD48: 0 | AE48: 0 | AF48: 0 | AG48: 0 | AH48: 0 | AI48: 0 | AJ48: 0 | AK48: 0 | AL48: 0 | AM48: 0 | AN48: 0 | AO48: 0 | AP48: 0 | AQ48: 0 | AR48: 0 | AS48: 0 | AT48: 0 | AU48: 0 | AV48: 0 | AW48: 0 | AX48: 0 | AY48: 0 | AZ48: 0 | BA48: 0 | BB48: 0 | BC48: 0 | BD48: 0 | BE48: 0 | BF48: 0 | BG48: 0 | BH48: 0 | BI48: 0 | BJ48: 0 | BK48: 0 | BL48: 0 | BM48: 0 | BN48: 0 | BO48: 0 | BP48: 0 | BQ48: =SUM(I48:BP48) -> 0
A49: 2.02 | B49: Design & Planning | D49: Insert Data Source | H49: 0 | I49: 0 | J49: 0 | K49: 0 | L49: 0 | M49: 0 | N49: 0 | O49: 0 | P49: 0 | Q49: 0 | R49: 0 | S49: 0 | T49: 0 | U49: 0 | V49: 0 | W49: 0 | X49: 0 | Y49: 0 | Z49: 0 | AA49: 0 | AB49: 0 | AC49: 0 | AD49: 0 | AE49: 0 | AF49: 0 | AG49: 0 | AH49: 0 | AI49: 0 | AJ49: 0 | AK49: 0 | AL49: 0 | AM49: 0 | AN49: 0 | AO49: 0 | AP49: 0 | AQ49: 0 | AR49: 0 | AS49: 0 | AT49: 0 | AU49: 0 | AV49: 0 | AW49: 0 | AX49: 0 | AY49: 0 | AZ49: 0 | BA49: 0 | BB49: 0 | BC49: 0 | BD49: 0 | BE49: 0 | BF49: 0 | BG49: 0 | BH49: 0 | BI49: 0 | BJ49: 0 | BK49: 0 | BL49: 0 | BM49: 0 | BN49: 0 | BO49: 0 | BP49: 0 | BQ49: 0
A50: 2.03 | B50: Construction Works, | D50: Insert Data Source | H50: 0 | I50: 0 | J50: 0 | K50: 0 | L50: 0 | M50: 0 | N50: 0 | O50: 0 | P50: 0 | Q50: 0 | R50: 0 | S50: 0 | T50: 0 | U50: 0 | V50: 0 | W50: 0 | X50: 0 | Y50: 0 | Z50: 0 | AA50: 0 | AB50: 0 | AC50: 0 | AD50: 0 | AE50: 0 | AF50: 0 | AG50: 0 | AH50: 0 | AI50: 0 | AJ50: 0 | AK50: 0 | AL50: 0 | AM50: 0 | AN50: 0 | AO50: 0 | AP50: 0 | AQ50: 0 | AR50: 0 | AS50: 0 | AT50: 0 | AU50: 0 | AV50: 0 | AW50: 0 | AX50: 0 | AY50: 0 | AZ50: 0 | BA50: 0 | BB50: 0 | BC50: 0 | BD50: 0 | BE50: 0 | BF50: 0 | BG50: 0 | BH50: 0 | BI50: 0 | BJ50: 0 | BK50: 0 | BL50: 0 | BM50: 0 | BN50: 0 | BO50: 0 | BP50: 0 | BQ50: 0
A51: 2.04 | B51: Commission | D51: Insert Data Source | H51: =SUM(I51:BP51) -> 0 | I51: 0 | J51: 0 | K51: 0 | L51: 0 | M51: 0 | N51: 0 | O51: 0 | P51: 0 | Q51: 0 | R51: 0 | S51: 0 | T51: 0 | U51: 0 | V51: 0 | W51: 0 | X51: 0 | Y51: 0 | Z51: 0 | AA51: 0 | AB51: 0 | AC51: 0 | AD51: 0 | AE51: 0 | AF51: 0 | AG51: 0 | AH51: 0 | AI51: 0 | AJ51: 0 | AK51: 0 | AL51: 0 | AM51: 0 | AN51: 0 | AO51: 0 | AP51: 0 | AQ51: 0 | AR51: 0 | AS51: 0 | AT51: 0 | AU51: 0 | AV51: 0 | AW51: 0 | AX51: 0 | AY51: 0 | AZ51: 0 | BA51: 0 | BB51: 0 | BC51: 0 | BD51: 0 | BE51: 0 | BF51: 0 | BG51: 0 | BH51: 0 | BI51: 0 | BJ51: 0 | BK51: 0 | BL51: 0 | BM51: 0 | BN51: 0 | BO51: 0 | BP51: 0 | BQ51: 0
A52: 2.05 | B52: Fit-Out | D52: Insert Data Source | H52: 0 | I52: 0 | J52: 0 | K52: 0 | L52: 0 | M52: 0 | N52: 0 | O52: 0 | P52: 0 | Q52: 0 | R52: 0 | S52: 0 | T52: 0 | U52: 0 | V52: 0 | W52: 0 | X52: 0 | Y52: 0 | Z52: 0 | AA52: 0 | AB52: 0 | AC52: 0 | AD52: 0 | AE52: 0 | AF52: 0 | AG52: 0 | AH52: 0 | AI52: 0 | AJ52: 0 | AK52: 0 | AL52: 0 | AM52: 0 | AN52: 0 | AO52: 0 | AP52: 0 | AQ52: 0 | AR52: 0 | AS52: 0 | AT52: 0 | AU52: 0 | AV52: 0 | AW52: 0 | AX52: 0 | AY52: 0 | AZ52: 0 | BA52: 0 | BB52: 0 | BC52: 0 | BD52: 0 | BE52: 0 | BF52: 0 | BG52: 0 | BH52: 0 | BI52: 0 | BJ52: 0 | BK52: 0 | BL52: 0 | BM52: 0 | BN52: 0 | BO52: 0 | BP52: 0 | BQ52: 0
A53: 2.06 | B53: Fees (Construction) | D53: Insert Data Source | H53: 0 | I53: 0 | J53: 0 | K53: 0 | L53: 0 | M53: 0 | N53: 0 | O53: 0 | P53: 0 | Q53: 0 | R53: 0 | S53: 0 | T53: 0 | U53: 0 | V53: 0 | W53: 0 | X53: 0 | Y53: 0 | Z53: 0 | AA53: 0 | AB53: 0 | AC53: 0 | AD53: 0 | AE53: 0 | AF53: 0 | AG53: 0 | AH53: 0 | AI53: 0 | AJ53: 0 | AK53: 0 | AL53: 0 | AM53: 0 | AN53: 0 | AO53: 0 | AP53: 0 | AQ53: 0 | AR53: 0 | AS53: 0 | AT53: 0 | AU53: 0 | AV53: 0 | AW53: 0 | AX53: 0 | AY53: 0 | AZ53: 0 | BA53: 0 | BB53: 0 | BC53: 0 | BD53: 0 | BE53: 0 | BF53: 0 | BG53: 0 | BH53: 0 | BI53: 0 | BJ53: 0 | BK53: 0 | BL53: 0 | BM53: 0 | BN53: 0 | BO53: 0 | BP53: 0 | BQ53: 0
A54: 2.07 | B54: Procuring Authority In-house Costs | D54: Insert Data Source | H54: 0 | I54: 0 | J54: 0 | K54: 0 | L54: 0 | M54: 0 | N54: 0 | O54: 0 | P54: 0 | Q54: 0 | R54: 0 | S54: 0 | T54: 0 | U54: 0 | V54: 0 | W54: 0 | X54: 0 | Y54: 0 | Z54: 0 | AA54: 0 | AB54: 0 | AC54: 0 | AD54: 0 | AE54: 0 | AF54: 0 | AG54: 0 | AH54: 0 | AI54: 0 | AJ54: 0 | AK54: 0 | AL54: 0 | AM54: 0 | AN54: 0 | AO54: 0 | AP54: 0 | AQ54: 0 | AR54: 0 | AS54: 0 | AT54: 0 | AU54: 0 | AV54: 0 | AW54: 0 | AX54: 0 | AY54: 0 | AZ54: 0 | BA54: 0 | BB54: 0 | BC54: 0 | BD54: 0 | BE54: 0 | BF54: 0 | BG54: 0 | BH54: 0 | BI54: 0 | BJ54: 0 | BK54: 0 | BL54: 0 | BM54: 0 | BN54: 0 | BO54: 0 | BP54: 0 | BQ54: 0
A55: 2.08 | B55: Finance | D55: Insert Data Source | H55: 0 | I55: 0 | J55: 0 | K55: 0 | L55: 0 | M55: 0 | N55: 0 | O55: 0 | P55: 0 | Q55: 0 | R55: 0 | S55: 0 | T55: 0 | U55: 0 | V55: 0 | W55: 0 | X55: 0 | Y55: 0 | Z55: 0 | AA55: 0 | AB55: 0 | AC55: 0 | AD55: 0 | AE55: 0 | AF55: 0 | AG55: 0 | AH55: 0 | AI55: 0 | AJ55: 0 | AK55: 0 | AL55: 0 | AM55: 0 | AN55: 0 | AO55: 0 | AP55: 0 | AQ55: 0 | AR55: 0 | AS55: 0 | AT55: 0 | AU55: 0 | AV55: 0 | AW55: 0 | AX55: 0 | AY55: 0 | AZ55: 0 | BA55: 0 | BB55: 0 | BC55: 0 | BD55: 0 | BE55: 0 | BF55: 0 | BG55: 0 | BH55: 0 | BI55: 0 | BJ55: 0 | BK55: 0 | BL55: 0 | BM55: 0 | BN55: 0 | BO55: 0 | BP55: 0 | BQ55: 0
A56: 2.09 | B56: Disposal | D56: Insert Data Source | H56: 0 | I56: 0 | J56: 0 | K56: 0 | L56: 0 | M56: 0 | N56: 0 | O56: 0 | P56: 0 | Q56: 0 | R56: 0 | S56: 0 | T56: 0 | U56: 0 | V56: 0 | W56: 0 | X56: 0 | Y56: 0 | Z56: 0 | AA56: 0 | AB56: 0 | AC56: 0 | AD56: 0 | AE56: 0 | AF56: 0 | AG56: 0 | AH56: 0 | AI56: 0 | AJ56: 0 | AK56: 0 | AL56: 0 | AM56: 0 | AN56: 0 | AO56: 0 | AP56: 0 | AQ56: 0 | AR56: 0 | AS56: 0 | AT56: 0 | AU56: 0 | AV56: 0 | AW56: 0 | AX56: 0 | AY56: 0 | AZ56: 0 | BA56: 0 | BB56: 0 | BC56: 0 | BD56: 0 | BE56: 0 | BF56: 0 | BG56: 0 | BH56: 0 | BI56: 0 | BJ56: 0 | BK56: 0 | BL56: 0 | BM56: 0 | BN56: 0 | BO56: 0 | BP56: 0 | BQ56: 0
A57: 2.1 | B57: Description of item | H57: 0 | I57: 0 | J57: 0 | K57: 0 | L57: 0 | M57: 0 | N57: 0 | O57: 0 | P57: 0 | Q57: 0 | R57: 0 | S57: 0 | T57: 0 | U57: 0 | V57: 0 | W57: 0 | X57: 0 | Y57: 0 | Z57: 0 | AA57: 0 | AB57: 0 | AC57: 0 | AD57: 0 | AE57: 0 | AF57: 0 | AG57: 0 | AH57: 0 | AI57: 0 | AJ57: 0 | AK57: 0 | AL57: 0 | AM57: 0 | AN57: 0 | AO57: 0 | AP57: 0 | AQ57: 0 | AR57: 0 | AS57: 0 | AT57: 0 | AU57: 0 | AV57: 0 | AW57: 0 | AX57: 0 | AY57: 0 | AZ57: 0 | BA57: 0 | BB57: 0 | BC57: 0 | BD57: 0 | BE57: 0 | BF57: 0 | BG57: 0 | BH57: 0 | BI57: 0 | BJ57: 0 | BK57: 0 | BL57: 0 | BM57: 0 | BN57: 0 | BO57: 0 | BP57: 0 | BQ57: 0
A58: 2.11 | B58: Description of item | H58: 0 | I58: 0 | J58: 0 | K58: 0 | L58: 0 | M58: 0 | N58: 0 | O58: 0 | P58: 0 | Q58: 0 | R58: 0 | S58: 0 | T58: 0 | U58: 0 | V58: 0 | W58: 0 | X58: 0 | Y58: 0 | Z58: 0 | AA58: 0 | AB58: 0 | AC58: 0 | AD58: 0 | AE58: 0 | AF58: 0 | AG58: 0 | AH58: 0 | AI58: 0 | AJ58: 0 | AK58: 0 | AL58: 0 | AM58: 0 | AN58: 0 | AO58: 0 | AP58: 0 | AQ58: 0 | AR58: 0 | AS58: 0 | AT58: 0 | AU58: 0 | AV58: 0 | AW58: 0 | AX58: 0 | AY58: 0 | AZ58: 0 | BA58: 0 | BB58: 0 | BC58: 0 | BD58: 0 | BE58: 0 | BF58: 0 | BG58: 0 | BH58: 0 | BI58: 0 | BJ58: 0 | BK58: 0 | BL58: 0 | BM58: 0 | BN58: 0 | BO58: 0 | BP58: 0 | BQ58: 0
A59: 2.12 | B59: Description of item | H59: 0 | I59: 0 | J59: 0 | K59: 0 | L59: 0 | M59: 0 | N59: 0 | O59: 0 | P59: 0 | Q59: 0 | R59: 0 | S59: 0 | T59: 0 | U59: 0 | V59: 0 | W59: 0 | X59: 0 | Y59: 0 | Z59: 0 | AA59: 0 | AB59: 0 | AC59: 0 | AD59: 0 | AE59: 0 | AF59: 0 | AG59: 0 | AH59: 0 | AI59: 0 | AJ59: 0 | AK59: 0 | AL59: 0 | AM59: 0 | AN59: 0 | AO59: 0 | AP59: 0 | AQ59: 0 | AR59: 0 | AS59: 0 | AT59: 0 | AU59: 0 | AV59: 0 | AW59: 0 | AX59: 0 | AY59: 0 | AZ59: 0 | BA59: 0 | BB59: 0 | BC59: 0 | BD59: 0 | BE59: 0 | BF59: 0 | BG59: 0 | BH59: 0 | BI59: 0 | BJ59: 0 | BK59: 0 | BL59: 0 | BM59: 0 | BN59: 0 | BO59: 0 | BP59: 0 | BQ59: 0
A60: 2.13 | B60: Description of item | H60: 0 | I60: 0 | J60: 0 | K60: 0 | L60: 0 | M60: 0 | N60: 0 | O60: 0 | P60: 0 | Q60: 0 | R60: 0 | S60: 0 | T60: 0 | U60: 0 | V60: 0 | W60: 0 | X60: 0 | Y60: 0 | Z60: 0 | AA60: 0 | AB60: 0 | AC60: 0 | AD60: 0 | AE60: 0 | AF60: 0 | AG60: 0 | AH60: 0 | AI60: 0 | AJ60: 0 | AK60: 0 | AL60: 0 | AM60: 0 | AN60: 0 | AO60: 0 | AP60: 0 | AQ60: 0 | AR60: 0 | AS60: 0 | AT60: 0 | AU60: 0 | AV60: 0 | AW60: 0 | AX60: 0 | AY60: 0 | AZ60: 0 | BA60: 0 | BB60: 0 | BC60: 0 | BD60: 0 | BE60: 0 | BF60: 0 | BG60: 0 | BH60: 0 | BI60: 0 | BJ60: 0 | BK60: 0 | BL60: 0 | BM60: 0 | BN60: 0 | BO60: 0 | BP60: 0 | BQ60: 0
A61: 2.14 | B61: Description of item | H61: 0 | I61: 0 | J61: 0 | K61: 0 | L61: 0 | M61: 0 | N61: 0 | O61: 0 | P61: 0 | Q61: 0 | R61: 0 | S61: 0 | T61: 0 | U61: 0 | V61: 0 | W61: 0 | X61: 0 | Y61: 0 | Z61: 0 | AA61: 0 | AB61: 0 | AC61: 0 | AD61: 0 | AE61: 0 | AF61: 0 | AG61: 0 | AH61: 0 | AI61: 0 | AJ61: 0 | AK61: 0 | AL61: 0 | AM61: 0 | AN61: 0 | AO61: 0 | AP61: 0 | AQ61: 0 | AR61: 0 | AS61: 0 | AT61: 0 | AU61: 0 | AV61: 0 | AW61: 0 | AX61: 0 | AY61: 0 | AZ61: 0 | BA61: 0 | BB61: 0 | BC61: 0 | BD61: 0 | BE61: 0 | BF61: 0 | BG61: 0 | BH61: 0 | BI61: 0 | BJ61: 0 | BK61: 0 | BL61: 0 | BM61: 0 | BN61: 0 | BO61: 0 | BP61: 0 | BQ61: 0
G62: TOTAL CURRENT DAY COSTS | H62: =SUM(H48:H61) -> 0 | I62: =SUM(I48:I61) -> 0 | J62: 0 | K62: =SUM(K48:K61) -> 0 | L62: 0 | M62: 0 | N62: 0 | O62: 0 | P62: 0 | Q62: 0 | R62: 0 | S62: 0 | T62: 0 | U62: 0 | V62: 0 | W62: 0 | X62: 0 | Y62: 0 | Z62: 0 | AA62: 0 | AB62: 0 | AC62: 0 | AD62: 0 | AE62: 0 | AF62: 0 | AG62: 0 | AH62: 0 | AI62: 0 | AJ62: 0 | AK62: 0 | AL62: 0 | AM62: 0 | AN62: 0 | AO62: 0 | AP62: 0 | AQ62: 0 | AR62: 0 | AS62: 0 | AT62: 0 | AU62: 0 | AV62: 0 | AW62: 0 | AX62: 0 | AY62: 0 | AZ62: 0 | BA62: 0 | BB62: 0 | BC62: 0 | BD62: 0 | BE62: 0 | BF62: 0 | BG62: 0 | BH62: 0 | BI62: 0 | BJ62: 0 | BK62: 0 | BL62: 0 | BM62: 0 | BN62: 0 | BO62: 0 | BP62: 0 | BQ62: 0
B63: Indexation | C63: CAPEX | D63: ='Project Input'!E18 -> 0 | I63: 1 | J63: =SUM(I63*$D$63)+I63 -> 1 | K63: =SUM(J63*$D$63)+J63 -> 1 | L63: 1 | M63: 1 | N63: 1 | O63: 1 | P63: 1 | Q63: 1 | R63: 1 | S63: 1 | T63: 1 | U63: 1 | V63: 1 | W63: 1 | X63: 1 | Y63: 1 | Z63: 1 | AA63: 1 | AB63: 1 | AC63: 1 | AD63: 1 | AE63: 1 | AF63: 1 | AG63: 1 | AH63: 1 | AI63: 1 | AJ63: 1 | AK63: 1 | AL63: 1 | AM63: 1 | AN63: 1 | AO63: 1 | AP63: 1 | AQ63: 1 | AR63: 1 | AS63: 1 | AT63: 1 | AU63: 1 | AV63: 1 | AW63: 1 | AX63: 1 | AY63: 1 | AZ63: 1 | BA63: 1 | BB63: 1 | BC63: 1 | BD63: 1 | BE63: 1 | BF63: 1 | BG63: 1 | BH63: 1 | BI63: 1 | BJ63: 1 | BK63: 1 | BL63: 1 | BM63: 1 | BN63: 1 | BO63: 1 | BP63: 1
G64: Annual Nominal Whole Life Costs | H64: =SUM(I64:BP64) -> 0 | I64: =SUM(I63*I62) -> 0 | J64: =SUM(J63*J62) -> 0 | K64: 0 | L64: 0 | M64: 0 | N64: 0 | O64: 0 | P64: 0 | Q64: 0 | R64: 0 | S64: 0 | T64: 0 | U64: 0 | V64: 0 | W64: 0 | X64: 0 | Y64: 0 | Z64: 0 | AA64: 0 | AB64: 0 | AC64: 0 | AD64: 0 | AE64: 0 | AF64: 0 | AG64: 0 | AH64: 0 | AI64: 0 | AJ64: 0 | AK64: 0 | AL64: 0 | AM64: 0 | AN64: 0 | AO64: 0 | AP64: 0 | AQ64: 0 | AR64: 0 | AS64: 0 | AT64: 0 | AU64: 0 | AV64: 0 | AW64: 0 | AX64: 0 | AY64: 0 | AZ64: 0 | BA64: 0 | BB64: 0 | BC64: 0 | BD64: 0 | BE64: 0 | BF64: 0 | BG64: 0 | BH64: 0 | BI64: 0 | BJ64: 0 | BK64: 0 | BL64: 0 | BM64: 0 | BN64: 0 | BO64: 0 | BP64: 0 | BQ64: =SUM(I64:BP64) -> 0
C65: Days since start of concession | D65: 365 | I65: =SUM($D$65*I26) -> 365 | J65: =SUM($D$65*J26) -> 730 | K65: =SUM($D$65*K26) -> 1095 | L65: 1460 | M65: 1825 | N65: 2190 | O65: 2555 | P65: 2920 | Q65: 3285 | R65: 3650 | S65: 4015 | T65: 4380 | U65: 4745 | V65: 5110 | W65: 5475 | X65: 5840 | Y65: 6205 | Z65: 6570 | AA65: 6935 | AB65: 7300 | AC65: 7665 | AD65: 8030 | AE65: 8395 | AF65: 8760 | AG65: 9125 | AH65: 9490 | AI65: 9855 | AJ65: 10220 | AK65: 10585 | AL65: 10950 | AM65: 11315 | AN65: 11680 | AO65: 12045 | AP65: 12410 | AQ65: 12775 | AR65: 13140 | AS65: 13505 | AT65: 13870 | AU65: 14235 | AV65: 14600 | AW65: 14965 | AX65: 15330 | AY65: 15695 | AZ65: 16060 | BA65: 16425 | BB65: 16790 | BC65: 17155 | BD65: 17520 | BE65: 17885 | BF65: 18250 | BG65: 18615 | BH65: 18980 | BI65: 19345 | BJ65: 19710 | BK65: 20075 | BL65: 20440 | BM65: 20805 | BN65: 21170 | BO65: 21535 | BP65: 21900
C66: Discount index | D66: ='Project Input'!$E$24 -> 0 | I66: =(1+$D$66)^(I65/$D$65) -> 1 | J66: =(1+$D$66)^(J65/$D$65) -> 1 | K66: 1 | L66: 1 | M66: 1 | N66: 1 | O66: 1 | P66: 1 | Q66: 1 | R66: 1 | S66: 1 | T66: 1 | U66: 1 | V66: 1 | W66: 1 | X66: 1 | Y66: 1 | Z66: 1 | AA66: 1 | AB66: 1 | AC66: 1 | AD66: 1 | AE66: 1 | AF66: 1 | AG66: 1 | AH66: 1 | AI66: 1 | AJ66: 1 | AK66: 1 | AL66: 1 | AM66: 1 | AN66: 1 | AO66: 1 | AP66: 1 | AQ66: 1 | AR66: 1 | AS66: 1 | AT66: 1 | AU66: 1 | AV66: 1 | AW66: 1 | AX66: 1 | AY66: 1 | AZ66: 1 | BA66: 1 | BB66: 1 | BC66: 1 | BD66: 1 | BE66: 1 | BF66: 1 | BG66: 1 | BH66: 1 | BI66: 1 | BJ66: 1 | BK66: 1 | BL66: 1 | BM66: 1 | BN66: 1 | BO66: 1 | BP66: 1
A67: 2 Construction Costs | G67: Annual NPV of Whole Life Costs | H67: =SUM(I67:BP67) -> 0 | I67: =I64/I66 -> 0 | J67: 0 | K67: 0 | L67: 0 | M67: 0 | N67: 0 | O67: 0 | P67: 0 | Q67: 0 | R67: 0 | S67: 0 | T67: 0 | U67: 0 | V67: 0 | W67: 0 | X67: 0 | Y67: 0 | Z67: 0 | AA67: 0 | AB67: 0 | AC67: 0 | AD67: 0 | AE67: 0 | AF67: 0 | AG67: 0 | AH67: 0 | AI67: 0 | AJ67: 0 | AK67: 0 | AL67: 0 | AM67: 0 | AN67: 0 | AO67: 0 | AP67: 0 | AQ67: 0 | AR67: 0 | AS67: 0 | AT67: 0 | AU67: 0 | AV67: 0 | AW67: 0 | AX67: 0 | AY67: 0 | AZ67: 0 | BA67: 0 | BB67: 0 | BC67: 0 | BD67: 0 | BE67: 0 | BF67: 0 | BG67: 0 | BH67: 0 | BI67: 0 | BJ67: 0 | BK67: 0 | BL67: 0 | BM67: 0 | BN67: 0 | BO67: 0 | BP67: 0 | BQ67: =SUM(I67:BP67) -> 0
G68: Cumulative NPV of Whole Life Costs | I68: =SUM(I67) -> 0 | J68: =SUM(I68+J67) -> 0 | K68: =SUM(J68+K67) -> 0 | L68: =SUM(K68+L67) -> 0 | M68: =SUM(L68+M67) -> 0 | N68: 0 | O68: 0 | P68: 0 | Q68: 0 | R68: 0 | S68: 0 | T68: 0 | U68: 0 | V68: 0 | W68: 0 | X68: 0 | Y68: 0 | Z68: 0 | AA68: 0 | AB68: 0 | AC68: 0 | AD68: 0 | AE68: 0 | AF68: 0 | AG68: 0 | AH68: 0 | AI68: 0 | AJ68: 0 | AK68: =SUM(AJ68+AK67) -> 0 | AL68: =SUM(AK68+AL67) -> 0 | AM68: 0 | AN68: 0 | AO68: 0 | AP68: 0 | AQ68: 0 | AR68: 0 | AS68: 0 | AT68: 0 | AU68: 0 | AV68: 0 | AW68: 0 | AX68: 0 | AY68: 0 | AZ68: 0 | BA68: 0 | BB68: 0 | BC68: 0 | BD68: 0 | BE68: 0 | BF68: 0 | BG68: 0 | BH68: 0 | BI68: 0 | BJ68: 0 | BK68: 0 | BL68: 0 | BM68: 0 | BN68: 0 | BO68: 0
A69: 3 | B69: Rent & Rates | G69: £/annum | I69: =I27 -> 2019 | J69: =J27 -> 2020 | K69: 2021 | L69: 2022 | M69: 2023 | N69: 2024 | O69: 2025 | P69: 2026 | Q69: 2027 | R69: 2028 | S69: 2029 | T69: 2030 | U69: 2031 | V69: 2032 | W69: 2033 | X69: 2034 | Y69: 2035 | Z69: 2036 | AA69: 2037 | AB69: 2038 | AC69: 2039 | AD69: 2040 | AE69: 2041 | AF69: 2042 | AG69: 2043 | AH69: 2044 | AI69: 2045 | AJ69: 2046 | AK69: 2047 | AL69: 2048 | AM69: 2049 | AN69: 2050 | AO69: 2051 | AP69: 2052 | AQ69: 2053 | AR69: 2054 | AS69: 2055 | AT69: 2056 | AU69: 2057 | AV69: 2058 | AW69: 2059 | AX69: 2060 | AY69: 2061 | AZ69: 2062 | BA69: 2063 | BB69: 2064 | BC69: 2065 | BD69: 2066 | BE69: 2067 | BF69: 2068 | BG69: 2069 | BH69: 2070 | BI69: 2071 | BJ69: 2072 | BK69: 2073 | BL69: 2074 | BM69: 2075 | BN69: 2076 | BO69: 2077 | BP69: 2078 | BT69: =NPV('Project Input'!$D$22,'Option B'!J69:BP69)+I69 -> 52638.57152
A70: 3.01 | B70: Rent | D70: Insert Data Source | G70: 0 | H70: 0 | I70: 0 | J70: 0 | K70: 0 | L70: 0 | M70: 0 | N70: 0 | O70: 0 | P70: 0 | Q70: 0 | R70: 0 | S70: 0 | T70: 0 | U70: 0 | V70: 0 | W70: 0 | X70: 0 | Y70: 0 | Z70: 0 | AA70: 0 | AB70: 0 | AC70: 0 | AD70: 0 | AE70: 0 | AF70: 0 | AG70: 0 | AH70: 0 | AI70: 0 | AJ70: 0 | AK70: 0 | AL70: 0 | AM70: 0 | AN70: 0 | AO70: 0 | AP70: 0 | AQ70: 0 | AR70: 0 | AS70: 0 | AT70: 0 | AU70: 0 | AV70: 0 | AW70: 0 | AX70: 0 | AY70: 0 | AZ70: 0 | BA70: 0 | BB70: 0 | BC70: 0 | BD70: 0 | BE70: 0 | BF70: 0 | BG70: 0 | BH70: 0 | BI70: 0 | BJ70: 0 | BK70: 0 | BL70: 0 | BM70: 0 | BN70: 0 | BO70: 0 | BP70: 0 | BQ70: 0
A71: 3.02 | B71: Rates | D71: Insert Data Source | G71: 0 | H71: 0 | I71: 0 | J71: 0 | K71: 0 | L71: 0 | M71: 0 | N71: 0 | O71: 0 | P71: 0 | Q71: 0 | R71: 0 | S71: 0 | T71: 0 | U71: 0 | V71: 0 | W71: 0 | X71: 0 | Y71: 0 | Z71: 0 | AA71: 0 | AB71: 0 | AC71: 0 | AD71: 0 | AE71: 0 | AF71: 0 | AG71: 0 | AH71: 0 | AI71: 0 | AJ71: 0 | AK71: 0 | AL71: 0 | AM71: 0 | AN71: 0 | AO71: 0 | AP71: 0 | AQ71: 0 | AR71: 0 | AS71: 0 | AT71: 0 | AU71: 0 | AV71: 0 | AW71: 0 | AX71: 0 | AY71: 0 | AZ71: 0 | BA71: 0 | BB71: 0 | BC71: 0 | BD71: 0 | BE71: 0 | BF71: 0 | BG71: 0 | BH71: 0 | BI71: 0 | BJ71: 0 | BK71: 0 | BL71: 0 | BM71: 0 | BN71: 0 | BO71: 0 | BP71: 0 | BQ71: 0
A72: 3.03 | B72: Insurance | D72: Insert Data Source | G72: 0 | H72: 0 | I72: 0 | J72: 0 | K72: 0 | L72: 0 | M72: 0 | N72: 0 | O72: 0 | P72: 0 | Q72: 0 | R72: 0 | S72: 0 | T72: 0 | U72: 0 | V72: 0 | W72: 0 | X72: 0 | Y72: 0 | Z72: 0 | AA72: 0 | AB72: 0 | AC72: 0 | AD72: 0 | AE72: 0 | AF72: 0 | AG72: 0 | AH72: 0 | AI72: 0 | AJ72: 0 | AK72: 0 | AL72: 0 | AM72: 0 | AN72: 0 | AO72: 0 | AP72: 0 | AQ72: 0 | AR72: 0 | AS72: 0 | AT72: 0 | AU72: 0 | AV72: 0 | AW72: 0 | AX72: 0 | AY72: 0 | AZ72: 0 | BA72: 0 | BB72: 0 | BC72: 0 | BD72: 0 | BE72: 0 | BF72: 0 | BG72: 0 | BH72: 0 | BI72: 0 | BJ72: 0 | BK72: 0 | BL72: 0 | BM72: 0 | BN72: 0 | BO72: 0 | BP72: 0 | BQ72: 0
A73: 3.04 | B73: Description of item & Source of Data | G73: 0 | H73: 0 | I73: 0 | J73: 0 | K73: 0 | L73: 0 | M73: 0 | N73: 0 | O73: 0 | P73: 0 | Q73: 0 | R73: 0 | S73: 0 | T73: 0 | U73: 0 | V73: 0 | W73: 0 | X73: 0 | Y73: 0 | Z73: 0 | AA73: 0 | AB73: 0 | AC73: 0 | AD73: 0 | AE73: 0 | AF73: 0 | AG73: 0 | AH73: 0 | AI73: 0 | AJ73: 0 | AK73: 0 | AL73: 0 | AM73: 0 | AN73: 0 | AO73: 0 | AP73: 0 | AQ73: 0 | AR73: 0 | AS73: 0 | AT73: 0 | AU73: 0 | AV73: 0 | AW73: 0 | AX73: 0 | AY73: 0 | AZ73: 0 | BA73: 0 | BB73: 0 | BC73: 0 | BD73: 0 | BE73: 0 | BF73: 0 | BG73: 0 | BH73: 0 | BI73: 0 | BJ73: 0 | BK73: 0 | BL73: 0 | BM73: 0 | BN73: 0 | BO73: 0 | BP73: 0 | BQ73: 0
A74: 3.05 | B74: Description of item & Source of Data | G74: 0 | H74: 0 | I74: 0 | J74: 0 | K74: 0 | L74: 0 | M74: 0 | N74: 0 | O74: 0 | P74: 0 | Q74: 0 | R74: 0 | S74: 0 | T74: 0 | U74: 0 | V74: 0 | W74: 0 | X74: 0 | Y74: 0 | Z74: 0 | AA74: 0 | AB74: 0 | AC74: 0 | AD74: 0 | AE74: 0 | AF74: 0 | AG74: 0 | AH74: 0 | AI74: 0 | AJ74: 0 | AK74: 0 | AL74: 0 | AM74: 0 | AN74: 0 | AO74: 0 | AP74: 0 | AQ74: 0 | AR74: 0 | AS74: 0 | AT74: 0 | AU74: 0 | AV74: 0 | AW74: 0 | AX74: 0 | AY74: 0 | AZ74: 0 | BA74: 0 | BB74: 0 | BC74: 0 | BD74: 0 | BE74: 0 | BF74: 0 | BG74: 0 | BH74: 0 | BI74: 0 | BJ74: 0 | BK74: 0 | BL74: 0 | BM74: 0 | BN74: 0 | BO74: 0 | BP74: 0 | BQ74: 0
A75: 3.06 | B75: Description of item & Source of Data | G75: 0 | H75: 0 | I75: 0 | J75: 0 | K75: 0 | L75: 0 | M75: 0 | N75: 0 | O75: 0 | P75: 0 | Q75: 0 | R75: 0 | S75: 0 | T75: 0 | U75: 0 | V75: 0 | W75: 0 | X75: 0 | Y75: 0 | Z75: 0 | AA75: 0 | AB75: 0 | AC75: 0 | AD75: 0 | AE75: 0 | AF75: 0 | AG75: 0 | AH75: 0 | AI75: 0 | AJ75: 0 | AK75: 0 | AL75: 0 | AM75: 0 | AN75: 0 | AO75: 0 | AP75: 0 | AQ75: 0 | AR75: 0 | AS75: 0 | AT75: 0 | AU75: 0 | AV75: 0 | AW75: 0 | AX75: 0 | AY75: 0 | AZ75: 0 | BA75: 0 | BB75: 0 | BC75: 0 | BD75: 0 | BE75: 0 | BF75: 0 | BG75: 0 | BH75: 0 | BI75: 0 | BJ75: 0 | BK75: 0 | BL75: 0 | BM75: 0 | BN75: 0 | BO75: 0 | BP75: 0 | BQ75: 0
A76: 3.07 | B76: Description of item & Source of Data | G76: 0 | H76: 0 | I76: 0 | J76: 0 | K76: 0 | L76: 0 | M76: 0 | N76: 0 | O76: 0 | P76: 0 | Q76: 0 | R76: 0 | S76: 0 | T76: 0 | U76: 0 | V76: 0 | W76: 0 | X76: 0 | Y76: 0 | Z76: 0 | AA76: 0 | AB76: 0 | AC76: 0 | AD76: 0 | AE76: 0 | AF76: 0 | AG76: 0 | AH76: 0 | AI76: 0 | AJ76: 0 | AK76: 0 | AL76: 0 | AM76: 0 | AN76: 0 | AO76: 0 | AP76: 0 | AQ76: 0 | AR76: 0 | AS76: 0 | AT76: 0 | AU76: 0 | AV76: 0 | AW76: 0 | AX76: 0 | AY76: 0 | AZ76: 0 | BA76: 0 | BB76: 0 | BC76: 0 | BD76: 0 | BE76: 0 | BF76: 0 | BG76: 0 | BH76: 0 | BI76: 0 | BJ76: 0 | BK76: 0 | BL76: 0 | BM76: 0 | BN76: 0 | BO76: 0 | BP76: 0 | BQ76: 0
A77: 3.08 | B77: Description of item & Source of Data | G77: 0 | H77: 0 | I77: 0 | J77: 0 | K77: 0 | L77: 0 | M77: 0 | N77: 0 | O77: 0 | P77: 0 | Q77: 0 | R77: 0 | S77: 0 | T77: 0 | U77: 0 | V77: 0 | W77: 0 | X77: 0 | Y77: 0 | Z77: 0 | AA77: 0 | AB77: 0 | AC77: 0 | AD77: 0 | AE77: 0 | AF77: 0 | AG77: 0 | AH77: 0 | AI77: 0 | AJ77: 0 | AK77: 0 | AL77: 0 | AM77: 0 | AN77: 0 | AO77: 0 | AP77: 0 | AQ77: 0 | AR77: 0 | AS77: 0 | AT77: 0 | AU77: 0 | AV77: 0 | AW77: 0 | AX77: 0 | AY77: 0 | AZ77: 0 | BA77: 0 | BB77: 0 | BC77: 0 | BD77: 0 | BE77: 0 | BF77: 0 | BG77: 0 | BH77: 0 | BI77: 0 | BJ77: 0 | BK77: 0 | BL77: 0 | BM77: 0 | BN77: 0 | BO77: 0 | BP77: 0 | BQ77: 0
G78: TOTAL CURRENT DAY COSTS | H78: =SUM(H70:H77) -> 0 | I78: =SUM(I70:I77) -> 0 | J78: =SUM(J70:J77) -> 0 | K78: 0 | L78: 0 | M78: 0 | N78: 0 | O78: 0 | P78: 0 | Q78: 0 | R78: 0 | S78: 0 | T78: 0 | U78: 0 | V78: 0 | W78: 0 | X78: 0 | Y78: 0 | Z78: 0 | AA78: 0 | AB78: 0 | AC78: 0 | AD78: 0 | AE78: 0 | AF78: 0 | AG78: 0 | AH78: 0 | AI78: 0 | AJ78: 0 | AK78: 0 | AL78: 0 | AM78: 0 | AN78: 0 | AO78: 0 | AP78: 0 | AQ78: 0 | AR78: 0 | AS78: 0 | AT78: 0 | AU78: 0 | AV78: 0 | AW78: 0 | AX78: 0 | AY78: 0 | AZ78: 0 | BA78: 0 | BB78: 0 | BC78: 0 | BD78: 0 | BE78: 0 | BF78: 0 | BG78: 0 | BH78: 0 | BI78: 0 | BJ78: 0 | BK78: 0 | BL78: 0 | BM78: 0 | BN78: 0 | BO78: 0 | BP78: 0 | BQ78: =SUM(I78:BP78) -> 0
B79: Indexation | C79: LCC | D79: ='Project Input'!$E$19 -> 0 | I79: 1 | J79: =SUM(I79*$D$79)+I79 -> 1 | K79: =SUM(J79*$D$79)+J79 -> 1 | L79: 1 | M79: 1 | N79: 1 | O79: 1 | P79: 1 | Q79: 1 | R79: 1 | S79: 1 | T79: 1 | U79: 1 | V79: 1 | W79: 1 | X79: 1 | Y79: 1 | Z79: 1 | AA79: 1 | AB79: 1 | AC79: 1 | AD79: 1 | AE79: 1 | AF79: 1 | AG79: 1 | AH79: 1 | AI79: 1 | AJ79: 1 | AK79: 1 | AL79: 1 | AM79: 1 | AN79: 1 | AO79: 1 | AP79: 1 | AQ79: 1 | AR79: 1 | AS79: 1 | AT79: 1 | AU79: 1 | AV79: 1 | AW79: 1 | AX79: 1 | AY79: 1 | AZ79: 1 | BA79: 1 | BB79: 1 | BC79: 1 | BD79: 1 | BE79: 1 | BF79: 1 | BG79: 1 | BH79: 1 | BI79: 1 | BJ79: 1 | BK79: 1 | BL79: 1 | BM79: 1 | BN79: 1 | BO79: 1 | BP79: 1
G80: Annual Nominal Whole Life Costs | H80: =SUM(I80:BP80) -> 0 | I80: =SUM(I79*I78) -> 0 | J80: =SUM(J79*J78) -> 0 | K80: 0 | L80: 0 | M80: 0 | N80: 0 | O80: 0 | P80: 0 | Q80: 0 | R80: 0 | S80: 0 | T80: 0 | U80: 0 | V80: 0 | W80: 0 | X80: 0 | Y80: 0 | Z80: 0 | AA80: 0 | AB80: 0 | AC80: 0 | AD80: 0 | AE80: 0 | AF80: 0 | AG80: 0 | AH80: 0 | AI80: 0 | AJ80: 0 | AK80: 0 | AL80: 0 | AM80: 0 | AN80: 0 | AO80: 0 | AP80: 0 | AQ80: 0 | AR80: 0 | AS80: 0 | AT80: 0 | AU80: 0 | AV80: 0 | AW80: 0 | AX80: 0 | AY80: 0 | AZ80: 0 | BA80: 0 | BB80: 0 | BC80: 0 | BD80: 0 | BE80: 0 | BF80: 0 | BG80: 0 | BH80: 0 | BI80: 0 | BJ80: 0 | BK80: 0 | BL80: 0 | BM80: 0 | BN80: 0 | BO80: 0 | BP80: 0 | BQ80: =SUM(I80:BP80) -> 0
C81: Days since start of concession | D81: 365 | I81: =SUM($D$110*I26) -> 365 | J81: =SUM($D$81*J26) -> 730 | K81: 1095 | L81: 1460 | M81: 1825 | N81: 2190 | O81: 2555 | P81: 2920 | Q81: 3285 | R81: 3650 | S81: 4015 | T81: 4380 | U81: 4745 | V81: 5110 | W81: 5475 | X81: 5840 | Y81: 6205 | Z81: 6570 | AA81: 6935 | AB81: 7300 | AC81: 7665 | AD81: 8030 | AE81: 8395 | AF81: 8760 | AG81: 9125 | AH81: 9490 | AI81: 9855 | AJ81: 10220 | AK81: 10585 | AL81: 10950 | AM81: 11315 | AN81: 11680 | AO81: 12045 | AP81: 12410 | AQ81: 12775 | AR81: 13140 | AS81: 13505 | AT81: 13870 | AU81: 14235 | AV81: 14600 | AW81: 14965 | AX81: 15330 | AY81: 15695 | AZ81: 16060 | BA81: 16425 | BB81: 16790 | BC81: 17155 | BD81: 17520 | BE81: 17885 | BF81: 18250 | BG81: 18615 | BH81: 18980 | BI81: 19345 | BJ81: 19710 | BK81: 20075 | BL81: 20440 | BM81: 20805 | BN81: 21170 | BO81: 21535 | BP81: 21900
C82: Discount index | D82: ='Project Input'!$E$24 -> 0 | I82: =(1+$D$82)^(I81/$D$81) -> 1 | J82: =(1+$D$82)^(J81/$D$81) -> 1 | K82: 1 | L82: 1 | M82: 1 | N82: 1 | O82: 1 | P82: 1 | Q82: 1 | R82: 1 | S82: 1 | T82: 1 | U82: 1 | V82: 1 | W82: 1 | X82: 1 | Y82: 1 | Z82: 1 | AA82: 1 | AB82: 1 | AC82: 1 | AD82: 1 | AE82: 1 | AF82: 1 | AG82: 1 | AH82: 1 | AI82: 1 | AJ82: 1 | AK82: 1 | AL82: 1 | AM82: 1 | AN82: 1 | AO82: 1 | AP82: 1 | AQ82: 1 | AR82: 1 | AS82: 1 | AT82: 1 | AU82: 1 | AV82: 1 | AW82: 1 | AX82: 1 | AY82: 1 | AZ82: 1 | BA82: 1 | BB82: 1 | BC82: 1 | BD82: 1 | BE82: 1 | BF82: 1 | BG82: 1 | BH82: 1 | BI82: 1 | BJ82: 1 | BK82: 1 | BL82: 1 | BM82: 1 | BN82: 1 | BO82: 1 | BP82: 1
A83: 3 Rents & Rates | G83: Annual NPV of Whole Life Costs | H83: =SUM(I83:BP83) -> 0 | I83: =I80/I82 -> 0 | J83: 0 | K83: 0 | L83: 0 | M83: 0 | N83: 0 | O83: 0 | P83: 0 | Q83: 0 | R83: 0 | S83: 0 | T83: 0 | U83: 0 | V83: 0 | W83: 0 | X83: 0 | Y83: 0 | Z83: 0 | AA83: 0 | AB83: 0 | AC83: 0 | AD83: 0 | AE83: 0 | AF83: 0 | AG83: 0 | AH83: 0 | AI83: 0 | AJ83: 0 | AK83: 0 | AL83: 0 | AM83: 0 | AN83: 0 | AO83: 0 | AP83: 0 | AQ83: 0 | AR83: 0 | AS83: 0 | AT83: 0 | AU83: 0 | AV83: 0 | AW83: 0 | AX83: 0 | AY83: 0 | AZ83: 0 | BA83: 0 | BB83: 0 | BC83: 0 | BD83: 0 | BE83: 0 | BF83: 0 | BG83: 0 | BH83: 0 | BI83: 0 | BJ83: 0 | BK83: 0 | BL83: 0 | BM83: 0 | BN83: 0 | BO83: 0 | BP83: 0 | BQ83: =SUM(I83:BP83) -> 0
G84: Cumulative NPV of Whole Life Costs | I84: =SUM(I83) -> 0 | J84: =SUM(I84+J83) -> 0 | K84: =SUM(J84+K83) -> 0 | L84: =SUM(K84+L83) -> 0 | M84: =SUM(L84+M83) -> 0 | N84: 0 | O84: 0 | P84: 0 | Q84: 0 | R84: 0 | S84: 0 | T84: 0 | U84: 0 | V84: 0 | W84: 0 | X84: 0 | Y84: 0 | Z84: 0 | AA84: 0 | AB84: 0 | AC84: 0 | AD84: 0 | AE84: 0 | AF84: 0 | AG84: 0 | AH84: 0 | AI84: 0 | AJ84: 0 | AK84: =SUM(AJ84+AK83) -> 0 | AL84: =SUM(AK84+AL83) -> 0 | AM84: 0 | AN84: 0 | AO84: 0 | AP84: 0 | AQ84: 0 | AR84: 0 | AS84: 0 | AT84: 0 | AU84: 0 | AV84: 0 | AW84: 0 | AX84: 0 | AY84: 0 | AZ84: 0 | BA84: 0 | BB84: 0 | BC84: 0 | BD84: 0 | BE84: 0 | BF84: 0 | BG84: 0 | BH84: 0 | BI84: 0 | BJ84: 0 | BK84: 0 | BL84: 0 | BM84: 0 | BN84: 0 | BO84: 0
A85: 4 | B85: Operation & Occupancy Costs (Soft FM) | G85: £/annum | I85: =I27 -> 2019 | J85: =J27 -> 2020 | K85: 2021 | L85: 2022 | M85: 2023 | N85: 2024 | O85: 2025 | P85: 2026 | Q85: 2027 | R85: 2028 | S85: 2029 | T85: 2030 | U85: 2031 | V85: 2032 | W85: 2033 | X85: 2034 | Y85: 2035 | Z85: 2036 | AA85: 2037 | AB85: 2038 | AC85: 2039 | AD85: 2040 | AE85: 2041 | AF85: 2042 | AG85: 2043 | AH85: 2044 | AI85: 2045 | AJ85: 2046 | AK85: 2047 | AL85: 2048 | AM85: 2049 | AN85: 2050 | AO85: 2051 | AP85: 2052 | AQ85: 2053 | AR85: 2054 | AS85: 2055 | AT85: 2056 | AU85: 2057 | AV85: 2058 | AW85: 2059 | AX85: 2060 | AY85: 2061 | AZ85: 2062 | BA85: 2063 | BB85: 2064 | BC85: 2065 | BD85: 2066 | BE85: 2067 | BF85: 2068 | BG85: 2069 | BH85: 2070 | BI85: 2071 | BJ85: 2072 | BK85: 2073 | BL85: 2074 | BM85: 2075 | BN85: 2076 | BO85: 2077 | BP85: 2078 | BT85: =NPV('Project Input'!$D$22,'Option B'!J85:BP85)+I85 -> 52638.57152
A86: 4.01 | B86: Estate / Property Management | D86: Insert Data Source | G86: =H86/BT86 ->  | H86: =SUM(I86:BP86) -> 0 | I86: 0 | J86: 0 | K86: 0 | L86: 0 | M86: 0 | N86: 0 | O86: 0 | P86: 0 | Q86: 0 | R86: 0 | S86: 0 | T86: 0 | U86: 0 | V86: 0 | W86: 0 | X86: 0 | Y86: 0 | Z86: 0 | AA86: 0 | AB86: 0 | AC86: 0 | AD86: 0 | AE86: 0 | AF86: 0 | AG86: 0 | AH86: 0 | AI86: 0 | AJ86: 0 | AK86: 0 | AL86: 0 | AM86: 0 | AN86: 0 | AO86: 0 | AP86: 0 | AQ86: 0 | AR86: 0 | AS86: 0 | AT86: 0 | AU86: 0 | AV86: 0 | AW86: 0 | AX86: 0 | AY86: 0 | AZ86: 0 | BA86: 0 | BB86: 0 | BC86: 0 | BD86: 0 | BE86: 0 | BF86: 0 | BG86: 0 | BH86: 0 | BI86: 0 | BJ86: 0 | BK86: 0 | BL86: 0 | BM86: 0 | BN86: 0 | BO86: 0 | BP86: 0 | BQ86: 0 | BT86: =COUNTIF(I86:BP86,">1") -> 0
A87: 4.02 | B87: Caretaking | D87: Insert Data Source | G87: =H87/BT87 ->  | H87: =SUM(I87:BP87) -> 0 | I87: 0 | J87: 0 | K87: 0 | L87: 0 | M87: 0 | N87: 0 | O87: 0 | P87: 0 | Q87: 0 | R87: 0 | S87: 0 | T87: 0 | U87: 0 | V87: 0 | W87: 0 | X87: 0 | Y87: 0 | Z87: 0 | AA87: 0 | AB87: 0 | AC87: 0 | AD87: 0 | AE87: 0 | AF87: 0 | AG87: 0 | AH87: 0 | AI87: 0 | AJ87: 0 | AK87: 0 | AL87: 0 | AM87: 0 | AN87: 0 | AO87: 0 | AP87: 0 | AQ87: 0 | AR87: 0 | AS87: 0 | AT87: 0 | AU87: 0 | AV87: 0 | AW87: 0 | AX87: 0 | AY87: 0 | AZ87: 0 | BA87: 0 | BB87: 0 | BC87: 0 | BD87: 0 | BE87: 0 | BF87: 0 | BG87: 0 | BH87: 0 | BI87: 0 | BJ87: 0 | BK87: 0 | BL87: 0 | BM87: 0 | BN87: 0 | BO87: 0 | BP87: 0 | BQ87: 0 | BT87: =COUNTIF(I87:BP87,">1") -> 0
A88: 4.03 | B88: Cleaning / Domestic Services | D88: Insert Data Source | H88: 0 | I88: 0 | J88: 0 | K88: 0 | L88: 0 | M88: 0 | N88: 0 | O88: 0 | P88: 0 | Q88: 0 | R88: 0 | S88: 0 | T88: 0 | U88: 0 | V88: 0 | W88: 0 | X88: 0 | Y88: 0 | Z88: 0 | AA88: 0 | AB88: 0 | AC88: 0 | AD88: 0 | AE88: 0 | AF88: 0 | AG88: 0 | AH88: 0 | AI88: 0 | AJ88: 0 | AK88: 0 | AL88: 0 | AM88: 0 | AN88: 0 | AO88: 0 | AP88: 0 | AQ88: 0 | AR88: 0 | AS88: 0 | AT88: 0 | AU88: 0 | AV88: 0 | AW88: 0 | AX88: 0 | AY88: 0 | AZ88: 0 | BA88: 0 | BB88: 0 | BC88: 0 | BD88: 0 | BE88: 0 | BF88: 0 | BG88: 0 | BH88: 0 | BI88: 0 | BJ88: 0 | BK88: 0 | BL88: 0 | BM88: 0 | BN88: 0 | BO88: 0 | BP88: 0 | BQ88: =SUM(I88:BP88) -> 0 | BT88: =COUNTIF(I88:BP88,">1") -> 0
A89: 4.04 | B89: Waste Management / Disposal | D89: Insert Data Source | G89: =H89/BT89 ->  | H89: 0 | I89: 0 | J89: 0 | K89: 0 | L89: 0 | M89: 0 | N89: 0 | O89: 0 | P89: 0 | Q89: 0 | R89: 0 | S89: 0 | T89: 0 | U89: 0 | V89: 0 | W89: 0 | X89: 0 | Y89: 0 | Z89: 0 | AA89: 0 | AB89: 0 | AC89: 0 | AD89: 0 | AE89: 0 | AF89: 0 | AG89: 0 | AH89: 0 | AI89: 0 | AJ89: 0 | AK89: 0 | AL89: 0 | AM89: 0 | AN89: 0 | AO89: 0 | AP89: 0 | AQ89: 0 | AR89: 0 | AS89: 0 | AT89: 0 | AU89: 0 | AV89: 0 | AW89: 0 | AX89: 0 | AY89: 0 | AZ89: 0 | BA89: 0 | BB89: 0 | BC89: 0 | BD89: 0 | BE89: 0 | BF89: 0 | BG89: 0 | BH89: 0 | BI89: 0 | BJ89: 0 | BK89: 0 | BL89: 0 | BM89: 0 | BN89: 0 | BO89: 0 | BP89: 0 | BQ89: 0 | BT89: 0
A90: 4.05 | B90: Reception & Customer Hosting | D90: Insert Data Source | H90: 0 | I90: 0 | J90: 0 | K90: 0 | L90: 0 | M90: 0 | N90: 0 | O90: 0 | P90: 0 | Q90: 0 | R90: 0 | S90: 0 | T90: 0 | U90: 0 | V90: 0 | W90: 0 | X90: 0 | Y90: 0 | Z90: 0 | AA90: 0 | AB90: 0 | AC90: 0 | AD90: 0 | AE90: 0 | AF90: 0 | AG90: 0 | AH90: 0 | AI90: 0 | AJ90: 0 | AK90: 0 | AL90: 0 | AM90: 0 | AN90: 0 | AO90: 0 | AP90: 0 | AQ90: 0 | AR90: 0 | AS90: 0 | AT90: 0 | AU90: 0 | AV90: 0 | AW90: 0 | AX90: 0 | AY90: 0 | AZ90: 0 | BA90: 0 | BB90: 0 | BC90: 0 | BD90: 0 | BE90: 0 | BF90: 0 | BG90: 0 | BH90: 0 | BI90: 0 | BJ90: 0 | BK90: 0 | BL90: 0 | BM90: 0 | BN90: 0 | BO90: 0 | BP90: 0 | BQ90: 0 | BT90: 0
A91: 4.06 | B91: Security | D91: Insert Data Source | H91: 0 | I91: 0 | J91: 0 | K91: 0 | L91: 0 | M91: 0 | N91: 0 | O91: 0 | P91: 0 | Q91: 0 | R91: 0 | S91: 0 | T91: 0 | U91: 0 | V91: 0 | W91: 0 | X91: 0 | Y91: 0 | Z91: 0 | AA91: 0 | AB91: 0 | AC91: 0 | AD91: 0 | AE91: 0 | AF91: 0 | AG91: 0 | AH91: 0 | AI91: 0 | AJ91: 0 | AK91: 0 | AL91: 0 | AM91: 0 | AN91: 0 | AO91: 0 | AP91: 0 | AQ91: 0 | AR91: 0 | AS91: 0 | AT91: 0 | AU91: 0 | AV91: 0 | AW91: 0 | AX91: 0 | AY91: 0 | AZ91: 0 | BA91: 0 | BB91: 0 | BC91: 0 | BD91: 0 | BE91: 0 | BF91: 0 | BG91: 0 | BH91: 0 | BI91: 0 | BJ91: 0 | BK91: 0 | BL91: 0 | BM91: 0 | BN91: 0 | BO91: 0 | BP91: 0 | BQ91: 0 | BT91: 0
A92: 4.07 | B92: Helpdesk | D92: Insert Data Source | H92: 0 | I92: 0 | J92: 0 | K92: 0 | L92: 0 | M92: 0 | N92: 0 | O92: 0 | P92: 0 | Q92: 0 | R92: 0 | S92: 0 | T92: 0 | U92: 0 | V92: 0 | W92: 0 | X92: 0 | Y92: 0 | Z92: 0 | AA92: 0 | AB92: 0 | AC92: 0 | AD92: 0 | AE92: 0 | AF92: 0 | AG92: 0 | AH92: 0 | AI92: 0 | AJ92: 0 | AK92: 0 | AL92: 0 | AM92: 0 | AN92: 0 | AO92: 0 | AP92: 0 | AQ92: 0 | AR92: 0 | AS92: 0 | AT92: 0 | AU92: 0 | AV92: 0 | AW92: 0 | AX92: 0 | AY92: 0 | AZ92: 0 | BA92: 0 | BB92: 0 | BC92: 0 | BD92: 0 | BE92: 0 | BF92: 0 | BG92: 0 | BH92: 0 | BI92: 0 | BJ92: 0 | BK92: 0 | BL92: 0 | BM92: 0 | BN92: 0 | BO92: 0 | BP92: 0 | BQ92: 0 | BT92: 0
A93: 4.08 | B93: Car Parking | D93: Insert Data Source | G93: =H93/BT93 ->  | H93: 0 | I93: 0 | J93: 0 | K93: 0 | L93: 0 | M93: 0 | N93: 0 | O93: 0 | P93: 0 | Q93: 0 | R93: 0 | S93: 0 | T93: 0 | U93: 0 | V93: 0 | W93: 0 | X93: 0 | Y93: 0 | Z93: 0 | AA93: 0 | AB93: 0 | AC93: 0 | AD93: 0 | AE93: 0 | AF93: 0 | AG93: 0 | AH93: 0 | AI93: 0 | AJ93: 0 | AK93: 0 | AL93: 0 | AM93: 0 | AN93: 0 | AO93: 0 | AP93: 0 | AQ93: 0 | AR93: 0 | AS93: 0 | AT93: 0 | AU93: 0 | AV93: 0 | AW93: 0 | AX93: 0 | AY93: 0 | AZ93: 0 | BA93: 0 | BB93: 0 | BC93: 0 | BD93: 0 | BE93: 0 | BF93: 0 | BG93: 0 | BH93: 0 | BI93: 0 | BJ93: 0 | BK93: 0 | BL93: 0 | BM93: 0 | BN93: 0 | BO93: 0 | BP93: 0 | BQ93: 0 | BT93: 0
A94: 4.09 | B94: Catering & Hospitality | D94: Insert Data Source | H94: 0 | I94: 0 | J94: 0 | K94: 0 | L94: 0 | M94: 0 | N94: 0 | O94: 0 | P94: 0 | Q94: 0 | R94: 0 | S94: 0 | T94: 0 | U94: 0 | V94: 0 | W94: 0 | X94: 0 | Y94: 0 | Z94: 0 | AA94: 0 | AB94: 0 | AC94: 0 | AD94: 0 | AE94: 0 | AF94: 0 | AG94: 0 | AH94: 0 | AI94: 0 | AJ94: 0 | AK94: 0 | AL94: 0 | AM94: 0 | AN94: 0 | AO94: 0 | AP94: 0 | AQ94: 0 | AR94: 0 | AS94: 0 | AT94: 0 | AU94: 0 | AV94: 0 | AW94: 0 | AX94: 0 | AY94: 0 | AZ94: 0 | BA94: 0 | BB94: 0 | BC94: 0 | BD94: 0 | BE94: 0 | BF94: 0 | BG94: 0 | BH94: 0 | BI94: 0 | BJ94: 0 | BK94: 0 | BL94: 0 | BM94: 0 | BN94: 0 | BO94: 0 | BP94: 0 | BQ94: 0 | BT94: 0
A95: 4.1 | B95: Switchboard / Telephones | D95: Insert Data Source | H95: 0 | I95: 0 | J95: 0 | K95: 0 | L95: 0 | M95: 0 | N95: 0 | O95: 0 | P95: 0 | Q95: 0 | R95: 0 | S95: 0 | T95: 0 | U95: 0 | V95: 0 | W95: 0 | X95: 0 | Y95: 0 | Z95: 0 | AA95: 0 | AB95: 0 | AC95: 0 | AD95: 0 | AE95: 0 | AF95: 0 | AG95: 0 | AH95: 0 | AI95: 0 | AJ95: 0 | AK95: 0 | AL95: 0 | AM95: 0 | AN95: 0 | AO95: 0 | AP95: 0 | AQ95: 0 | AR95: 0 | AS95: 0 | AT95: 0 | AU95: 0 | AV95: 0 | AW95: 0 | AX95: 0 | AY95: 0 | AZ95: 0 | BA95: 0 | BB95: 0 | BC95: 0 | BD95: 0 | BE95: 0 | BF95: 0 | BG95: 0 | BH95: 0 | BI95: 0 | BJ95: 0 | BK95: 0 | BL95: 0 | BM95: 0 | BN95: 0 | BO95: 0 | BP95: 0 | BQ95: 0 | BT95: 0
A96: 4.11 | B96: Occupant's FF&E | D96: Insert Data Source | H96: 0 | I96: 0 | J96: 0 | K96: 0 | L96: 0 | M96: 0 | N96: 0 | O96: 0 | P96: 0 | Q96: 0 | R96: 0 | S96: 0 | T96: 0 | U96: 0 | V96: 0 | W96: 0 | X96: 0 | Y96: 0 | Z96: 0 | AA96: 0 | AB96: 0 | AC96: 0 | AD96: 0 | AE96: 0 | AF96: 0 | AG96: 0 | AH96: 0 | AI96: 0 | AJ96: 0 | AK96: 0 | AL96: 0 | AM96: 0 | AN96: 0 | AO96: 0 | AP96: 0 | AQ96: 0 | AR96: 0 | AS96: 0 | AT96: 0 | AU96: 0 | AV96: 0 | AW96: 0 | AX96: 0 | AY96: 0 | AZ96: 0 | BA96: 0 | BB96: 0 | BC96: 0 | BD96: 0 | BE96: 0 | BF96: 0 | BG96: 0 | BH96: 0 | BI96: 0 | BJ96: 0 | BK96: 0 | BL96: 0 | BM96: 0 | BN96: 0 | BO96: 0 | BP96: 0 | BQ96: 0 | BT96: 0
A97: 4.12 | B97: Specialist Equipment | D97: Insert Data Source | H97: 0 | I97: 0 | J97: 0 | K97: 0 | L97: 0 | M97: 0 | N97: 0 | O97: 0 | P97: 0 | Q97: 0 | R97: 0 | S97: 0 | T97: 0 | U97: 0 | V97: 0 | W97: 0 | X97: 0 | Y97: 0 | Z97: 0 | AA97: 0 | AB97: 0 | AC97: 0 | AD97: 0 | AE97: 0 | AF97: 0 | AG97: 0 | AH97: 0 | AI97: 0 | AJ97: 0 | AK97: 0 | AL97: 0 | AM97: 0 | AN97: 0 | AO97: 0 | AP97: 0 | AQ97: 0 | AR97: 0 | AS97: 0 | AT97: 0 | AU97: 0 | AV97: 0 | AW97: 0 | AX97: 0 | AY97: 0 | AZ97: 0 | BA97: 0 | BB97: 0 | BC97: 0 | BD97: 0 | BE97: 0 | BF97: 0 | BG97: 0 | BH97: 0 | BI97: 0 | BJ97: 0 | BK97: 0 | BL97: 0 | BM97: 0 | BN97: 0 | BO97: 0 | BP97: 0 | BQ97: 0 | BT97: 0
A98: 4.13 | B98: Logistics | D98: Insert Data Source | H98: 0 | I98: 0 | J98: 0 | K98: 0 | L98: 0 | M98: 0 | N98: 0 | O98: 0 | P98: 0 | Q98: 0 | R98: 0 | S98: 0 | T98: 0 | U98: 0 | V98: 0 | W98: 0 | X98: 0 | Y98: 0 | Z98: 0 | AA98: 0 | AB98: 0 | AC98: 0 | AD98: 0 | AE98: 0 | AF98: 0 | AG98: 0 | AH98: 0 | AI98: 0 | AJ98: 0 | AK98: 0 | AL98: 0 | AM98: 0 | AN98: 0 | AO98: 0 | AP98: 0 | AQ98: 0 | AR98: 0 | AS98: 0 | AT98: 0 | AU98: 0 | AV98: 0 | AW98: 0 | AX98: 0 | AY98: 0 | AZ98: 0 | BA98: 0 | BB98: 0 | BC98: 0 | BD98: 0 | BE98: 0 | BF98: 0 | BG98: 0 | BH98: 0 | BI98: 0 | BJ98: 0 | BK98: 0 | BL98: 0 | BM98: 0 | BN98: 0 | BO98: 0 | BP98: 0 | BQ98: 0 | BT98: 0
A99: 4.14 | B99: ICT & IT Services | D99: Insert Data Source | H99: 0 | I99: 0 | J99: 0 | K99: 0 | L99: 0 | M99: 0 | N99: 0 | O99: 0 | P99: 0 | Q99: 0 | R99: 0 | S99: 0 | T99: 0 | U99: 0 | V99: 0 | W99: 0 | X99: 0 | Y99: 0 | Z99: 0 | AA99: 0 | AB99: 0 | AC99: 0 | AD99: 0 | AE99: 0 | AF99: 0 | AG99: 0 | AH99: 0 | AI99: 0 | AJ99: 0 | AK99: 0 | AL99: 0 | AM99: 0 | AN99: 0 | AO99: 0 | AP99: 0 | AQ99: 0 | AR99: 0 | AS99: 0 | AT99: 0 | AU99: 0 | AV99: 0 | AW99: 0 | AX99: 0 | AY99: 0 | AZ99: 0 | BA99: 0 | BB99: 0 | BC99: 0 | BD99: 0 | BE99: 0 | BF99: 0 | BG99: 0 | BH99: 0 | BI99: 0 | BJ99: 0 | BK99: 0 | BL99: 0 | BM99: 0 | BN99: 0 | BO99: 0 | BP99: 0 | BQ99: 0 | BT99: 0
A100: 4.15 | B100: Internal Plants & Landscaping | D100: Insert Data Source | H100: 0 | I100: 0 | J100: 0 | K100: 0 | L100: 0 | M100: 0 | N100: 0 | O100: 0 | P100: 0 | Q100: 0 | R100: 0 | S100: 0 | T100: 0 | U100: 0 | V100: 0 | W100: 0 | X100: 0 | Y100: 0 | Z100: 0 | AA100: 0 | AB100: 0 | AC100: 0 | AD100: 0 | AE100: 0 | AF100: 0 | AG100: 0 | AH100: 0 | AI100: 0 | AJ100: 0 | AK100: 0 | AL100: 0 | AM100: 0 | AN100: 0 | AO100: 0 | AP100: 0 | AQ100: 0 | AR100: 0 | AS100: 0 | AT100: 0 | AU100: 0 | AV100: 0 | AW100: 0 | AX100: 0 | AY100: 0 | AZ100: 0 | BA100: 0 | BB100: 0 | BC100: 0 | BD100: 0 | BE100: 0 | BF100: 0 | BG100: 0 | BH100: 0 | BI100: 0 | BJ100: 0 | BK100: 0 | BL100: 0 | BM100: 0 | BN100: 0 | BO100: 0 | BP100: 0 | BQ100: 0 | BT100: 0
A101: 4.16 | B101: Transportation | D101: Insert Data Source | H101: 0 | I101: 0 | J101: 0 | K101: 0 | L101: 0 | M101: 0 | N101: 0 | O101: 0 | P101: 0 | Q101: 0 | R101: 0 | S101: 0 | T101: 0 | U101: 0 | V101: 0 | W101: 0 | X101: 0 | Y101: 0 | Z101: 0 | AA101: 0 | AB101: 0 | AC101: 0 | AD101: 0 | AE101: 0 | AF101: 0 | AG101: 0 | AH101: 0 | AI101: 0 | AJ101: 0 | AK101: 0 | AL101: 0 | AM101: 0 | AN101: 0 | AO101: 0 | AP101: 0 | AQ101: 0 | AR101: 0 | AS101: 0 | AT101: 0 | AU101: 0 | AV101: 0 | AW101: 0 | AX101: 0 | AY101: 0 | AZ101: 0 | BA101: 0 | BB101: 0 | BC101: 0 | BD101: 0 | BE101: 0 | BF101: 0 | BG101: 0 | BH101: 0 | BI101: 0 | BJ101: 0 | BK101: 0 | BL101: 0 | BM101: 0 | BN101: 0 | BO101: 0 | BP101: 0 | BQ101: 0 | BT101: 0
A102: 4.2 | B102: Description of item & Source of Data | H102: 0 | I102: 0 | J102: 0 | K102: 0 | L102: 0 | M102: 0 | N102: 0 | O102: 0 | P102: 0 | Q102: 0 | R102: 0 | S102: 0 | T102: 0 | U102: 0 | V102: 0 | W102: 0 | X102: 0 | Y102: 0 | Z102: 0 | AA102: 0 | AB102: 0 | AC102: 0 | AD102: 0 | AE102: 0 | AF102: 0 | AG102: 0 | AH102: 0 | AI102: 0 | AJ102: 0 | AK102: 0 | AL102: 0 | AM102: 0 | AN102: 0 | AO102: 0 | AP102: 0 | AQ102: 0 | AR102: 0 | AS102: 0 | AT102: 0 | AU102: 0 | AV102: 0 | AW102: 0 | AX102: 0 | AY102: 0 | AZ102: 0 | BA102: 0 | BB102: 0 | BC102: 0 | BD102: 0 | BE102: 0 | BF102: 0 | BG102: 0 | BH102: 0 | BI102: 0 | BJ102: 0 | BK102: 0 | BL102: 0 | BM102: 0 | BN102: 0 | BO102: 0 | BP102: 0 | BQ102: 0 | BT102: 0
A103: 4.21 | B103: Description of item & Source of Data | H103: 0 | I103: 0 | J103: 0 | K103: 0 | L103: 0 | M103: 0 | N103: 0 | O103: 0 | P103: 0 | Q103: 0 | R103: 0 | S103: 0 | T103: 0 | U103: 0 | V103: 0 | W103: 0 | X103: 0 | Y103: 0 | Z103: 0 | AA103: 0 | AB103: 0 | AC103: 0 | AD103: 0 | AE103: 0 | AF103: 0 | AG103: 0 | AH103: 0 | AI103: 0 | AJ103: 0 | AK103: 0 | AL103: 0 | AM103: 0 | AN103: 0 | AO103: 0 | AP103: 0 | AQ103: 0 | AR103: 0 | AS103: 0 | AT103: 0 | AU103: 0 | AV103: 0 | AW103: 0 | AX103: 0 | AY103: 0 | AZ103: 0 | BA103: 0 | BB103: 0 | BC103: 0 | BD103: 0 | BE103: 0 | BF103: 0 | BG103: 0 | BH103: 0 | BI103: 0 | BJ103: 0 | BK103: 0 | BL103: 0 | BM103: 0 | BN103: 0 | BO103: 0 | BP103: 0 | BQ103: 0 | BT103: 0
A104: 4.22 | B104: Description of item & Source of Data | H104: 0 | I104: 0 | J104: 0 | K104: 0 | L104: 0 | M104: 0 | N104: 0 | O104: 0 | P104: 0 | Q104: 0 | R104: 0 | S104: 0 | T104: 0 | U104: 0 | V104: 0 | W104: 0 | X104: 0 | Y104: 0 | Z104: 0 | AA104: 0 | AB104: 0 | AC104: 0 | AD104: 0 | AE104: 0 | AF104: 0 | AG104: 0 | AH104: 0 | AI104: 0 | AJ104: 0 | AK104: 0 | AL104: 0 | AM104: 0 | AN104: 0 | AO104: 0 | AP104: 0 | AQ104: 0 | AR104: 0 | AS104: 0 | AT104: 0 | AU104: 0 | AV104: 0 | AW104: 0 | AX104: 0 | AY104: 0 | AZ104: 0 | BA104: 0 | BB104: 0 | BC104: 0 | BD104: 0 | BE104: 0 | BF104: 0 | BG104: 0 | BH104: 0 | BI104: 0 | BJ104: 0 | BK104: 0 | BL104: 0 | BM104: 0 | BN104: 0 | BO104: 0 | BP104: 0 | BQ104: 0 | BT104: 0
A105: 4.23 | B105: Description of item & Source of Data | H105: 0 | I105: 0 | J105: 0 | K105: 0 | L105: 0 | M105: 0 | N105: 0 | O105: 0 | P105: 0 | Q105: 0 | R105: 0 | S105: 0 | T105: 0 | U105: 0 | V105: 0 | W105: 0 | X105: 0 | Y105: 0 | Z105: 0 | AA105: 0 | AB105: 0 | AC105: 0 | AD105: 0 | AE105: 0 | AF105: 0 | AG105: 0 | AH105: 0 | AI105: 0 | AJ105: 0 | AK105: 0 | AL105: 0 | AM105: 0 | AN105: 0 | AO105: 0 | AP105: 0 | AQ105: 0 | AR105: 0 | AS105: 0 | AT105: 0 | AU105: 0 | AV105: 0 | AW105: 0 | AX105: 0 | AY105: 0 | AZ105: 0 | BA105: 0 | BB105: 0 | BC105: 0 | BD105: 0 | BE105: 0 | BF105: 0 | BG105: 0 | BH105: 0 | BI105: 0 | BJ105: 0 | BK105: 0 | BL105: 0 | BM105: 0 | BN105: 0 | BO105: 0 | BP105: 0 | BQ105: 0 | BT105: 0
A106: 4.24 | B106: Description of item & Source of Data | H106: 0 | I106: 0 | J106: 0 | K106: 0 | L106: 0 | M106: 0 | N106: 0 | O106: 0 | P106: 0 | Q106: 0 | R106: 0 | S106: 0 | T106: 0 | U106: 0 | V106: 0 | W106: 0 | X106: 0 | Y106: 0 | Z106: 0 | AA106: 0 | AB106: 0 | AC106: 0 | AD106: 0 | AE106: 0 | AF106: 0 | AG106: 0 | AH106: 0 | AI106: 0 | AJ106: 0 | AK106: 0 | AL106: 0 | AM106: 0 | AN106: 0 | AO106: 0 | AP106: 0 | AQ106: 0 | AR106: 0 | AS106: 0 | AT106: 0 | AU106: 0 | AV106: 0 | AW106: 0 | AX106: 0 | AY106: 0 | AZ106: 0 | BA106: 0 | BB106: 0 | BC106: 0 | BD106: 0 | BE106: 0 | BF106: 0 | BG106: 0 | BH106: 0 | BI106: 0 | BJ106: 0 | BK106: 0 | BL106: 0 | BM106: 0 | BN106: 0 | BO106: 0 | BP106: 0 | BQ106: 0 | BT106: 0
G107: TOTAL CURRENT DAY COSTS | H107: =SUM(H86:H106) -> 0 | I107: =SUM(I86:I106) -> 0 | J107: =SUM(J86:J106) -> 0 | K107: 0 | L107: 0 | M107: 0 | N107: 0 | O107: 0 | P107: 0 | Q107: 0 | R107: 0 | S107: 0 | T107: 0 | U107: 0 | V107: 0 | W107: 0 | X107: 0 | Y107: 0 | Z107: 0 | AA107: 0 | AB107: 0 | AC107: 0 | AD107: 0 | AE107: 0 | AF107: 0 | AG107: 0 | AH107: 0 | AI107: 0 | AJ107: 0 | AK107: 0 | AL107: 0 | AM107: 0 | AN107: 0 | AO107: 0 | AP107: 0 | AQ107: 0 | AR107: 0 | AS107: 0 | AT107: 0 | AU107: 0 | AV107: 0 | AW107: 0 | AX107: 0 | AY107: 0 | AZ107: 0 | BA107: 0 | BB107: 0 | BC107: 0 | BD107: 0 | BE107: 0 | BF107: 0 | BG107: 0 | BH107: 0 | BI107: 0 | BJ107: 0 | BK107: 0 | BL107: 0 | BM107: 0 | BN107: 0 | BO107: 0 | BP107: 0 | BQ107: 0
B108: Indexation | C108: LCC | D108: ='Project Input'!$E$19 -> 0 | I108: 1 | J108: =SUM(I108*$D$108)+I108 -> 1 | K108: =SUM(J108*$D$108)+J108 -> 1 | L108: =SUM(K108*$D$108)+K108 -> 1 | M108: 1 | N108: 1 | O108: 1 | P108: 1 | Q108: 1 | R108: 1 | S108: 1 | T108: 1 | U108: 1 | V108: 1 | W108: 1 | X108: 1 | Y108: 1 | Z108: 1 | AA108: 1 | AB108: 1 | AC108: 1 | AD108: 1 | AE108: 1 | AF108: 1 | AG108: 1 | AH108: 1 | AI108: 1 | AJ108: 1 | AK108: 1 | AL108: 1 | AM108: 1 | AN108: 1 | AO108: 1 | AP108: 1 | AQ108: 1 | AR108: 1 | AS108: 1 | AT108: 1 | AU108: 1 | AV108: 1 | AW108: 1 | AX108: 1 | AY108: 1 | AZ108: 1 | BA108: 1 | BB108: 1 | BC108: 1 | BD108: 1 | BE108: 1 | BF108: 1 | BG108: 1 | BH108: 1 | BI108: 1 | BJ108: 1 | BK108: 1 | BL108: 1 | BM108: 1 | BN108: 1 | BO108: 1 | BP108: 1
G109: Annual Nominal Whole Life Costs | H109: =SUM(I109:BP109) -> 0 | I109: =SUM(I108*I107) -> 0 | J109: =SUM(J108*J107) -> 0 | K109: 0 | L109: 0 | M109: =SUM(M108*M107) -> 0 | N109: 0 | O109: 0 | P109: 0 | Q109: 0 | R109: 0 | S109: 0 | T109: 0 | U109: 0 | V109: 0 | W109: 0 | X109: 0 | Y109: 0 | Z109: 0 | AA109: 0 | AB109: 0 | AC109: 0 | AD109: 0 | AE109: 0 | AF109: 0 | AG109: 0 | AH109: 0 | AI109: 0 | AJ109: 0 | AK109: 0 | AL109: 0 | AM109: 0 | AN109: 0 | AO109: 0 | AP109: 0 | AQ109: 0 | AR109: 0 | AS109: 0 | AT109: 0 | AU109: 0 | AV109: 0 | AW109: 0 | AX109: 0 | AY109: 0 | AZ109: 0 | BA109: 0 | BB109: 0 | BC109: 0 | BD109: 0 | BE109: 0 | BF109: 0 | BG109: 0 | BH109: 0 | BI109: 0 | BJ109: 0 | BK109: 0 | BL109: 0 | BM109: 0 | BN109: 0 | BO109: 0 | BP109: 0 | BQ109: =SUM(I109:BP109) -> 0
C110: Days since start of concession | D110: 365 | I110: =SUM($D$110*I26) -> 365 | J110: 730 | K110: 1095 | L110: 1460 | M110: 1825 | N110: 2190 | O110: 2555 | P110: 2920 | Q110: 3285 | R110: 3650 | S110: 4015 | T110: 4380 | U110: 4745 | V110: 5110 | W110: 5475 | X110: 5840 | Y110: 6205 | Z110: 6570 | AA110: 6935 | AB110: 7300 | AC110: 7665 | AD110: 8030 | AE110: 8395 | AF110: 8760 | AG110: 9125 | AH110: 9490 | AI110: 9855 | AJ110: 10220 | AK110: 10585 | AL110: 10950 | AM110: 11315 | AN110: 11680 | AO110: 12045 | AP110: 12410 | AQ110: 12775 | AR110: 13140 | AS110: 13505 | AT110: 13870 | AU110: 14235 | AV110: 14600 | AW110: 14965 | AX110: 15330 | AY110: 15695 | AZ110: 16060 | BA110: 16425 | BB110: 16790 | BC110: 17155 | BD110: 17520 | BE110: 17885 | BF110: 18250 | BG110: 18615 | BH110: 18980 | BI110: 19345 | BJ110: 19710 | BK110: 20075 | BL110: 20440 | BM110: 20805 | BN110: 21170 | BO110: 21535 | BP110: 21900
C111: Discount index | D111: ='Project Input'!$E$24 -> 0 | I111: =(1+$D$111)^(I110/$D$110) -> 1 | J111: =(1+$D$111)^(J110/$D$110) -> 1 | K111: 1 | L111: 1 | M111: 1 | N111: 1 | O111: 1 | P111: 1 | Q111: 1 | R111: 1 | S111: 1 | T111: 1 | U111: 1 | V111: 1 | W111: 1 | X111: 1 | Y111: 1 | Z111: 1 | AA111: 1 | AB111: 1 | AC111: 1 | AD111: 1 | AE111: 1 | AF111: 1 | AG111: 1 | AH111: 1 | AI111: 1 | AJ111: 1 | AK111: 1 | AL111: 1 | AM111: 1 | AN111: 1 | AO111: 1 | AP111: 1 | AQ111: 1 | AR111: 1 | AS111: 1 | AT111: 1 | AU111: 1 | AV111: 1 | AW111: 1 | AX111: 1 | AY111: 1 | AZ111: 1 | BA111: 1 | BB111: 1 | BC111: 1 | BD111: 1 | BE111: 1 | BF111: 1 | BG111: 1 | BH111: 1 | BI111: 1 | BJ111: 1 | BK111: 1 | BL111: 1 | BM111: 1 | BN111: 1 | BO111: 1 | BP111: 1
A112: 4 Operation & Occupancy Costs (Soft FM) | G112: Annual NPV of Whole Life Costs | H112: =SUM(I112:BP112) -> 0 | I112: =I109/I111 -> 0 | J112: 0 | K112: 0 | L112: 0 | M112: 0 | N112: 0 | O112: 0 | P112: 0 | Q112: 0 | R112: 0 | S112: 0 | T112: 0 | U112: 0 | V112: 0 | W112: 0 | X112: 0 | Y112: 0 | Z112: 0 | AA112: 0 | AB112: 0 | AC112: 0 | AD112: 0 | AE112: 0 | AF112: 0 | AG112: 0 | AH112: 0 | AI112: 0 | AJ112: 0 | AK112: 0 | AL112: 0 | AM112: 0 | AN112: 0 | AO112: 0 | AP112: 0 | AQ112: 0 | AR112: 0 | AS112: 0 | AT112: 0 | AU112: 0 | AV112: 0 | AW112: 0 | AX112: 0 | AY112: 0 | AZ112: 0 | BA112: 0 | BB112: 0 | BC112: 0 | BD112: 0 | BE112: 0 | BF112: 0 | BG112: 0 | BH112: 0 | BI112: 0 | BJ112: 0 | BK112: 0 | BL112: 0 | BM112: 0 | BN112: 0 | BO112: 0 | BP112: 0 | BQ112: =SUM(I112:BP112) -> 0
G113: Cumulative NPV of Whole Life Costs | I113: =SUM(I112) -> 0 | J113: =SUM(I113+J112) -> 0 | K113: =SUM(J113+K112) -> 0 | L113: =SUM(K113+L112) -> 0 | M113: =SUM(L113+M112) -> 0 | N113: =SUM(M113+N112) -> 0 | O113: 0 | P113: 0 | Q113: 0 | R113: 0 | S113: 0 | T113: 0 | U113: 0 | V113: 0 | W113: 0 | X113: 0 | Y113: 0 | Z113: 0 | AA113: 0 | AB113: 0 | AC113: 0 | AD113: 0 | AE113: 0 | AF113: 0 | AG113: 0 | AH113: 0 | AI113: 0 | AJ113: 0 | AK113: =SUM(AJ113+AK112) -> 0 | AL113: =SUM(AK113+AL112) -> 0 | AM113: 0 | AN113: 0 | AO113: 0 | AP113: 0 | AQ113: 0 | AR113: 0 | AS113: 0 | AT113: 0 | AU113: 0 | AV113: 0 | AW113: 0 | AX113: 0 | AY113: 0 | AZ113: 0 | BA113: 0 | BB113: 0 | BC113: 0 | BD113: 0 | BE113: 0 | BF113: 0 | BG113: 0 | BH113: 0 | BI113: 0 | BJ113: 0 | BK113: 0 | BL113: 0 | BM113: 0 | BN113: 0 | BO113: 0
A114: 5 | B114: Energy & Utilities Costs | E114: Quantity | F114: Unit | G114: Rate/Unit | I114: =I27 -> 2019 | J114: =J27 -> 2020 | K114: 2021 | L114: 2022 | M114: 2023 | N114: 2024 | O114: 2025 | P114: 2026 | Q114: 2027 | R114: 2028 | S114: 2029 | T114: 2030 | U114: 2031 | V114: 2032 | W114: 2033 | X114: 2034 | Y114: 2035 | Z114: 2036 | AA114: 2037 | AB114: 2038 | AC114: 2039 | AD114: 2040 | AE114: 2041 | AF114: 2042 | AG114: 2043 | AH114: 2044 | AI114: 2045 | AJ114: 2046 | AK114: 2047 | AL114: 2048 | AM114: 2049 | AN114: 2050 | AO114: 2051 | AP114: 2052 | AQ114: 2053 | AR114: 2054 | AS114: 2055 | AT114: 2056 | AU114: 2057 | AV114: 2058 | AW114: 2059 | AX114: 2060 | AY114: 2061 | AZ114: 2062 | BA114: 2063 | BB114: 2064 | BC114: 2065 | BD114: 2066 | BE114: 2067 | BF114: 2068 | BG114: 2069 | BH114: 2070 | BI114: 2071 | BJ114: 2072 | BK114: 2073 | BL114: 2074 | BM114: 2075 | BN114: 2076 | BO114: 2077 | BP114: 2078 | BT114: =NPV('Project Input'!$D$22,'Option B'!J114:BP114)+I114 -> 52638.57152
A115: 5.01 | B115: Electricity | C115: Insert Data Source | E115: 0 | F115: kwh | G115: 0 | H115: =SUM(I115:BP115) -> 0 | I115: 0 | J115: 0 | K115: 0 | L115: 0 | M115: 0 | N115: 0 | O115: 0 | P115: 0 | Q115: 0 | R115: 0 | S115: 0 | T115: 0 | U115: 0 | V115: 0 | W115: 0 | X115: 0 | Y115: 0 | Z115: 0 | AA115: 0 | AB115: 0 | AC115: 0 | AD115: 0 | AE115: 0 | AF115: 0 | AG115: 0 | AH115: 0 | AI115: 0 | AJ115: 0 | AK115: 0 | AL115: 0 | AM115: 0 | AN115: 0 | AO115: 0 | AP115: 0 | AQ115: 0 | AR115: 0 | AS115: 0 | AT115: 0 | AU115: 0 | AV115: 0 | AW115: 0 | AX115: 0 | AY115: 0 | AZ115: 0 | BA115: 0 | BB115: 0 | BC115: 0 | BD115: 0 | BE115: 0 | BF115: 0 | BG115: 0 | BH115: 0 | BI115: 0 | BJ115: 0 | BK115: 0 | BL115: 0 | BM115: 0 | BN115: 0 | BO115: 0 | BP115: 0 | BQ115: =SUM(I115:BP115) -> 0
A116: 5.02 | B116: Gas | C116: Insert Data Source | E116: 0 | G116: 0 | H116: =SUM(I116:BP116) -> 0 | I116: 0 | J116: 0 | K116: 0 | L116: 0 | M116: 0 | N116: 0 | O116: 0 | P116: 0 | Q116: 0 | R116: 0 | S116: 0 | T116: 0 | U116: 0 | V116: 0 | W116: 0 | X116: 0 | Y116: 0 | Z116: 0 | AA116: 0 | AB116: 0 | AC116: 0 | AD116: 0 | AE116: 0 | AF116: 0 | AG116: 0 | AH116: 0 | AI116: 0 | AJ116: 0 | AK116: 0 | AL116: 0 | AM116: 0 | AN116: 0 | AO116: 0 | AP116: 0 | AQ116: 0 | AR116: 0 | AS116: 0 | AT116: 0 | AU116: 0 | AV116: 0 | AW116: 0 | AX116: 0 | AY116: 0 | AZ116: 0 | BA116: 0 | BB116: 0 | BC116: 0 | BD116: 0 | BE116: 0 | BF116: 0 | BG116: 0 | BH116: 0 | BI116: 0 | BJ116: 0 | BK116: 0 | BL116: 0 | BM116: 0 | BN116: 0 | BO116: 0 | BP116: 0 | BQ116: =SUM(I116:BP116) -> 0
A117: 5.03 | B117: Oil | C117: Insert Data Source | E117: 0 | G117: 0 | H117: 0 | I117: 0 | J117: 0 | K117: 0 | L117: 0 | M117: 0 | N117: 0 | O117: 0 | P117: 0 | Q117: 0 | R117: 0 | S117: 0 | T117: 0 | U117: 0 | V117: 0 | W117: 0 | X117: 0 | Y117: 0 | Z117: 0 | AA117: 0 | AB117: 0 | AC117: 0 | AD117: 0 | AE117: 0 | AF117: 0 | AG117: 0 | AH117: 0 | AI117: 0 | AJ117: 0 | AK117: 0 | AL117: 0 | AM117: 0 | AN117: 0 | AO117: 0 | AP117: 0 | AQ117: 0 | AR117: 0 | AS117: 0 | AT117: 0 | AU117: 0 | AV117: 0 | AW117: 0 | AX117: 0 | AY117: 0 | AZ117: 0 | BA117: 0 | BB117: 0 | BC117: 0 | BD117: 0 | BE117: 0 | BF117: 0 | BG117: 0 | BH117: 0 | BI117: 0 | BJ117: 0 | BK117: 0 | BL117: 0 | BM117: 0 | BN117: 0 | BO117: 0 | BP117: 0 | BQ117: 0
A118: 5.04 | B118: Water | C118: Insert Data Source | E118: 0 | G118: 0 | H118: 0 | I118: 0 | J118: 0 | L118: 0 | M118: 0 | N118: 0 | O118: 0 | P118: 0 | Q118: 0 | R118: 0 | S118: 0 | T118: 0 | U118: 0 | V118: 0 | W118: 0 | X118: 0 | Y118: 0 | Z118: 0 | AA118: 0 | AB118: 0 | AC118: 0 | AD118: 0 | AE118: 0 | AF118: 0 | AG118: 0 | AH118: 0 | AI118: 0 | AJ118: 0 | AK118: 0 | AL118: 0 | AM118: 0 | AN118: 0 | AO118: 0 | AP118: 0 | AQ118: 0 | AR118: 0 | AS118: 0 | AT118: 0 | AU118: 0 | AV118: 0 | AW118: 0 | AX118: 0 | AY118: 0 | AZ118: 0 | BA118: 0 | BB118: 0 | BC118: 0 | BD118: 0 | BE118: 0 | BF118: 0 | BG118: 0 | BH118: 0 | BI118: 0 | BJ118: 0 | BK118: 0 | BL118: 0 | BM118: 0 | BN118: 0 | BO118: 0 | BP118: 0 | BQ118: 0
A119: 5.05 | B119: Description of item & Source of Data | E119: 0 | G119: 0 | H119: 0 | I119: 0 | J119: 0 | K119: d | L119: 0 | M119: 0 | N119: 0 | O119: 0 | P119: 0 | Q119: 0 | R119: 0 | S119: 0 | T119: 0 | U119: 0 | V119: 0 | W119: 0 | X119: 0 | Y119: 0 | Z119: 0 | AA119: 0 | AB119: 0 | AC119: 0 | AD119: 0 | AE119: 0 | AF119: 0 | AG119: 0 | AH119: 0 | AI119: 0 | AJ119: 0 | AK119: 0 | AL119: 0 | AM119: 0 | AN119: 0 | AO119: 0 | AP119: 0 | AQ119: 0 | AR119: 0 | AS119: 0 | AT119: 0 | AU119: 0 | AV119: 0 | AW119: 0 | AX119: 0 | AY119: 0 | AZ119: 0 | BA119: 0 | BB119: 0 | BC119: 0 | BD119: 0 | BE119: 0 | BF119: 0 | BG119: 0 | BH119: 0 | BI119: 0 | BJ119: 0 | BK119: 0 | BL119: 0 | BM119: 0 | BN119: 0 | BO119: 0 | BP119: 0 | BQ119: 0
A120: 5.06 | B120: Description of item & Source of Data | E120: 0 | G120: 0 | H120: 0 | I120: 0 | J120: 0 | K120: 0 | L120: 0 | M120: 0 | N120: 0 | O120: 0 | P120: 0 | Q120: 0 | R120: 0 | S120: 0 | T120: 0 | U120: 0 | V120: 0 | W120: 0 | X120: 0 | Y120: 0 | Z120: 0 | AA120: 0 | AB120: 0 | AC120: 0 | AD120: 0 | AE120: 0 | AF120: 0 | AG120: 0 | AH120: 0 | AI120: 0 | AJ120: 0 | AK120: 0 | AL120: 0 | AM120: 0 | AN120: 0 | AO120: 0 | AP120: 0 | AQ120: 0 | AR120: 0 | AS120: 0 | AT120: 0 | AU120: 0 | AV120: 0 | AW120: 0 | AX120: 0 | AY120: 0 | AZ120: 0 | BA120: 0 | BB120: 0 | BC120: 0 | BD120: 0 | BE120: 0 | BF120: 0 | BG120: 0 | BH120: 0 | BI120: 0 | BJ120: 0 | BK120: 0 | BL120: 0 | BM120: 0 | BN120: 0 | BO120: 0 | BP120: 0 | BQ120: 0
A121: 5.07 | B121: Description of item & Source of Data | E121: 0 | G121: 0 | H121: 0 | I121: 0 | J121: 0 | K121: 0 | L121: 0 | M121: 0 | N121: 0 | O121: 0 | P121: 0 | Q121: 0 | R121: 0 | S121: 0 | T121: 0 | U121: 0 | V121: 0 | W121: 0 | X121: 0 | Y121: 0 | Z121: 0 | AA121: 0 | AB121: 0 | AC121: 0 | AD121: 0 | AE121: 0 | AF121: 0 | AG121: 0 | AH121: 0 | AI121: 0 | AJ121: 0 | AK121: 0 | AL121: 0 | AM121: 0 | AN121: 0 | AO121: 0 | AP121: 0 | AQ121: 0 | AR121: 0 | AS121: 0 | AT121: 0 | AU121: 0 | AV121: 0 | AW121: 0 | AX121: 0 | AY121: 0 | AZ121: 0 | BA121: 0 | BB121: 0 | BC121: 0 | BD121: 0 | BE121: 0 | BF121: 0 | BG121: 0 | BH121: 0 | BI121: 0 | BJ121: 0 | BK121: 0 | BL121: 0 | BM121: 0 | BN121: 0 | BO121: 0 | BP121: 0 | BQ121: 0
A122: 5.08 | B122: Description of item & Source of Data | E122: 0 | G122: 0 | H122: 0 | I122: 0 | J122: 0 | K122: 0 | L122: 0 | M122: 0 | N122: 0 | O122: 0 | P122: 0 | Q122: 0 | R122: 0 | S122: 0 | T122: 0 | U122: 0 | V122: 0 | W122: 0 | X122: 0 | Y122: 0 | Z122: 0 | AA122: 0 | AB122: 0 | AC122: 0 | AD122: 0 | AE122: 0 | AF122: 0 | AG122: 0 | AH122: 0 | AI122: 0 | AJ122: 0 | AK122: 0 | AL122: 0 | AM122: 0 | AN122: 0 | AO122: 0 | AP122: 0 | AQ122: 0 | AR122: 0 | AS122: 0 | AT122: 0 | AU122: 0 | AV122: 0 | AW122: 0 | AX122: 0 | AY122: 0 | AZ122: 0 | BA122: 0 | BB122: 0 | BC122: 0 | BD122: 0 | BE122: 0 | BF122: 0 | BG122: 0 | BH122: 0 | BI122: 0 | BJ122: 0 | BK122: 0 | BL122: 0 | BM122: 0 | BN122: 0 | BO122: 0 | BP122: 0 | BQ122: 0
A123: 5.09 | B123: Description of item & Source of Data | E123: 0 | G123: 0 | H123: 0 | I123: 0 | J123: 0 | K123: 0 | L123: 0 | M123: 0 | N123: 0 | O123: 0 | P123: 0 | Q123: 0 | R123: 0 | S123: 0 | T123: 0 | U123: 0 | V123: 0 | W123: 0 | X123: 0 | Y123: 0 | Z123: 0 | AA123: 0 | AB123: 0 | AC123: 0 | AD123: 0 | AE123: 0 | AF123: 0 | AG123: 0 | AH123: 0 | AI123: 0 | AJ123: 0 | AK123: 0 | AL123: 0 | AM123: 0 | AN123: 0 | AO123: 0 | AP123: 0 | AQ123: 0 | AR123: 0 | AS123: 0 | AT123: 0 | AU123: 0 | AV123: 0 | AW123: 0 | AX123: 0 | AY123: 0 | AZ123: 0 | BA123: 0 | BB123: 0 | BC123: 0 | BD123: 0 | BE123: 0 | BF123: 0 | BG123: 0 | BH123: 0 | BI123: 0 | BJ123: 0 | BK123: 0 | BL123: 0 | BM123: 0 | BN123: 0 | BO123: 0 | BP123: 0 | BQ123: 0
G124: TOTAL CURRENT DAY COSTS | H124: =SUM(H115:H123) -> 0 | I124: =SUM(I115:I123) -> 0 | J124: 0 | K124: 0 | L124: =SUM(L115:L123) -> 0 | M124: =SUM(M115:M123) -> 0 | N124: 0 | O124: 0 | P124: 0 | Q124: 0 | R124: 0 | S124: 0 | T124: 0 | U124: 0 | V124: 0 | W124: 0 | X124: 0 | Y124: 0 | Z124: 0 | AA124: 0 | AB124: 0 | AC124: 0 | AD124: 0 | AE124: 0 | AF124: 0 | AG124: 0 | AH124: 0 | AI124: 0 | AJ124: 0 | AK124: 0 | AL124: 0 | AM124: 0 | AN124: 0 | AO124: 0 | AP124: 0 | AQ124: 0 | AR124: 0 | AS124: 0 | AT124: 0 | AU124: 0 | AV124: 0 | AW124: 0 | AX124: 0 | AY124: 0 | AZ124: 0 | BA124: 0 | BB124: 0 | BC124: 0 | BD124: 0 | BE124: 0 | BF124: 0 | BG124: 0 | BH124: 0 | BI124: 0 | BJ124: 0 | BK124: 0 | BL124: 0 | BM124: 0 | BN124: 0 | BO124: 0 | BP124: 0 | BQ124: =SUM(BQ115:BQ123) -> 0
B125: Indexation | C125: Energy | D125: ='Project Input'!$E$20 -> 0 | I125: 1 | J125: =SUM(I125*$D$125)+I125 -> 1 | K125: =SUM(J125*$D$125)+J125 -> 1 | L125: 1 | M125: 1 | N125: 1 | O125: 1 | P125: 1 | Q125: 1 | R125: 1 | S125: 1 | T125: 1 | U125: 1 | V125: 1 | W125: 1 | X125: 1 | Y125: 1 | Z125: 1 | AA125: 1 | AB125: 1 | AC125: 1 | AD125: 1 | AE125: 1 | AF125: 1 | AG125: 1 | AH125: 1 | AI125: 1 | AJ125: 1 | AK125: 1 | AL125: 1 | AM125: 1 | AN125: 1 | AO125: 1 | AP125: 1 | AQ125: 1 | AR125: 1 | AS125: 1 | AT125: 1 | AU125: 1 | AV125: 1 | AW125: 1 | AX125: 1 | AY125: 1 | AZ125: 1 | BA125: 1 | BB125: 1 | BC125: 1 | BD125: 1 | BE125: 1 | BF125: 1 | BG125: 1 | BH125: 1 | BI125: 1 | BJ125: 1 | BK125: 1 | BL125: 1 | BM125: 1 | BN125: 1 | BO125: 1 | BP125: 1
G126: Annual Nominal Whole Life Costs | H126: =SUM(I126:BP126) -> 0 | I126: =SUM(I124*I125) -> 0 | J126: =SUM(J124*J125) -> 0 | K126: 0 | L126: 0 | M126: 0 | N126: 0 | O126: 0 | P126: 0 | Q126: 0 | R126: 0 | S126: 0 | T126: 0 | U126: 0 | V126: 0 | W126: 0 | X126: 0 | Y126: 0 | Z126: 0 | AA126: 0 | AB126: 0 | AC126: 0 | AD126: 0 | AE126: 0 | AF126: 0 | AG126: 0 | AH126: 0 | AI126: 0 | AJ126: 0 | AK126: 0 | AL126: 0 | AM126: 0 | AN126: 0 | AO126: 0 | AP126: 0 | AQ126: 0 | AR126: 0 | AS126: 0 | AT126: 0 | AU126: 0 | AV126: 0 | AW126: 0 | AX126: 0 | AY126: 0 | AZ126: 0 | BA126: 0 | BB126: 0 | BC126: 0 | BD126: 0 | BE126: 0 | BF126: 0 | BG126: 0 | BH126: 0 | BI126: 0 | BJ126: 0 | BK126: 0 | BL126: 0 | BM126: 0 | BN126: 0 | BO126: 0 | BP126: 0 | BQ126: =SUM(I126:BP126) -> 0
C127: Days since start of concession | D127: 365 | I127: =SUM($D$127*I26) -> 365 | J127: 730 | K127: 1095 | L127: 1460 | M127: 1825 | N127: 2190 | O127: 2555 | P127: 2920 | Q127: 3285 | R127: 3650 | S127: 4015 | T127: 4380 | U127: 4745 | V127: 5110 | W127: 5475 | X127: 5840 | Y127: 6205 | Z127: 6570 | AA127: 6935 | AB127: 7300 | AC127: 7665 | AD127: 8030 | AE127: 8395 | AF127: 8760 | AG127: 9125 | AH127: 9490 | AI127: 9855 | AJ127: 10220 | AK127: 10585 | AL127: 10950 | AM127: 11315 | AN127: 11680 | AO127: 12045 | AP127: 12410 | AQ127: 12775 | AR127: 13140 | AS127: 13505 | AT127: 13870 | AU127: 14235 | AV127: 14600 | AW127: 14965 | AX127: 15330 | AY127: 15695 | AZ127: 16060 | BA127: 16425 | BB127: 16790 | BC127: 17155 | BD127: 17520 | BE127: 17885 | BF127: 18250 | BG127: 18615 | BH127: 18980 | BI127: 19345 | BJ127: 19710 | BK127: 20075 | BL127: 20440 | BM127: 20805 | BN127: 21170 | BO127: 21535 | BP127: 21900
C128: Discount index | D128: ='Project Input'!$E$24 -> 0 | I128: =(1+$D$128)^(I127/$D$127) -> 1 | J128: =(1+$D$128)^(J127/$D$127) -> 1 | K128: =(1+$D$128)^(K127/$D$127) -> 1 | L128: 1 | M128: 1 | N128: 1 | O128: 1 | P128: 1 | Q128: 1 | R128: 1 | S128: 1 | T128: 1 | U128: 1 | V128: 1 | W128: 1 | X128: 1 | Y128: 1 | Z128: 1 | AA128: 1 | AB128: 1 | AC128: 1 | AD128: 1 | AE128: 1 | AF128: 1 | AG128: 1 | AH128: 1 | AI128: 1 | AJ128: 1 | AK128: 1 | AL128: 1 | AM128: 1 | AN128: 1 | AO128: 1 | AP128: 1 | AQ128: 1 | AR128: 1 | AS128: 1 | AT128: 1 | AU128: 1 | AV128: 1 | AW128: 1 | AX128: 1 | AY128: 1 | AZ128: 1 | BA128: 1 | BB128: 1 | BC128: 1 | BD128: 1 | BE128: 1 | BF128: 1 | BG128: 1 | BH128: 1 | BI128: 1 | BJ128: 1 | BK128: 1 | BL128: 1 | BM128: 1 | BN128: 1 | BO128: 1 | BP128: 1
A129: 5 ENERGY & UTILITIES COSTS | G129: Annual NPV of Whole Life Costs | H129: =SUM(I129:BP129) -> 0 | I129: =I126/I128 -> 0 | J129: 0 | K129: 0 | L129: 0 | M129: 0 | N129: 0 | O129: 0 | P129: 0 | Q129: 0 | R129: 0 | S129: 0 | T129: 0 | U129: 0 | V129: 0 | W129: 0 | X129: 0 | Y129: 0 | Z129: 0 | AA129: 0 | AB129: 0 | AC129: 0 | AD129: 0 | AE129: 0 | AF129: 0 | AG129: 0 | AH129: 0 | AI129: 0 | AJ129: 0 | AK129: 0 | AL129: 0 | AM129: 0 | AN129: 0 | AO129: 0 | AP129: 0 | AQ129: 0 | AR129: 0 | AS129: 0 | AT129: 0 | AU129: 0 | AV129: 0 | AW129: 0 | AX129: 0 | AY129: 0 | AZ129: 0 | BA129: 0 | BB129: 0 | BC129: 0 | BD129: 0 | BE129: 0 | BF129: 0 | BG129: 0 | BH129: 0 | BI129: 0 | BJ129: 0 | BK129: 0 | BL129: 0 | BM129: 0 | BN129: 0 | BO129: 0 | BP129: 0 | BQ129: =SUM(I129:BP129) -> 0
G130: Cumulative NPV of Whole Life Costs | I130: =SUM(I129) -> 0 | J130: =SUM(I130+J129) -> 0 | K130: =SUM(J130+K129) -> 0 | L130: =SUM(K130+L129) -> 0 | M130: =SUM(L130+M129) -> 0 | N130: 0 | O130: 0 | P130: 0 | Q130: 0 | R130: 0 | S130: 0 | T130: 0 | U130: 0 | V130: 0 | W130: 0 | X130: 0 | Y130: 0 | Z130: 0 | AA130: 0 | AB130: 0 | AC130: 0 | AD130: 0 | AE130: 0 | AF130: 0 | AG130: 0 | AH130: 0 | AI130: 0 | AJ130: 0 | AK130: =SUM(AJ130+AK129) -> 0 | AL130: =SUM(AK130+AL129) -> 0 | AM130: 0 | AN130: 0 | AO130: 0 | AP130: 0 | AQ130: 0 | AR130: 0 | AS130: 0 | AT130: 0 | AU130: 0 | AV130: 0 | AW130: 0 | AX130: 0 | AY130: 0 | AZ130: 0 | BA130: 0 | BB130: 0 | BC130: 0 | BD130: 0 | BE130: 0 | BF130: 0 | BG130: 0 | BH130: 0 | BI130: 0 | BJ130: 0 | BK130: 0 | BL130: 0 | BM130: 0 | BN130: 0 | BO130: 0
A131: 6 | B131: Maintenance Costs (Hard FM) | F131: GIFA (m2) | G131: Annual Rate | I131: =I27 -> 2019 | J131: =J27 -> 2020 | K131: 2021 | L131: 2022 | M131: 2023 | N131: 2024 | O131: 2025 | P131: 2026 | Q131: 2027 | R131: 2028 | S131: 2029 | T131: 2030 | U131: 2031 | V131: 2032 | W131: 2033 | X131: 2034 | Y131: 2035 | Z131: 2036 | AA131: 2037 | AB131: 2038 | AC131: 2039 | AD131: 2040 | AE131: 2041 | AF131: 2042 | AG131: 2043 | AH131: 2044 | AI131: 2045 | AJ131: 2046 | AK131: 2047 | AL131: 2048 | AM131: 2049 | AN131: 2050 | AO131: 2051 | AP131: 2052 | AQ131: 2053 | AR131: 2054 | AS131: 2055 | AT131: 2056 | AU131: 2057 | AV131: 2058 | AW131: 2059 | AX131: 2060 | AY131: 2061 | AZ131: 2062 | BA131: 2063 | BB131: 2064 | BC131: 2065 | BD131: 2066 | BE131: 2067 | BF131: 2068 | BG131: 2069 | BH131: 2070 | BI131: 2071 | BJ131: 2072 | BK131: 2073 | BL131: 2074 | BM131: 2075 | BN131: 2076 | BO131: 2077 | BP131: 2078 | BT131: =NPV('Project Input'!$D$22,'Option B'!J131:BP131)+I131 -> 52638.57152
A132: 6.01 | B132: Planned/Statutory maintenance | D132: Insert Data Source | F132: =$D$8 -> 0 | G132: 32 | H132: =SUM(I132:BP132) -> 0 | I132: 0 | J132: 0 | K132: 0 | L132: 0 | M132: 0 | N132: 0 | O132: 0 | P132: 0 | Q132: 0 | R132: 0 | S132: 0 | T132: 0 | U132: 0 | V132: 0 | W132: 0 | X132: 0 | Y132: 0 | Z132: 0 | AA132: 0 | AB132: 0 | AC132: 0 | AD132: 0 | AE132: 0 | AF132: 0 | AG132: 0 | AH132: 0 | AI132: 0 | AJ132: 0 | AK132: 0 | AL132: 0 | AM132: 0 | AN132: 0 | AO132: 0 | AP132: 0 | AQ132: 0 | AR132: 0 | AS132: 0 | AT132: 0 | AU132: 0 | AV132: 0 | AW132: 0 | AX132: 0 | AY132: 0 | AZ132: 0 | BA132: 0 | BB132: 0 | BC132: 0 | BD132: 0 | BE132: 0 | BF132: 0 | BG132: 0 | BH132: 0 | BI132: 0 | BJ132: 0 | BK132: 0 | BL132: 0 | BM132: 0 | BN132: 0 | BO132: 0 | BP132: 0 | BQ132: 0
A133: 6.02 | B133: Reactive maintenance & repairs | D133: Insert Data Source | F133: 0 | G133: 0 | H133: =SUM(I133:BP133) -> 0 | I133: 0 | J133: 0 | K133: 0 | L133: 0 | M133: 0 | N133: 0 | O133: 0 | P133: 0 | Q133: 0 | R133: 0 | S133: 0 | T133: 0 | U133: 0 | V133: 0 | W133: 0 | X133: 0 | Y133: 0 | Z133: 0 | AA133: 0 | AB133: 0 | AC133: 0 | AD133: 0 | AE133: 0 | AF133: 0 | AG133: 0 | AH133: 0 | AI133: 0 | AJ133: 0 | AK133: 0 | AL133: 0 | AM133: 0 | AN133: 0 | AO133: 0 | AP133: 0 | AQ133: 0 | AR133: 0 | AS133: 0 | AT133: 0 | AU133: 0 | AV133: 0 | AW133: 0 | AX133: 0 | AY133: 0 | AZ133: 0 | BA133: 0 | BB133: 0 | BC133: 0 | BD133: 0 | BE133: 0 | BF133: 0 | BG133: 0 | BH133: 0 | BI133: 0 | BJ133: 0 | BK133: 0 | BL133: 0 | BM133: 0 | BN133: 0 | BO133: 0 | BP133: 0 | BQ133: 0
A134: 6.03 | B134: Refurbishment & adaptations | D134: Insert Data Source | F134: 0 | G134: 0 | H134: 0 | I134: 0 | J134: 0 | K134: 0 | L134: 0 | M134: 0 | N134: 0 | O134: 0 | P134: 0 | Q134: 0 | R134: 0 | S134: 0 | T134: 0 | U134: 0 | V134: 0 | W134: 0 | X134: 0 | Y134: 0 | Z134: 0 | AA134: 0 | AB134: 0 | AC134: 0 | AD134: 0 | AE134: 0 | AF134: 0 | AG134: 0 | AH134: 0 | AI134: 0 | AJ134: 0 | AK134: 0 | AL134: 0 | AM134: 0 | AN134: 0 | AO134: 0 | AP134: 0 | AQ134: 0 | AR134: 0 | AS134: 0 | AT134: 0 | AU134: 0 | AV134: 0 | AW134: 0 | AX134: 0 | AY134: 0 | AZ134: 0 | BA134: 0 | BB134: 0 | BC134: 0 | BD134: 0 | BE134: 0 | BF134: 0 | BG134: 0 | BH134: 0 | BI134: 0 | BJ134: 0 | BK134: 0 | BL134: 0 | BM134: 0 | BN134: 0 | BO134: 0 | BP134: 0 | BQ134: 0
A135: 6.04 | B135: Redecorations | D135: Insert Data Source | F135: 0 | G135: 0 | H135: 0 | I135: 0 | J135: 0 | K135: 0 | L135: 0 | M135: 0 | N135: 0 | O135: 0 | P135: 0 | Q135: 0 | R135: 0 | S135: 0 | T135: 0 | U135: 0 | V135: 0 | W135: 0 | X135: 0 | Y135: 0 | Z135: 0 | AA135: 0 | AB135: 0 | AC135: 0 | AD135: 0 | AE135: 0 | AF135: 0 | AG135: 0 | AH135: 0 | AI135: 0 | AJ135: 0 | AK135: 0 | AL135: 0 | AM135: 0 | AN135: 0 | AO135: 0 | AP135: 0 | AQ135: 0 | AR135: 0 | AS135: 0 | AT135: 0 | AU135: 0 | AV135: 0 | AW135: 0 | AX135: 0 | AY135: 0 | AZ135: 0 | BA135: 0 | BB135: 0 | BC135: 0 | BD135: 0 | BE135: 0 | BF135: 0 | BG135: 0 | BH135: 0 | BI135: 0 | BJ135: 0 | BK135: 0 | BL135: 0 | BM135: 0 | BN135: 0 | BO135: 0 | BP135: 0 | BQ135: 0
A136: 6.05 | B136: Internal moves & modifications | D136: Insert Data Source | F136: 0 | G136: 0 | H136: 0 | I136: 0 | J136: 0 | K136: 0 | L136: 0 | M136: 0 | N136: 0 | O136: 0 | P136: 0 | Q136: 0 | R136: 0 | S136: 0 | T136: 0 | U136: 0 | V136: 0 | W136: 0 | X136: 0 | Y136: 0 | Z136: 0 | AA136: 0 | AB136: 0 | AC136: 0 | AD136: 0 | AE136: 0 | AF136: 0 | AG136: 0 | AH136: 0 | AI136: 0 | AJ136: 0 | AK136: 0 | AL136: 0 | AM136: 0 | AN136: 0 | AO136: 0 | AP136: 0 | AQ136: 0 | AR136: 0 | AS136: 0 | AT136: 0 | AU136: 0 | AV136: 0 | AW136: 0 | AX136: 0 | AY136: 0 | AZ136: 0 | BA136: 0 | BB136: 0 | BC136: 0 | BD136: 0 | BE136: 0 | BF136: 0 | BG136: 0 | BH136: 0 | BI136: 0 | BJ136: 0 | BK136: 0 | BL136: 0 | BM136: 0 | BN136: 0 | BO136: 0 | BP136: 0 | BQ136: 0
A137: 6.06 | B137: Grounds maintenance | D137: Insert Data Source | F137: 0 | G137: 0 | H137: 0 | I137: 0 | J137: 0 | K137: 0 | L137: 0 | M137: 0 | N137: 0 | O137: 0 | P137: 0 | Q137: 0 | R137: 0 | S137: 0 | T137: 0 | U137: 0 | V137: 0 | W137: 0 | X137: 0 | Y137: 0 | Z137: 0 | AA137: 0 | AB137: 0 | AC137: 0 | AD137: 0 | AE137: 0 | AF137: 0 | AG137: 0 | AH137: 0 | AI137: 0 | AJ137: 0 | AK137: 0 | AL137: 0 | AM137: 0 | AN137: 0 | AO137: 0 | AP137: 0 | AQ137: 0 | AR137: 0 | AS137: 0 | AT137: 0 | AU137: 0 | AV137: 0 | AW137: 0 | AX137: 0 | AY137: 0 | AZ137: 0 | BA137: 0 | BB137: 0 | BC137: 0 | BD137: 0 | BE137: 0 | BF137: 0 | BG137: 0 | BH137: 0 | BI137: 0 | BJ137: 0 | BK137: 0 | BL137: 0 | BM137: 0 | BN137: 0 | BO137: 0 | BP137: 0 | BQ137: 0
A138: 6.07 | B138: Occupant's FF&E | D138: Insert Data Source | F138: 0 | G138: 0 | H138: 0 | I138: 0 | J138: 0 | K138: 0 | L138: 0 | M138: 0 | N138: 0 | O138: 0 | P138: 0 | Q138: 0 | R138: 0 | S138: 0 | T138: 0 | U138: 0 | V138: 0 | W138: 0 | X138: 0 | Y138: 0 | Z138: 0 | AA138: 0 | AB138: 0 | AC138: 0 | AD138: 0 | AE138: 0 | AF138: 0 | AG138: 0 | AH138: 0 | AI138: 0 | AJ138: 0 | AK138: 0 | AL138: 0 | AM138: 0 | AN138: 0 | AO138: 0 | AP138: 0 | AQ138: 0 | AR138: 0 | AS138: 0 | AT138: 0 | AU138: 0 | AV138: 0 | AW138: 0 | AX138: 0 | AY138: 0 | AZ138: 0 | BA138: 0 | BB138: 0 | BC138: 0 | BD138: 0 | BE138: 0 | BF138: 0 | BG138: 0 | BH138: 0 | BI138: 0 | BJ138: 0 | BK138: 0 | BL138: 0 | BM138: 0 | BN138: 0 | BO138: 0 | BP138: 0 | BQ138: 0
A139: 6.08 | B139: Specialist Equipment | D139: Insert Data Source | F139: 0 | G139: 0 | H139: 0 | I139: 0 | J139: 0 | K139: 0 | L139: 0 | M139: 0 | N139: 0 | O139: 0 | P139: 0 | Q139: 0 | R139: 0 | S139: 0 | T139: 0 | U139: 0 | V139: 0 | W139: 0 | X139: 0 | Y139: 0 | Z139: 0 | AA139: 0 | AB139: 0 | AC139: 0 | AD139: 0 | AE139: 0 | AF139: 0 | AG139: 0 | AH139: 0 | AI139: 0 | AJ139: 0 | AK139: 0 | AL139: 0 | AM139: 0 | AN139: 0 | AO139: 0 | AP139: 0 | AQ139: 0 | AR139: 0 | AS139: 0 | AT139: 0 | AU139: 0 | AV139: 0 | AW139: 0 | AX139: 0 | AY139: 0 | AZ139: 0 | BA139: 0 | BB139: 0 | BC139: 0 | BD139: 0 | BE139: 0 | BF139: 0 | BG139: 0 | BH139: 0 | BI139: 0 | BJ139: 0 | BK139: 0 | BL139: 0 | BM139: 0 | BN139: 0 | BO139: 0 | BP139: 0 | BQ139: 0
A140: 6.09 | B140: Description of item & Source of Data | F140: 0 | G140: 0 | H140: 0 | I140: 0 | J140: 0 | K140: 0 | L140: 0 | M140: 0 | N140: 0 | O140: 0 | P140: 0 | Q140: 0 | R140: 0 | S140: 0 | T140: 0 | U140: 0 | V140: 0 | W140: 0 | X140: 0 | Y140: 0 | Z140: 0 | AA140: 0 | AB140: 0 | AC140: 0 | AD140: 0 | AE140: 0 | AF140: 0 | AG140: 0 | AH140: 0 | AI140: 0 | AJ140: 0 | AK140: 0 | AL140: 0 | AM140: 0 | AN140: 0 | AO140: 0 | AP140: 0 | AQ140: 0 | AR140: 0 | AS140: 0 | AT140: 0 | AU140: 0 | AV140: 0 | AW140: 0 | AX140: 0 | AY140: 0 | AZ140: 0 | BA140: 0 | BB140: 0 | BC140: 0 | BD140: 0 | BE140: 0 | BF140: 0 | BG140: 0 | BH140: 0 | BI140: 0 | BJ140: 0 | BK140: 0 | BL140: 0 | BM140: 0 | BN140: 0 | BO140: 0 | BP140: 0 | BQ140: 0
A141: 6.1 | B141: Description of item & Source of Data | F141: 0 | G141: 0 | H141: 0 | I141: 0 | J141: 0 | K141: 0 | L141: 0 | M141: 0 | N141: 0 | O141: 0 | P141: 0 | Q141: 0 | R141: 0 | S141: 0 | T141: 0 | U141: 0 | V141: 0 | W141: 0 | X141: 0 | Y141: 0 | Z141: 0 | AA141: 0 | AB141: 0 | AC141: 0 | AD141: 0 | AE141: 0 | AF141: 0 | AG141: 0 | AH141: 0 | AI141: 0 | AJ141: 0 | AK141: 0 | AL141: 0 | AM141: 0 | AN141: 0 | AO141: 0 | AP141: 0 | AQ141: 0 | AR141: 0 | AS141: 0 | AT141: 0 | AU141: 0 | AV141: 0 | AW141: 0 | AX141: 0 | AY141: 0 | AZ141: 0 | BA141: 0 | BB141: 0 | BC141: 0 | BD141: 0 | BE141: 0 | BF141: 0 | BG141: 0 | BH141: 0 | BI141: 0 | BJ141: 0 | BK141: 0 | BL141: 0 | BM141: 0 | BN141: 0 | BO141: 0 | BP141: 0 | BQ141: =SUM(I141:BP141) -> 0
A142: 6.11 | B142: Description of item & Source of Data | F142: 0 | G142: 0 | H142: 0 | I142: 0 | J142: 0 | K142: 0 | L142: 0 | M142: 0 | N142: 0 | O142: 0 | P142: 0 | Q142: 0 | R142: 0 | S142: 0 | T142: 0 | U142: 0 | V142: 0 | W142: 0 | X142: 0 | Y142: 0 | Z142: 0 | AA142: 0 | AB142: 0 | AC142: 0 | AD142: 0 | AE142: 0 | AF142: 0 | AG142: 0 | AH142: 0 | AI142: 0 | AJ142: 0 | AK142: 0 | AL142: 0 | AM142: 0 | AN142: 0 | AO142: 0 | AP142: 0 | AQ142: 0 | AR142: 0 | AS142: 0 | AT142: 0 | AU142: 0 | AV142: 0 | AW142: 0 | AX142: 0 | AY142: 0 | AZ142: 0 | BA142: 0 | BB142: 0 | BC142: 0 | BD142: 0 | BE142: 0 | BF142: 0 | BG142: 0 | BH142: 0 | BI142: 0 | BJ142: 0 | BK142: 0 | BL142: 0 | BM142: 0 | BN142: 0 | BO142: 0 | BP142: 0 | BQ142: 0
A143: 6.12 | B143: Description of item & Source of Data | F143: 0 | G143: 0 | H143: 0 | I143: 0 | J143: 0 | K143: 0 | L143: 0 | M143: 0 | N143: 0 | O143: 0 | P143: 0 | Q143: 0 | R143: 0 | S143: 0 | T143: 0 | U143: 0 | V143: 0 | W143: 0 | X143: 0 | Y143: 0 | Z143: 0 | AA143: 0 | AB143: 0 | AC143: 0 | AD143: 0 | AE143: 0 | AF143: 0 | AG143: 0 | AH143: 0 | AI143: 0 | AJ143: 0 | AK143: 0 | AL143: 0 | AM143: 0 | AN143: 0 | AO143: 0 | AP143: 0 | AQ143: 0 | AR143: 0 | AS143: 0 | AT143: 0 | AU143: 0 | AV143: 0 | AW143: 0 | AX143: 0 | AY143: 0 | AZ143: 0 | BA143: 0 | BB143: 0 | BC143: 0 | BD143: 0 | BE143: 0 | BF143: 0 | BG143: 0 | BH143: 0 | BI143: 0 | BJ143: 0 | BK143: 0 | BL143: 0 | BM143: 0 | BN143: 0 | BO143: 0 | BP143: 0 | BQ143: 0
A144: 6.13 | B144: Description of item & Source of Data | F144: 0 | G144: 0 | H144: 0 | I144: 0 | J144: 0 | K144: 0 | L144: 0 | M144: 0 | N144: 0 | O144: 0 | P144: 0 | Q144: 0 | R144: 0 | S144: 0 | T144: 0 | U144: 0 | V144: 0 | W144: 0 | X144: 0 | Y144: 0 | Z144: 0 | AA144: 0 | AB144: 0 | AC144: 0 | AD144: 0 | AE144: 0 | AF144: 0 | AG144: 0 | AH144: 0 | AI144: 0 | AJ144: 0 | AK144: 0 | AL144: 0 | AM144: 0 | AN144: 0 | AO144: 0 | AP144: 0 | AQ144: 0 | AR144: 0 | AS144: 0 | AT144: 0 | AU144: 0 | AV144: 0 | AW144: 0 | AX144: 0 | AY144: 0 | AZ144: 0 | BA144: 0 | BB144: 0 | BC144: 0 | BD144: 0 | BE144: 0 | BF144: 0 | BG144: 0 | BH144: 0 | BI144: 0 | BJ144: 0 | BK144: 0 | BL144: 0 | BM144: 0 | BN144: 0 | BO144: 0 | BP144: 0 | BQ144: 0
G145: TOTAL CURRENT DAY COSTS | H145: =SUM(H132:H144) -> 0 | I145: =SUM(I132:I144) -> 0 | J145: 0 | K145: 0 | L145: 0 | M145: 0 | N145: 0 | O145: 0 | P145: 0 | Q145: 0 | R145: 0 | S145: 0 | T145: 0 | U145: 0 | V145: 0 | W145: 0 | X145: 0 | Y145: 0 | Z145: 0 | AA145: 0 | AB145: 0 | AC145: 0 | AD145: 0 | AE145: 0 | AF145: 0 | AG145: 0 | AH145: 0 | AI145: 0 | AJ145: 0 | AK145: 0 | AL145: 0 | AM145: 0 | AN145: 0 | AO145: 0 | AP145: 0 | AQ145: 0 | AR145: 0 | AS145: 0 | AT145: 0 | AU145: 0 | AV145: 0 | AW145: 0 | AX145: 0 | AY145: 0 | AZ145: 0 | BA145: 0 | BB145: 0 | BC145: 0 | BD145: 0 | BE145: 0 | BF145: 0 | BG145: 0 | BH145: 0 | BI145: 0 | BJ145: 0 | BK145: 0 | BL145: 0 | BM145: 0 | BN145: 0 | BO145: 0 | BP145: 0 | BQ145: 0
B146: Indexation | C146: LCC | D146: ='Project Input'!E19 -> 0 | I146: 1 | J146: =SUM(I146*$D$146)+I146 -> 1 | K146: =SUM(J146*$D$146)+J146 -> 1 | L146: 1 | M146: 1 | N146: 1 | O146: 1 | P146: 1 | Q146: 1 | R146: 1 | S146: 1 | T146: 1 | U146: 1 | V146: 1 | W146: 1 | X146: 1 | Y146: 1 | Z146: 1 | AA146: 1 | AB146: 1 | AC146: 1 | AD146: 1 | AE146: 1 | AF146: 1 | AG146: 1 | AH146: 1 | AI146: 1 | AJ146: 1 | AK146: 1 | AL146: 1 | AM146: 1 | AN146: 1 | AO146: 1 | AP146: 1 | AQ146: 1 | AR146: 1 | AS146: 1 | AT146: 1 | AU146: 1 | AV146: 1 | AW146: 1 | AX146: 1 | AY146: 1 | AZ146: 1 | BA146: 1 | BB146: 1 | BC146: 1 | BD146: 1 | BE146: 1 | BF146: 1 | BG146: 1 | BH146: 1 | BI146: 1 | BJ146: 1 | BK146: 1 | BL146: 1 | BM146: 1 | BN146: 1 | BO146: 1 | BP146: 1
G147: Annual Nominal Whole Life Costs | H147: =SUM(I147:BP147) -> 0 | I147: =SUM(I145*I146) -> 0 | J147: =SUM(J145*J146) -> 0 | K147: 0 | L147: 0 | M147: 0 | N147: 0 | O147: 0 | P147: 0 | Q147: 0 | R147: 0 | S147: 0 | T147: 0 | U147: 0 | V147: 0 | W147: 0 | X147: 0 | Y147: 0 | Z147: 0 | AA147: 0 | AB147: 0 | AC147: 0 | AD147: 0 | AE147: 0 | AF147: 0 | AG147: 0 | AH147: 0 | AI147: 0 | AJ147: 0 | AK147: 0 | AL147: 0 | AM147: 0 | AN147: 0 | AO147: 0 | AP147: 0 | AQ147: 0 | AR147: 0 | AS147: 0 | AT147: 0 | AU147: 0 | AV147: 0 | AW147: 0 | AX147: 0 | AY147: 0 | AZ147: 0 | BA147: 0 | BB147: 0 | BC147: 0 | BD147: 0 | BE147: 0 | BF147: 0 | BG147: 0 | BH147: 0 | BI147: 0 | BJ147: 0 | BK147: 0 | BL147: 0 | BM147: 0 | BN147: 0 | BO147: 0 | BP147: 0 | BQ147: =SUM(I147:BP147) -> 0
C148: Days since start of concession | D148: 365 | I148: =SUM($D$148*I26) -> 365 | J148: =SUM($D$148*J26) -> 730 | K148: 1095 | L148: 1460 | M148: 1825 | N148: 2190 | O148: 2555 | P148: 2920 | Q148: 3285 | R148: 3650 | S148: 4015 | T148: 4380 | U148: 4745 | V148: 5110 | W148: 5475 | X148: 5840 | Y148: 6205 | Z148: 6570 | AA148: 6935 | AB148: 7300 | AC148: 7665 | AD148: 8030 | AE148: 8395 | AF148: 8760 | AG148: 9125 | AH148: 9490 | AI148: 9855 | AJ148: 10220 | AK148: 10585 | AL148: 10950 | AM148: 11315 | AN148: 11680 | AO148: 12045 | AP148: 12410 | AQ148: 12775 | AR148: 13140 | AS148: 13505 | AT148: 13870 | AU148: 14235 | AV148: 14600 | AW148: 14965 | AX148: 15330 | AY148: 15695 | AZ148: 16060 | BA148: 16425 | BB148: 16790 | BC148: 17155 | BD148: 17520 | BE148: 17885 | BF148: 18250 | BG148: 18615 | BH148: 18980 | BI148: 19345 | BJ148: 19710 | BK148: 20075 | BL148: 20440 | BM148: 20805 | BN148: 21170 | BO148: 21535 | BP148: 21900
C149: Discount index | D149: ='Project Input'!$E$24 -> 0 | I149: =(1+$D$149)^(I148/$D$148) -> 1 | J149: =(1+$D$149)^(J148/$D$148) -> 1 | K149: 1 | L149: 1 | M149: 1 | N149: 1 | O149: 1 | P149: 1 | Q149: 1 | R149: 1 | S149: 1 | T149: 1 | U149: 1 | V149: 1 | W149: 1 | X149: 1 | Y149: 1 | Z149: 1 | AA149: 1 | AB149: 1 | AC149: 1 | AD149: 1 | AE149: 1 | AF149: 1 | AG149: 1 | AH149: 1 | AI149: 1 | AJ149: 1 | AK149: 1 | AL149: 1 | AM149: 1 | AN149: 1 | AO149: 1 | AP149: 1 | AQ149: 1 | AR149: 1 | AS149: 1 | AT149: 1 | AU149: 1 | AV149: 1 | AW149: 1 | AX149: 1 | AY149: 1 | AZ149: 1 | BA149: 1 | BB149: 1 | BC149: 1 | BD149: 1 | BE149: 1 | BF149: 1 | BG149: 1 | BH149: 1 | BI149: 1 | BJ149: 1 | BK149: 1 | BL149: 1 | BM149: 1 | BN149: 1 | BO149: 1 | BP149: 1
A150: 6 Maintenance Costs (Hard FM) | G150: Annual NPV of Whole Life Costs | H150: =SUM(I150:BP150) -> 0 | I150: =I147/I149 -> 0 | J150: 0 | K150: 0 | L150: 0 | M150: 0 | N150: 0 | O150: 0 | P150: 0 | Q150: 0 | R150: 0 | S150: 0 | T150: 0 | U150: 0 | V150: 0 | W150: 0 | X150: 0 | Y150: 0 | Z150: 0 | AA150: 0 | AB150: 0 | AC150: 0 | AD150: 0 | AE150: 0 | AF150: 0 | AG150: 0 | AH150: 0 | AI150: 0 | AJ150: 0 | AK150: 0 | AL150: 0 | AM150: 0 | AN150: 0 | AO150: 0 | AP150: 0 | AQ150: 0 | AR150: 0 | AS150: 0 | AT150: 0 | AU150: 0 | AV150: 0 | AW150: 0 | AX150: 0 | AY150: 0 | AZ150: 0 | BA150: 0 | BB150: 0 | BC150: 0 | BD150: 0 | BE150: 0 | BF150: 0 | BG150: 0 | BH150: 0 | BI150: 0 | BJ150: 0 | BK150: 0 | BL150: 0 | BM150: 0 | BN150: 0 | BO150: 0 | BP150: 0 | BQ150: =SUM(I150:BP150) -> 0
G151: Cumulative NPV of Whole Life Costs | I151: =SUM(I150) -> 0 | J151: =SUM(I151+J150) -> 0 | K151: =SUM(J151+K150) -> 0 | L151: =SUM(K151+L150) -> 0 | M151: =SUM(L151+M150) -> 0 | N151: 0 | O151: 0 | P151: 0 | Q151: 0 | R151: 0 | S151: 0 | T151: 0 | U151: 0 | V151: 0 | W151: 0 | X151: 0 | Y151: 0 | Z151: 0 | AA151: 0 | AB151: 0 | AC151: 0 | AD151: 0 | AE151: 0 | AF151: 0 | AG151: 0 | AH151: 0 | AI151: 0 | AJ151: 0 | AK151: =SUM(AJ151+AK150) -> 0 | AL151: =SUM(AK151+AL150) -> 0 | AM151: 0 | AN151: 0 | AO151: 0 | AP151: 0 | AQ151: 0 | AR151: 0 | AS151: 0 | AT151: 0 | AU151: 0 | AV151: 0 | AW151: 0 | AX151: 0 | AY151: 0 | AZ151: 0 | BA151: 0 | BB151: 0 | BC151: 0 | BD151: 0 | BE151: 0 | BF151: 0 | BG151: 0 | BH151: 0 | BI151: 0 | BJ151: 0 | BK151: 0 | BL151: 0 | BM151: 0 | BN151: 0 | BO151: 0
A152: 7 | B152: Life Cycle Replacement Costs | I152: =I27 -> 2019 | J152: =J27 -> 2020 | K152: 2021 | L152: 2022 | M152: 2023 | N152: 2024 | O152: 2025 | P152: 2026 | Q152: 2027 | R152: 2028 | S152: 2029 | T152: 2030 | U152: 2031 | V152: 2032 | W152: 2033 | X152: 2034 | Y152: 2035 | Z152: 2036 | AA152: 2037 | AB152: 2038 | AC152: 2039 | AD152: 2040 | AE152: 2041 | AF152: 2042 | AG152: 2043 | AH152: 2044 | AI152: 2045 | AJ152: 2046 | AK152: 2047 | AL152: 2048 | AM152: 2049 | AN152: 2050 | AO152: 2051 | AP152: 2052 | AQ152: 2053 | AR152: 2054 | AS152: 2055 | AT152: 2056 | AU152: 2057 | AV152: 2058 | AW152: 2059 | AX152: 2060 | AY152: 2061 | AZ152: 2062 | BA152: 2063 | BB152: 2064 | BC152: 2065 | BD152: 2066 | BE152: 2067 | BF152: 2068 | BG152: 2069 | BH152: 2070 | BI152: 2071 | BJ152: 2072 | BK152: 2073 | BL152: 2074 | BM152: 2075 | BN152: 2076 | BO152: 2077 | BP152: 2078 | BQ152: =SUM(I152:BP152) -> 122910 | BT152: =NPV('Project Input'!$D$22,'Option B'!J152:BP152)+I152 -> 52638.57152
A153: 7.01 | B153: Substructure | D153: Insert Data Source | H153: 0 | I153: 0 | J153: 0 | K153: 0 | L153: 0 | M153: 0 | N153: 0 | O153: 0 | P153: 0 | Q153: 0 | R153: 0 | S153: 0 | T153: 0 | U153: 0 | V153: 0 | W153: 0 | X153: 0 | Y153: 0 | Z153: 0 | AA153: 0 | AB153: 0 | AC153: 0 | AD153: 0 | AE153: 0 | AF153: 0 | AG153: 0 | AH153: 0 | AI153: 0 | AJ153: 0 | AK153: 0 | AL153: 0 | AM153: 0 | AN153: 0 | AO153: 0 | AP153: 0 | AQ153: 0 | AR153: 0 | AS153: 0 | AT153: 0 | AU153: 0 | AV153: 0 | AW153: 0 | AX153: 0 | AY153: 0 | AZ153: 0 | BA153: 0 | BB153: 0 | BC153: 0 | BD153: 0 | BE153: 0 | BF153: 0 | BG153: 0 | BH153: 0 | BI153: 0 | BJ153: 0 | BK153: 0 | BL153: 0 | BM153: 0 | BN153: 0 | BO153: 0 | BP153: 0 | BQ153: 0
A154: 7.02 | B154: Superstructure | D154: Insert Data Source | H154: 0 | I154: 0 | J154: 0 | K154: 0 | L154: 0 | M154: 0 | N154: 0 | O154: 0 | P154: 0 | Q154: 0 | R154: 0 | S154: 0 | T154: 0 | U154: 0 | V154: 0 | W154: 0 | X154: 0 | Y154: 0 | Z154: 0 | AA154: 0 | AB154: 0 | AC154: 0 | AD154: 0 | AE154: 0 | AF154: 0 | AG154: 0 | AH154: 0 | AI154: 0 | AJ154: 0 | AK154: 0 | AL154: 0 | AM154: 0 | AN154: 0 | AO154: 0 | AP154: 0 | AQ154: 0 | AR154: 0 | AS154: 0 | AT154: 0 | AU154: 0 | AV154: 0 | AW154: 0 | AX154: 0 | AY154: 0 | AZ154: 0 | BA154: 0 | BB154: 0 | BC154: 0 | BD154: 0 | BE154: 0 | BF154: 0 | BG154: 0 | BH154: 0 | BI154: 0 | BJ154: 0 | BK154: 0 | BL154: 0 | BM154: 0 | BN154: 0 | BO154: 0 | BP154: 0 | BQ154: 0
A155: 7.03 | B155: Finishes | D155: Insert Data Source | H155: 0 | I155: 0 | J155: 0 | K155: 0 | L155: 0 | M155: 0 | N155: 0 | O155: 0 | P155: 0 | Q155: 0 | R155: 0 | S155: 0 | T155: 0 | U155: 0 | V155: 0 | W155: 0 | X155: 0 | Y155: 0 | Z155: 0 | AA155: 0 | AB155: 0 | AC155: 0 | AD155: 0 | AE155: 0 | AF155: 0 | AG155: 0 | AH155: 0 | AI155: 0 | AJ155: 0 | AK155: 0 | AL155: 0 | AM155: 0 | AN155: 0 | AO155: 0 | AP155: 0 | AQ155: 0 | AR155: 0 | AS155: 0 | AT155: 0 | AU155: 0 | AV155: 0 | AW155: 0 | AX155: 0 | AY155: 0 | AZ155: 0 | BA155: 0 | BB155: 0 | BC155: 0 | BD155: 0 | BE155: 0 | BF155: 0 | BG155: 0 | BH155: 0 | BI155: 0 | BJ155: 0 | BK155: 0 | BL155: 0 | BM155: 0 | BN155: 0 | BO155: 0 | BP155: 0 | BQ155: 0
A156: 7.04 | B156: FF&E | D156: Insert Data Source | H156: 0 | I156: 0 | J156: 0 | K156: 0 | L156: 0 | M156: 0 | N156: 0 | O156: 0 | P156: 0 | Q156: 0 | R156: 0 | S156: 0 | T156: 0 | U156: 0 | V156: 0 | W156: 0 | X156: 0 | Y156: 0 | Z156: 0 | AA156: 0 | AB156: 0 | AC156: 0 | AD156: 0 | AE156: 0 | AF156: 0 | AG156: 0 | AH156: 0 | AI156: 0 | AJ156: 0 | AK156: 0 | AL156: 0 | AM156: 0 | AN156: 0 | AO156: 0 | AP156: 0 | AQ156: 0 | AR156: 0 | AS156: 0 | AT156: 0 | AU156: 0 | AV156: 0 | AW156: 0 | AX156: 0 | AY156: 0 | AZ156: 0 | BA156: 0 | BB156: 0 | BC156: 0 | BD156: 0 | BE156: 0 | BF156: 0 | BG156: 0 | BH156: 0 | BI156: 0 | BJ156: 0 | BK156: 0 | BL156: 0 | BM156: 0 | BN156: 0 | BO156: 0 | BP156: 0 | BQ156: 0
A157: 7.05 | B157: M&E Services | D157: Insert Data Source | H157: 0 | I157: 0 | J157: 0 | K157: 0 | L157: 0 | M157: 0 | N157: 0 | O157: 0 | P157: 0 | Q157: 0 | R157: 0 | S157: 0 | T157: 0 | U157: 0 | V157: 0 | W157: 0 | X157: 0 | Y157: 0 | Z157: 0 | AA157: 0 | AB157: 0 | AC157: 0 | AD157: 0 | AE157: 0 | AF157: 0 | AG157: 0 | AH157: 0 | AI157: 0 | AJ157: 0 | AK157: 0 | AL157: 0 | AM157: 0 | AN157: 0 | AO157: 0 | AP157: 0 | AQ157: 0 | AR157: 0 | AS157: 0 | AT157: 0 | AU157: 0 | AV157: 0 | AW157: 0 | AX157: 0 | AY157: 0 | AZ157: 0 | BA157: 0 | BB157: 0 | BC157: 0 | BD157: 0 | BE157: 0 | BF157: 0 | BG157: 0 | BH157: 0 | BI157: 0 | BJ157: 0 | BK157: 0 | BL157: 0 | BM157: 0 | BN157: 0 | BO157: 0 | BP157: 0 | BQ157: 0
A158: 7.06 | B158: External Works | D158: Insert Data Source | H158: 0 | I158: 0 | J158: 0 | K158: 0 | L158: 0 | M158: 0 | N158: 0 | O158: 0 | P158: 0 | Q158: 0 | R158: 0 | S158: 0 | T158: 0 | U158: 0 | V158: 0 | W158: 0 | X158: 0 | Y158: 0 | Z158: 0 | AA158: 0 | AB158: 0 | AC158: 0 | AD158: 0 | AE158: 0 | AF158: 0 | AG158: 0 | AH158: 0 | AI158: 0 | AJ158: 0 | AK158: 0 | AL158: 0 | AM158: 0 | AN158: 0 | AO158: 0 | AP158: 0 | AQ158: 0 | AR158: 0 | AS158: 0 | AT158: 0 | AU158: 0 | AV158: 0 | AW158: 0 | AX158: 0 | AY158: 0 | AZ158: 0 | BA158: 0 | BB158: 0 | BC158: 0 | BD158: 0 | BE158: 0 | BF158: 0 | BG158: 0 | BH158: 0 | BI158: 0 | BJ158: 0 | BK158: 0 | BL158: 0 | BM158: 0 | BN158: 0 | BO158: 0 | BP158: 0 | BQ158: 0
A159: 7.07 | B159: Preliminaries | D159: Insert Data Source | H159: 0 | I159: 0 | J159: 0 | K159: 0 | L159: 0 | M159: 0 | N159: 0 | O159: 0 | P159: 0 | Q159: 0 | R159: 0 | S159: 0 | T159: 0 | U159: 0 | V159: 0 | W159: 0 | X159: 0 | Y159: 0 | Z159: 0 | AA159: 0 | AB159: 0 | AC159: 0 | AD159: 0 | AE159: 0 | AF159: 0 | AG159: 0 | AH159: 0 | AI159: 0 | AJ159: 0 | AK159: 0 | AL159: 0 | AM159: 0 | AN159: 0 | AO159: 0 | AP159: 0 | AQ159: 0 | AR159: 0 | AS159: 0 | AT159: 0 | AU159: 0 | AV159: 0 | AW159: 0 | AX159: 0 | AY159: 0 | AZ159: 0 | BA159: 0 | BB159: 0 | BC159: 0 | BD159: 0 | BE159: 0 | BF159: 0 | BG159: 0 | BH159: 0 | BI159: 0 | BJ159: 0 | BK159: 0 | BL159: 0 | BM159: 0 | BN159: 0 | BO159: 0 | BP159: 0 | BQ159: 0
A160: 7.08 | B160: Contingencies | D160: Insert Data Source | H160: 0 | I160: 0 | J160: 0 | K160: 0 | L160: 0 | M160: 0 | N160: 0 | O160: 0 | P160: 0 | Q160: 0 | R160: 0 | S160: 0 | T160: 0 | U160: 0 | V160: 0 | W160: 0 | X160: 0 | Y160: 0 | Z160: 0 | AA160: 0 | AB160: 0 | AC160: 0 | AD160: 0 | AE160: 0 | AF160: 0 | AG160: 0 | AH160: 0 | AI160: 0 | AJ160: 0 | AK160: 0 | AL160: 0 | AM160: 0 | AN160: 0 | AO160: 0 | AP160: 0 | AQ160: 0 | AR160: 0 | AS160: 0 | AT160: 0 | AU160: 0 | AV160: 0 | AW160: 0 | AX160: 0 | AY160: 0 | AZ160: 0 | BA160: 0 | BB160: 0 | BC160: 0 | BD160: 0 | BE160: 0 | BF160: 0 | BG160: 0 | BH160: 0 | BI160: 0 | BJ160: 0 | BK160: 0 | BL160: 0 | BM160: 0 | BN160: 0 | BO160: 0 | BP160: 0 | BQ160: 0
A161: 7.09 | B161: Description of item & Source of Data | H161: 0 | I161: 0 | J161: 0 | K161: 0 | L161: 0 | M161: 0 | N161: 0 | O161: 0 | P161: 0 | Q161: 0 | R161: 0 | S161: 0 | T161: 0 | U161: 0 | V161: 0 | W161: 0 | X161: 0 | Y161: 0 | Z161: 0 | AA161: 0 | AB161: 0 | AC161: 0 | AD161: 0 | AE161: 0 | AF161: 0 | AG161: 0 | AH161: 0 | AI161: 0 | AJ161: 0 | AK161: 0 | AL161: 0 | AM161: 0 | AN161: 0 | AO161: 0 | AP161: 0 | AQ161: 0 | AR161: 0 | AS161: 0 | AT161: 0 | AU161: 0 | AV161: 0 | AW161: 0 | AX161: 0 | AY161: 0 | AZ161: 0 | BA161: 0 | BB161: 0 | BC161: 0 | BD161: 0 | BE161: 0 | BF161: 0 | BG161: 0 | BH161: 0 | BI161: 0 | BJ161: 0 | BK161: 0 | BL161: 0 | BM161: 0 | BN161: 0 | BO161: 0 | BP161: 0 | BQ161: 0
A162: 7.1 | B162: Description of item & Source of Data | H162: 0 | I162: 0 | J162: 0 | K162: 0 | L162: 0 | M162: 0 | N162: 0 | O162: 0 | P162: 0 | Q162: 0 | R162: 0 | S162: 0 | T162: 0 | U162: 0 | V162: 0 | W162: 0 | X162: 0 | Y162: 0 | Z162: 0 | AA162: 0 | AB162: 0 | AC162: 0 | AD162: 0 | AE162: 0 | AF162: 0 | AG162: 0 | AH162: 0 | AI162: 0 | AJ162: 0 | AK162: 0 | AL162: 0 | AM162: 0 | AN162: 0 | AO162: 0 | AP162: 0 | AQ162: 0 | AR162: 0 | AS162: 0 | AT162: 0 | AU162: 0 | AV162: 0 | AW162: 0 | AX162: 0 | AY162: 0 | AZ162: 0 | BA162: 0 | BB162: 0 | BC162: 0 | BD162: 0 | BE162: 0 | BF162: 0 | BG162: 0 | BH162: 0 | BI162: 0 | BJ162: 0 | BK162: 0 | BL162: 0 | BM162: 0 | BN162: 0 | BO162: 0 | BP162: 0 | BQ162: 0
A163: 7.11 | B163: Description of item & Source of Data | H163: 0 | I163: 0 | J163: 0 | K163: 0 | L163: 0 | M163: 0 | N163: 0 | O163: 0 | P163: 0 | Q163: 0 | R163: 0 | S163: 0 | T163: 0 | U163: 0 | V163: 0 | W163: 0 | X163: 0 | Y163: 0 | Z163: 0 | AA163: 0 | AB163: 0 | AC163: 0 | AD163: 0 | AE163: 0 | AF163: 0 | AG163: 0 | AH163: 0 | AI163: 0 | AJ163: 0 | AK163: 0 | AL163: 0 | AM163: 0 | AN163: 0 | AO163: 0 | AP163: 0 | AQ163: 0 | AR163: 0 | AS163: 0 | AT163: 0 | AU163: 0 | AV163: 0 | AW163: 0 | AX163: 0 | AY163: 0 | AZ163: 0 | BA163: 0 | BB163: 0 | BC163: 0 | BD163: 0 | BE163: 0 | BF163: 0 | BG163: 0 | BH163: 0 | BI163: 0 | BJ163: 0 | BK163: 0 | BL163: 0 | BM163: 0 | BN163: 0 | BO163: 0 | BP163: 0 | BQ163: 0
A164: 7.12 | B164: Description of item & Source of Data | H164: 0 | I164: 0 | J164: 0 | K164: 0 | L164: 0 | M164: 0 | N164: 0 | O164: 0 | P164: 0 | Q164: 0 | R164: 0 | S164: 0 | T164: 0 | U164: 0 | V164: 0 | W164: 0 | X164: 0 | Y164: 0 | Z164: 0 | AA164: 0 | AB164: 0 | AC164: 0 | AD164: 0 | AE164: 0 | AF164: 0 | AG164: 0 | AH164: 0 | AI164: 0 | AJ164: 0 | AK164: 0 | AL164: 0 | AM164: 0 | AN164: 0 | AO164: 0 | AP164: 0 | AQ164: 0 | AR164: 0 | AS164: 0 | AT164: 0 | AU164: 0 | AV164: 0 | AW164: 0 | AX164: 0 | AY164: 0 | AZ164: 0 | BA164: 0 | BB164: 0 | BC164: 0 | BD164: 0 | BE164: 0 | BF164: 0 | BG164: 0 | BH164: 0 | BI164: 0 | BJ164: 0 | BK164: 0 | BL164: 0 | BM164: 0 | BN164: 0 | BO164: 0 | BP164: 0 | BQ164: 0
A165: 7.13 | B165: Description of item & Source of Data | H165: 0 | I165: 0 | J165: 0 | K165: 0 | L165: 0 | M165: 0 | N165: 0 | O165: 0 | P165: 0 | Q165: 0 | R165: 0 | S165: 0 | T165: 0 | U165: 0 | V165: 0 | W165: 0 | X165: 0 | Y165: 0 | Z165: 0 | AA165: 0 | AB165: 0 | AC165: 0 | AD165: 0 | AE165: 0 | AF165: 0 | AG165: 0 | AH165: 0 | AI165: 0 | AJ165: 0 | AK165: 0 | AL165: 0 | AM165: 0 | AN165: 0 | AO165: 0 | AP165: 0 | AQ165: 0 | AR165: 0 | AS165: 0 | AT165: 0 | AU165: 0 | AV165: 0 | AW165: 0 | AX165: 0 | AY165: 0 | AZ165: 0 | BA165: 0 | BB165: 0 | BC165: 0 | BD165: 0 | BE165: 0 | BF165: 0 | BG165: 0 | BH165: 0 | BI165: 0 | BJ165: 0 | BK165: 0 | BL165: 0 | BM165: 0 | BN165: 0 | BO165: 0 | BP165: 0 | BQ165: 0
G166: TOTAL CURRENT DAY COSTS | H166: =SUM(H153:H165) -> 0 | I166: =SUM(I153:I165) -> 0 | J166: 0 | K166: 0 | L166: 0 | M166: 0 | N166: 0 | O166: 0 | P166: 0 | Q166: 0 | R166: 0 | S166: 0 | T166: 0 | U166: 0 | V166: 0 | W166: 0 | X166: 0 | Y166: 0 | Z166: 0 | AA166: 0 | AB166: 0 | AC166: 0 | AD166: 0 | AE166: 0 | AF166: 0 | AG166: 0 | AH166: 0 | AI166: 0 | AJ166: 0 | AK166: 0 | AL166: 0 | AM166: 0 | AN166: 0 | AO166: 0 | AP166: 0 | AQ166: 0 | AR166: 0 | AS166: 0 | AT166: 0 | AU166: 0 | AV166: 0 | AW166: 0 | AX166: 0 | AY166: 0 | AZ166: 0 | BA166: 0 | BB166: 0 | BC166: 0 | BD166: 0 | BE166: 0 | BF166: 0 | BG166: 0 | BH166: 0 | BI166: 0 | BJ166: 0 | BK166: 0 | BL166: 0 | BM166: 0 | BN166: 0 | BO166: 0 | BP166: 0 | BQ166: 0
